Workbook

Sheet MainDisplay
O1: =TODAY() -> 2018-06-18
B2: =MOD(NOW(),1) -> 16:13:48.470 | F2: CQG Eurex 10-Day Map | AA2: =MOD(NOW(),1) -> 16:13:48.470
B4: Symbol | D4: Equities | F4: =IF(RTD("cqg.rtd", ,"ContractData",Sheet3!$D$12, "NetLastTradeToday",, "T")>=0,"+",0) -> 0 | G4: Last | H4: =TEXT(RTD("cqg.rtd", ,"ContractData",Sheet3!$D$12, "LastTradeToday",, "T"),Sheet3!$F$17) -> 3446 | J4: Net | K4: =IF(F4="+","+"&TEXT(RTD("cqg.rtd", ,"ContractData",Sheet3!$D$12, "NetLastTradeToday",, "T"),Sheet3!$F$17),TEXT(RTD("cqg.rtd", ,"ContractData",Sheet3!$D$12, "NetLastTradeToday",, "T"),Sheet3!$F$17)) -> -57 | M4: Net $ Change | R4: Symbol | T4: Equities | V4: =IF(RTD("cqg.rtd", ,"ContractData",'Sheet3 (2)'!$D$12, "NetLastTradeToday",, "T")>=0,"+",0) -> 0 | W4: Last | X4: =TEXT(RTD("cqg.rtd", ,"ContractData",'Sheet3 (2)'!$D$12, "LastTradeToday",, "T"),'Sheet3 (2)'!$F$17) -> 110.60 | Z4: Net | AA4: =IF(V4="+","+"&TEXT(RTD("cqg.rtd", ,"ContractData",'Sheet3 (2)'!$D$12, "NetLastTradeToday",, "T"),'Sheet3 (2)'!$F$17),TEXT(RTD("cqg.rtd", ,"ContractData",'Sheet3 (2)'!$D$12, "NetLastTradeToday",, "T"),'Sheet3 (2)'!$F$17)) -> -.90 | AC4: Net $ Change
B5: DSX | C5: =" "&RTD("cqg.rtd", ,"ContractData",Sheet3!$D$12, "LongDescription",, "T")&" " -> Euro STOXX 50, Sep 18 | G5: Trade | J5: Change | M5: =IFERROR(1/RTD("cqg.rtd",,"ContractData","Tsize("&B5&")","LastQuoteToday",,"T")*RTD("cqg.rtd",,"ContractData","PriceToDollar(Tsize("&B5&"))","LastQuoteToday")*RTD("cqg.rtd", ,"ContractData", B5, "NetLastTrade"),"") -> -570 | R5: ESB | S5: =" "&RTD("cqg.rtd", ,"ContractData",'Sheet3 (2)'!D12, "LongDescription",, "T")&" " -> Euro STOXX Banks, Sep 18 | W5: Trade | Z5: Change | AC5: =IFERROR(1/RTD("cqg.rtd",,"ContractData","Tsize("&R5&")","LastQuoteToday",,"T")*RTD("cqg.rtd",,"ContractData","PriceToDollar(Tsize("&R5&"))","LastQuoteToday")*RTD("cqg.rtd", ,"ContractData", R5, "NetLastTrade"),"") -> -45
B6: =2*RTD("cqg.rtd",,"ContractData","Tsize("&B5&")","LastQuoteToday",,"T") -> 2 | G6: Open | H6: =TEXT(RTD("cqg.rtd", ,"ContractData",Sheet3!$D$12, "Open",, "T"),Sheet3!$F$17) -> 3491 | I6: High | J6: =TEXT(RTD("cqg.rtd", ,"ContractData",Sheet3!$D$12, "High",, "T"),Sheet3!$F$17) -> 3493 | K6: Low | L6: =TEXT(RTD("cqg.rtd", ,"ContractData",Sheet3!$D$12, "Low",, "T"),Sheet3!$F$17) -> 3442 | R6: =2*RTD("cqg.rtd",,"ContractData","Tsize("&R5&")","LastQuoteToday",,"T") -> 0.2 | W6: Open | X6: =TEXT(RTD("cqg.rtd", ,"ContractData",'Sheet3 (2)'!$D$12, "Open",, "T"),'Sheet3 (2)'!$F$17) -> 111.10 | Y6: High | Z6: =TEXT(RTD("cqg.rtd", ,"ContractData",'Sheet3 (2)'!$D$12, "High",, "T"),'Sheet3 (2)'!$F$17) -> 112.10 | AA6: Low | AB6: =TEXT(RTD("cqg.rtd", ,"ContractData",'Sheet3 (2)'!$D$12, "Low",, "T"),'Sheet3 (2)'!$F$17) -> 110.40
M7: =IF(J6-H4<=B6,1,0) -> 0 | O7: =IF(H4-L6<=B6,1,0) -> 0 | AC7: =IF(Z6-X4<=R6,1,0) -> 0 | AE7: =IF(X4-AB6<=R6,1,0) -> 1
B8: =Sheet4!I172+1 -> 2 | C8: =RTD("cqg.rtd", ,"ContractData",Sheet3!$D$12, "MT_LastBidVolume",, "T") -> 1949 | E8: =TEXT(RTD("cqg.rtd", ,"ContractData",Sheet3!$D$12, "Bid",, "T"),Sheet3!$F$17) -> 3446 | G8: =TEXT(RTD("cqg.rtd", ,"ContractData",Sheet3!$D$12, "Ask",, "T"),Sheet3!$F$17) -> 3447 | I8: =RTD("cqg.rtd", ,"ContractData",Sheet3!$D$12, "MT_LastAskVolume",, "T") -> 734 | K8: Top Correlation to: | M8: Highlight | R8: ='Sheet4 (2)'!I174+1 -> 8 | S8: =RTD("cqg.rtd", ,"ContractData",'Sheet3 (2)'!$D$12, "MT_LastBidVolume",, "T") -> 2236 | U8: =TEXT(RTD("cqg.rtd", ,"ContractData",'Sheet3 (2)'!$D$12, "Bid",, "T"),'Sheet3 (2)'!$F$17) -> 110.50 | W8: =TEXT(RTD("cqg.rtd", ,"ContractData",'Sheet3 (2)'!$D$12, "Ask",, "T"),'Sheet3 (2)'!$F$17) -> 110.60 | Y8: =RTD("cqg.rtd", ,"ContractData",'Sheet3 (2)'!$D$12, "MT_LastAskVolume",, "T") -> 71 | AA8: Top Correlation to: | AC8: Highlight
K9: =IFERROR(Sheet4!G172,"") -> 2018-06-15 | L9: =IFERROR(Sheet4!H172,"") -> 0.8972022281 | M9: Reset | AA9: =IFERROR('Sheet4 (2)'!G174,"") -> 2018-06-07 | AB9: =IFERROR('Sheet4 (2)'!H174,"") -> 0.5868794853 | AC9: Reset
A10: =IF(M14=$O$1,1,0) -> 0 | Q10: =IF(AC14=$O$1,1,0) -> 0
A11: 0 | Q11: =IF(AC15=$O$1,1,0) -> 0
A12: 0 | M12: Bar Time | N12: Corr | O12: =IFERROR(IF(TIME(0,5,0)-(MOD(B2,1)-M13)<0,1,TIME(0,5,0)-(MOD(B2,1)-M13)),"") -> 00:01:11.530 | Q12: =IF(AC16=$O$1,1,0) -> 0 | AC12: Bar Time | AD12: Corr | AE12: =IFERROR(IF(TIME(0,5,0)-(MOD(B2,1)-AC13)<0,1,TIME(0,5,0)-(MOD(B2,1)-AC13)),"") -> 00:01:11.530
A13: 0 | M13: =IFERROR(Sheet3!AC12,"") -> 16:10:00 | N13: Now | O13: % NC | Q13: =IF(AC17=$O$1,1,0) -> 0 | AC13: =IFERROR('Sheet3 (2)'!AC12,"") -> 16:10:00 | AD13: Now | AE13: % NC
A14: 0 | M14: =IFERROR(Sheet3!AG1,"") -> 2018-06-14 | N14: =IFERROR(VLOOKUP(M14,Sheet4!$G$172:$H$180,2,FALSE),"") -> -0.6975767174 | O14: =IFERROR(Sheet3!AH1,"") -> 0.01266916211 | Q14: =IF(AC18=$O$1,1,0) -> 0 | AC14: =IFERROR('Sheet3 (2)'!AG1,"") -> 2018-06-11 | AD14: =IFERROR(VLOOKUP(AC14,'Sheet4 (2)'!$G$174:$H$182,2,FALSE),"") -> -0.04526006568 | AE14: =IFERROR('Sheet3 (2)'!AH1,"") -> 0.02517985612
A15: 0 | M15: =IFERROR(Sheet3!AG2,"") -> 2018-06-11 | N15: =IFERROR(VLOOKUP(M15,Sheet4!$G$172:$H$180,2,FALSE),"") -> 0.3751154595 | O15: =IFERROR(Sheet3!AH2,"") -> 0.009043173862 | Q15: 0 | AC15: =IFERROR('Sheet3 (2)'!AG2,"") -> 2018-06-07 | AD15: =IFERROR(VLOOKUP(AC15,'Sheet4 (2)'!$G$174:$H$182,2,FALSE),"") -> 0.5868794853 | AE15: =IFERROR('Sheet3 (2)'!AH2,"") -> 0.003571428571
A16: 0 | M16: =IFERROR(Sheet3!AG3,"") -> 2018-06-05 | N16: =IFERROR(VLOOKUP(M16,Sheet4!$G$172:$H$180,2,FALSE),"") -> -0.6465838383 | O16: =IFERROR(Sheet3!AH3,"") -> 0.003475238923 | Q16: 1 | AC16: =IFERROR('Sheet3 (2)'!AG3,"") -> 2018-06-12 | AD16: =IFERROR(VLOOKUP(AC16,'Sheet4 (2)'!$G$174:$H$182,2,FALSE),"") -> -0.6163969389 | AE16: =IFERROR('Sheet3 (2)'!AH3,"") -> 0.001745200698
A17: 0 | M17: =IFERROR(Sheet3!AG4,"") -> 2018-06-13 | N17: =IFERROR(VLOOKUP(M17,Sheet4!$G$172:$H$180,2,FALSE),"") -> -0.8174682953 | O17: =IFERROR(Sheet3!AH4,"") -> 0.001443418014 | Q17: 0 | AC17: =IFERROR('Sheet3 (2)'!AG4,"") -> 2018-06-14 | AD17: =IFERROR(VLOOKUP(AC17,'Sheet4 (2)'!$G$174:$H$182,2,FALSE),"") -> 0.07837624768 | AE17: =IFERROR('Sheet3 (2)'!AH4,"") -> -0.0008771929825
A18: 0 | M18: =IFERROR(Sheet3!AG5,"") -> 2018-06-07 | N18: =IFERROR(VLOOKUP(M18,Sheet4!$G$172:$H$180,2,FALSE),"") -> 0.7777768526 | O18: =IFERROR(Sheet3!AH5,"") -> -0.0002905287623 | Q18: 0 | AC18: =IFERROR('Sheet3 (2)'!AG5,"") -> 2018-06-06 | AD18: =IFERROR(VLOOKUP(AC18,'Sheet4 (2)'!$G$174:$H$182,2,FALSE),"") -> -0.3834618624 | AE18: =IFERROR('Sheet3 (2)'!AH5,"") -> -0.004512635379
A19: 1 | M19: =IFERROR(Sheet3!AG6,"") -> 2018-06-12 | N19: =IFERROR(VLOOKUP(M19,Sheet4!$G$172:$H$180,2,FALSE),"") -> 0.4176596244 | O19: =IFERROR(Sheet3!AH6,"") -> -0.0005760368664 | Q19: 0 | AC19: =IFERROR('Sheet3 (2)'!AG6,"") -> 2018-06-13 | AD19: =IFERROR(VLOOKUP(AC19,'Sheet4 (2)'!$G$174:$H$182,2,FALSE),"") -> 0.2118501343 | AE19: =IFERROR('Sheet3 (2)'!AH6,"") -> -0.005244755245
M20: =IFERROR(Sheet3!AG7,"") -> 2018-06-15 | N20: =IFERROR(VLOOKUP(M20,Sheet4!$G$172:$H$180,2,FALSE),"") -> 0.8972022281 | O20: =IFERROR(Sheet3!AH7,"") -> -0.004540295119 | AC20: =IFERROR('Sheet3 (2)'!AG7,"") -> 2018-06-18 | AD20: =IFERROR(VLOOKUP(AC20,'Sheet4 (2)'!$G$174:$H$182,2,FALSE),"") ->  | AE20: =IFERROR('Sheet3 (2)'!AH7,"") -> -0.008071748879
M21: =IFERROR(Sheet3!AG8,"") -> 2018-06-08 | N21: =IFERROR(VLOOKUP(M21,Sheet4!$G$172:$H$180,2,FALSE),"") -> -0.801692776 | O21: =IFERROR(Sheet3!AH8,"") -> -0.006095791001 | AC21: =IFERROR('Sheet3 (2)'!AG8,"") -> 2018-06-05 | AD21: =IFERROR(VLOOKUP(AC21,'Sheet4 (2)'!$G$174:$H$182,2,FALSE),"") -> 0.2675983673 | AE21: =IFERROR('Sheet3 (2)'!AH8,"") -> -0.01501766784
M22: =IFERROR(Sheet3!AG9,"") -> 2018-06-06 | N22: =IFERROR(VLOOKUP(M22,Sheet4!$G$172:$H$180,2,FALSE),"") -> 0.3754031024 | O22: =IFERROR(Sheet3!AH9,"") -> -0.006101104009 | AC22: =IFERROR('Sheet3 (2)'!AG9,"") -> 2018-06-08 | AD22: =IFERROR(VLOOKUP(AC22,'Sheet4 (2)'!$G$174:$H$182,2,FALSE),"") -> 0.1675192376 | AE22: =IFERROR('Sheet3 (2)'!AH9,"") -> -0.01687388988
M23: =IFERROR(Sheet3!AG10,"") -> 2018-06-18 | N23: =IFERROR(VLOOKUP(M23,Sheet4!$G$172:$H$180,2,FALSE),"") ->  | O23: =IFERROR(Sheet3!AH10,"") -> -0.01627176706 | AC23: =IFERROR('Sheet3 (2)'!AG10,"") -> 2018-06-15 | AD23: =IFERROR(VLOOKUP(AC23,'Sheet4 (2)'!$G$174:$H$182,2,FALSE),"") -> 0.3175891489 | AE23: =IFERROR('Sheet3 (2)'!AH10,"") -> -0.02112676056
B28: ="Session: "&TEXT(Sheet3!B1,"H:MM AM/PM")&" - "&TEXT(Sheet3!B169,"H:MM AM/PM") -> Session: 8:00 AM - 10:00 PM | R28: ="Session: "&TEXT('Sheet3 (2)'!B1,"H:MM AM/PM")&" - "&TEXT('Sheet3 (2)'!B171,"H:MM AM/PM") -> Session: 7:50 AM - 10:00 PM
B30: Symbol | D30: Fixed Income | F30: =IF(RTD("cqg.rtd", ,"ContractData",'Sheet3 (3)'!$D$12, "NetLastTradeToday",, "T")="","",IF(RTD("cqg.rtd", ,"ContractData",'Sheet3 (3)'!$D$12, "NetLastTradeToday",, "T")>=0,"+",0)) -> + | G30: Last | H30: =TEXT(RTD("cqg.rtd", ,"ContractData",'Sheet3 (3)'!$D$12, "LastTradeToday",, "T"),'Sheet3 (3)'!$F$17) -> 161.24 | J30: Net | K30: =IF(F30="","",IF(F30="+","+"&TEXT(RTD("cqg.rtd", ,"ContractData",'Sheet3 (3)'!$D$12, "NetLastTradeToday",, "T"),'Sheet3 (3)'!$F$17),TEXT(RTD("cqg.rtd", ,"ContractData",'Sheet3 (3)'!$D$12, "NetLastTradeToday",, "T"),'Sheet3 (3)'!$F$17))) -> +.08 | M30: Net $ Change | R30: Symbol | T30: Fixed Income | V30: =IF(RTD("cqg.rtd", ,"ContractData",'Sheet3 (4)'!$D$12, "NetLastTradeToday",, "T")>=0,"+",0) -> + | W30: Last | X30: =TEXT(RTD("cqg.rtd", ,"ContractData",'Sheet3 (4)'!$D$12, "LastTradeToday",, "T"),'Sheet3 (3)'!$F$17) -> 111.05 | Z30: Net | AA30: =IF(V30="","",IF(V30="+","+"&TEXT(RTD("cqg.rtd", ,"ContractData",'Sheet3 (4)'!$D$12, "NetLastTradeToday",, "T"),'Sheet3 (4)'!$F$17),TEXT(RTD("cqg.rtd", ,"ContractData",'Sheet3 (4)'!$D$12, "NetLastTradeToday",, "T"),'Sheet3 (4)'!$F$17))) -> +.26 | AC30: Net $ Change
B31: DB | C31: =" "&RTD("cqg.rtd", ,"ContractData",'Sheet3 (3)'!$D$12, "LongDescription",, "T")&" " -> Euro Bund (10yr), Sep 18 | G31: Trade | J31: Change | M31: =IFERROR(1/RTD("cqg.rtd",,"ContractData","Tsize("&B31&")","LastQuoteToday",,"T")*RTD("cqg.rtd",,"ContractData","PriceToDollar(Tsize("&B31&"))","LastQuoteToday")*RTD("cqg.rtd", ,"ContractData", B31, "NetLastTrade"),"") -> 80 | R31: FBTS | S31: =" "&RTD("cqg.rtd", ,"ContractData",'Sheet3 (4)'!D12, "LongDescription",, "T")&" " -> Short Term Euro-BTP, Sep 18 | W31: Trade | Z31: Change | AC31: =IFERROR(1/RTD("cqg.rtd",,"ContractData","Tsize("&R31&")","LastQuoteToday",,"T")*RTD("cqg.rtd",,"ContractData","PriceToDollar(Tsize("&R31&"))","LastQuoteToday")*RTD("cqg.rtd", ,"ContractData", R31, "NetLastTrade",,"T"),"") -> 260
B32: =2*RTD("cqg.rtd",,"ContractData","Tsize("&B31&")","LastQuoteToday",,"T") -> 0.02 | G32: Open | H32: =TEXT(RTD("cqg.rtd", ,"ContractData",'Sheet3 (3)'!$D$12, "Open",, "T"),'Sheet3 (3)'!$F$17) -> 161.17 | I32: High | J32: =TEXT(RTD("cqg.rtd", ,"ContractData",'Sheet3 (3)'!$D$12, "High",, "T"),'Sheet3 (3)'!$F$17) -> 161.41 | K32: Low | L32: =TEXT(RTD("cqg.rtd", ,"ContractData",'Sheet3 (3)'!$D$12, "Low",, "T"),'Sheet3 (3)'!$F$17) -> 161.02 | R32: =2*RTD("cqg.rtd",,"ContractData","Tsize("&R31&")","LastQuoteToday",,"T") -> 0.02 | W32: Open | X32: =TEXT(RTD("cqg.rtd", ,"ContractData",'Sheet3 (4)'!$D$12, "Open",, "T"),'Sheet3 (3)'!$F$17) -> 110.69 | Y32: High | Z32: =TEXT(RTD("cqg.rtd", ,"ContractData",'Sheet3 (4)'!$D$12, "High",, "T"),'Sheet3 (3)'!$F$17) -> 111.17 | AA32: Low | AB32: =TEXT(RTD("cqg.rtd", ,"ContractData",'Sheet3 (4)'!$D$12, "Low",, "T"),'Sheet3 (4)'!$F$17) -> 110.69
M33: =IF(J32-H30<=B32,1,0) -> 0 | O33: =IF(H30-L32<=B32,1,0) -> 0 | AC33: =IF(Z32-X30<=R32,1,0) -> 0 | AE33: =IF(X30-AB32<=R32,1,0) -> 0
B34: ='Sheet4 (3)'!I172+1 -> 2 | C34: =RTD("cqg.rtd", ,"ContractData",'Sheet3 (3)'!$D$12, "MT_LastBidVolume",, "T") -> 71 | E34: =TEXT(RTD("cqg.rtd", ,"ContractData",'Sheet3 (3)'!$D$12, "Bid",, "T"),'Sheet3 (3)'!$F$17) -> 161.24 | G34: =TEXT(RTD("cqg.rtd", ,"ContractData",'Sheet3 (3)'!$D$12, "Ask",, "T"),'Sheet3 (3)'!$F$17) -> 161.25 | I34: =RTD("cqg.rtd", ,"ContractData",'Sheet3 (3)'!$D$12, "MT_LastAskVolume",, "T") -> 247 | K34: Top Correlation to: | M34: Highlight | R34: ='Sheet4 (4)'!I136+1 -> 5 | S34: =RTD("cqg.rtd", ,"ContractData",'Sheet3 (4)'!$D$12, "MT_LastBidVolume",, "T") -> 26 | U34: =TEXT(RTD("cqg.rtd", ,"ContractData",'Sheet3 (4)'!$D$12, "Bid",, "T"),'Sheet3 (3)'!$F$17) -> 111.04 | W34: =TEXT(RTD("cqg.rtd", ,"ContractData",'Sheet3 (4)'!$D$12, "Ask",, "T"),'Sheet3 (4)'!$F$17) -> 111.05 | Y34: =RTD("cqg.rtd", ,"ContractData",'Sheet3 (4)'!$D$12, "MT_LastAskVolume",, "T") -> 11 | AA34: Top Correlation to: | AC34: Highlight
K35: =IFERROR('Sheet4 (3)'!G172,"") -> 2018-06-15 | L35: =IFERROR('Sheet4 (3)'!H172,"") -> 0.5829259501 | M35: Reset | AA35: =IFERROR('Sheet4 (4)'!G136,"") -> 2018-06-12 | AB35: =IFERROR('Sheet4 (4)'!H136,"") -> 0.7077857043 | AC35: Reset
A36: =IF(M40=$O$1,1,0) -> 0 | Q36: =IF(AC40=$O$1,1,0) -> 0
A37: 0 | Q37: =IF(AC41=$O$1,1,0) -> 0
A38: 0 | M38: Bar Time | N38: Corr | O38: =IFERROR(IF(TIME(0,5,0)-(MOD(B2,1)-M39)<0,1,TIME(0,5,0)-(MOD(B2,1)-M39)),"") -> 1 | Q38: 0 | AC38: Bar Time | AD38: Corr | AE38: =IFERROR(IF(TIME(0,5,0)-(MOD(B2,1)-AC39)<0,1,TIME(0,5,0)-(MOD(B2,1)-AC39)),"") -> 00:01:11.530
A39: 0 | M39: =IFERROR('Sheet3 (3)'!AC12,"") -> 08:00:00 | N39: Now | O39: % NC | Q39: 1 | AC39: =IFERROR('Sheet3 (4)'!AC12,"") -> 16:10:00 | AD39: Now | AE39: % NC
A40: 0 | M40: =IFERROR('Sheet3 (3)'!AG1,"") -> 2018-06-08 | N40: =IFERROR(VLOOKUP(M40,'Sheet4 (3)'!$G$172:$H$180,2,FALSE),"") -> 0.1539094781 | O40: =IFERROR('Sheet3 (3)'!AH1,"") -> 0.005637684791 | Q40: 0 | AC40: =IFERROR('Sheet3 (4)'!AG1,"") -> 2018-06-11 | AD40: =IFERROR(VLOOKUP(AC40,'Sheet4 (4)'!$G$136:$H$144,2,FALSE),"") -> 0.5718394154 | AE40: =IFERROR('Sheet3 (4)'!AH1,"") -> 0.01377588757
A41: 1 | M41: =IFERROR('Sheet3 (3)'!AG2,"") -> 2018-06-15 | N41: =IFERROR(VLOOKUP(M41,'Sheet4 (3)'!$G$172:$H$180,2,FALSE),"") -> 0.5829259501 | O41: =IFERROR('Sheet3 (3)'!AH2,"") -> 0.003297865721 | Q41: 0 | AC41: =IFERROR('Sheet3 (4)'!AG2,"") -> 2018-06-14 | AD41: =IFERROR(VLOOKUP(AC41,'Sheet4 (4)'!$G$136:$H$144,2,FALSE),"") -> 0.4643476652 | AE41: =IFERROR('Sheet3 (4)'!AH2,"") -> 0.00427389288
A42: 0 | M42: =IFERROR('Sheet3 (3)'!AG3,"") -> 2018-06-14 | N42: =IFERROR(VLOOKUP(M42,'Sheet4 (3)'!$G$172:$H$180,2,FALSE),"") -> 0.2770441139 | O42: =IFERROR('Sheet3 (3)'!AH3,"") -> 0.002686324733 | Q42: 0 | AC42: =IFERROR('Sheet3 (4)'!AG3,"") -> 2018-06-15 | AD42: =IFERROR(VLOOKUP(AC42,'Sheet4 (4)'!$G$136:$H$144,2,FALSE),"") -> 0.07466784048 | AE42: =IFERROR('Sheet3 (4)'!AH3,"") -> 0.003623188406
A43: 0 | M43: =IFERROR('Sheet3 (3)'!AG4,"") -> 2018-06-05 | N43: =IFERROR(VLOOKUP(M43,'Sheet4 (3)'!$G$172:$H$180,2,FALSE),"") -> 0.1652962681 | O43: =IFERROR('Sheet3 (3)'!AH4,"") -> 0.002673963062 | Q43: 0 | AC43: =IFERROR('Sheet3 (4)'!AG4,"") -> 2018-06-18 | AD43: =IFERROR(VLOOKUP(AC43,'Sheet4 (4)'!$G$136:$H$144,2,FALSE),"") ->  | AE43: =IFERROR('Sheet3 (4)'!AH4,"") -> 0.002346782201
A44: 0 | M44: =IFERROR('Sheet3 (3)'!AG5,"") -> 2018-06-13 | N44: =IFERROR(VLOOKUP(M44,'Sheet4 (3)'!$G$172:$H$180,2,FALSE),"") -> 0.5380772168 | O44: =IFERROR('Sheet3 (3)'!AH5,"") -> 0.001876759462 | Q44: 0 | AC44: =IFERROR('Sheet3 (4)'!AG5,"") -> 2018-06-12 | AD44: =IFERROR(VLOOKUP(AC44,'Sheet4 (4)'!$G$136:$H$144,2,FALSE),"") -> 0.7077857043 | AE44: =IFERROR('Sheet3 (4)'!AH5,"") -> 0.002005469462
A45: 0 | M45: =IFERROR('Sheet3 (3)'!AG6,"") -> 2018-06-18 | N45: =IFERROR(VLOOKUP(M45,'Sheet4 (3)'!$G$172:$H$180,2,FALSE),"") ->  | O45: =IFERROR('Sheet3 (3)'!AH6,"") -> 0.0004964010921 | Q45: 0 | AC45: =IFERROR('Sheet3 (4)'!AG6,"") -> 2018-06-13 | AD45: =IFERROR(VLOOKUP(AC45,'Sheet4 (4)'!$G$136:$H$144,2,FALSE),"") -> -0.103410518 | AE45: =IFERROR('Sheet3 (4)'!AH6,"") -> 0.001639642922
M46: =IFERROR('Sheet3 (3)'!AG7,"") -> 2018-06-12 | N46: =IFERROR(VLOOKUP(M46,'Sheet4 (3)'!$G$172:$H$180,2,FALSE),"") -> -0.1774078209 | O46: =IFERROR('Sheet3 (3)'!AH7,"") -> -0.0008764241893 | AC46: =IFERROR('Sheet3 (4)'!AG7,"") -> 2018-06-07 | AD46: =IFERROR(VLOOKUP(AC46,'Sheet4 (4)'!$G$136:$H$144,2,FALSE),"") -> 0.003565749794 | AE46: =IFERROR('Sheet3 (4)'!AH7,"") -> 0.001471670346
M47: =IFERROR('Sheet3 (3)'!AG8,"") -> 2018-06-07 | N47: =IFERROR(VLOOKUP(M47,'Sheet4 (3)'!$G$172:$H$180,2,FALSE),"") -> 0.3033192862 | O47: =IFERROR('Sheet3 (3)'!AH8,"") -> -0.001873126873 | AC47: =IFERROR('Sheet3 (4)'!AG8,"") -> 2018-06-05 | AD47: =IFERROR(VLOOKUP(AC47,'Sheet4 (4)'!$G$136:$H$144,2,FALSE),"") -> -0.7435656887 | AE47: =IFERROR('Sheet3 (4)'!AH8,"") -> -0.004169310251
M48: =IFERROR('Sheet3 (3)'!AG9,"") -> 2018-06-11 | N48: =IFERROR(VLOOKUP(M48,'Sheet4 (3)'!$G$172:$H$180,2,FALSE),"") -> -0.001717487908 | O48: =IFERROR('Sheet3 (3)'!AH9,"") -> -0.004800498753 | AC48: =IFERROR('Sheet3 (4)'!AG9,"") -> 2018-06-08 | AD48: =IFERROR(VLOOKUP(AC48,'Sheet4 (4)'!$G$136:$H$144,2,FALSE),"") -> 0.3800681721 | AE48: =IFERROR('Sheet3 (4)'!AH9,"") -> -0.004506990434
M49: =IFERROR('Sheet3 (3)'!AG10,"") -> 2018-06-06 | N49: =IFERROR(VLOOKUP(M49,'Sheet4 (3)'!$G$172:$H$180,2,FALSE),"") -> -0.1537509874 | O49: =IFERROR('Sheet3 (3)'!AH10,"") -> -0.007308764323 | AC49: =IFERROR('Sheet3 (4)'!AG10,"") -> 2018-06-06 | AD49: =IFERROR(VLOOKUP(AC49,'Sheet4 (4)'!$G$136:$H$144,2,FALSE),"") -> -0.05884515346 | AE49: =IFERROR('Sheet3 (4)'!AH10,"") -> -0.0085617998
B54: ="Session: "&TEXT('Sheet3 (3)'!B1,"H:MM AM/PM")&" - "&TEXT('Sheet3 (3)'!B169,"H:MM AM/PM") -> Session: 8:00 AM - 10:00 PM | R54: ="Session: "&TEXT('Sheet3 (4)'!B1,"H:MM AM/PM")&" - "&TEXT('Sheet3 (4)'!B133,"H:MM AM/PM") -> Session: 8:00 AM - 7:00 PM
D55: Copyright © 2018 | J55: Designed by Thom Hartle

Sheet Sheet3 (hidden)
A1: 0 | B1: =E30 -> 08:00:00 | C1: =RTD("cqg.rtd",,"StudyData",$D$12,"Bar",,"Time","D","0",,,,,"T") -> 2018-06-18 | D1: =YEAR(C1) -> 2018 | E1: =MONTH(C1) -> 6 | F1: =DAY(C1) -> 18 | H1: =IF(AND($F$28<0,B1<0.999999),RTD("cqg.rtd",,"StudyData","Close("&$D$12&") when LocalYear("&$D$12&")="&$I$171&" and localMonth("&$D$12&") ="&$J$171&" and LocalDay("&$D$12&")="&$K$171&" and Barix("&$D$12&",reference:=StartOfSession)="&A1&"","FG","","Close","5","0","",,,"False","T","EveryTick"),RTD("cqg.rtd",,"StudyData","Close("&$D$12&") when LocalYear("&$D$12&")="&$E$171&" and localMonth("&$D$12&") ="&$F$171&" and LocalDay("&$D$12&")="&$G$171&" and Barix("&$D$12&",reference:=StartOfSession)="&A1&"","FG","","Close","5","0","",,,"False","T","EveryTick")) -> 3485 | I1: =IFERROR((H1-$G$2)/$G$2,NA()) -> -0.005138452755 | J1: =IF(AND($F$28<0,B1<0.999999),RTD("cqg.rtd",,"StudyData","Close("&$D$12&") when LocalYear("&$D$12&")="&$I$172&" and localMonth("&$D$12&") ="&$J$172&" and LocalDay("&$D$12&")="&$K$172&" and Barix("&$D$12&",reference:=StartOfSession)="&A1&"","FG","","Close","5","0","",,,"False","T","EveryTick"),RTD("cqg.rtd",,"StudyData","Close("&$D$12&") when LocalYear("&$D$12&")="&$E$172&" and localMonth("&$D$12&") ="&$F$172&" and LocalDay("&$D$12&")="&$G$172&" and Barix("&$D$12&",reference:=StartOfSession)="&A1&"","FG","","Close","5","0","",,,"False","T","EveryTick")) -> 3530 | K1: =IFERROR((J1-$G$3)/$G$3,NA()) -> 0.00170261067 | L1: =IF(AND($F$28<0,B1<0.999999),RTD("cqg.rtd",,"StudyData","Close("&$D$12&") when LocalYear("&$D$12&")="&$I$173&" and localMonth("&$D$12&") ="&$J$173&" and LocalDay("&$D$12&")="&$K$173&" and Barix("&$D$12&",reference:=StartOfSession)="&A1&"","FG","","Close","5","0","",,,"False","T","EveryTick"),RTD("cqg.rtd",,"StudyData","Close("&$D$12&") when LocalYear("&$D$12&")="&$E$173&" and localMonth("&$D$12&") ="&$F$173&" and LocalDay("&$D$12&")="&$G$173&" and Barix("&$D$12&",reference:=StartOfSession)="&A1&"","FG","","Close","5","0","",,,"False","T","EveryTick")) -> 3457 | M1: =IFERROR((L1-$G$4)/$G$4,NA()) -> -0.004606968039 | N1: =IF(AND($F$28<0,B1<0.999999),RTD("cqg.rtd",,"StudyData","Close("&$D$12&") when LocalYear("&$D$12&")="&$I$174&" and localMonth("&$D$12&") ="&$J$174&" and LocalDay("&$D$12&")="&$K$174&" and Barix("&$D$12&",reference:=StartOfSession)="&A1&"","FG","","Close","5","0","",,,"False","T","EveryTick"),RTD("cqg.rtd",,"StudyData","Close("&$D$12&") when LocalYear("&$D$12&")="&$E$174&" and localMonth("&$D$12&") ="&$F$174&" and LocalDay("&$D$12&")="&$G$174&" and Barix("&$D$12&",reference:=StartOfSession)="&A1&"","FG","","Close","5","0","",,,"False","T","EveryTick")) -> 3466 | O1: =IFERROR((N1-$G$5)/$G$5,NA()) -> 0.0005773672055 | P1: =IF(AND($F$28<0,B1<0.999999),RTD("cqg.rtd",,"StudyData","Close("&$D$12&") when LocalYear("&$D$12&")="&$I$175&" and localMonth("&$D$12&") ="&$J$175&" and LocalDay("&$D$12&")="&$K$175&" and Barix("&$D$12&",reference:=StartOfSession)="&A1&"","FG","","Close","5","0","",,,"False","T","EveryTick"),RTD("cqg.rtd",,"StudyData","Close("&$D$12&") when LocalYear("&$D$12&")="&$E$175&" and localMonth("&$D$12&") ="&$F$175&" and LocalDay("&$D$12&")="&$G$175&" and Barix("&$D$12&",reference:=StartOfSession)="&A1&"","FG","","Close","5","0","",,,"False","T","EveryTick")) -> 3475 | Q1: =IFERROR((P1-$G$6)/$G$6,NA()) -> 0.0008640552995 | R1: =IF(AND($F$28<0,B1<0.999999),RTD("cqg.rtd",,"StudyData","Close("&$D$12&") when LocalYear("&$D$12&")="&$I$176&" and localMonth("&$D$12&") ="&$J$176&" and LocalDay("&$D$12&")="&$K$176&" and Barix("&$D$12&",reference:=StartOfSession)="&A1&"","FG","","Close","5","0","",,,"False","T","EveryTick"),RTD("cqg.rtd",,"StudyData","Close("&$D$12&") when LocalYear("&$D$12&")="&$E$176&" and localMonth("&$D$12&") ="&$F$176&" and LocalDay("&$D$12&")="&$G$176&" and Barix("&$D$12&",reference:=StartOfSession)="&A1&"","FG","","Close","5","0","",,,"False","T","EveryTick")) -> 3439 | S1: =IFERROR((R1-$G$7)/$G$7,NA()) -> 0.003208868145 | T1: =IF(AND($F$28<0,B1<0.999999),RTD("cqg.rtd",,"StudyData","Close("&$D$12&") when LocalYear("&$D$12&")="&$I$177&" and localMonth("&$D$12&") ="&$J$177&" and LocalDay("&$D$12&")="&$K$177&" and Barix("&$D$12&",reference:=StartOfSession)="&A1&"","FG","","Close","5","0","",,,"False","T","EveryTick"),RTD("cqg.rtd",,"StudyData","Close("&$D$12&") when LocalYear("&$D$12&")="&$E$177&" and localMonth("&$D$12&") ="&$F$177&" and LocalDay("&$D$12&")="&$G$177&" and Barix("&$D$12&",reference:=StartOfSession)="&A1&"","FG","","Close","5","0","",,,"False","T","EveryTick")) -> 3417 | U1: =IFERROR((T1-$G$8)/$G$8,NA()) -> -0.008127721335 | V1: =IF(AND($F$28<0,B1<0.999999),RTD("cqg.rtd",,"StudyData","Close("&$D$12&") when LocalYear("&$D$12&")="&$I$178&" and localMonth("&$D$12&") ="&$J$178&" and LocalDay("&$D$12&")="&$K$178&" and Barix("&$D$12&",reference:=StartOfSession)="&A1&"","FG","","Close","5","0","",,,"False","T","EveryTick"),RTD("cqg.rtd",,"StudyData","Close("&$D$12&") when LocalYear("&$D$12&")="&$E$178&" and localMonth("&$D$12&") ="&$F$178&" and LocalDay("&$D$12&")="&$G$178&" and Barix("&$D$12&",reference:=StartOfSession)="&A1&"","FG","","Close","5","0","",,,"False","T","EveryTick")) -> 3458 | W1: =IFERROR((V1-$G$9)/$G$9,NA()) -> 0.004648460198 | X1: =IF(AND($F$28<0,B1<0.999999),RTD("cqg.rtd",,"StudyData","Close("&$D$12&") when LocalYear("&$D$12&")="&$I$179&" and localMonth("&$D$12&") ="&$J$179&" and LocalDay("&$D$12&")="&$K$179&" and Barix("&$D$12&",reference:=StartOfSession)="&A1&"","FG","","Close","5","0","",,,"False","T","EveryTick"),RTD("cqg.rtd",,"StudyData","Close("&$D$12&") when LocalYear("&$D$12&")="&$E$179&" and localMonth("&$D$12&") ="&$F$179&" and LocalDay("&$D$12&")="&$G$179&" and Barix("&$D$12&",reference:=StartOfSession)="&A1&"","FG","","Close","5","0","",,,"False","T","EveryTick")) -> 3448 | Y1: =IFERROR((X1-$G$10)/$G$10,NA()) -> 0.001743172574 | Z1: =IF(AND($F$28<0,B1<0.999999),RTD("cqg.rtd",,"StudyData","Close("&$D$12&") when LocalYear("&$D$12&")="&$I$180&" and localMonth("&$D$12&") ="&$J$180&" and LocalDay("&$D$12&")="&$K$180&" and Barix("&$D$12&",reference:=StartOfSession)="&A1&"","FG","","Close","5","0","",,,"False","T","EveryTick"),RTD("cqg.rtd",,"StudyData","Close("&$D$12&") when LocalYear("&$D$12&")="&$E$180&" and localMonth("&$D$12&") ="&$F$180&" and LocalDay("&$D$12&")="&$G$180&" and Barix("&$D$12&",reference:=StartOfSession)="&A1&"","FG","","Close","5","0","",,,"False","T","EveryTick")) -> 3457 | AA1: =IFERROR((Z1-$G$11)/$G$11,NA()) -> 0.001158412974 | AB1: =RANK(AD1,$AD$1:$AD$10)+COUNTIF($AD$1:AD1,AD1)-1 -> 10 | AC1: =DATE(D1,E1,F1) -> 2018-06-18 | AD1: =VLOOKUP(MAX(AE2:AE168),A1:I168,9,FALSE) -> -0.01627176706 | AF1: 1 | AG1: =VLOOKUP(AF1,$AB$1:$AD$10,2,FALSE) -> 2018-06-14 | AH1: =VLOOKUP(AF1,$AB$1:$AD$10,3,FALSE) -> 0.01266916211 | AK1: =AG1 -> 2018-06-14 | AL1: =AC1 -> 2018-06-18 | AM1: 0 | AN1: =VLOOKUP(AK1,$AL$1:$AM$10,2,FALSE) -> 2
A2: =A1+1 -> 1 | B2: =B1+1/12/24 -> 08:05:00 | C2: =RTD("cqg.rtd",,"StudyData",$D$12,"Bar",,"Time","D","-1",,,,,"T") -> 2018-06-15 | D2: =YEAR(C2) -> 2018 | E2: =MONTH(C2) -> 6 | F2: =DAY(C2) -> 15 | G2: =RTD("cqg.rtd",,"StudyData",$D$12,"Bar",,"Close","D","-1",,,,,"T") -> 3503 | H2: =IF(AND($F$28<0,B2<0.999999),RTD("cqg.rtd",,"StudyData","Close("&$D$12&") when LocalYear("&$D$12&")="&$I$171&" and localMonth("&$D$12&") ="&$J$171&" and LocalDay("&$D$12&")="&$K$171&" and Barix("&$D$12&",reference:=StartOfSession)="&A2&"","FG","","Close","5","0","",,,"False","T","EveryTick"),RTD("cqg.rtd",,"StudyData","Close("&$D$12&") when LocalYear("&$D$12&")="&$E$171&" and localMonth("&$D$12&") ="&$F$171&" and LocalDay("&$D$12&")="&$G$171&" and Barix("&$D$12&",reference:=StartOfSession)="&A2&"","FG","","Close","5","0","",,,"False","T","EveryTick")) -> 3485 | I2: =IFERROR((H2-$G$2)/$G$2,NA()) -> -0.005138452755 | J2: =IF(AND($F$28<0,B2<0.999999),RTD("cqg.rtd",,"StudyData","Close("&$D$12&") when LocalYear("&$D$12&")="&$I$172&" and localMonth("&$D$12&") ="&$J$172&" and LocalDay("&$D$12&")="&$K$172&" and Barix("&$D$12&",reference:=StartOfSession)="&A2&"","FG","","Close","5","0","",,,"False","T","EveryTick"),RTD("cqg.rtd",,"StudyData","Close("&$D$12&") when LocalYear("&$D$12&")="&$E$172&" and localMonth("&$D$12&") ="&$F$172&" and LocalDay("&$D$12&")="&$G$172&" and Barix("&$D$12&",reference:=StartOfSession)="&A2&"","FG","","Close","5","0","",,,"False","T","EveryTick")) -> 3527 | K2: =IFERROR((J2-$G$3)/$G$3,NA()) -> 0.0008513053348 | L2: =IF(AND($F$28<0,B2<0.999999),RTD("cqg.rtd",,"StudyData","Close("&$D$12&") when LocalYear("&$D$12&")="&$I$173&" and localMonth("&$D$12&") ="&$J$173&" and LocalDay("&$D$12&")="&$K$173&" and Barix("&$D$12&",reference:=StartOfSession)="&A2&"","FG","","Close","5","0","",,,"False","T","EveryTick"),RTD("cqg.rtd",,"StudyData","Close("&$D$12&") when LocalYear("&$D$12&")="&$E$173&" and localMonth("&$D$12&") ="&$F$173&" and LocalDay("&$D$12&")="&$G$173&" and Barix("&$D$12&",reference:=StartOfSession)="&A2&"","FG","","Close","5","0","",,,"False","T","EveryTick")) -> 3456 | M2: =IFERROR((L2-$G$4)/$G$4,NA()) -> -0.004894903542 | N2: =IF(AND($F$28<0,B2<0.999999),RTD("cqg.rtd",,"StudyData","Close("&$D$12&") when LocalYear("&$D$12&")="&$I$174&" and localMonth("&$D$12&") ="&$J$174&" and LocalDay("&$D$12&")="&$K$174&" and Barix("&$D$12&",reference:=StartOfSession)="&A2&"","FG","","Close","5","0","",,,"False","T","EveryTick"),RTD("cqg.rtd",,"StudyData","Close("&$D$12&") when LocalYear("&$D$12&")="&$E$174&" and localMonth("&$D$12&") ="&$F$174&" and LocalDay("&$D$12&")="&$G$174&" and Barix("&$D$12&",reference:=StartOfSession)="&A2&"","FG","","Close","5","0","",,,"False","T","EveryTick")) -> 3468 | O2: =IFERROR((N2-$G$5)/$G$5,NA()) -> 0.001154734411 | P2: =IF(AND($F$28<0,B2<0.999999),RTD("cqg.rtd",,"StudyData","Close("&$D$12&") when LocalYear("&$D$12&")="&$I$175&" and localMonth("&$D$12&") ="&$J$175&" and LocalDay("&$D$12&")="&$K$175&" and Barix("&$D$12&",reference:=StartOfSession)="&A2&"","FG","","Close","5","0","",,,"False","T","EveryTick"),RTD("cqg.rtd",,"StudyData","Close("&$D$12&") when LocalYear("&$D$12&")="&$E$175&" and localMonth("&$D$12&") ="&$F$175&" and LocalDay("&$D$12&")="&$G$175&" and Barix("&$D$12&",reference:=StartOfSession)="&A2&"","FG","","Close","5","0","",,,"False","T","EveryTick")) -> 3480 | Q2: =IFERROR((P2-$G$6)/$G$6,NA()) -> 0.002304147465 | R2: =IF(AND($F$28<0,B2<0.999999),RTD("cqg.rtd",,"StudyData","Close("&$D$12&") when LocalYear("&$D$12&")="&$I$176&" and localMonth("&$D$12&") ="&$J$176&" and LocalDay("&$D$12&")="&$K$176&" and Barix("&$D$12&",reference:=StartOfSession)="&A2&"","FG","","Close","5","0","",,,"False","T","EveryTick"),RTD("cqg.rtd",,"StudyData","Close("&$D$12&") when LocalYear("&$D$12&")="&$E$176&" and localMonth("&$D$12&") ="&$F$176&" and LocalDay("&$D$12&")="&$G$176&" and Barix("&$D$12&",reference:=StartOfSession)="&A2&"","FG","","Close","5","0","",,,"False","T","EveryTick")) -> 3436 | S2: =IFERROR((R2-$G$7)/$G$7,NA()) -> 0.002333722287 | T2: =IF(AND($F$28<0,B2<0.999999),RTD("cqg.rtd",,"StudyData","Close("&$D$12&") when LocalYear("&$D$12&")="&$I$177&" and localMonth("&$D$12&") ="&$J$177&" and LocalDay("&$D$12&")="&$K$177&" and Barix("&$D$12&",reference:=StartOfSession)="&A2&"","FG","","Close","5","0","",,,"False","T","EveryTick"),RTD("cqg.rtd",,"StudyData","Close("&$D$12&") when LocalYear("&$D$12&")="&$E$177&" and localMonth("&$D$12&") ="&$F$177&" and LocalDay("&$D$12&")="&$G$177&" and Barix("&$D$12&",reference:=StartOfSession)="&A2&"","FG","","Close","5","0","",,,"False","T","EveryTick")) -> 3415 | U2: =IFERROR((T2-$G$8)/$G$8,NA()) -> -0.008708272859 | V2: =IF(AND($F$28<0,B2<0.999999),RTD("cqg.rtd",,"StudyData","Close("&$D$12&") when LocalYear("&$D$12&")="&$I$178&" and localMonth("&$D$12&") ="&$J$178&" and LocalDay("&$D$12&")="&$K$178&" and Barix("&$D$12&",reference:=StartOfSession)="&A2&"","FG","","Close","5","0","",,,"False","T","EveryTick"),RTD("cqg.rtd",,"StudyData","Close("&$D$12&") when LocalYear("&$D$12&")="&$E$178&" and localMonth("&$D$12&") ="&$F$178&" and LocalDay("&$D$12&")="&$G$178&" and Barix("&$D$12&",reference:=StartOfSession)="&A2&"","FG","","Close","5","0","",,,"False","T","EveryTick")) -> 3458 | W2: =IFERROR((V2-$G$9)/$G$9,NA()) -> 0.004648460198 | X2: =IF(AND($F$28<0,B2<0.999999),RTD("cqg.rtd",,"StudyData","Close("&$D$12&") when LocalYear("&$D$12&")="&$I$179&" and localMonth("&$D$12&") ="&$J$179&" and LocalDay("&$D$12&")="&$K$179&" and Barix("&$D$12&",reference:=StartOfSession)="&A2&"","FG","","Close","5","0","",,,"False","T","EveryTick"),RTD("cqg.rtd",,"StudyData","Close("&$D$12&") when LocalYear("&$D$12&")="&$E$179&" and localMonth("&$D$12&") ="&$F$179&" and LocalDay("&$D$12&")="&$G$179&" and Barix("&$D$12&",reference:=StartOfSession)="&A2&"","FG","","Close","5","0","",,,"False","T","EveryTick")) -> 3450 | Y2: =IFERROR((X2-$G$10)/$G$10,NA()) -> 0.002324230099 | Z2: =IF(AND($F$28<0,B2<0.999999),RTD("cqg.rtd",,"StudyData","Close("&$D$12&") when LocalYear("&$D$12&")="&$I$180&" and localMonth("&$D$12&") ="&$J$180&" and LocalDay("&$D$12&")="&$K$180&" and Barix("&$D$12&",reference:=StartOfSession)="&A2&"","FG","","Close","5","0","",,,"False","T","EveryTick"),RTD("cqg.rtd",,"StudyData","Close("&$D$12&") when LocalYear("&$D$12&")="&$E$180&" and localMonth("&$D$12&") ="&$F$180&" and LocalDay("&$D$12&")="&$G$180&" and Barix("&$D$12&",reference:=StartOfSession)="&A2&"","FG","","Close","5","0","",,,"False","T","EveryTick")) -> 3455 | AA2: =IFERROR((Z2-$G$11)/$G$11,NA()) -> 0.0005792064871 | AB2: =RANK(AD2,$AD$1:$AD$10)+COUNTIF($AD$1:AD2,AD2)-1 -> 7 | AC2: =DATE(D2,E2,F2) -> 2018-06-15 | AD2: =VLOOKUP(MAX(AE2:AE168),A1:K168,11,FALSE) -> -0.004540295119 | AE2: =IF(AND(H1<>"",H2<>"",H3=""),A2,"") ->  | AF2: 2 | AG2: =VLOOKUP(AF2,$AB$1:$AD$10,2,FALSE) -> 2018-06-11 | AH2: =VLOOKUP(AF2,$AB$1:$AD$10,3,FALSE) -> 0.009043173862 | AK2: =AG2 -> 2018-06-11 | AL2: =AC2 -> 2018-06-15 | AM2: 1 | AN2: =VLOOKUP(AK2,$AL$1:$AM$10,2,FALSE) -> 5
A3: =A2+1 -> 2 | B3: 08:10:00 | C3: =RTD("cqg.rtd",,"StudyData",$D$12,"Bar",,"Time","D","-2",,,,,"T") -> 2018-06-14 | D3: 2018 | E3: 6 | F3: 14 | G3: =RTD("cqg.rtd",,"StudyData",$D$12,"Bar",,"Close","D","-2",,,,,"T") -> 3524 | H3: =IF(AND($F$28<0,B3<0.999999),RTD("cqg.rtd",,"StudyData","Close("&$D$12&") when LocalYear("&$D$12&")="&$I$171&" and localMonth("&$D$12&") ="&$J$171&" and LocalDay("&$D$12&")="&$K$171&" and Barix("&$D$12&",reference:=StartOfSession)="&A3&"","FG","","Close","5","0","",,,"False","T","EveryTick"),RTD("cqg.rtd",,"StudyData","Close("&$D$12&") when LocalYear("&$D$12&")="&$E$171&" and localMonth("&$D$12&") ="&$F$171&" and LocalDay("&$D$12&")="&$G$171&" and Barix("&$D$12&",reference:=StartOfSession)="&A3&"","FG","","Close","5","0","",,,"False","T","EveryTick")) -> 3483 | I3: =IFERROR((H3-$G$2)/$G$2,NA()) -> -0.00570939195 | J3: =IF(AND($F$28<0,B3<0.999999),RTD("cqg.rtd",,"StudyData","Close("&$D$12&") when LocalYear("&$D$12&")="&$I$172&" and localMonth("&$D$12&") ="&$J$172&" and LocalDay("&$D$12&")="&$K$172&" and Barix("&$D$12&",reference:=StartOfSession)="&A3&"","FG","","Close","5","0","",,,"False","T","EveryTick"),RTD("cqg.rtd",,"StudyData","Close("&$D$12&") when LocalYear("&$D$12&")="&$E$172&" and localMonth("&$D$12&") ="&$F$172&" and LocalDay("&$D$12&")="&$G$172&" and Barix("&$D$12&",reference:=StartOfSession)="&A3&"","FG","","Close","5","0","",,,"False","T","EveryTick")) -> 3528 | K3: 0.00113507378 | L3: =IF(AND($F$28<0,B3<0.999999),RTD("cqg.rtd",,"StudyData","Close("&$D$12&") when LocalYear("&$D$12&")="&$I$173&" and localMonth("&$D$12&") ="&$J$173&" and LocalDay("&$D$12&")="&$K$173&" and Barix("&$D$12&",reference:=StartOfSession)="&A3&"","FG","","Close","5","0","",,,"False","T","EveryTick"),RTD("cqg.rtd",,"StudyData","Close("&$D$12&") when LocalYear("&$D$12&")="&$E$173&" and localMonth("&$D$12&") ="&$F$173&" and LocalDay("&$D$12&")="&$G$173&" and Barix("&$D$12&",reference:=StartOfSession)="&A3&"","FG","","Close","5","0","",,,"False","T","EveryTick")) -> 3455 | M3: -0.005182839044 | N3: =IF(AND($F$28<0,B3<0.999999),RTD("cqg.rtd",,"StudyData","Close("&$D$12&") when LocalYear("&$D$12&")="&$I$174&" and localMonth("&$D$12&") ="&$J$174&" and LocalDay("&$D$12&")="&$K$174&" and Barix("&$D$12&",reference:=StartOfSession)="&A3&"","FG","","Close","5","0","",,,"False","T","EveryTick"),RTD("cqg.rtd",,"StudyData","Close("&$D$12&") when LocalYear("&$D$12&")="&$E$174&" and localMonth("&$D$12&") ="&$F$174&" and LocalDay("&$D$12&")="&$G$174&" and Barix("&$D$12&",reference:=StartOfSession)="&A3&"","FG","","Close","5","0","",,,"False","T","EveryTick")) -> 3468 | O3: 0.001154734411 | P3: =IF(AND($F$28<0,B3<0.999999),RTD("cqg.rtd",,"StudyData","Close("&$D$12&") when LocalYear("&$D$12&")="&$I$175&" and localMonth("&$D$12&") ="&$J$175&" and LocalDay("&$D$12&")="&$K$175&" and Barix("&$D$12&",reference:=StartOfSession)="&A3&"","FG","","Close","5","0","",,,"False","T","EveryTick"),RTD("cqg.rtd",,"StudyData","Close("&$D$12&") when LocalYear("&$D$12&")="&$E$175&" and localMonth("&$D$12&") ="&$F$175&" and LocalDay("&$D$12&")="&$G$175&" and Barix("&$D$12&",reference:=StartOfSession)="&A3&"","FG","","Close","5","0","",,,"False","T","EveryTick")) -> 3480 | Q3: 0.002304147465 | R3: =IF(AND($F$28<0,B3<0.999999),RTD("cqg.rtd",,"StudyData","Close("&$D$12&") when LocalYear("&$D$12&")="&$I$176&" and localMonth("&$D$12&") ="&$J$176&" and LocalDay("&$D$12&")="&$K$176&" and Barix("&$D$12&",reference:=StartOfSession)="&A3&"","FG","","Close","5","0","",,,"False","T","EveryTick"),RTD("cqg.rtd",,"StudyData","Close("&$D$12&") when LocalYear("&$D$12&")="&$E$176&" and localMonth("&$D$12&") ="&$F$176&" and LocalDay("&$D$12&")="&$G$176&" and Barix("&$D$12&",reference:=StartOfSession)="&A3&"","FG","","Close","5","0","",,,"False","T","EveryTick")) -> 3438 | S3: 0.002917152859 | T3: =IF(AND($F$28<0,B3<0.999999),RTD("cqg.rtd",,"StudyData","Close("&$D$12&") when LocalYear("&$D$12&")="&$I$177&" and localMonth("&$D$12&") ="&$J$177&" and LocalDay("&$D$12&")="&$K$177&" and Barix("&$D$12&",reference:=StartOfSession)="&A3&"","FG","","Close","5","0","",,,"False","T","EveryTick"),RTD("cqg.rtd",,"StudyData","Close("&$D$12&") when LocalYear("&$D$12&")="&$E$177&" and localMonth("&$D$12&") ="&$F$177&" and LocalDay("&$D$12&")="&$G$177&" and Barix("&$D$12&",reference:=StartOfSession)="&A3&"","FG","","Close","5","0","",,,"False","T","EveryTick")) -> 3412 | U3: -0.009579100145 | V3: =IF(AND($F$28<0,B3<0.999999),RTD("cqg.rtd",,"StudyData","Close("&$D$12&") when LocalYear("&$D$12&")="&$I$178&" and localMonth("&$D$12&") ="&$J$178&" and LocalDay("&$D$12&")="&$K$178&" and Barix("&$D$12&",reference:=StartOfSession)="&A3&"","FG","","Close","5","0","",,,"False","T","EveryTick"),RTD("cqg.rtd",,"StudyData","Close("&$D$12&") when LocalYear("&$D$12&")="&$E$178&" and localMonth("&$D$12&") ="&$F$178&" and LocalDay("&$D$12&")="&$G$178&" and Barix("&$D$12&",reference:=StartOfSession)="&A3&"","FG","","Close","5","0","",,,"False","T","EveryTick")) -> 3461 | W3: 0.005520046485 | X3: =IF(AND($F$28<0,B3<0.999999),RTD("cqg.rtd",,"StudyData","Close("&$D$12&") when LocalYear("&$D$12&")="&$I$179&" and localMonth("&$D$12&") ="&$J$179&" and LocalDay("&$D$12&")="&$K$179&" and Barix("&$D$12&",reference:=StartOfSession)="&A3&"","FG","","Close","5","0","",,,"False","T","EveryTick"),RTD("cqg.rtd",,"StudyData","Close("&$D$12&") when LocalYear("&$D$12&")="&$E$179&" and localMonth("&$D$12&") ="&$F$179&" and LocalDay("&$D$12&")="&$G$179&" and Barix("&$D$12&",reference:=StartOfSession)="&A3&"","FG","","Close","5","0","",,,"False","T","EveryTick")) -> 3450 | Y3: 0.002324230099 | Z3: =IF(AND($F$28<0,B3<0.999999),RTD("cqg.rtd",,"StudyData","Close("&$D$12&") when LocalYear("&$D$12&")="&$I$180&" and localMonth("&$D$12&") ="&$J$180&" and LocalDay("&$D$12&")="&$K$180&" and Barix("&$D$12&",reference:=StartOfSession)="&A3&"","FG","","Close","5","0","",,,"False","T","EveryTick"),RTD("cqg.rtd",,"StudyData","Close("&$D$12&") when LocalYear("&$D$12&")="&$E$180&" and localMonth("&$D$12&") ="&$F$180&" and LocalDay("&$D$12&")="&$G$180&" and Barix("&$D$12&",reference:=StartOfSession)="&A3&"","FG","","Close","5","0","",,,"False","T","EveryTick")) -> 3455 | AA3: 0.0005792064871 | AB3: =RANK(AD3,$AD$1:$AD$10)+COUNTIF($AD$1:AD3,AD3)-1 -> 1 | AC3: 2018-06-14 | AD3: =VLOOKUP(MAX(AE2:AE168),A1:M168,13,FALSE) -> 0.01266916211 | AE3: =IF(AND(H2<>"",H3<>"",H4=""),A3,"") ->  | AF3: 3 | AG3: 2018-06-05 | AH3: 0.003475238923 | AK3: 2018-06-05 | AL3: 2018-06-14 | AM3: 2 | AN3: 9
A4: 3 | B4: 08:15:00 | C4: =RTD("cqg.rtd",,"StudyData",$D$12,"Bar",,"Time","D","-3",,,,,"T") -> 2018-06-13 | D4: 2018 | E4: 6 | F4: 13 | G4: =RTD("cqg.rtd",,"StudyData",$D$12,"Bar",,"Close","D","-3",,,,,"T") -> 3473 | H4: =IF(AND($F$28<0,B4<0.999999),RTD("cqg.rtd",,"StudyData","Close("&$D$12&") when LocalYear("&$D$12&")="&$I$171&" and localMonth("&$D$12&") ="&$J$171&" and LocalDay("&$D$12&")="&$K$171&" and Barix("&$D$12&",reference:=StartOfSession)="&A4&"","FG","","Close","5","0","",,,"False","T","EveryTick"),RTD("cqg.rtd",,"StudyData","Close("&$D$12&") when LocalYear("&$D$12&")="&$E$171&" and localMonth("&$D$12&") ="&$F$171&" and LocalDay("&$D$12&")="&$G$171&" and Barix("&$D$12&",reference:=StartOfSession)="&A4&"","FG","","Close","5","0","",,,"False","T","EveryTick")) -> 3485 | I4: -0.005138452755 | J4: =IF(AND($F$28<0,B4<0.999999),RTD("cqg.rtd",,"StudyData","Close("&$D$12&") when LocalYear("&$D$12&")="&$I$172&" and localMonth("&$D$12&") ="&$J$172&" and LocalDay("&$D$12&")="&$K$172&" and Barix("&$D$12&",reference:=StartOfSession)="&A4&"","FG","","Close","5","0","",,,"False","T","EveryTick"),RTD("cqg.rtd",,"StudyData","Close("&$D$12&") when LocalYear("&$D$12&")="&$E$172&" and localMonth("&$D$12&") ="&$F$172&" and LocalDay("&$D$12&")="&$G$172&" and Barix("&$D$12&",reference:=StartOfSession)="&A4&"","FG","","Close","5","0","",,,"False","T","EveryTick")) -> 3526 | K4: 0.0005675368899 | L4: =IF(AND($F$28<0,B4<0.999999),RTD("cqg.rtd",,"StudyData","Close("&$D$12&") when LocalYear("&$D$12&")="&$I$173&" and localMonth("&$D$12&") ="&$J$173&" and LocalDay("&$D$12&")="&$K$173&" and Barix("&$D$12&",reference:=StartOfSession)="&A4&"","FG","","Close","5","0","",,,"False","T","EveryTick"),RTD("cqg.rtd",,"StudyData","Close("&$D$12&") when LocalYear("&$D$12&")="&$E$173&" and localMonth("&$D$12&") ="&$F$173&" and LocalDay("&$D$12&")="&$G$173&" and Barix("&$D$12&",reference:=StartOfSession)="&A4&"","FG","","Close","5","0","",,,"False","T","EveryTick")) -> 3455 | M4: -0.005182839044 | N4: =IF(AND($F$28<0,B4<0.999999),RTD("cqg.rtd",,"StudyData","Close("&$D$12&") when LocalYear("&$D$12&")="&$I$174&" and localMonth("&$D$12&") ="&$J$174&" and LocalDay("&$D$12&")="&$K$174&" and Barix("&$D$12&",reference:=StartOfSession)="&A4&"","FG","","Close","5","0","",,,"False","T","EveryTick"),RTD("cqg.rtd",,"StudyData","Close("&$D$12&") when LocalYear("&$D$12&")="&$E$174&" and localMonth("&$D$12&") ="&$F$174&" and LocalDay("&$D$12&")="&$G$174&" and Barix("&$D$12&",reference:=StartOfSession)="&A4&"","FG","","Close","5","0","",,,"False","T","EveryTick")) -> 3466 | O4: 0.0005773672055 | P4: =IF(AND($F$28<0,B4<0.999999),RTD("cqg.rtd",,"StudyData","Close("&$D$12&") when LocalYear("&$D$12&")="&$I$175&" and localMonth("&$D$12&") ="&$J$175&" and LocalDay("&$D$12&")="&$K$175&" and Barix("&$D$12&",reference:=StartOfSession)="&A4&"","FG","","Close","5","0","",,,"False","T","EveryTick"),RTD("cqg.rtd",,"StudyData","Close("&$D$12&") when LocalYear("&$D$12&")="&$E$175&" and localMonth("&$D$12&") ="&$F$175&" and LocalDay("&$D$12&")="&$G$175&" and Barix("&$D$12&",reference:=StartOfSession)="&A4&"","FG","","Close","5","0","",,,"False","T","EveryTick")) -> 3484 | Q4: 0.003456221198 | R4: =IF(AND($F$28<0,B4<0.999999),RTD("cqg.rtd",,"StudyData","Close("&$D$12&") when LocalYear("&$D$12&")="&$I$176&" and localMonth("&$D$12&") ="&$J$176&" and LocalDay("&$D$12&")="&$K$176&" and Barix("&$D$12&",reference:=StartOfSession)="&A4&"","FG","","Close","5","0","",,,"False","T","EveryTick"),RTD("cqg.rtd",,"StudyData","Close("&$D$12&") when LocalYear("&$D$12&")="&$E$176&" and localMonth("&$D$12&") ="&$F$176&" and LocalDay("&$D$12&")="&$G$176&" and Barix("&$D$12&",reference:=StartOfSession)="&A4&"","FG","","Close","5","0","",,,"False","T","EveryTick")) -> 3443 | S4: 0.004375729288 | T4: =IF(AND($F$28<0,B4<0.999999),RTD("cqg.rtd",,"StudyData","Close("&$D$12&") when LocalYear("&$D$12&")="&$I$177&" and localMonth("&$D$12&") ="&$J$177&" and LocalDay("&$D$12&")="&$K$177&" and Barix("&$D$12&",reference:=StartOfSession)="&A4&"","FG","","Close","5","0","",,,"False","T","EveryTick"),RTD("cqg.rtd",,"StudyData","Close("&$D$12&") when LocalYear("&$D$12&")="&$E$177&" and localMonth("&$D$12&") ="&$F$177&" and LocalDay("&$D$12&")="&$G$177&" and Barix("&$D$12&",reference:=StartOfSession)="&A4&"","FG","","Close","5","0","",,,"False","T","EveryTick")) -> 3417 | U4: -0.008127721335 | V4: =IF(AND($F$28<0,B4<0.999999),RTD("cqg.rtd",,"StudyData","Close("&$D$12&") when LocalYear("&$D$12&")="&$I$178&" and localMonth("&$D$12&") ="&$J$178&" and LocalDay("&$D$12&")="&$K$178&" and Barix("&$D$12&",reference:=StartOfSession)="&A4&"","FG","","Close","5","0","",,,"False","T","EveryTick"),RTD("cqg.rtd",,"StudyData","Close("&$D$12&") when LocalYear("&$D$12&")="&$E$178&" and localMonth("&$D$12&") ="&$F$178&" and LocalDay("&$D$12&")="&$G$178&" and Barix("&$D$12&",reference:=StartOfSession)="&A4&"","FG","","Close","5","0","",,,"False","T","EveryTick")) -> 3460 | W4: 0.005229517722 | X4: =IF(AND($F$28<0,B4<0.999999),RTD("cqg.rtd",,"StudyData","Close("&$D$12&") when LocalYear("&$D$12&")="&$I$179&" and localMonth("&$D$12&") ="&$J$179&" and LocalDay("&$D$12&")="&$K$179&" and Barix("&$D$12&",reference:=StartOfSession)="&A4&"","FG","","Close","5","0","",,,"False","T","EveryTick"),RTD("cqg.rtd",,"StudyData","Close("&$D$12&") when LocalYear("&$D$12&")="&$E$179&" and localMonth("&$D$12&") ="&$F$179&" and LocalDay("&$D$12&")="&$G$179&" and Barix("&$D$12&",reference:=StartOfSession)="&A4&"","FG","","Close","5","0","",,,"False","T","EveryTick")) -> 3450 | Y4: 0.002324230099 | Z4: =IF(AND($F$28<0,B4<0.999999),RTD("cqg.rtd",,"StudyData","Close("&$D$12&") when LocalYear("&$D$12&")="&$I$180&" and localMonth("&$D$12&") ="&$J$180&" and LocalDay("&$D$12&")="&$K$180&" and Barix("&$D$12&",reference:=StartOfSession)="&A4&"","FG","","Close","5","0","",,,"False","T","EveryTick"),RTD("cqg.rtd",,"StudyData","Close("&$D$12&") when LocalYear("&$D$12&")="&$E$180&" and localMonth("&$D$12&") ="&$F$180&" and LocalDay("&$D$12&")="&$G$180&" and Barix("&$D$12&",reference:=StartOfSession)="&A4&"","FG","","Close","5","0","",,,"False","T","EveryTick")) -> 3455 | AA4: 0.0005792064871 | AB4: =RANK(AD4,$AD$1:$AD$10)+COUNTIF($AD$1:AD4,AD4)-1 -> 4 | AC4: 2018-06-13 | AD4: =VLOOKUP(MAX(AE2:AE168),A1:O168,15,FALSE) -> 0.001443418014 | AF4: 4 | AG4: 2018-06-13 | AH4: 0.001443418014 | AK4: 2018-06-13 | AL4: 2018-06-13 | AM4: 3 | AN4: 3
A5: 4 | B5: 08:20:00 | C5: =RTD("cqg.rtd",,"StudyData",$D$12,"Bar",,"Time","D","-4",,,,,"T") -> 2018-06-12 | D5: 2018 | E5: 6 | F5: 12 | G5: =RTD("cqg.rtd",,"StudyData",$D$12,"Bar",,"Close","D","-4",,,,,"T") -> 3464 | H5: =IF(AND($F$28<0,B5<0.999999),RTD("cqg.rtd",,"StudyData","Close("&$D$12&") when LocalYear("&$D$12&")="&$I$171&" and localMonth("&$D$12&") ="&$J$171&" and LocalDay("&$D$12&")="&$K$171&" and Barix("&$D$12&",reference:=StartOfSession)="&A5&"","FG","","Close","5","0","",,,"False","T","EveryTick"),RTD("cqg.rtd",,"StudyData","Close("&$D$12&") when LocalYear("&$D$12&")="&$E$171&" and localMonth("&$D$12&") ="&$F$171&" and LocalDay("&$D$12&")="&$G$171&" and Barix("&$D$12&",reference:=StartOfSession)="&A5&"","FG","","Close","5","0","",,,"False","T","EveryTick")) -> 3485 | I5: -0.005138452755 | J5: =IF(AND($F$28<0,B5<0.999999),RTD("cqg.rtd",,"StudyData","Close("&$D$12&") when LocalYear("&$D$12&")="&$I$172&" and localMonth("&$D$12&") ="&$J$172&" and LocalDay("&$D$12&")="&$K$172&" and Barix("&$D$12&",reference:=StartOfSession)="&A5&"","FG","","Close","5","0","",,,"False","T","EveryTick"),RTD("cqg.rtd",,"StudyData","Close("&$D$12&") when LocalYear("&$D$12&")="&$E$172&" and localMonth("&$D$12&") ="&$F$172&" and LocalDay("&$D$12&")="&$G$172&" and Barix("&$D$12&",reference:=StartOfSession)="&A5&"","FG","","Close","5","0","",,,"False","T","EveryTick")) -> 3528 | K5: 0.00113507378 | L5: =IF(AND($F$28<0,B5<0.999999),RTD("cqg.rtd",,"StudyData","Close("&$D$12&") when LocalYear("&$D$12&")="&$I$173&" and localMonth("&$D$12&") ="&$J$173&" and LocalDay("&$D$12&")="&$K$173&" and Barix("&$D$12&",reference:=StartOfSession)="&A5&"","FG","","Close","5","0","",,,"False","T","EveryTick"),RTD("cqg.rtd",,"StudyData","Close("&$D$12&") when LocalYear("&$D$12&")="&$E$173&" and localMonth("&$D$12&") ="&$F$173&" and LocalDay("&$D$12&")="&$G$173&" and Barix("&$D$12&",reference:=StartOfSession)="&A5&"","FG","","Close","5","0","",,,"False","T","EveryTick")) -> 3456 | M5: -0.004894903542 | N5: =IF(AND($F$28<0,B5<0.999999),RTD("cqg.rtd",,"StudyData","Close("&$D$12&") when LocalYear("&$D$12&")="&$I$174&" and localMonth("&$D$12&") ="&$J$174&" and LocalDay("&$D$12&")="&$K$174&" and Barix("&$D$12&",reference:=StartOfSession)="&A5&"","FG","","Close","5","0","",,,"False","T","EveryTick"),RTD("cqg.rtd",,"StudyData","Close("&$D$12&") when LocalYear("&$D$12&")="&$E$174&" and localMonth("&$D$12&") ="&$F$174&" and LocalDay("&$D$12&")="&$G$174&" and Barix("&$D$12&",reference:=StartOfSession)="&A5&"","FG","","Close","5","0","",,,"False","T","EveryTick")) -> 3464 | O5: 0 | P5: =IF(AND($F$28<0,B5<0.999999),RTD("cqg.rtd",,"StudyData","Close("&$D$12&") when LocalYear("&$D$12&")="&$I$175&" and localMonth("&$D$12&") ="&$J$175&" and LocalDay("&$D$12&")="&$K$175&" and Barix("&$D$12&",reference:=StartOfSession)="&A5&"","FG","","Close","5","0","",,,"False","T","EveryTick"),RTD("cqg.rtd",,"StudyData","Close("&$D$12&") when LocalYear("&$D$12&")="&$E$175&" and localMonth("&$D$12&") ="&$F$175&" and LocalDay("&$D$12&")="&$G$175&" and Barix("&$D$12&",reference:=StartOfSession)="&A5&"","FG","","Close","5","0","",,,"False","T","EveryTick")) -> 3483 | Q5: 0.003168202765 | R5: =IF(AND($F$28<0,B5<0.999999),RTD("cqg.rtd",,"StudyData","Close("&$D$12&") when LocalYear("&$D$12&")="&$I$176&" and localMonth("&$D$12&") ="&$J$176&" and LocalDay("&$D$12&")="&$K$176&" and Barix("&$D$12&",reference:=StartOfSession)="&A5&"","FG","","Close","5","0","",,,"False","T","EveryTick"),RTD("cqg.rtd",,"StudyData","Close("&$D$12&") when LocalYear("&$D$12&")="&$E$176&" and localMonth("&$D$12&") ="&$F$176&" and LocalDay("&$D$12&")="&$G$176&" and Barix("&$D$12&",reference:=StartOfSession)="&A5&"","FG","","Close","5","0","",,,"False","T","EveryTick")) -> 3453 | S5: 0.007292882147 | T5: =IF(AND($F$28<0,B5<0.999999),RTD("cqg.rtd",,"StudyData","Close("&$D$12&") when LocalYear("&$D$12&")="&$I$177&" and localMonth("&$D$12&") ="&$J$177&" and LocalDay("&$D$12&")="&$K$177&" and Barix("&$D$12&",reference:=StartOfSession)="&A5&"","FG","","Close","5","0","",,,"False","T","EveryTick"),RTD("cqg.rtd",,"StudyData","Close("&$D$12&") when LocalYear("&$D$12&")="&$E$177&" and localMonth("&$D$12&") ="&$F$177&" and LocalDay("&$D$12&")="&$G$177&" and Barix("&$D$12&",reference:=StartOfSession)="&A5&"","FG","","Close","5","0","",,,"False","T","EveryTick")) -> 3417 | U5: -0.008127721335 | V5: =IF(AND($F$28<0,B5<0.999999),RTD("cqg.rtd",,"StudyData","Close("&$D$12&") when LocalYear("&$D$12&")="&$I$178&" and localMonth("&$D$12&") ="&$J$178&" and LocalDay("&$D$12&")="&$K$178&" and Barix("&$D$12&",reference:=StartOfSession)="&A5&"","FG","","Close","5","0","",,,"False","T","EveryTick"),RTD("cqg.rtd",,"StudyData","Close("&$D$12&") when LocalYear("&$D$12&")="&$E$178&" and localMonth("&$D$12&") ="&$F$178&" and LocalDay("&$D$12&")="&$G$178&" and Barix("&$D$12&",reference:=StartOfSession)="&A5&"","FG","","Close","5","0","",,,"False","T","EveryTick")) -> 3459 | W5: 0.00493898896 | X5: =IF(AND($F$28<0,B5<0.999999),RTD("cqg.rtd",,"StudyData","Close("&$D$12&") when LocalYear("&$D$12&")="&$I$179&" and localMonth("&$D$12&") ="&$J$179&" and LocalDay("&$D$12&")="&$K$179&" and Barix("&$D$12&",reference:=StartOfSession)="&A5&"","FG","","Close","5","0","",,,"False","T","EveryTick"),RTD("cqg.rtd",,"StudyData","Close("&$D$12&") when LocalYear("&$D$12&")="&$E$179&" and localMonth("&$D$12&") ="&$F$179&" and LocalDay("&$D$12&")="&$G$179&" and Barix("&$D$12&",reference:=StartOfSession)="&A5&"","FG","","Close","5","0","",,,"False","T","EveryTick")) -> 3449 | Y5: 0.002033701336 | Z5: =IF(AND($F$28<0,B5<0.999999),RTD("cqg.rtd",,"StudyData","Close("&$D$12&") when LocalYear("&$D$12&")="&$I$180&" and localMonth("&$D$12&") ="&$J$180&" and LocalDay("&$D$12&")="&$K$180&" and Barix("&$D$12&",reference:=StartOfSession)="&A5&"","FG","","Close","5","0","",,,"False","T","EveryTick"),RTD("cqg.rtd",,"StudyData","Close("&$D$12&") when LocalYear("&$D$12&")="&$E$180&" and localMonth("&$D$12&") ="&$F$180&" and LocalDay("&$D$12&")="&$G$180&" and Barix("&$D$12&",reference:=StartOfSession)="&A5&"","FG","","Close","5","0","",,,"False","T","EveryTick")) -> 3453 | AA5: 0 | AB5: =RANK(AD5,$AD$1:$AD$10)+COUNTIF($AD$1:AD5,AD5)-1 -> 6 | AC5: 2018-06-12 | AD5: =VLOOKUP(MAX(AE2:AE168),A1:Q168,17,FALSE) -> -0.0005760368664 | AF5: 5 | AG5: 2018-06-07 | AH5: -0.0002905287623 | AK5: 2018-06-07 | AL5: 2018-06-12 | AM5: 4 | AN5: 7
A6: 5 | B6: 08:25:00 | C6: =RTD("cqg.rtd",,"StudyData",$D$12,"Bar",,"Time","D","-5",,,,,"T") -> 2018-06-11 | D6: 2018 | E6: 6 | F6: 11 | G6: =RTD("cqg.rtd",,"StudyData",$D$12,"Bar",,"Close","D","-5",,,,,"T") -> 3472 | H6: =IF(AND($F$28<0,B6<0.999999),RTD("cqg.rtd",,"StudyData","Close("&$D$12&") when LocalYear("&$D$12&")="&$I$171&" and localMonth("&$D$12&") ="&$J$171&" and LocalDay("&$D$12&")="&$K$171&" and Barix("&$D$12&",reference:=StartOfSession)="&A6&"","FG","","Close","5","0","",,,"False","T","EveryTick"),RTD("cqg.rtd",,"StudyData","Close("&$D$12&") when LocalYear("&$D$12&")="&$E$171&" and localMonth("&$D$12&") ="&$F$171&" and LocalDay("&$D$12&")="&$G$171&" and Barix("&$D$12&",reference:=StartOfSession)="&A6&"","FG","","Close","5","0","",,,"False","T","EveryTick")) -> 3486 | I6: -0.004852983157 | J6: =IF(AND($F$28<0,B6<0.999999),RTD("cqg.rtd",,"StudyData","Close("&$D$12&") when LocalYear("&$D$12&")="&$I$172&" and localMonth("&$D$12&") ="&$J$172&" and LocalDay("&$D$12&")="&$K$172&" and Barix("&$D$12&",reference:=StartOfSession)="&A6&"","FG","","Close","5","0","",,,"False","T","EveryTick"),RTD("cqg.rtd",,"StudyData","Close("&$D$12&") when LocalYear("&$D$12&")="&$E$172&" and localMonth("&$D$12&") ="&$F$172&" and LocalDay("&$D$12&")="&$G$172&" and Barix("&$D$12&",reference:=StartOfSession)="&A6&"","FG","","Close","5","0","",,,"False","T","EveryTick")) -> 3527 | K6: 0.0008513053348 | L6: =IF(AND($F$28<0,B6<0.999999),RTD("cqg.rtd",,"StudyData","Close("&$D$12&") when LocalYear("&$D$12&")="&$I$173&" and localMonth("&$D$12&") ="&$J$173&" and LocalDay("&$D$12&")="&$K$173&" and Barix("&$D$12&",reference:=StartOfSession)="&A6&"","FG","","Close","5","0","",,,"False","T","EveryTick"),RTD("cqg.rtd",,"StudyData","Close("&$D$12&") when LocalYear("&$D$12&")="&$E$173&" and localMonth("&$D$12&") ="&$F$173&" and LocalDay("&$D$12&")="&$G$173&" and Barix("&$D$12&",reference:=StartOfSession)="&A6&"","FG","","Close","5","0","",,,"False","T","EveryTick")) -> 3457 | M6: -0.004606968039 | N6: =IF(AND($F$28<0,B6<0.999999),RTD("cqg.rtd",,"StudyData","Close("&$D$12&") when LocalYear("&$D$12&")="&$I$174&" and localMonth("&$D$12&") ="&$J$174&" and LocalDay("&$D$12&")="&$K$174&" and Barix("&$D$12&",reference:=StartOfSession)="&A6&"","FG","","Close","5","0","",,,"False","T","EveryTick"),RTD("cqg.rtd",,"StudyData","Close("&$D$12&") when LocalYear("&$D$12&")="&$E$174&" and localMonth("&$D$12&") ="&$F$174&" and LocalDay("&$D$12&")="&$G$174&" and Barix("&$D$12&",reference:=StartOfSession)="&A6&"","FG","","Close","5","0","",,,"False","T","EveryTick")) -> 3462 | O6: -0.0005773672055 | P6: =IF(AND($F$28<0,B6<0.999999),RTD("cqg.rtd",,"StudyData","Close("&$D$12&") when LocalYear("&$D$12&")="&$I$175&" and localMonth("&$D$12&") ="&$J$175&" and LocalDay("&$D$12&")="&$K$175&" and Barix("&$D$12&",reference:=StartOfSession)="&A6&"","FG","","Close","5","0","",,,"False","T","EveryTick"),RTD("cqg.rtd",,"StudyData","Close("&$D$12&") when LocalYear("&$D$12&")="&$E$175&" and localMonth("&$D$12&") ="&$F$175&" and LocalDay("&$D$12&")="&$G$175&" and Barix("&$D$12&",reference:=StartOfSession)="&A6&"","FG","","Close","5","0","",,,"False","T","EveryTick")) -> 3485 | Q6: 0.003744239631 | R6: =IF(AND($F$28<0,B6<0.999999),RTD("cqg.rtd",,"StudyData","Close("&$D$12&") when LocalYear("&$D$12&")="&$I$176&" and localMonth("&$D$12&") ="&$J$176&" and LocalDay("&$D$12&")="&$K$176&" and Barix("&$D$12&",reference:=StartOfSession)="&A6&"","FG","","Close","5","0","",,,"False","T","EveryTick"),RTD("cqg.rtd",,"StudyData","Close("&$D$12&") when LocalYear("&$D$12&")="&$E$176&" and localMonth("&$D$12&") ="&$F$176&" and LocalDay("&$D$12&")="&$G$176&" and Barix("&$D$12&",reference:=StartOfSession)="&A6&"","FG","","Close","5","0","",,,"False","T","EveryTick")) -> 3449 | S6: 0.006126021004 | T6: =IF(AND($F$28<0,B6<0.999999),RTD("cqg.rtd",,"StudyData","Close("&$D$12&") when LocalYear("&$D$12&")="&$I$177&" and localMonth("&$D$12&") ="&$J$177&" and LocalDay("&$D$12&")="&$K$177&" and Barix("&$D$12&",reference:=StartOfSession)="&A6&"","FG","","Close","5","0","",,,"False","T","EveryTick"),RTD("cqg.rtd",,"StudyData","Close("&$D$12&") when LocalYear("&$D$12&")="&$E$177&" and localMonth("&$D$12&") ="&$F$177&" and LocalDay("&$D$12&")="&$G$177&" and Barix("&$D$12&",reference:=StartOfSession)="&A6&"","FG","","Close","5","0","",,,"False","T","EveryTick")) -> 3415 | U6: -0.008708272859 | V6: =IF(AND($F$28<0,B6<0.999999),RTD("cqg.rtd",,"StudyData","Close("&$D$12&") when LocalYear("&$D$12&")="&$I$178&" and localMonth("&$D$12&") ="&$J$178&" and LocalDay("&$D$12&")="&$K$178&" and Barix("&$D$12&",reference:=StartOfSession)="&A6&"","FG","","Close","5","0","",,,"False","T","EveryTick"),RTD("cqg.rtd",,"StudyData","Close("&$D$12&") when LocalYear("&$D$12&")="&$E$178&" and localMonth("&$D$12&") ="&$F$178&" and LocalDay("&$D$12&")="&$G$178&" and Barix("&$D$12&",reference:=StartOfSession)="&A6&"","FG","","Close","5","0","",,,"False","T","EveryTick")) -> 3458 | W6: 0.004648460198 | X6: =IF(AND($F$28<0,B6<0.999999),RTD("cqg.rtd",,"StudyData","Close("&$D$12&") when LocalYear("&$D$12&")="&$I$179&" and localMonth("&$D$12&") ="&$J$179&" and LocalDay("&$D$12&")="&$K$179&" and Barix("&$D$12&",reference:=StartOfSession)="&A6&"","FG","","Close","5","0","",,,"False","T","EveryTick"),RTD("cqg.rtd",,"StudyData","Close("&$D$12&") when LocalYear("&$D$12&")="&$E$179&" and localMonth("&$D$12&") ="&$F$179&" and LocalDay("&$D$12&")="&$G$179&" and Barix("&$D$12&",reference:=StartOfSession)="&A6&"","FG","","Close","5","0","",,,"False","T","EveryTick")) -> 3451 | Y6: 0.002614758861 | Z6: =IF(AND($F$28<0,B6<0.999999),RTD("cqg.rtd",,"StudyData","Close("&$D$12&") when LocalYear("&$D$12&")="&$I$180&" and localMonth("&$D$12&") ="&$J$180&" and LocalDay("&$D$12&")="&$K$180&" and Barix("&$D$12&",reference:=StartOfSession)="&A6&"","FG","","Close","5","0","",,,"False","T","EveryTick"),RTD("cqg.rtd",,"StudyData","Close("&$D$12&") when LocalYear("&$D$12&")="&$E$180&" and localMonth("&$D$12&") ="&$F$180&" and LocalDay("&$D$12&")="&$G$180&" and Barix("&$D$12&",reference:=StartOfSession)="&A6&"","FG","","Close","5","0","",,,"False","T","EveryTick")) -> 3451 | AA6: -0.0005792064871 | AB6: =RANK(AD6,$AD$1:$AD$10)+COUNTIF($AD$1:AD6,AD6)-1 -> 2 | AC6: 2018-06-11 | AD6: =VLOOKUP(MAX(AE2:AE168),A1:S168,19,FALSE) -> 0.009043173862 | AF6: 6 | AG6: 2018-06-12 | AH6: -0.0005760368664 | AK6: 2018-06-12 | AL6: 2018-06-11 | AM6: 5 | AN6: 4
A7: 6 | B7: 08:30:00 | C7: =RTD("cqg.rtd",,"StudyData",$D$12,"Bar",,"Time","D","-6",,,,,"T") -> 2018-06-08 | D7: 2018 | E7: 6 | F7: 8 | G7: =RTD("cqg.rtd",,"StudyData",$D$12,"Bar",,"Close","D","-6",,,,,"T") -> 3428 | H7: =IF(AND($F$28<0,B7<0.999999),RTD("cqg.rtd",,"StudyData","Close("&$D$12&") when LocalYear("&$D$12&")="&$I$171&" and localMonth("&$D$12&") ="&$J$171&" and LocalDay("&$D$12&")="&$K$171&" and Barix("&$D$12&",reference:=StartOfSession)="&A7&"","FG","","Close","5","0","",,,"False","T","EveryTick"),RTD("cqg.rtd",,"StudyData","Close("&$D$12&") when LocalYear("&$D$12&")="&$E$171&" and localMonth("&$D$12&") ="&$F$171&" and LocalDay("&$D$12&")="&$G$171&" and Barix("&$D$12&",reference:=StartOfSession)="&A7&"","FG","","Close","5","0","",,,"False","T","EveryTick")) -> 3487 | I7: -0.00456751356 | J7: =IF(AND($F$28<0,B7<0.999999),RTD("cqg.rtd",,"StudyData","Close("&$D$12&") when LocalYear("&$D$12&")="&$I$172&" and localMonth("&$D$12&") ="&$J$172&" and LocalDay("&$D$12&")="&$K$172&" and Barix("&$D$12&",reference:=StartOfSession)="&A7&"","FG","","Close","5","0","",,,"False","T","EveryTick"),RTD("cqg.rtd",,"StudyData","Close("&$D$12&") when LocalYear("&$D$12&")="&$E$172&" and localMonth("&$D$12&") ="&$F$172&" and LocalDay("&$D$12&")="&$G$172&" and Barix("&$D$12&",reference:=StartOfSession)="&A7&"","FG","","Close","5","0","",,,"False","T","EveryTick")) -> 3525 | K7: 0.0002837684449 | L7: =IF(AND($F$28<0,B7<0.999999),RTD("cqg.rtd",,"StudyData","Close("&$D$12&") when LocalYear("&$D$12&")="&$I$173&" and localMonth("&$D$12&") ="&$J$173&" and LocalDay("&$D$12&")="&$K$173&" and Barix("&$D$12&",reference:=StartOfSession)="&A7&"","FG","","Close","5","0","",,,"False","T","EveryTick"),RTD("cqg.rtd",,"StudyData","Close("&$D$12&") when LocalYear("&$D$12&")="&$E$173&" and localMonth("&$D$12&") ="&$F$173&" and LocalDay("&$D$12&")="&$G$173&" and Barix("&$D$12&",reference:=StartOfSession)="&A7&"","FG","","Close","5","0","",,,"False","T","EveryTick")) -> 3457 | M7: -0.004606968039 | N7: =IF(AND($F$28<0,B7<0.999999),RTD("cqg.rtd",,"StudyData","Close("&$D$12&") when LocalYear("&$D$12&")="&$I$174&" and localMonth("&$D$12&") ="&$J$174&" and LocalDay("&$D$12&")="&$K$174&" and Barix("&$D$12&",reference:=StartOfSession)="&A7&"","FG","","Close","5","0","",,,"False","T","EveryTick"),RTD("cqg.rtd",,"StudyData","Close("&$D$12&") when LocalYear("&$D$12&")="&$E$174&" and localMonth("&$D$12&") ="&$F$174&" and LocalDay("&$D$12&")="&$G$174&" and Barix("&$D$12&",reference:=StartOfSession)="&A7&"","FG","","Close","5","0","",,,"False","T","EveryTick")) -> 3463 | O7: -0.0002886836028 | P7: =IF(AND($F$28<0,B7<0.999999),RTD("cqg.rtd",,"StudyData","Close("&$D$12&") when LocalYear("&$D$12&")="&$I$175&" and localMonth("&$D$12&") ="&$J$175&" and LocalDay("&$D$12&")="&$K$175&" and Barix("&$D$12&",reference:=StartOfSession)="&A7&"","FG","","Close","5","0","",,,"False","T","EveryTick"),RTD("cqg.rtd",,"StudyData","Close("&$D$12&") when LocalYear("&$D$12&")="&$E$175&" and localMonth("&$D$12&") ="&$F$175&" and LocalDay("&$D$12&")="&$G$175&" and Barix("&$D$12&",reference:=StartOfSession)="&A7&"","FG","","Close","5","0","",,,"False","T","EveryTick")) -> 3485 | Q7: 0.003744239631 | R7: =IF(AND($F$28<0,B7<0.999999),RTD("cqg.rtd",,"StudyData","Close("&$D$12&") when LocalYear("&$D$12&")="&$I$176&" and localMonth("&$D$12&") ="&$J$176&" and LocalDay("&$D$12&")="&$K$176&" and Barix("&$D$12&",reference:=StartOfSession)="&A7&"","FG","","Close","5","0","",,,"False","T","EveryTick"),RTD("cqg.rtd",,"StudyData","Close("&$D$12&") when LocalYear("&$D$12&")="&$E$176&" and localMonth("&$D$12&") ="&$F$176&" and LocalDay("&$D$12&")="&$G$176&" and Barix("&$D$12&",reference:=StartOfSession)="&A7&"","FG","","Close","5","0","",,,"False","T","EveryTick")) -> 3450 | S7: 0.006417736289 | T7: =IF(AND($F$28<0,B7<0.999999),RTD("cqg.rtd",,"StudyData","Close("&$D$12&") when LocalYear("&$D$12&")="&$I$177&" and localMonth("&$D$12&") ="&$J$177&" and LocalDay("&$D$12&")="&$K$177&" and Barix("&$D$12&",reference:=StartOfSession)="&A7&"","FG","","Close","5","0","",,,"False","T","EveryTick"),RTD("cqg.rtd",,"StudyData","Close("&$D$12&") when LocalYear("&$D$12&")="&$E$177&" and localMonth("&$D$12&") ="&$F$177&" and LocalDay("&$D$12&")="&$G$177&" and Barix("&$D$12&",reference:=StartOfSession)="&A7&"","FG","","Close","5","0","",,,"False","T","EveryTick")) -> 3418 | U7: -0.007837445573 | V7: =IF(AND($F$28<0,B7<0.999999),RTD("cqg.rtd",,"StudyData","Close("&$D$12&") when LocalYear("&$D$12&")="&$I$178&" and localMonth("&$D$12&") ="&$J$178&" and LocalDay("&$D$12&")="&$K$178&" and Barix("&$D$12&",reference:=StartOfSession)="&A7&"","FG","","Close","5","0","",,,"False","T","EveryTick"),RTD("cqg.rtd",,"StudyData","Close("&$D$12&") when LocalYear("&$D$12&")="&$E$178&" and localMonth("&$D$12&") ="&$F$178&" and LocalDay("&$D$12&")="&$G$178&" and Barix("&$D$12&",reference:=StartOfSession)="&A7&"","FG","","Close","5","0","",,,"False","T","EveryTick")) -> 3458 | W7: 0.004648460198 | X7: =IF(AND($F$28<0,B7<0.999999),RTD("cqg.rtd",,"StudyData","Close("&$D$12&") when LocalYear("&$D$12&")="&$I$179&" and localMonth("&$D$12&") ="&$J$179&" and LocalDay("&$D$12&")="&$K$179&" and Barix("&$D$12&",reference:=StartOfSession)="&A7&"","FG","","Close","5","0","",,,"False","T","EveryTick"),RTD("cqg.rtd",,"StudyData","Close("&$D$12&") when LocalYear("&$D$12&")="&$E$179&" and localMonth("&$D$12&") ="&$F$179&" and LocalDay("&$D$12&")="&$G$179&" and Barix("&$D$12&",reference:=StartOfSession)="&A7&"","FG","","Close","5","0","",,,"False","T","EveryTick")) -> 3453 | Y7: 0.003195816386 | Z7: =IF(AND($F$28<0,B7<0.999999),RTD("cqg.rtd",,"StudyData","Close("&$D$12&") when LocalYear("&$D$12&")="&$I$180&" and localMonth("&$D$12&") ="&$J$180&" and LocalDay("&$D$12&")="&$K$180&" and Barix("&$D$12&",reference:=StartOfSession)="&A7&"","FG","","Close","5","0","",,,"False","T","EveryTick"),RTD("cqg.rtd",,"StudyData","Close("&$D$12&") when LocalYear("&$D$12&")="&$E$180&" and localMonth("&$D$12&") ="&$F$180&" and LocalDay("&$D$12&")="&$G$180&" and Barix("&$D$12&",reference:=StartOfSession)="&A7&"","FG","","Close","5","0","",,,"False","T","EveryTick")) -> 3450 | AA7: -0.0008688097307 | AB7: =RANK(AD7,$AD$1:$AD$10)+COUNTIF($AD$1:AD7,AD7)-1 -> 8 | AC7: 2018-06-08 | AD7: =VLOOKUP(MAX(AE2:AE168),A1:U168,21,FALSE) -> -0.006095791001 | AF7: 7 | AG7: 2018-06-15 | AH7: -0.004540295119 | AK7: 2018-06-15 | AL7: 2018-06-08 | AM7: 6 | AN7: 1
A8: 7 | B8: 08:35:00 | C8: =RTD("cqg.rtd",,"StudyData",$D$12,"Bar",,"Time","D","-7",,,,,"T") -> 2018-06-07 | D8: 2018 | E8: 6 | F8: 7 | G8: =RTD("cqg.rtd",,"StudyData",$D$12,"Bar",,"Close","D","-7",,,,,"T") -> 3445 | H8: =IF(AND($F$28<0,B8<0.999999),RTD("cqg.rtd",,"StudyData","Close("&$D$12&") when LocalYear("&$D$12&")="&$I$171&" and localMonth("&$D$12&") ="&$J$171&" and LocalDay("&$D$12&")="&$K$171&" and Barix("&$D$12&",reference:=StartOfSession)="&A8&"","FG","","Close","5","0","",,,"False","T","EveryTick"),RTD("cqg.rtd",,"StudyData","Close("&$D$12&") when LocalYear("&$D$12&")="&$E$171&" and localMonth("&$D$12&") ="&$F$171&" and LocalDay("&$D$12&")="&$G$171&" and Barix("&$D$12&",reference:=StartOfSession)="&A8&"","FG","","Close","5","0","",,,"False","T","EveryTick")) -> 3485 | I8: -0.005138452755 | J8: =IF(AND($F$28<0,B8<0.999999),RTD("cqg.rtd",,"StudyData","Close("&$D$12&") when LocalYear("&$D$12&")="&$I$172&" and localMonth("&$D$12&") ="&$J$172&" and LocalDay("&$D$12&")="&$K$172&" and Barix("&$D$12&",reference:=StartOfSession)="&A8&"","FG","","Close","5","0","",,,"False","T","EveryTick"),RTD("cqg.rtd",,"StudyData","Close("&$D$12&") when LocalYear("&$D$12&")="&$E$172&" and localMonth("&$D$12&") ="&$F$172&" and LocalDay("&$D$12&")="&$G$172&" and Barix("&$D$12&",reference:=StartOfSession)="&A8&"","FG","","Close","5","0","",,,"False","T","EveryTick")) -> 3526 | K8: 0.0005675368899 | L8: =IF(AND($F$28<0,B8<0.999999),RTD("cqg.rtd",,"StudyData","Close("&$D$12&") when LocalYear("&$D$12&")="&$I$173&" and localMonth("&$D$12&") ="&$J$173&" and LocalDay("&$D$12&")="&$K$173&" and Barix("&$D$12&",reference:=StartOfSession)="&A8&"","FG","","Close","5","0","",,,"False","T","EveryTick"),RTD("cqg.rtd",,"StudyData","Close("&$D$12&") when LocalYear("&$D$12&")="&$E$173&" and localMonth("&$D$12&") ="&$F$173&" and LocalDay("&$D$12&")="&$G$173&" and Barix("&$D$12&",reference:=StartOfSession)="&A8&"","FG","","Close","5","0","",,,"False","T","EveryTick")) -> 3455 | M8: -0.005182839044 | N8: =IF(AND($F$28<0,B8<0.999999),RTD("cqg.rtd",,"StudyData","Close("&$D$12&") when LocalYear("&$D$12&")="&$I$174&" and localMonth("&$D$12&") ="&$J$174&" and LocalDay("&$D$12&")="&$K$174&" and Barix("&$D$12&",reference:=StartOfSession)="&A8&"","FG","","Close","5","0","",,,"False","T","EveryTick"),RTD("cqg.rtd",,"StudyData","Close("&$D$12&") when LocalYear("&$D$12&")="&$E$174&" and localMonth("&$D$12&") ="&$F$174&" and LocalDay("&$D$12&")="&$G$174&" and Barix("&$D$12&",reference:=StartOfSession)="&A8&"","FG","","Close","5","0","",,,"False","T","EveryTick")) -> 3464 | O8: 0 | P8: =IF(AND($F$28<0,B8<0.999999),RTD("cqg.rtd",,"StudyData","Close("&$D$12&") when LocalYear("&$D$12&")="&$I$175&" and localMonth("&$D$12&") ="&$J$175&" and LocalDay("&$D$12&")="&$K$175&" and Barix("&$D$12&",reference:=StartOfSession)="&A8&"","FG","","Close","5","0","",,,"False","T","EveryTick"),RTD("cqg.rtd",,"StudyData","Close("&$D$12&") when LocalYear("&$D$12&")="&$E$175&" and localMonth("&$D$12&") ="&$F$175&" and LocalDay("&$D$12&")="&$G$175&" and Barix("&$D$12&",reference:=StartOfSession)="&A8&"","FG","","Close","5","0","",,,"False","T","EveryTick")) -> 3485 | Q8: 0.003744239631 | R8: =IF(AND($F$28<0,B8<0.999999),RTD("cqg.rtd",,"StudyData","Close("&$D$12&") when LocalYear("&$D$12&")="&$I$176&" and localMonth("&$D$12&") ="&$J$176&" and LocalDay("&$D$12&")="&$K$176&" and Barix("&$D$12&",reference:=StartOfSession)="&A8&"","FG","","Close","5","0","",,,"False","T","EveryTick"),RTD("cqg.rtd",,"StudyData","Close("&$D$12&") when LocalYear("&$D$12&")="&$E$176&" and localMonth("&$D$12&") ="&$F$176&" and LocalDay("&$D$12&")="&$G$176&" and Barix("&$D$12&",reference:=StartOfSession)="&A8&"","FG","","Close","5","0","",,,"False","T","EveryTick")) -> 3449 | S8: 0.006126021004 | T8: =IF(AND($F$28<0,B8<0.999999),RTD("cqg.rtd",,"StudyData","Close("&$D$12&") when LocalYear("&$D$12&")="&$I$177&" and localMonth("&$D$12&") ="&$J$177&" and LocalDay("&$D$12&")="&$K$177&" and Barix("&$D$12&",reference:=StartOfSession)="&A8&"","FG","","Close","5","0","",,,"False","T","EveryTick"),RTD("cqg.rtd",,"StudyData","Close("&$D$12&") when LocalYear("&$D$12&")="&$E$177&" and localMonth("&$D$12&") ="&$F$177&" and LocalDay("&$D$12&")="&$G$177&" and Barix("&$D$12&",reference:=StartOfSession)="&A8&"","FG","","Close","5","0","",,,"False","T","EveryTick")) -> 3422 | U8: -0.006676342525 | V8: =IF(AND($F$28<0,B8<0.999999),RTD("cqg.rtd",,"StudyData","Close("&$D$12&") when LocalYear("&$D$12&")="&$I$178&" and localMonth("&$D$12&") ="&$J$178&" and LocalDay("&$D$12&")="&$K$178&" and Barix("&$D$12&",reference:=StartOfSession)="&A8&"","FG","","Close","5","0","",,,"False","T","EveryTick"),RTD("cqg.rtd",,"StudyData","Close("&$D$12&") when LocalYear("&$D$12&")="&$E$178&" and localMonth("&$D$12&") ="&$F$178&" and LocalDay("&$D$12&")="&$G$178&" and Barix("&$D$12&",reference:=StartOfSession)="&A8&"","FG","","Close","5","0","",,,"False","T","EveryTick")) -> 3458 | W8: 0.004648460198 | X8: =IF(AND($F$28<0,B8<0.999999),RTD("cqg.rtd",,"StudyData","Close("&$D$12&") when LocalYear("&$D$12&")="&$I$179&" and localMonth("&$D$12&") ="&$J$179&" and LocalDay("&$D$12&")="&$K$179&" and Barix("&$D$12&",reference:=StartOfSession)="&A8&"","FG","","Close","5","0","",,,"False","T","EveryTick"),RTD("cqg.rtd",,"StudyData","Close("&$D$12&") when LocalYear("&$D$12&")="&$E$179&" and localMonth("&$D$12&") ="&$F$179&" and LocalDay("&$D$12&")="&$G$179&" and Barix("&$D$12&",reference:=StartOfSession)="&A8&"","FG","","Close","5","0","",,,"False","T","EveryTick")) -> 3450 | Y8: 0.002324230099 | Z8: =IF(AND($F$28<0,B8<0.999999),RTD("cqg.rtd",,"StudyData","Close("&$D$12&") when LocalYear("&$D$12&")="&$I$180&" and localMonth("&$D$12&") ="&$J$180&" and LocalDay("&$D$12&")="&$K$180&" and Barix("&$D$12&",reference:=StartOfSession)="&A8&"","FG","","Close","5","0","",,,"False","T","EveryTick"),RTD("cqg.rtd",,"StudyData","Close("&$D$12&") when LocalYear("&$D$12&")="&$E$180&" and localMonth("&$D$12&") ="&$F$180&" and LocalDay("&$D$12&")="&$G$180&" and Barix("&$D$12&",reference:=StartOfSession)="&A8&"","FG","","Close","5","0","",,,"False","T","EveryTick")) -> 3450 | AA8: -0.0008688097307 | AB8: =RANK(AD8,$AD$1:$AD$10)+COUNTIF($AD$1:AD8,AD8)-1 -> 5 | AC8: 2018-06-07 | AD8: =VLOOKUP(MAX(AE2:AE168),A1:W168,23,FALSE) -> -0.0002905287623 | AF8: 8 | AG8: 2018-06-08 | AH8: -0.006095791001 | AK8: 2018-06-08 | AL8: 2018-06-07 | AM8: 7 | AN8: 6
A9: 8 | B9: 08:40:00 | C9: =RTD("cqg.rtd",,"StudyData",$D$12,"Bar",,"Time","D","-8",,,,,"T") -> 2018-06-06 | D9: 2018 | E9: 6 | F9: 6 | G9: =RTD("cqg.rtd",,"StudyData",$D$12,"Bar",,"Close","D","-8",,,,,"T") -> 3442 | H9: =IF(AND($F$28<0,B9<0.999999),RTD("cqg.rtd",,"StudyData","Close("&$D$12&") when LocalYear("&$D$12&")="&$I$171&" and localMonth("&$D$12&") ="&$J$171&" and LocalDay("&$D$12&")="&$K$171&" and Barix("&$D$12&",reference:=StartOfSession)="&A9&"","FG","","Close","5","0","",,,"False","T","EveryTick"),RTD("cqg.rtd",,"StudyData","Close("&$D$12&") when LocalYear("&$D$12&")="&$E$171&" and localMonth("&$D$12&") ="&$F$171&" and LocalDay("&$D$12&")="&$G$171&" and Barix("&$D$12&",reference:=StartOfSession)="&A9&"","FG","","Close","5","0","",,,"False","T","EveryTick")) -> 3484 | I9: -0.005423922352 | J9: =IF(AND($F$28<0,B9<0.999999),RTD("cqg.rtd",,"StudyData","Close("&$D$12&") when LocalYear("&$D$12&")="&$I$172&" and localMonth("&$D$12&") ="&$J$172&" and LocalDay("&$D$12&")="&$K$172&" and Barix("&$D$12&",reference:=StartOfSession)="&A9&"","FG","","Close","5","0","",,,"False","T","EveryTick"),RTD("cqg.rtd",,"StudyData","Close("&$D$12&") when LocalYear("&$D$12&")="&$E$172&" and localMonth("&$D$12&") ="&$F$172&" and LocalDay("&$D$12&")="&$G$172&" and Barix("&$D$12&",reference:=StartOfSession)="&A9&"","FG","","Close","5","0","",,,"False","T","EveryTick")) -> 3524 | K9: 0 | L9: =IF(AND($F$28<0,B9<0.999999),RTD("cqg.rtd",,"StudyData","Close("&$D$12&") when LocalYear("&$D$12&")="&$I$173&" and localMonth("&$D$12&") ="&$J$173&" and LocalDay("&$D$12&")="&$K$173&" and Barix("&$D$12&",reference:=StartOfSession)="&A9&"","FG","","Close","5","0","",,,"False","T","EveryTick"),RTD("cqg.rtd",,"StudyData","Close("&$D$12&") when LocalYear("&$D$12&")="&$E$173&" and localMonth("&$D$12&") ="&$F$173&" and LocalDay("&$D$12&")="&$G$173&" and Barix("&$D$12&",reference:=StartOfSession)="&A9&"","FG","","Close","5","0","",,,"False","T","EveryTick")) -> 3456 | M9: -0.004894903542 | N9: =IF(AND($F$28<0,B9<0.999999),RTD("cqg.rtd",,"StudyData","Close("&$D$12&") when LocalYear("&$D$12&")="&$I$174&" and localMonth("&$D$12&") ="&$J$174&" and LocalDay("&$D$12&")="&$K$174&" and Barix("&$D$12&",reference:=StartOfSession)="&A9&"","FG","","Close","5","0","",,,"False","T","EveryTick"),RTD("cqg.rtd",,"StudyData","Close("&$D$12&") when LocalYear("&$D$12&")="&$E$174&" and localMonth("&$D$12&") ="&$F$174&" and LocalDay("&$D$12&")="&$G$174&" and Barix("&$D$12&",reference:=StartOfSession)="&A9&"","FG","","Close","5","0","",,,"False","T","EveryTick")) -> 3465 | O9: 0.0002886836028 | P9: =IF(AND($F$28<0,B9<0.999999),RTD("cqg.rtd",,"StudyData","Close("&$D$12&") when LocalYear("&$D$12&")="&$I$175&" and localMonth("&$D$12&") ="&$J$175&" and LocalDay("&$D$12&")="&$K$175&" and Barix("&$D$12&",reference:=StartOfSession)="&A9&"","FG","","Close","5","0","",,,"False","T","EveryTick"),RTD("cqg.rtd",,"StudyData","Close("&$D$12&") when LocalYear("&$D$12&")="&$E$175&" and localMonth("&$D$12&") ="&$F$175&" and LocalDay("&$D$12&")="&$G$175&" and Barix("&$D$12&",reference:=StartOfSession)="&A9&"","FG","","Close","5","0","",,,"False","T","EveryTick")) -> 3485 | Q9: 0.003744239631 | R9: =IF(AND($F$28<0,B9<0.999999),RTD("cqg.rtd",,"StudyData","Close("&$D$12&") when LocalYear("&$D$12&")="&$I$176&" and localMonth("&$D$12&") ="&$J$176&" and LocalDay("&$D$12&")="&$K$176&" and Barix("&$D$12&",reference:=StartOfSession)="&A9&"","FG","","Close","5","0","",,,"False","T","EveryTick"),RTD("cqg.rtd",,"StudyData","Close("&$D$12&") when LocalYear("&$D$12&")="&$E$176&" and localMonth("&$D$12&") ="&$F$176&" and LocalDay("&$D$12&")="&$G$176&" and Barix("&$D$12&",reference:=StartOfSession)="&A9&"","FG","","Close","5","0","",,,"False","T","EveryTick")) -> 3448 | S9: 0.005834305718 | T9: =IF(AND($F$28<0,B9<0.999999),RTD("cqg.rtd",,"StudyData","Close("&$D$12&") when LocalYear("&$D$12&")="&$I$177&" and localMonth("&$D$12&") ="&$J$177&" and LocalDay("&$D$12&")="&$K$177&" and Barix("&$D$12&",reference:=StartOfSession)="&A9&"","FG","","Close","5","0","",,,"False","T","EveryTick"),RTD("cqg.rtd",,"StudyData","Close("&$D$12&") when LocalYear("&$D$12&")="&$E$177&" and localMonth("&$D$12&") ="&$F$177&" and LocalDay("&$D$12&")="&$G$177&" and Barix("&$D$12&",reference:=StartOfSession)="&A9&"","FG","","Close","5","0","",,,"False","T","EveryTick")) -> 3419 | U9: -0.007547169811 | V9: =IF(AND($F$28<0,B9<0.999999),RTD("cqg.rtd",,"StudyData","Close("&$D$12&") when LocalYear("&$D$12&")="&$I$178&" and localMonth("&$D$12&") ="&$J$178&" and LocalDay("&$D$12&")="&$K$178&" and Barix("&$D$12&",reference:=StartOfSession)="&A9&"","FG","","Close","5","0","",,,"False","T","EveryTick"),RTD("cqg.rtd",,"StudyData","Close("&$D$12&") when LocalYear("&$D$12&")="&$E$178&" and localMonth("&$D$12&") ="&$F$178&" and LocalDay("&$D$12&")="&$G$178&" and Barix("&$D$12&",reference:=StartOfSession)="&A9&"","FG","","Close","5","0","",,,"False","T","EveryTick")) -> 3460 | W9: 0.005229517722 | X9: =IF(AND($F$28<0,B9<0.999999),RTD("cqg.rtd",,"StudyData","Close("&$D$12&") when LocalYear("&$D$12&")="&$I$179&" and localMonth("&$D$12&") ="&$J$179&" and LocalDay("&$D$12&")="&$K$179&" and Barix("&$D$12&",reference:=StartOfSession)="&A9&"","FG","","Close","5","0","",,,"False","T","EveryTick"),RTD("cqg.rtd",,"StudyData","Close("&$D$12&") when LocalYear("&$D$12&")="&$E$179&" and localMonth("&$D$12&") ="&$F$179&" and LocalDay("&$D$12&")="&$G$179&" and Barix("&$D$12&",reference:=StartOfSession)="&A9&"","FG","","Close","5","0","",,,"False","T","EveryTick")) -> 3450 | Y9: 0.002324230099 | Z9: =IF(AND($F$28<0,B9<0.999999),RTD("cqg.rtd",,"StudyData","Close("&$D$12&") when LocalYear("&$D$12&")="&$I$180&" and localMonth("&$D$12&") ="&$J$180&" and LocalDay("&$D$12&")="&$K$180&" and Barix("&$D$12&",reference:=StartOfSession)="&A9&"","FG","","Close","5","0","",,,"False","T","EveryTick"),RTD("cqg.rtd",,"StudyData","Close("&$D$12&") when LocalYear("&$D$12&")="&$E$180&" and localMonth("&$D$12&") ="&$F$180&" and LocalDay("&$D$12&")="&$G$180&" and Barix("&$D$12&",reference:=StartOfSession)="&A9&"","FG","","Close","5","0","",,,"False","T","EveryTick")) -> 3450 | AA9: -0.0008688097307 | AB9: =RANK(AD9,$AD$1:$AD$10)+COUNTIF($AD$1:AD9,AD9)-1 -> 9 | AC9: 2018-06-06 | AD9: =VLOOKUP(MAX(AE2:AE168),A1:Y168,25,FALSE) -> -0.006101104009 | AF9: 9 | AG9: 2018-06-06 | AH9: -0.006101104009 | AK9: 2018-06-06 | AL9: 2018-06-06 | AM9: 8 | AN9: 8
A10: 9 | B10: 08:45:00 | C10: =RTD("cqg.rtd",,"StudyData",$D$12,"Bar",,"Time","D","-9",,,,,"T") -> 2018-06-05 | D10: 2018 | E10: 6 | F10: 5 | G10: =RTD("cqg.rtd",,"StudyData",$D$12,"Bar",,"Close","D","-9",,,,,"T") -> 3442 | H10: =IF(AND($F$28<0,B10<0.999999),RTD("cqg.rtd",,"StudyData","Close("&$D$12&") when LocalYear("&$D$12&")="&$I$171&" and localMonth("&$D$12&") ="&$J$171&" and LocalDay("&$D$12&")="&$K$171&" and Barix("&$D$12&",reference:=StartOfSession)="&A10&"","FG","","Close","5","0","",,,"False","T","EveryTick"),RTD("cqg.rtd",,"StudyData","Close("&$D$12&") when LocalYear("&$D$12&")="&$E$171&" and localMonth("&$D$12&") ="&$F$171&" and LocalDay("&$D$12&")="&$G$171&" and Barix("&$D$12&",reference:=StartOfSession)="&A10&"","FG","","Close","5","0","",,,"False","T","EveryTick")) -> 3484 | I10: -0.005423922352 | J10: =IF(AND($F$28<0,B10<0.999999),RTD("cqg.rtd",,"StudyData","Close("&$D$12&") when LocalYear("&$D$12&")="&$I$172&" and localMonth("&$D$12&") ="&$J$172&" and LocalDay("&$D$12&")="&$K$172&" and Barix("&$D$12&",reference:=StartOfSession)="&A10&"","FG","","Close","5","0","",,,"False","T","EveryTick"),RTD("cqg.rtd",,"StudyData","Close("&$D$12&") when LocalYear("&$D$12&")="&$E$172&" and localMonth("&$D$12&") ="&$F$172&" and LocalDay("&$D$12&")="&$G$172&" and Barix("&$D$12&",reference:=StartOfSession)="&A10&"","FG","","Close","5","0","",,,"False","T","EveryTick")) -> 3525 | K10: 0.0002837684449 | L10: =IF(AND($F$28<0,B10<0.999999),RTD("cqg.rtd",,"StudyData","Close("&$D$12&") when LocalYear("&$D$12&")="&$I$173&" and localMonth("&$D$12&") ="&$J$173&" and LocalDay("&$D$12&")="&$K$173&" and Barix("&$D$12&",reference:=StartOfSession)="&A10&"","FG","","Close","5","0","",,,"False","T","EveryTick"),RTD("cqg.rtd",,"StudyData","Close("&$D$12&") when LocalYear("&$D$12&")="&$E$173&" and localMonth("&$D$12&") ="&$F$173&" and LocalDay("&$D$12&")="&$G$173&" and Barix("&$D$12&",reference:=StartOfSession)="&A10&"","FG","","Close","5","0","",,,"False","T","EveryTick")) -> 3455 | M10: -0.005182839044 | N10: =IF(AND($F$28<0,B10<0.999999),RTD("cqg.rtd",,"StudyData","Close("&$D$12&") when LocalYear("&$D$12&")="&$I$174&" and localMonth("&$D$12&") ="&$J$174&" and LocalDay("&$D$12&")="&$K$174&" and Barix("&$D$12&",reference:=StartOfSession)="&A10&"","FG","","Close","5","0","",,,"False","T","EveryTick"),RTD("cqg.rtd",,"StudyData","Close("&$D$12&") when LocalYear("&$D$12&")="&$E$174&" and localMonth("&$D$12&") ="&$F$174&" and LocalDay("&$D$12&")="&$G$174&" and Barix("&$D$12&",reference:=StartOfSession)="&A10&"","FG","","Close","5","0","",,,"False","T","EveryTick")) -> 3465 | O10: 0.0002886836028 | P10: =IF(AND($F$28<0,B10<0.999999),RTD("cqg.rtd",,"StudyData","Close("&$D$12&") when LocalYear("&$D$12&")="&$I$175&" and localMonth("&$D$12&") ="&$J$175&" and LocalDay("&$D$12&")="&$K$175&" and Barix("&$D$12&",reference:=StartOfSession)="&A10&"","FG","","Close","5","0","",,,"False","T","EveryTick"),RTD("cqg.rtd",,"StudyData","Close("&$D$12&") when LocalYear("&$D$12&")="&$E$175&" and localMonth("&$D$12&") ="&$F$175&" and LocalDay("&$D$12&")="&$G$175&" and Barix("&$D$12&",reference:=StartOfSession)="&A10&"","FG","","Close","5","0","",,,"False","T","EveryTick")) -> 3482 | Q10: 0.002880184332 | R10: =IF(AND($F$28<0,B10<0.999999),RTD("cqg.rtd",,"StudyData","Close("&$D$12&") when LocalYear("&$D$12&")="&$I$176&" and localMonth("&$D$12&") ="&$J$176&" and LocalDay("&$D$12&")="&$K$176&" and Barix("&$D$12&",reference:=StartOfSession)="&A10&"","FG","","Close","5","0","",,,"False","T","EveryTick"),RTD("cqg.rtd",,"StudyData","Close("&$D$12&") when LocalYear("&$D$12&")="&$E$176&" and localMonth("&$D$12&") ="&$F$176&" and LocalDay("&$D$12&")="&$G$176&" and Barix("&$D$12&",reference:=StartOfSession)="&A10&"","FG","","Close","5","0","",,,"False","T","EveryTick")) -> 3449 | S10: 0.006126021004 | T10: =IF(AND($F$28<0,B10<0.999999),RTD("cqg.rtd",,"StudyData","Close("&$D$12&") when LocalYear("&$D$12&")="&$I$177&" and localMonth("&$D$12&") ="&$J$177&" and LocalDay("&$D$12&")="&$K$177&" and Barix("&$D$12&",reference:=StartOfSession)="&A10&"","FG","","Close","5","0","",,,"False","T","EveryTick"),RTD("cqg.rtd",,"StudyData","Close("&$D$12&") when LocalYear("&$D$12&")="&$E$177&" and localMonth("&$D$12&") ="&$F$177&" and LocalDay("&$D$12&")="&$G$177&" and Barix("&$D$12&",reference:=StartOfSession)="&A10&"","FG","","Close","5","0","",,,"False","T","EveryTick")) -> 3417 | U10: -0.008127721335 | V10: =IF(AND($F$28<0,B10<0.999999),RTD("cqg.rtd",,"StudyData","Close("&$D$12&") when LocalYear("&$D$12&")="&$I$178&" and localMonth("&$D$12&") ="&$J$178&" and LocalDay("&$D$12&")="&$K$178&" and Barix("&$D$12&",reference:=StartOfSession)="&A10&"","FG","","Close","5","0","",,,"False","T","EveryTick"),RTD("cqg.rtd",,"StudyData","Close("&$D$12&") when LocalYear("&$D$12&")="&$E$178&" and localMonth("&$D$12&") ="&$F$178&" and LocalDay("&$D$12&")="&$G$178&" and Barix("&$D$12&",reference:=StartOfSession)="&A10&"","FG","","Close","5","0","",,,"False","T","EveryTick")) -> 3460 | W10: 0.005229517722 | X10: =IF(AND($F$28<0,B10<0.999999),RTD("cqg.rtd",,"StudyData","Close("&$D$12&") when LocalYear("&$D$12&")="&$I$179&" and localMonth("&$D$12&") ="&$J$179&" and LocalDay("&$D$12&")="&$K$179&" and Barix("&$D$12&",reference:=StartOfSession)="&A10&"","FG","","Close","5","0","",,,"False","T","EveryTick"),RTD("cqg.rtd",,"StudyData","Close("&$D$12&") when LocalYear("&$D$12&")="&$E$179&" and localMonth("&$D$12&") ="&$F$179&" and LocalDay("&$D$12&")="&$G$179&" and Barix("&$D$12&",reference:=StartOfSession)="&A10&"","FG","","Close","5","0","",,,"False","T","EveryTick")) -> 3445 | Y10: 0.000871586287 | Z10: =IF(AND($F$28<0,B10<0.999999),RTD("cqg.rtd",,"StudyData","Close("&$D$12&") when LocalYear("&$D$12&")="&$I$180&" and localMonth("&$D$12&") ="&$J$180&" and LocalDay("&$D$12&")="&$K$180&" and Barix("&$D$12&",reference:=StartOfSession)="&A10&"","FG","","Close","5","0","",,,"False","T","EveryTick"),RTD("cqg.rtd",,"StudyData","Close("&$D$12&") when LocalYear("&$D$12&")="&$E$180&" and localMonth("&$D$12&") ="&$F$180&" and LocalDay("&$D$12&")="&$G$180&" and Barix("&$D$12&",reference:=StartOfSession)="&A10&"","FG","","Close","5","0","",,,"False","T","EveryTick")) -> 3448 | AA10: -0.001448016218 | AB10: =RANK(AD10,$AD$1:$AD$10)+COUNTIF($AD$1:AD10,AD10)-1 -> 3 | AC10: 2018-06-05 | AD10: =VLOOKUP(MAX(AE2:AE168),A1:AA168,27,FALSE) -> 0.003475238923 | AF10: 10 | AG10: 2018-06-18 | AH10: -0.01627176706 | AK10: 2018-06-18 | AL10: 2018-06-05 | AM10: 9 | AN10: 0
A11: 10 | B11: 08:50:00 | C11: =RTD("cqg.rtd",,"StudyData",$D$12,"Bar",,"Time","D","-10",,,,,"T") -> 2018-06-04 | D11: 2018 | E11: =MONTH(C11) -> 6 | F11: =DAY(C11) -> 4 | G11: =RTD("cqg.rtd",,"StudyData",$D$12,"Bar",,"Close","D","-10",,,,,"T") -> 3453 | H11: =IF(AND($F$28<0,B11<0.999999),RTD("cqg.rtd",,"StudyData","Close("&$D$12&") when LocalYear("&$D$12&")="&$I$171&" and localMonth("&$D$12&") ="&$J$171&" and LocalDay("&$D$12&")="&$K$171&" and Barix("&$D$12&",reference:=StartOfSession)="&A11&"","FG","","Close","5","0","",,,"False","T","EveryTick"),RTD("cqg.rtd",,"StudyData","Close("&$D$12&") when LocalYear("&$D$12&")="&$E$171&" and localMonth("&$D$12&") ="&$F$171&" and LocalDay("&$D$12&")="&$G$171&" and Barix("&$D$12&",reference:=StartOfSession)="&A11&"","FG","","Close","5","0","",,,"False","T","EveryTick")) -> 3487 | I11: -0.00456751356 | J11: =IF(AND($F$28<0,B11<0.999999),RTD("cqg.rtd",,"StudyData","Close("&$D$12&") when LocalYear("&$D$12&")="&$I$172&" and localMonth("&$D$12&") ="&$J$172&" and LocalDay("&$D$12&")="&$K$172&" and Barix("&$D$12&",reference:=StartOfSession)="&A11&"","FG","","Close","5","0","",,,"False","T","EveryTick"),RTD("cqg.rtd",,"StudyData","Close("&$D$12&") when LocalYear("&$D$12&")="&$E$172&" and localMonth("&$D$12&") ="&$F$172&" and LocalDay("&$D$12&")="&$G$172&" and Barix("&$D$12&",reference:=StartOfSession)="&A11&"","FG","","Close","5","0","",,,"False","T","EveryTick")) -> 3526 | K11: 0.0005675368899 | L11: =IF(AND($F$28<0,B11<0.999999),RTD("cqg.rtd",,"StudyData","Close("&$D$12&") when LocalYear("&$D$12&")="&$I$173&" and localMonth("&$D$12&") ="&$J$173&" and LocalDay("&$D$12&")="&$K$173&" and Barix("&$D$12&",reference:=StartOfSession)="&A11&"","FG","","Close","5","0","",,,"False","T","EveryTick"),RTD("cqg.rtd",,"StudyData","Close("&$D$12&") when LocalYear("&$D$12&")="&$E$173&" and localMonth("&$D$12&") ="&$F$173&" and LocalDay("&$D$12&")="&$G$173&" and Barix("&$D$12&",reference:=StartOfSession)="&A11&"","FG","","Close","5","0","",,,"False","T","EveryTick")) -> 3455 | M11: -0.005182839044 | N11: =IF(AND($F$28<0,B11<0.999999),RTD("cqg.rtd",,"StudyData","Close("&$D$12&") when LocalYear("&$D$12&")="&$I$174&" and localMonth("&$D$12&") ="&$J$174&" and LocalDay("&$D$12&")="&$K$174&" and Barix("&$D$12&",reference:=StartOfSession)="&A11&"","FG","","Close","5","0","",,,"False","T","EveryTick"),RTD("cqg.rtd",,"StudyData","Close("&$D$12&") when LocalYear("&$D$12&")="&$E$174&" and localMonth("&$D$12&") ="&$F$174&" and LocalDay("&$D$12&")="&$G$174&" and Barix("&$D$12&",reference:=StartOfSession)="&A11&"","FG","","Close","5","0","",,,"False","T","EveryTick")) -> 3464 | O11: 0 | P11: =IF(AND($F$28<0,B11<0.999999),RTD("cqg.rtd",,"StudyData","Close("&$D$12&") when LocalYear("&$D$12&")="&$I$175&" and localMonth("&$D$12&") ="&$J$175&" and LocalDay("&$D$12&")="&$K$175&" and Barix("&$D$12&",reference:=StartOfSession)="&A11&"","FG","","Close","5","0","",,,"False","T","EveryTick"),RTD("cqg.rtd",,"StudyData","Close("&$D$12&") when LocalYear("&$D$12&")="&$E$175&" and localMonth("&$D$12&") ="&$F$175&" and LocalDay("&$D$12&")="&$G$175&" and Barix("&$D$12&",reference:=StartOfSession)="&A11&"","FG","","Close","5","0","",,,"False","T","EveryTick")) -> 3483 | Q11: 0.003168202765 | R11: =IF(AND($F$28<0,B11<0.999999),RTD("cqg.rtd",,"StudyData","Close("&$D$12&") when LocalYear("&$D$12&")="&$I$176&" and localMonth("&$D$12&") ="&$J$176&" and LocalDay("&$D$12&")="&$K$176&" and Barix("&$D$12&",reference:=StartOfSession)="&A11&"","FG","","Close","5","0","",,,"False","T","EveryTick"),RTD("cqg.rtd",,"StudyData","Close("&$D$12&") when LocalYear("&$D$12&")="&$E$176&" and localMonth("&$D$12&") ="&$F$176&" and LocalDay("&$D$12&")="&$G$176&" and Barix("&$D$12&",reference:=StartOfSession)="&A11&"","FG","","Close","5","0","",,,"False","T","EveryTick")) -> 3450 | S11: 0.006417736289 | T11: =IF(AND($F$28<0,B11<0.999999),RTD("cqg.rtd",,"StudyData","Close("&$D$12&") when LocalYear("&$D$12&")="&$I$177&" and localMonth("&$D$12&") ="&$J$177&" and LocalDay("&$D$12&")="&$K$177&" and Barix("&$D$12&",reference:=StartOfSession)="&A11&"","FG","","Close","5","0","",,,"False","T","EveryTick"),RTD("cqg.rtd",,"StudyData","Close("&$D$12&") when LocalYear("&$D$12&")="&$E$177&" and localMonth("&$D$12&") ="&$F$177&" and LocalDay("&$D$12&")="&$G$177&" and Barix("&$D$12&",reference:=StartOfSession)="&A11&"","FG","","Close","5","0","",,,"False","T","EveryTick")) -> 3420 | U11: -0.007256894049 | V11: =IF(AND($F$28<0,B11<0.999999),RTD("cqg.rtd",,"StudyData","Close("&$D$12&") when LocalYear("&$D$12&")="&$I$178&" and localMonth("&$D$12&") ="&$J$178&" and LocalDay("&$D$12&")="&$K$178&" and Barix("&$D$12&",reference:=StartOfSession)="&A11&"","FG","","Close","5","0","",,,"False","T","EveryTick"),RTD("cqg.rtd",,"StudyData","Close("&$D$12&") when LocalYear("&$D$12&")="&$E$178&" and localMonth("&$D$12&") ="&$F$178&" and LocalDay("&$D$12&")="&$G$178&" and Barix("&$D$12&",reference:=StartOfSession)="&A11&"","FG","","Close","5","0","",,,"False","T","EveryTick")) -> 3459 | W11: 0.00493898896 | X11: =IF(AND($F$28<0,B11<0.999999),RTD("cqg.rtd",,"StudyData","Close("&$D$12&") when LocalYear("&$D$12&")="&$I$179&" and localMonth("&$D$12&") ="&$J$179&" and LocalDay("&$D$12&")="&$K$179&" and Barix("&$D$12&",reference:=StartOfSession)="&A11&"","FG","","Close","5","0","",,,"False","T","EveryTick"),RTD("cqg.rtd",,"StudyData","Close("&$D$12&") when LocalYear("&$D$12&")="&$E$179&" and localMonth("&$D$12&") ="&$F$179&" and LocalDay("&$D$12&")="&$G$179&" and Barix("&$D$12&",reference:=StartOfSession)="&A11&"","FG","","Close","5","0","",,,"False","T","EveryTick")) -> 3443 | Y11: 0.0002905287623 | Z11: =IF(AND($F$28<0,B11<0.999999),RTD("cqg.rtd",,"StudyData","Close("&$D$12&") when LocalYear("&$D$12&")="&$I$180&" and localMonth("&$D$12&") ="&$J$180&" and LocalDay("&$D$12&")="&$K$180&" and Barix("&$D$12&",reference:=StartOfSession)="&A11&"","FG","","Close","5","0","",,,"False","T","EveryTick"),RTD("cqg.rtd",,"StudyData","Close("&$D$12&") when LocalYear("&$D$12&")="&$E$180&" and localMonth("&$D$12&") ="&$F$180&" and LocalDay("&$D$12&")="&$G$180&" and Barix("&$D$12&",reference:=StartOfSession)="&A11&"","FG","","Close","5","0","",,,"False","T","EveryTick")) -> 3447 | AA11: -0.001737619461
A12: 11 | B12: 08:55:00 | D12: =MainDisplay!B5 -> DSX | H12: =IF(AND($F$28<0,B12<0.999999),RTD("cqg.rtd",,"StudyData","Close("&$D$12&") when LocalYear("&$D$12&")="&$I$171&" and localMonth("&$D$12&") ="&$J$171&" and LocalDay("&$D$12&")="&$K$171&" and Barix("&$D$12&",reference:=StartOfSession)="&A12&"","FG","","Close","5","0","",,,"False","T","EveryTick"),RTD("cqg.rtd",,"StudyData","Close("&$D$12&") when LocalYear("&$D$12&")="&$E$171&" and localMonth("&$D$12&") ="&$F$171&" and LocalDay("&$D$12&")="&$G$171&" and Barix("&$D$12&",reference:=StartOfSession)="&A12&"","FG","","Close","5","0","",,,"False","T","EveryTick")) -> 3484 | I12: -0.005423922352 | J12: =IF(AND($F$28<0,B12<0.999999),RTD("cqg.rtd",,"StudyData","Close("&$D$12&") when LocalYear("&$D$12&")="&$I$172&" and localMonth("&$D$12&") ="&$J$172&" and LocalDay("&$D$12&")="&$K$172&" and Barix("&$D$12&",reference:=StartOfSession)="&A12&"","FG","","Close","5","0","",,,"False","T","EveryTick"),RTD("cqg.rtd",,"StudyData","Close("&$D$12&") when LocalYear("&$D$12&")="&$E$172&" and localMonth("&$D$12&") ="&$F$172&" and LocalDay("&$D$12&")="&$G$172&" and Barix("&$D$12&",reference:=StartOfSession)="&A12&"","FG","","Close","5","0","",,,"False","T","EveryTick")) -> 3526 | K12: 0.0005675368899 | L12: =IF(AND($F$28<0,B12<0.999999),RTD("cqg.rtd",,"StudyData","Close("&$D$12&") when LocalYear("&$D$12&")="&$I$173&" and localMonth("&$D$12&") ="&$J$173&" and LocalDay("&$D$12&")="&$K$173&" and Barix("&$D$12&",reference:=StartOfSession)="&A12&"","FG","","Close","5","0","",,,"False","T","EveryTick"),RTD("cqg.rtd",,"StudyData","Close("&$D$12&") when LocalYear("&$D$12&")="&$E$173&" and localMonth("&$D$12&") ="&$F$173&" and LocalDay("&$D$12&")="&$G$173&" and Barix("&$D$12&",reference:=StartOfSession)="&A12&"","FG","","Close","5","0","",,,"False","T","EveryTick")) -> 3453 | M12: -0.005758710049 | N12: =IF(AND($F$28<0,B12<0.999999),RTD("cqg.rtd",,"StudyData","Close("&$D$12&") when LocalYear("&$D$12&")="&$I$174&" and localMonth("&$D$12&") ="&$J$174&" and LocalDay("&$D$12&")="&$K$174&" and Barix("&$D$12&",reference:=StartOfSession)="&A12&"","FG","","Close","5","0","",,,"False","T","EveryTick"),RTD("cqg.rtd",,"StudyData","Close("&$D$12&") when LocalYear("&$D$12&")="&$E$174&" and localMonth("&$D$12&") ="&$F$174&" and LocalDay("&$D$12&")="&$G$174&" and Barix("&$D$12&",reference:=StartOfSession)="&A12&"","FG","","Close","5","0","",,,"False","T","EveryTick")) -> 3465 | O12: 0.0002886836028 | P12: =IF(AND($F$28<0,B12<0.999999),RTD("cqg.rtd",,"StudyData","Close("&$D$12&") when LocalYear("&$D$12&")="&$I$175&" and localMonth("&$D$12&") ="&$J$175&" and LocalDay("&$D$12&")="&$K$175&" and Barix("&$D$12&",reference:=StartOfSession)="&A12&"","FG","","Close","5","0","",,,"False","T","EveryTick"),RTD("cqg.rtd",,"StudyData","Close("&$D$12&") when LocalYear("&$D$12&")="&$E$175&" and localMonth("&$D$12&") ="&$F$175&" and LocalDay("&$D$12&")="&$G$175&" and Barix("&$D$12&",reference:=StartOfSession)="&A12&"","FG","","Close","5","0","",,,"False","T","EveryTick")) -> 3485 | Q12: 0.003744239631 | R12: =IF(AND($F$28<0,B12<0.999999),RTD("cqg.rtd",,"StudyData","Close("&$D$12&") when LocalYear("&$D$12&")="&$I$176&" and localMonth("&$D$12&") ="&$J$176&" and LocalDay("&$D$12&")="&$K$176&" and Barix("&$D$12&",reference:=StartOfSession)="&A12&"","FG","","Close","5","0","",,,"False","T","EveryTick"),RTD("cqg.rtd",,"StudyData","Close("&$D$12&") when LocalYear("&$D$12&")="&$E$176&" and localMonth("&$D$12&") ="&$F$176&" and LocalDay("&$D$12&")="&$G$176&" and Barix("&$D$12&",reference:=StartOfSession)="&A12&"","FG","","Close","5","0","",,,"False","T","EveryTick")) -> 3451 | S12: 0.006709451575 | T12: =IF(AND($F$28<0,B12<0.999999),RTD("cqg.rtd",,"StudyData","Close("&$D$12&") when LocalYear("&$D$12&")="&$I$177&" and localMonth("&$D$12&") ="&$J$177&" and LocalDay("&$D$12&")="&$K$177&" and Barix("&$D$12&",reference:=StartOfSession)="&A12&"","FG","","Close","5","0","",,,"False","T","EveryTick"),RTD("cqg.rtd",,"StudyData","Close("&$D$12&") when LocalYear("&$D$12&")="&$E$177&" and localMonth("&$D$12&") ="&$F$177&" and LocalDay("&$D$12&")="&$G$177&" and Barix("&$D$12&",reference:=StartOfSession)="&A12&"","FG","","Close","5","0","",,,"False","T","EveryTick")) -> 3419 | U12: -0.007547169811 | V12: =IF(AND($F$28<0,B12<0.999999),RTD("cqg.rtd",,"StudyData","Close("&$D$12&") when LocalYear("&$D$12&")="&$I$178&" and localMonth("&$D$12&") ="&$J$178&" and LocalDay("&$D$12&")="&$K$178&" and Barix("&$D$12&",reference:=StartOfSession)="&A12&"","FG","","Close","5","0","",,,"False","T","EveryTick"),RTD("cqg.rtd",,"StudyData","Close("&$D$12&") when LocalYear("&$D$12&")="&$E$178&" and localMonth("&$D$12&") ="&$F$178&" and LocalDay("&$D$12&")="&$G$178&" and Barix("&$D$12&",reference:=StartOfSession)="&A12&"","FG","","Close","5","0","",,,"False","T","EveryTick")) -> 3461 | W12: 0.005520046485 | X12: =IF(AND($F$28<0,B12<0.999999),RTD("cqg.rtd",,"StudyData","Close("&$D$12&") when LocalYear("&$D$12&")="&$I$179&" and localMonth("&$D$12&") ="&$J$179&" and LocalDay("&$D$12&")="&$K$179&" and Barix("&$D$12&",reference:=StartOfSession)="&A12&"","FG","","Close","5","0","",,,"False","T","EveryTick"),RTD("cqg.rtd",,"StudyData","Close("&$D$12&") when LocalYear("&$D$12&")="&$E$179&" and localMonth("&$D$12&") ="&$F$179&" and LocalDay("&$D$12&")="&$G$179&" and Barix("&$D$12&",reference:=StartOfSession)="&A12&"","FG","","Close","5","0","",,,"False","T","EveryTick")) -> 3444 | Y12: 0.0005810575247 | Z12: =IF(AND($F$28<0,B12<0.999999),RTD("cqg.rtd",,"StudyData","Close("&$D$12&") when LocalYear("&$D$12&")="&$I$180&" and localMonth("&$D$12&") ="&$J$180&" and LocalDay("&$D$12&")="&$K$180&" and Barix("&$D$12&",reference:=StartOfSession)="&A12&"","FG","","Close","5","0","",,,"False","T","EveryTick"),RTD("cqg.rtd",,"StudyData","Close("&$D$12&") when LocalYear("&$D$12&")="&$E$180&" and localMonth("&$D$12&") ="&$F$180&" and LocalDay("&$D$12&")="&$G$180&" and Barix("&$D$12&",reference:=StartOfSession)="&A12&"","FG","","Close","5","0","",,,"False","T","EveryTick")) -> 3447 | AA12: -0.001737619461 | AC12: =VLOOKUP(MAX(AE2:AE168),A1:B168,2,FALSE) -> 16:10:00
A13: 12 | B13: 09:00:00 | D13: =RTD("cqg.rtd", ,"ContractData",D12, "LastQuoteToday",, "T") -> 3446 | G13: =C1 -> 2018-06-18 | H13: =IF(AND($F$28<0,B13<0.999999),RTD("cqg.rtd",,"StudyData","Close("&$D$12&") when LocalYear("&$D$12&")="&$I$171&" and localMonth("&$D$12&") ="&$J$171&" and LocalDay("&$D$12&")="&$K$171&" and Barix("&$D$12&",reference:=StartOfSession)="&A13&"","FG","","Close","5","0","",,,"False","T","EveryTick"),RTD("cqg.rtd",,"StudyData","Close("&$D$12&") when LocalYear("&$D$12&")="&$E$171&" and localMonth("&$D$12&") ="&$F$171&" and LocalDay("&$D$12&")="&$G$171&" and Barix("&$D$12&",reference:=StartOfSession)="&A13&"","FG","","Close","5","0","",,,"False","T","EveryTick")) -> 3484 | I13: -0.005423922352 | J13: =IF(AND($F$28<0,B13<0.999999),RTD("cqg.rtd",,"StudyData","Close("&$D$12&") when LocalYear("&$D$12&")="&$I$172&" and localMonth("&$D$12&") ="&$J$172&" and LocalDay("&$D$12&")="&$K$172&" and Barix("&$D$12&",reference:=StartOfSession)="&A13&"","FG","","Close","5","0","",,,"False","T","EveryTick"),RTD("cqg.rtd",,"StudyData","Close("&$D$12&") when LocalYear("&$D$12&")="&$E$172&" and localMonth("&$D$12&") ="&$F$172&" and LocalDay("&$D$12&")="&$G$172&" and Barix("&$D$12&",reference:=StartOfSession)="&A13&"","FG","","Close","5","0","",,,"False","T","EveryTick")) -> 3524 | K13: 0 | L13: =IF(AND($F$28<0,B13<0.999999),RTD("cqg.rtd",,"StudyData","Close("&$D$12&") when LocalYear("&$D$12&")="&$I$173&" and localMonth("&$D$12&") ="&$J$173&" and LocalDay("&$D$12&")="&$K$173&" and Barix("&$D$12&",reference:=StartOfSession)="&A13&"","FG","","Close","5","0","",,,"False","T","EveryTick"),RTD("cqg.rtd",,"StudyData","Close("&$D$12&") when LocalYear("&$D$12&")="&$E$173&" and localMonth("&$D$12&") ="&$F$173&" and LocalDay("&$D$12&")="&$G$173&" and Barix("&$D$12&",reference:=StartOfSession)="&A13&"","FG","","Close","5","0","",,,"False","T","EveryTick")) -> 3455 | M13: -0.005182839044 | N13: =IF(AND($F$28<0,B13<0.999999),RTD("cqg.rtd",,"StudyData","Close("&$D$12&") when LocalYear("&$D$12&")="&$I$174&" and localMonth("&$D$12&") ="&$J$174&" and LocalDay("&$D$12&")="&$K$174&" and Barix("&$D$12&",reference:=StartOfSession)="&A13&"","FG","","Close","5","0","",,,"False","T","EveryTick"),RTD("cqg.rtd",,"StudyData","Close("&$D$12&") when LocalYear("&$D$12&")="&$E$174&" and localMonth("&$D$12&") ="&$F$174&" and LocalDay("&$D$12&")="&$G$174&" and Barix("&$D$12&",reference:=StartOfSession)="&A13&"","FG","","Close","5","0","",,,"False","T","EveryTick")) -> 3468 | O13: 0.001154734411 | P13: =IF(AND($F$28<0,B13<0.999999),RTD("cqg.rtd",,"StudyData","Close("&$D$12&") when LocalYear("&$D$12&")="&$I$175&" and localMonth("&$D$12&") ="&$J$175&" and LocalDay("&$D$12&")="&$K$175&" and Barix("&$D$12&",reference:=StartOfSession)="&A13&"","FG","","Close","5","0","",,,"False","T","EveryTick"),RTD("cqg.rtd",,"StudyData","Close("&$D$12&") when LocalYear("&$D$12&")="&$E$175&" and localMonth("&$D$12&") ="&$F$175&" and LocalDay("&$D$12&")="&$G$175&" and Barix("&$D$12&",reference:=StartOfSession)="&A13&"","FG","","Close","5","0","",,,"False","T","EveryTick")) -> 3483 | Q13: 0.003168202765 | R13: =IF(AND($F$28<0,B13<0.999999),RTD("cqg.rtd",,"StudyData","Close("&$D$12&") when LocalYear("&$D$12&")="&$I$176&" and localMonth("&$D$12&") ="&$J$176&" and LocalDay("&$D$12&")="&$K$176&" and Barix("&$D$12&",reference:=StartOfSession)="&A13&"","FG","","Close","5","0","",,,"False","T","EveryTick"),RTD("cqg.rtd",,"StudyData","Close("&$D$12&") when LocalYear("&$D$12&")="&$E$176&" and localMonth("&$D$12&") ="&$F$176&" and LocalDay("&$D$12&")="&$G$176&" and Barix("&$D$12&",reference:=StartOfSession)="&A13&"","FG","","Close","5","0","",,,"False","T","EveryTick")) -> 3457 | S13: 0.008459743291 | T13: =IF(AND($F$28<0,B13<0.999999),RTD("cqg.rtd",,"StudyData","Close("&$D$12&") when LocalYear("&$D$12&")="&$I$177&" and localMonth("&$D$12&") ="&$J$177&" and LocalDay("&$D$12&")="&$K$177&" and Barix("&$D$12&",reference:=StartOfSession)="&A13&"","FG","","Close","5","0","",,,"False","T","EveryTick"),RTD("cqg.rtd",,"StudyData","Close("&$D$12&") when LocalYear("&$D$12&")="&$E$177&" and localMonth("&$D$12&") ="&$F$177&" and LocalDay("&$D$12&")="&$G$177&" and Barix("&$D$12&",reference:=StartOfSession)="&A13&"","FG","","Close","5","0","",,,"False","T","EveryTick")) -> 3412 | U13: -0.009579100145 | V13: =IF(AND($F$28<0,B13<0.999999),RTD("cqg.rtd",,"StudyData","Close("&$D$12&") when LocalYear("&$D$12&")="&$I$178&" and localMonth("&$D$12&") ="&$J$178&" and LocalDay("&$D$12&")="&$K$178&" and Barix("&$D$12&",reference:=StartOfSession)="&A13&"","FG","","Close","5","0","",,,"False","T","EveryTick"),RTD("cqg.rtd",,"StudyData","Close("&$D$12&") when LocalYear("&$D$12&")="&$E$178&" and localMonth("&$D$12&") ="&$F$178&" and LocalDay("&$D$12&")="&$G$178&" and Barix("&$D$12&",reference:=StartOfSession)="&A13&"","FG","","Close","5","0","",,,"False","T","EveryTick")) -> 3459 | W13: 0.00493898896 | X13: =IF(AND($F$28<0,B13<0.999999),RTD("cqg.rtd",,"StudyData","Close("&$D$12&") when LocalYear("&$D$12&")="&$I$179&" and localMonth("&$D$12&") ="&$J$179&" and LocalDay("&$D$12&")="&$K$179&" and Barix("&$D$12&",reference:=StartOfSession)="&A13&"","FG","","Close","5","0","",,,"False","T","EveryTick"),RTD("cqg.rtd",,"StudyData","Close("&$D$12&") when LocalYear("&$D$12&")="&$E$179&" and localMonth("&$D$12&") ="&$F$179&" and LocalDay("&$D$12&")="&$G$179&" and Barix("&$D$12&",reference:=StartOfSession)="&A13&"","FG","","Close","5","0","",,,"False","T","EveryTick")) -> 3445 | Y13: 0.000871586287 | Z13: =IF(AND($F$28<0,B13<0.999999),RTD("cqg.rtd",,"StudyData","Close("&$D$12&") when LocalYear("&$D$12&")="&$I$180&" and localMonth("&$D$12&") ="&$J$180&" and LocalDay("&$D$12&")="&$K$180&" and Barix("&$D$12&",reference:=StartOfSession)="&A13&"","FG","","Close","5","0","",,,"False","T","EveryTick"),RTD("cqg.rtd",,"StudyData","Close("&$D$12&") when LocalYear("&$D$12&")="&$E$180&" and localMonth("&$D$12&") ="&$F$180&" and LocalDay("&$D$12&")="&$G$180&" and Barix("&$D$12&",reference:=StartOfSession)="&A13&"","FG","","Close","5","0","",,,"False","T","EveryTick")) -> 3447 | AA13: -0.001737619461
A14: 13 | B14: 09:05:00 | D14: =RTD("cqg.rtd", ,"ContractData",D12, "LongDescription",, "T") -> Euro STOXX 50, Sep 18 | G14: =C2 -> 2018-06-15 | H14: =IF(AND($F$28<0,B14<0.999999),RTD("cqg.rtd",,"StudyData","Close("&$D$12&") when LocalYear("&$D$12&")="&$I$171&" and localMonth("&$D$12&") ="&$J$171&" and LocalDay("&$D$12&")="&$K$171&" and Barix("&$D$12&",reference:=StartOfSession)="&A14&"","FG","","Close","5","0","",,,"False","T","EveryTick"),RTD("cqg.rtd",,"StudyData","Close("&$D$12&") when LocalYear("&$D$12&")="&$E$171&" and localMonth("&$D$12&") ="&$F$171&" and LocalDay("&$D$12&")="&$G$171&" and Barix("&$D$12&",reference:=StartOfSession)="&A14&"","FG","","Close","5","0","",,,"False","T","EveryTick")) -> 3489 | I14: -0.003996574365 | J14: =IF(AND($F$28<0,B14<0.999999),RTD("cqg.rtd",,"StudyData","Close("&$D$12&") when LocalYear("&$D$12&")="&$I$172&" and localMonth("&$D$12&") ="&$J$172&" and LocalDay("&$D$12&")="&$K$172&" and Barix("&$D$12&",reference:=StartOfSession)="&A14&"","FG","","Close","5","0","",,,"False","T","EveryTick"),RTD("cqg.rtd",,"StudyData","Close("&$D$12&") when LocalYear("&$D$12&")="&$E$172&" and localMonth("&$D$12&") ="&$F$172&" and LocalDay("&$D$12&")="&$G$172&" and Barix("&$D$12&",reference:=StartOfSession)="&A14&"","FG","","Close","5","0","",,,"False","T","EveryTick")) -> 3525 | K14: 0.0002837684449 | L14: =IF(AND($F$28<0,B14<0.999999),RTD("cqg.rtd",,"StudyData","Close("&$D$12&") when LocalYear("&$D$12&")="&$I$173&" and localMonth("&$D$12&") ="&$J$173&" and LocalDay("&$D$12&")="&$K$173&" and Barix("&$D$12&",reference:=StartOfSession)="&A14&"","FG","","Close","5","0","",,,"False","T","EveryTick"),RTD("cqg.rtd",,"StudyData","Close("&$D$12&") when LocalYear("&$D$12&")="&$E$173&" and localMonth("&$D$12&") ="&$F$173&" and LocalDay("&$D$12&")="&$G$173&" and Barix("&$D$12&",reference:=StartOfSession)="&A14&"","FG","","Close","5","0","",,,"False","T","EveryTick")) -> 3455 | M14: -0.005182839044 | N14: =IF(AND($F$28<0,B14<0.999999),RTD("cqg.rtd",,"StudyData","Close("&$D$12&") when LocalYear("&$D$12&")="&$I$174&" and localMonth("&$D$12&") ="&$J$174&" and LocalDay("&$D$12&")="&$K$174&" and Barix("&$D$12&",reference:=StartOfSession)="&A14&"","FG","","Close","5","0","",,,"False","T","EveryTick"),RTD("cqg.rtd",,"StudyData","Close("&$D$12&") when LocalYear("&$D$12&")="&$E$174&" and localMonth("&$D$12&") ="&$F$174&" and LocalDay("&$D$12&")="&$G$174&" and Barix("&$D$12&",reference:=StartOfSession)="&A14&"","FG","","Close","5","0","",,,"False","T","EveryTick")) -> 3465 | O14: 0.0002886836028 | P14: =IF(AND($F$28<0,B14<0.999999),RTD("cqg.rtd",,"StudyData","Close("&$D$12&") when LocalYear("&$D$12&")="&$I$175&" and localMonth("&$D$12&") ="&$J$175&" and LocalDay("&$D$12&")="&$K$175&" and Barix("&$D$12&",reference:=StartOfSession)="&A14&"","FG","","Close","5","0","",,,"False","T","EveryTick"),RTD("cqg.rtd",,"StudyData","Close("&$D$12&") when LocalYear("&$D$12&")="&$E$175&" and localMonth("&$D$12&") ="&$F$175&" and LocalDay("&$D$12&")="&$G$175&" and Barix("&$D$12&",reference:=StartOfSession)="&A14&"","FG","","Close","5","0","",,,"False","T","EveryTick")) -> 3476 | Q14: 0.001152073733 | R14: =IF(AND($F$28<0,B14<0.999999),RTD("cqg.rtd",,"StudyData","Close("&$D$12&") when LocalYear("&$D$12&")="&$I$176&" and localMonth("&$D$12&") ="&$J$176&" and LocalDay("&$D$12&")="&$K$176&" and Barix("&$D$12&",reference:=StartOfSession)="&A14&"","FG","","Close","5","0","",,,"False","T","EveryTick"),RTD("cqg.rtd",,"StudyData","Close("&$D$12&") when LocalYear("&$D$12&")="&$E$176&" and localMonth("&$D$12&") ="&$F$176&" and LocalDay("&$D$12&")="&$G$176&" and Barix("&$D$12&",reference:=StartOfSession)="&A14&"","FG","","Close","5","0","",,,"False","T","EveryTick")) -> 3456 | S14: 0.008168028005 | T14: =IF(AND($F$28<0,B14<0.999999),RTD("cqg.rtd",,"StudyData","Close("&$D$12&") when LocalYear("&$D$12&")="&$I$177&" and localMonth("&$D$12&") ="&$J$177&" and LocalDay("&$D$12&")="&$K$177&" and Barix("&$D$12&",reference:=StartOfSession)="&A14&"","FG","","Close","5","0","",,,"False","T","EveryTick"),RTD("cqg.rtd",,"StudyData","Close("&$D$12&") when LocalYear("&$D$12&")="&$E$177&" and localMonth("&$D$12&") ="&$F$177&" and LocalDay("&$D$12&")="&$G$177&" and Barix("&$D$12&",reference:=StartOfSession)="&A14&"","FG","","Close","5","0","",,,"False","T","EveryTick")) -> 3414 | U14: -0.008998548621 | V14: =IF(AND($F$28<0,B14<0.999999),RTD("cqg.rtd",,"StudyData","Close("&$D$12&") when LocalYear("&$D$12&")="&$I$178&" and localMonth("&$D$12&") ="&$J$178&" and LocalDay("&$D$12&")="&$K$178&" and Barix("&$D$12&",reference:=StartOfSession)="&A14&"","FG","","Close","5","0","",,,"False","T","EveryTick"),RTD("cqg.rtd",,"StudyData","Close("&$D$12&") when LocalYear("&$D$12&")="&$E$178&" and localMonth("&$D$12&") ="&$F$178&" and LocalDay("&$D$12&")="&$G$178&" and Barix("&$D$12&",reference:=StartOfSession)="&A14&"","FG","","Close","5","0","",,,"False","T","EveryTick")) -> 3458 | W14: 0.004648460198 | X14: =IF(AND($F$28<0,B14<0.999999),RTD("cqg.rtd",,"StudyData","Close("&$D$12&") when LocalYear("&$D$12&")="&$I$179&" and localMonth("&$D$12&") ="&$J$179&" and LocalDay("&$D$12&")="&$K$179&" and Barix("&$D$12&",reference:=StartOfSession)="&A14&"","FG","","Close","5","0","",,,"False","T","EveryTick"),RTD("cqg.rtd",,"StudyData","Close("&$D$12&") when LocalYear("&$D$12&")="&$E$179&" and localMonth("&$D$12&") ="&$F$179&" and LocalDay("&$D$12&")="&$G$179&" and Barix("&$D$12&",reference:=StartOfSession)="&A14&"","FG","","Close","5","0","",,,"False","T","EveryTick")) -> 3447 | Y14: 0.001452643812 | Z14: =IF(AND($F$28<0,B14<0.999999),RTD("cqg.rtd",,"StudyData","Close("&$D$12&") when LocalYear("&$D$12&")="&$I$180&" and localMonth("&$D$12&") ="&$J$180&" and LocalDay("&$D$12&")="&$K$180&" and Barix("&$D$12&",reference:=StartOfSession)="&A14&"","FG","","Close","5","0","",,,"False","T","EveryTick"),RTD("cqg.rtd",,"StudyData","Close("&$D$12&") when LocalYear("&$D$12&")="&$E$180&" and localMonth("&$D$12&") ="&$F$180&" and LocalDay("&$D$12&")="&$G$180&" and Barix("&$D$12&",reference:=StartOfSession)="&A14&"","FG","","Close","5","0","",,,"False","T","EveryTick")) -> 3450 | AA14: -0.0008688097307
A15: 14 | B15: 09:10:00 | G15: 2018-06-14 | H15: =IF(AND($F$28<0,B15<0.999999),RTD("cqg.rtd",,"StudyData","Close("&$D$12&") when LocalYear("&$D$12&")="&$I$171&" and localMonth("&$D$12&") ="&$J$171&" and LocalDay("&$D$12&")="&$K$171&" and Barix("&$D$12&",reference:=StartOfSession)="&A15&"","FG","","Close","5","0","",,,"False","T","EveryTick"),RTD("cqg.rtd",,"StudyData","Close("&$D$12&") when LocalYear("&$D$12&")="&$E$171&" and localMonth("&$D$12&") ="&$F$171&" and LocalDay("&$D$12&")="&$G$171&" and Barix("&$D$12&",reference:=StartOfSession)="&A15&"","FG","","Close","5","0","",,,"False","T","EveryTick")) -> 3488 | I15: -0.004282043962 | J15: =IF(AND($F$28<0,B15<0.999999),RTD("cqg.rtd",,"StudyData","Close("&$D$12&") when LocalYear("&$D$12&")="&$I$172&" and localMonth("&$D$12&") ="&$J$172&" and LocalDay("&$D$12&")="&$K$172&" and Barix("&$D$12&",reference:=StartOfSession)="&A15&"","FG","","Close","5","0","",,,"False","T","EveryTick"),RTD("cqg.rtd",,"StudyData","Close("&$D$12&") when LocalYear("&$D$12&")="&$E$172&" and localMonth("&$D$12&") ="&$F$172&" and LocalDay("&$D$12&")="&$G$172&" and Barix("&$D$12&",reference:=StartOfSession)="&A15&"","FG","","Close","5","0","",,,"False","T","EveryTick")) -> 3525 | K15: 0.0002837684449 | L15: =IF(AND($F$28<0,B15<0.999999),RTD("cqg.rtd",,"StudyData","Close("&$D$12&") when LocalYear("&$D$12&")="&$I$173&" and localMonth("&$D$12&") ="&$J$173&" and LocalDay("&$D$12&")="&$K$173&" and Barix("&$D$12&",reference:=StartOfSession)="&A15&"","FG","","Close","5","0","",,,"False","T","EveryTick"),RTD("cqg.rtd",,"StudyData","Close("&$D$12&") when LocalYear("&$D$12&")="&$E$173&" and localMonth("&$D$12&") ="&$F$173&" and LocalDay("&$D$12&")="&$G$173&" and Barix("&$D$12&",reference:=StartOfSession)="&A15&"","FG","","Close","5","0","",,,"False","T","EveryTick")) -> 3454 | M15: -0.005470774547 | N15: =IF(AND($F$28<0,B15<0.999999),RTD("cqg.rtd",,"StudyData","Close("&$D$12&") when LocalYear("&$D$12&")="&$I$174&" and localMonth("&$D$12&") ="&$J$174&" and LocalDay("&$D$12&")="&$K$174&" and Barix("&$D$12&",reference:=StartOfSession)="&A15&"","FG","","Close","5","0","",,,"False","T","EveryTick"),RTD("cqg.rtd",,"StudyData","Close("&$D$12&") when LocalYear("&$D$12&")="&$E$174&" and localMonth("&$D$12&") ="&$F$174&" and LocalDay("&$D$12&")="&$G$174&" and Barix("&$D$12&",reference:=StartOfSession)="&A15&"","FG","","Close","5","0","",,,"False","T","EveryTick")) -> 3463 | O15: -0.0002886836028 | P15: =IF(AND($F$28<0,B15<0.999999),RTD("cqg.rtd",,"StudyData","Close("&$D$12&") when LocalYear("&$D$12&")="&$I$175&" and localMonth("&$D$12&") ="&$J$175&" and LocalDay("&$D$12&")="&$K$175&" and Barix("&$D$12&",reference:=StartOfSession)="&A15&"","FG","","Close","5","0","",,,"False","T","EveryTick"),RTD("cqg.rtd",,"StudyData","Close("&$D$12&") when LocalYear("&$D$12&")="&$E$175&" and localMonth("&$D$12&") ="&$F$175&" and LocalDay("&$D$12&")="&$G$175&" and Barix("&$D$12&",reference:=StartOfSession)="&A15&"","FG","","Close","5","0","",,,"False","T","EveryTick")) -> 3475 | Q15: 0.0008640552995 | R15: =IF(AND($F$28<0,B15<0.999999),RTD("cqg.rtd",,"StudyData","Close("&$D$12&") when LocalYear("&$D$12&")="&$I$176&" and localMonth("&$D$12&") ="&$J$176&" and LocalDay("&$D$12&")="&$K$176&" and Barix("&$D$12&",reference:=StartOfSession)="&A15&"","FG","","Close","5","0","",,,"False","T","EveryTick"),RTD("cqg.rtd",,"StudyData","Close("&$D$12&") when LocalYear("&$D$12&")="&$E$176&" and localMonth("&$D$12&") ="&$F$176&" and LocalDay("&$D$12&")="&$G$176&" and Barix("&$D$12&",reference:=StartOfSession)="&A15&"","FG","","Close","5","0","",,,"False","T","EveryTick")) -> 3457 | S15: 0.008459743291 | T15: =IF(AND($F$28<0,B15<0.999999),RTD("cqg.rtd",,"StudyData","Close("&$D$12&") when LocalYear("&$D$12&")="&$I$177&" and localMonth("&$D$12&") ="&$J$177&" and LocalDay("&$D$12&")="&$K$177&" and Barix("&$D$12&",reference:=StartOfSession)="&A15&"","FG","","Close","5","0","",,,"False","T","EveryTick"),RTD("cqg.rtd",,"StudyData","Close("&$D$12&") when LocalYear("&$D$12&")="&$E$177&" and localMonth("&$D$12&") ="&$F$177&" and LocalDay("&$D$12&")="&$G$177&" and Barix("&$D$12&",reference:=StartOfSession)="&A15&"","FG","","Close","5","0","",,,"False","T","EveryTick")) -> 3411 | U15: -0.009869375907 | V15: =IF(AND($F$28<0,B15<0.999999),RTD("cqg.rtd",,"StudyData","Close("&$D$12&") when LocalYear("&$D$12&")="&$I$178&" and localMonth("&$D$12&") ="&$J$178&" and LocalDay("&$D$12&")="&$K$178&" and Barix("&$D$12&",reference:=StartOfSession)="&A15&"","FG","","Close","5","0","",,,"False","T","EveryTick"),RTD("cqg.rtd",,"StudyData","Close("&$D$12&") when LocalYear("&$D$12&")="&$E$178&" and localMonth("&$D$12&") ="&$F$178&" and LocalDay("&$D$12&")="&$G$178&" and Barix("&$D$12&",reference:=StartOfSession)="&A15&"","FG","","Close","5","0","",,,"False","T","EveryTick")) -> 3461 | W15: 0.005520046485 | X15: =IF(AND($F$28<0,B15<0.999999),RTD("cqg.rtd",,"StudyData","Close("&$D$12&") when LocalYear("&$D$12&")="&$I$179&" and localMonth("&$D$12&") ="&$J$179&" and LocalDay("&$D$12&")="&$K$179&" and Barix("&$D$12&",reference:=StartOfSession)="&A15&"","FG","","Close","5","0","",,,"False","T","EveryTick"),RTD("cqg.rtd",,"StudyData","Close("&$D$12&") when LocalYear("&$D$12&")="&$E$179&" and localMonth("&$D$12&") ="&$F$179&" and LocalDay("&$D$12&")="&$G$179&" and Barix("&$D$12&",reference:=StartOfSession)="&A15&"","FG","","Close","5","0","",,,"False","T","EveryTick")) -> 3444 | Y15: 0.0005810575247 | Z15: =IF(AND($F$28<0,B15<0.999999),RTD("cqg.rtd",,"StudyData","Close("&$D$12&") when LocalYear("&$D$12&")="&$I$180&" and localMonth("&$D$12&") ="&$J$180&" and LocalDay("&$D$12&")="&$K$180&" and Barix("&$D$12&",reference:=StartOfSession)="&A15&"","FG","","Close","5","0","",,,"False","T","EveryTick"),RTD("cqg.rtd",,"StudyData","Close("&$D$12&") when LocalYear("&$D$12&")="&$E$180&" and localMonth("&$D$12&") ="&$F$180&" and LocalDay("&$D$12&")="&$G$180&" and Barix("&$D$12&",reference:=StartOfSession)="&A15&"","FG","","Close","5","0","",,,"False","T","EveryTick")) -> 3450 | AA15: -0.0008688097307
A16: 15 | B16: 09:15:00 | D16: =RTD("cqg.rtd", ,"ContractData",D12, "Ticksize",, "T") -> 1 | G16: 2018-06-13 | H16: =IF(AND($F$28<0,B16<0.999999),RTD("cqg.rtd",,"StudyData","Close("&$D$12&") when LocalYear("&$D$12&")="&$I$171&" and localMonth("&$D$12&") ="&$J$171&" and LocalDay("&$D$12&")="&$K$171&" and Barix("&$D$12&",reference:=StartOfSession)="&A16&"","FG","","Close","5","0","",,,"False","T","EveryTick"),RTD("cqg.rtd",,"StudyData","Close("&$D$12&") when LocalYear("&$D$12&")="&$E$171&" and localMonth("&$D$12&") ="&$F$171&" and LocalDay("&$D$12&")="&$G$171&" and Barix("&$D$12&",reference:=StartOfSession)="&A16&"","FG","","Close","5","0","",,,"False","T","EveryTick")) -> 3485 | I16: -0.005138452755 | J16: =IF(AND($F$28<0,B16<0.999999),RTD("cqg.rtd",,"StudyData","Close("&$D$12&") when LocalYear("&$D$12&")="&$I$172&" and localMonth("&$D$12&") ="&$J$172&" and LocalDay("&$D$12&")="&$K$172&" and Barix("&$D$12&",reference:=StartOfSession)="&A16&"","FG","","Close","5","0","",,,"False","T","EveryTick"),RTD("cqg.rtd",,"StudyData","Close("&$D$12&") when LocalYear("&$D$12&")="&$E$172&" and localMonth("&$D$12&") ="&$F$172&" and LocalDay("&$D$12&")="&$G$172&" and Barix("&$D$12&",reference:=StartOfSession)="&A16&"","FG","","Close","5","0","",,,"False","T","EveryTick")) -> 3530 | K16: 0.00170261067 | L16: =IF(AND($F$28<0,B16<0.999999),RTD("cqg.rtd",,"StudyData","Close("&$D$12&") when LocalYear("&$D$12&")="&$I$173&" and localMonth("&$D$12&") ="&$J$173&" and LocalDay("&$D$12&")="&$K$173&" and Barix("&$D$12&",reference:=StartOfSession)="&A16&"","FG","","Close","5","0","",,,"False","T","EveryTick"),RTD("cqg.rtd",,"StudyData","Close("&$D$12&") when LocalYear("&$D$12&")="&$E$173&" and localMonth("&$D$12&") ="&$F$173&" and LocalDay("&$D$12&")="&$G$173&" and Barix("&$D$12&",reference:=StartOfSession)="&A16&"","FG","","Close","5","0","",,,"False","T","EveryTick")) -> 3450 | M16: -0.006622516556 | N16: =IF(AND($F$28<0,B16<0.999999),RTD("cqg.rtd",,"StudyData","Close("&$D$12&") when LocalYear("&$D$12&")="&$I$174&" and localMonth("&$D$12&") ="&$J$174&" and LocalDay("&$D$12&")="&$K$174&" and Barix("&$D$12&",reference:=StartOfSession)="&A16&"","FG","","Close","5","0","",,,"False","T","EveryTick"),RTD("cqg.rtd",,"StudyData","Close("&$D$12&") when LocalYear("&$D$12&")="&$E$174&" and localMonth("&$D$12&") ="&$F$174&" and LocalDay("&$D$12&")="&$G$174&" and Barix("&$D$12&",reference:=StartOfSession)="&A16&"","FG","","Close","5","0","",,,"False","T","EveryTick")) -> 3463 | O16: -0.0002886836028 | P16: =IF(AND($F$28<0,B16<0.999999),RTD("cqg.rtd",,"StudyData","Close("&$D$12&") when LocalYear("&$D$12&")="&$I$175&" and localMonth("&$D$12&") ="&$J$175&" and LocalDay("&$D$12&")="&$K$175&" and Barix("&$D$12&",reference:=StartOfSession)="&A16&"","FG","","Close","5","0","",,,"False","T","EveryTick"),RTD("cqg.rtd",,"StudyData","Close("&$D$12&") when LocalYear("&$D$12&")="&$E$175&" and localMonth("&$D$12&") ="&$F$175&" and LocalDay("&$D$12&")="&$G$175&" and Barix("&$D$12&",reference:=StartOfSession)="&A16&"","FG","","Close","5","0","",,,"False","T","EveryTick")) -> 3474 | Q16: 0.0005760368664 | R16: =IF(AND($F$28<0,B16<0.999999),RTD("cqg.rtd",,"StudyData","Close("&$D$12&") when LocalYear("&$D$12&")="&$I$176&" and localMonth("&$D$12&") ="&$J$176&" and LocalDay("&$D$12&")="&$K$176&" and Barix("&$D$12&",reference:=StartOfSession)="&A16&"","FG","","Close","5","0","",,,"False","T","EveryTick"),RTD("cqg.rtd",,"StudyData","Close("&$D$12&") when LocalYear("&$D$12&")="&$E$176&" and localMonth("&$D$12&") ="&$F$176&" and LocalDay("&$D$12&")="&$G$176&" and Barix("&$D$12&",reference:=StartOfSession)="&A16&"","FG","","Close","5","0","",,,"False","T","EveryTick")) -> 3455 | S16: 0.007876312719 | T16: =IF(AND($F$28<0,B16<0.999999),RTD("cqg.rtd",,"StudyData","Close("&$D$12&") when LocalYear("&$D$12&")="&$I$177&" and localMonth("&$D$12&") ="&$J$177&" and LocalDay("&$D$12&")="&$K$177&" and Barix("&$D$12&",reference:=StartOfSession)="&A16&"","FG","","Close","5","0","",,,"False","T","EveryTick"),RTD("cqg.rtd",,"StudyData","Close("&$D$12&") when LocalYear("&$D$12&")="&$E$177&" and localMonth("&$D$12&") ="&$F$177&" and LocalDay("&$D$12&")="&$G$177&" and Barix("&$D$12&",reference:=StartOfSession)="&A16&"","FG","","Close","5","0","",,,"False","T","EveryTick")) -> 3421 | U16: -0.006966618287 | V16: =IF(AND($F$28<0,B16<0.999999),RTD("cqg.rtd",,"StudyData","Close("&$D$12&") when LocalYear("&$D$12&")="&$I$178&" and localMonth("&$D$12&") ="&$J$178&" and LocalDay("&$D$12&")="&$K$178&" and Barix("&$D$12&",reference:=StartOfSession)="&A16&"","FG","","Close","5","0","",,,"False","T","EveryTick"),RTD("cqg.rtd",,"StudyData","Close("&$D$12&") when LocalYear("&$D$12&")="&$E$178&" and localMonth("&$D$12&") ="&$F$178&" and LocalDay("&$D$12&")="&$G$178&" and Barix("&$D$12&",reference:=StartOfSession)="&A16&"","FG","","Close","5","0","",,,"False","T","EveryTick")) -> 3460 | W16: 0.005229517722 | X16: =IF(AND($F$28<0,B16<0.999999),RTD("cqg.rtd",,"StudyData","Close("&$D$12&") when LocalYear("&$D$12&")="&$I$179&" and localMonth("&$D$12&") ="&$J$179&" and LocalDay("&$D$12&")="&$K$179&" and Barix("&$D$12&",reference:=StartOfSession)="&A16&"","FG","","Close","5","0","",,,"False","T","EveryTick"),RTD("cqg.rtd",,"StudyData","Close("&$D$12&") when LocalYear("&$D$12&")="&$E$179&" and localMonth("&$D$12&") ="&$F$179&" and LocalDay("&$D$12&")="&$G$179&" and Barix("&$D$12&",reference:=StartOfSession)="&A16&"","FG","","Close","5","0","",,,"False","T","EveryTick")) -> 3442 | Y16: 0 | Z16: =IF(AND($F$28<0,B16<0.999999),RTD("cqg.rtd",,"StudyData","Close("&$D$12&") when LocalYear("&$D$12&")="&$I$180&" and localMonth("&$D$12&") ="&$J$180&" and LocalDay("&$D$12&")="&$K$180&" and Barix("&$D$12&",reference:=StartOfSession)="&A16&"","FG","","Close","5","0","",,,"False","T","EveryTick"),RTD("cqg.rtd",,"StudyData","Close("&$D$12&") when LocalYear("&$D$12&")="&$E$180&" and localMonth("&$D$12&") ="&$F$180&" and LocalDay("&$D$12&")="&$G$180&" and Barix("&$D$12&",reference:=StartOfSession)="&A16&"","FG","","Close","5","0","",,,"False","T","EveryTick")) -> 3450 | AA16: -0.0008688097307
A17: 16 | B17: 09:20:00 | D17: =IF(D16>=1,0,IF(LEN(D16)-2=1,2,LEN(D16)-2)) -> 0 | F17: =VLOOKUP(D17,D18:E25,2,FALSE) -> # | G17: 2018-06-12 | H17: =IF(AND($F$28<0,B17<0.999999),RTD("cqg.rtd",,"StudyData","Close("&$D$12&") when LocalYear("&$D$12&")="&$I$171&" and localMonth("&$D$12&") ="&$J$171&" and LocalDay("&$D$12&")="&$K$171&" and Barix("&$D$12&",reference:=StartOfSession)="&A17&"","FG","","Close","5","0","",,,"False","T","EveryTick"),RTD("cqg.rtd",,"StudyData","Close("&$D$12&") when LocalYear("&$D$12&")="&$E$171&" and localMonth("&$D$12&") ="&$F$171&" and LocalDay("&$D$12&")="&$G$171&" and Barix("&$D$12&",reference:=StartOfSession)="&A17&"","FG","","Close","5","0","",,,"False","T","EveryTick")) -> 3484 | I17: -0.005423922352 | J17: =IF(AND($F$28<0,B17<0.999999),RTD("cqg.rtd",,"StudyData","Close("&$D$12&") when LocalYear("&$D$12&")="&$I$172&" and localMonth("&$D$12&") ="&$J$172&" and LocalDay("&$D$12&")="&$K$172&" and Barix("&$D$12&",reference:=StartOfSession)="&A17&"","FG","","Close","5","0","",,,"False","T","EveryTick"),RTD("cqg.rtd",,"StudyData","Close("&$D$12&") when LocalYear("&$D$12&")="&$E$172&" and localMonth("&$D$12&") ="&$F$172&" and LocalDay("&$D$12&")="&$G$172&" and Barix("&$D$12&",reference:=StartOfSession)="&A17&"","FG","","Close","5","0","",,,"False","T","EveryTick")) -> 3529 | K17: 0.001418842225 | L17: =IF(AND($F$28<0,B17<0.999999),RTD("cqg.rtd",,"StudyData","Close("&$D$12&") when LocalYear("&$D$12&")="&$I$173&" and localMonth("&$D$12&") ="&$J$173&" and LocalDay("&$D$12&")="&$K$173&" and Barix("&$D$12&",reference:=StartOfSession)="&A17&"","FG","","Close","5","0","",,,"False","T","EveryTick"),RTD("cqg.rtd",,"StudyData","Close("&$D$12&") when LocalYear("&$D$12&")="&$E$173&" and localMonth("&$D$12&") ="&$F$173&" and LocalDay("&$D$12&")="&$G$173&" and Barix("&$D$12&",reference:=StartOfSession)="&A17&"","FG","","Close","5","0","",,,"False","T","EveryTick")) -> 3449 | M17: -0.006910452059 | N17: =IF(AND($F$28<0,B17<0.999999),RTD("cqg.rtd",,"StudyData","Close("&$D$12&") when LocalYear("&$D$12&")="&$I$174&" and localMonth("&$D$12&") ="&$J$174&" and LocalDay("&$D$12&")="&$K$174&" and Barix("&$D$12&",reference:=StartOfSession)="&A17&"","FG","","Close","5","0","",,,"False","T","EveryTick"),RTD("cqg.rtd",,"StudyData","Close("&$D$12&") when LocalYear("&$D$12&")="&$E$174&" and localMonth("&$D$12&") ="&$F$174&" and LocalDay("&$D$12&")="&$G$174&" and Barix("&$D$12&",reference:=StartOfSession)="&A17&"","FG","","Close","5","0","",,,"False","T","EveryTick")) -> 3460 | O17: -0.001154734411 | P17: =IF(AND($F$28<0,B17<0.999999),RTD("cqg.rtd",,"StudyData","Close("&$D$12&") when LocalYear("&$D$12&")="&$I$175&" and localMonth("&$D$12&") ="&$J$175&" and LocalDay("&$D$12&")="&$K$175&" and Barix("&$D$12&",reference:=StartOfSession)="&A17&"","FG","","Close","5","0","",,,"False","T","EveryTick"),RTD("cqg.rtd",,"StudyData","Close("&$D$12&") when LocalYear("&$D$12&")="&$E$175&" and localMonth("&$D$12&") ="&$F$175&" and LocalDay("&$D$12&")="&$G$175&" and Barix("&$D$12&",reference:=StartOfSession)="&A17&"","FG","","Close","5","0","",,,"False","T","EveryTick")) -> 3472 | Q17: 0 | R17: =IF(AND($F$28<0,B17<0.999999),RTD("cqg.rtd",,"StudyData","Close("&$D$12&") when LocalYear("&$D$12&")="&$I$176&" and localMonth("&$D$12&") ="&$J$176&" and LocalDay("&$D$12&")="&$K$176&" and Barix("&$D$12&",reference:=StartOfSession)="&A17&"","FG","","Close","5","0","",,,"False","T","EveryTick"),RTD("cqg.rtd",,"StudyData","Close("&$D$12&") when LocalYear("&$D$12&")="&$E$176&" and localMonth("&$D$12&") ="&$F$176&" and LocalDay("&$D$12&")="&$G$176&" and Barix("&$D$12&",reference:=StartOfSession)="&A17&"","FG","","Close","5","0","",,,"False","T","EveryTick")) -> 3453 | S17: 0.007292882147 | T17: =IF(AND($F$28<0,B17<0.999999),RTD("cqg.rtd",,"StudyData","Close("&$D$12&") when LocalYear("&$D$12&")="&$I$177&" and localMonth("&$D$12&") ="&$J$177&" and LocalDay("&$D$12&")="&$K$177&" and Barix("&$D$12&",reference:=StartOfSession)="&A17&"","FG","","Close","5","0","",,,"False","T","EveryTick"),RTD("cqg.rtd",,"StudyData","Close("&$D$12&") when LocalYear("&$D$12&")="&$E$177&" and localMonth("&$D$12&") ="&$F$177&" and LocalDay("&$D$12&")="&$G$177&" and Barix("&$D$12&",reference:=StartOfSession)="&A17&"","FG","","Close","5","0","",,,"False","T","EveryTick")) -> 3419 | U17: -0.007547169811 | V17: =IF(AND($F$28<0,B17<0.999999),RTD("cqg.rtd",,"StudyData","Close("&$D$12&") when LocalYear("&$D$12&")="&$I$178&" and localMonth("&$D$12&") ="&$J$178&" and LocalDay("&$D$12&")="&$K$178&" and Barix("&$D$12&",reference:=StartOfSession)="&A17&"","FG","","Close","5","0","",,,"False","T","EveryTick"),RTD("cqg.rtd",,"StudyData","Close("&$D$12&") when LocalYear("&$D$12&")="&$E$178&" and localMonth("&$D$12&") ="&$F$178&" and LocalDay("&$D$12&")="&$G$178&" and Barix("&$D$12&",reference:=StartOfSession)="&A17&"","FG","","Close","5","0","",,,"False","T","EveryTick")) -> 3464 | W17: 0.006391632772 | X17: =IF(AND($F$28<0,B17<0.999999),RTD("cqg.rtd",,"StudyData","Close("&$D$12&") when LocalYear("&$D$12&")="&$I$179&" and localMonth("&$D$12&") ="&$J$179&" and LocalDay("&$D$12&")="&$K$179&" and Barix("&$D$12&",reference:=StartOfSession)="&A17&"","FG","","Close","5","0","",,,"False","T","EveryTick"),RTD("cqg.rtd",,"StudyData","Close("&$D$12&") when LocalYear("&$D$12&")="&$E$179&" and localMonth("&$D$12&") ="&$F$179&" and LocalDay("&$D$12&")="&$G$179&" and Barix("&$D$12&",reference:=StartOfSession)="&A17&"","FG","","Close","5","0","",,,"False","T","EveryTick")) -> 3444 | Y17: 0.0005810575247 | Z17: =IF(AND($F$28<0,B17<0.999999),RTD("cqg.rtd",,"StudyData","Close("&$D$12&") when LocalYear("&$D$12&")="&$I$180&" and localMonth("&$D$12&") ="&$J$180&" and LocalDay("&$D$12&")="&$K$180&" and Barix("&$D$12&",reference:=StartOfSession)="&A17&"","FG","","Close","5","0","",,,"False","T","EveryTick"),RTD("cqg.rtd",,"StudyData","Close("&$D$12&") when LocalYear("&$D$12&")="&$E$180&" and localMonth("&$D$12&") ="&$F$180&" and LocalDay("&$D$12&")="&$G$180&" and Barix("&$D$12&",reference:=StartOfSession)="&A17&"","FG","","Close","5","0","",,,"False","T","EveryTick")) -> 3452 | AA17: -0.0002896032436
A18: 17 | B18: 09:25:00 | D18: 0 | E18: # | G18: 2018-06-11 | H18: =IF(AND($F$28<0,B18<0.999999),RTD("cqg.rtd",,"StudyData","Close("&$D$12&") when LocalYear("&$D$12&")="&$I$171&" and localMonth("&$D$12&") ="&$J$171&" and LocalDay("&$D$12&")="&$K$171&" and Barix("&$D$12&",reference:=StartOfSession)="&A18&"","FG","","Close","5","0","",,,"False","T","EveryTick"),RTD("cqg.rtd",,"StudyData","Close("&$D$12&") when LocalYear("&$D$12&")="&$E$171&" and localMonth("&$D$12&") ="&$F$171&" and LocalDay("&$D$12&")="&$G$171&" and Barix("&$D$12&",reference:=StartOfSession)="&A18&"","FG","","Close","5","0","",,,"False","T","EveryTick")) -> 3481 | I18: -0.006280331145 | J18: =IF(AND($F$28<0,B18<0.999999),RTD("cqg.rtd",,"StudyData","Close("&$D$12&") when LocalYear("&$D$12&")="&$I$172&" and localMonth("&$D$12&") ="&$J$172&" and LocalDay("&$D$12&")="&$K$172&" and Barix("&$D$12&",reference:=StartOfSession)="&A18&"","FG","","Close","5","0","",,,"False","T","EveryTick"),RTD("cqg.rtd",,"StudyData","Close("&$D$12&") when LocalYear("&$D$12&")="&$E$172&" and localMonth("&$D$12&") ="&$F$172&" and LocalDay("&$D$12&")="&$G$172&" and Barix("&$D$12&",reference:=StartOfSession)="&A18&"","FG","","Close","5","0","",,,"False","T","EveryTick")) -> 3528 | K18: 0.00113507378 | L18: =IF(AND($F$28<0,B18<0.999999),RTD("cqg.rtd",,"StudyData","Close("&$D$12&") when LocalYear("&$D$12&")="&$I$173&" and localMonth("&$D$12&") ="&$J$173&" and LocalDay("&$D$12&")="&$K$173&" and Barix("&$D$12&",reference:=StartOfSession)="&A18&"","FG","","Close","5","0","",,,"False","T","EveryTick"),RTD("cqg.rtd",,"StudyData","Close("&$D$12&") when LocalYear("&$D$12&")="&$E$173&" and localMonth("&$D$12&") ="&$F$173&" and LocalDay("&$D$12&")="&$G$173&" and Barix("&$D$12&",reference:=StartOfSession)="&A18&"","FG","","Close","5","0","",,,"False","T","EveryTick")) -> 3450 | M18: -0.006622516556 | N18: =IF(AND($F$28<0,B18<0.999999),RTD("cqg.rtd",,"StudyData","Close("&$D$12&") when LocalYear("&$D$12&")="&$I$174&" and localMonth("&$D$12&") ="&$J$174&" and LocalDay("&$D$12&")="&$K$174&" and Barix("&$D$12&",reference:=StartOfSession)="&A18&"","FG","","Close","5","0","",,,"False","T","EveryTick"),RTD("cqg.rtd",,"StudyData","Close("&$D$12&") when LocalYear("&$D$12&")="&$E$174&" and localMonth("&$D$12&") ="&$F$174&" and LocalDay("&$D$12&")="&$G$174&" and Barix("&$D$12&",reference:=StartOfSession)="&A18&"","FG","","Close","5","0","",,,"False","T","EveryTick")) -> 3456 | O18: -0.002309468822 | P18: =IF(AND($F$28<0,B18<0.999999),RTD("cqg.rtd",,"StudyData","Close("&$D$12&") when LocalYear("&$D$12&")="&$I$175&" and localMonth("&$D$12&") ="&$J$175&" and LocalDay("&$D$12&")="&$K$175&" and Barix("&$D$12&",reference:=StartOfSession)="&A18&"","FG","","Close","5","0","",,,"False","T","EveryTick"),RTD("cqg.rtd",,"StudyData","Close("&$D$12&") when LocalYear("&$D$12&")="&$E$175&" and localMonth("&$D$12&") ="&$F$175&" and LocalDay("&$D$12&")="&$G$175&" and Barix("&$D$12&",reference:=StartOfSession)="&A18&"","FG","","Close","5","0","",,,"False","T","EveryTick")) -> 3473 | Q18: 0.0002880184332 | R18: =IF(AND($F$28<0,B18<0.999999),RTD("cqg.rtd",,"StudyData","Close("&$D$12&") when LocalYear("&$D$12&")="&$I$176&" and localMonth("&$D$12&") ="&$J$176&" and LocalDay("&$D$12&")="&$K$176&" and Barix("&$D$12&",reference:=StartOfSession)="&A18&"","FG","","Close","5","0","",,,"False","T","EveryTick"),RTD("cqg.rtd",,"StudyData","Close("&$D$12&") when LocalYear("&$D$12&")="&$E$176&" and localMonth("&$D$12&") ="&$F$176&" and LocalDay("&$D$12&")="&$G$176&" and Barix("&$D$12&",reference:=StartOfSession)="&A18&"","FG","","Close","5","0","",,,"False","T","EveryTick")) -> 3452 | S18: 0.007001166861 | T18: =IF(AND($F$28<0,B18<0.999999),RTD("cqg.rtd",,"StudyData","Close("&$D$12&") when LocalYear("&$D$12&")="&$I$177&" and localMonth("&$D$12&") ="&$J$177&" and LocalDay("&$D$12&")="&$K$177&" and Barix("&$D$12&",reference:=StartOfSession)="&A18&"","FG","","Close","5","0","",,,"False","T","EveryTick"),RTD("cqg.rtd",,"StudyData","Close("&$D$12&") when LocalYear("&$D$12&")="&$E$177&" and localMonth("&$D$12&") ="&$F$177&" and LocalDay("&$D$12&")="&$G$177&" and Barix("&$D$12&",reference:=StartOfSession)="&A18&"","FG","","Close","5","0","",,,"False","T","EveryTick")) -> 3414 | U18: -0.008998548621 | V18: =IF(AND($F$28<0,B18<0.999999),RTD("cqg.rtd",,"StudyData","Close("&$D$12&") when LocalYear("&$D$12&")="&$I$178&" and localMonth("&$D$12&") ="&$J$178&" and LocalDay("&$D$12&")="&$K$178&" and Barix("&$D$12&",reference:=StartOfSession)="&A18&"","FG","","Close","5","0","",,,"False","T","EveryTick"),RTD("cqg.rtd",,"StudyData","Close("&$D$12&") when LocalYear("&$D$12&")="&$E$178&" and localMonth("&$D$12&") ="&$F$178&" and LocalDay("&$D$12&")="&$G$178&" and Barix("&$D$12&",reference:=StartOfSession)="&A18&"","FG","","Close","5","0","",,,"False","T","EveryTick")) -> 3470 | W18: 0.008134805346 | X18: =IF(AND($F$28<0,B18<0.999999),RTD("cqg.rtd",,"StudyData","Close("&$D$12&") when LocalYear("&$D$12&")="&$I$179&" and localMonth("&$D$12&") ="&$J$179&" and LocalDay("&$D$12&")="&$K$179&" and Barix("&$D$12&",reference:=StartOfSession)="&A18&"","FG","","Close","5","0","",,,"False","T","EveryTick"),RTD("cqg.rtd",,"StudyData","Close("&$D$12&") when LocalYear("&$D$12&")="&$E$179&" and localMonth("&$D$12&") ="&$F$179&" and LocalDay("&$D$12&")="&$G$179&" and Barix("&$D$12&",reference:=StartOfSession)="&A18&"","FG","","Close","5","0","",,,"False","T","EveryTick")) -> 3438 | Y18: -0.001162115049 | Z18: =IF(AND($F$28<0,B18<0.999999),RTD("cqg.rtd",,"StudyData","Close("&$D$12&") when LocalYear("&$D$12&")="&$I$180&" and localMonth("&$D$12&") ="&$J$180&" and LocalDay("&$D$12&")="&$K$180&" and Barix("&$D$12&",reference:=StartOfSession)="&A18&"","FG","","Close","5","0","",,,"False","T","EveryTick"),RTD("cqg.rtd",,"StudyData","Close("&$D$12&") when LocalYear("&$D$12&")="&$E$180&" and localMonth("&$D$12&") ="&$F$180&" and LocalDay("&$D$12&")="&$G$180&" and Barix("&$D$12&",reference:=StartOfSession)="&A18&"","FG","","Close","5","0","",,,"False","T","EveryTick")) -> 3458 | AA18: 0.001448016218
A19: 18 | B19: 09:30:00 | D19: 1 | E19: #.0 | G19: 2018-06-08 | H19: =IF(AND($F$28<0,B19<0.999999),RTD("cqg.rtd",,"StudyData","Close("&$D$12&") when LocalYear("&$D$12&")="&$I$171&" and localMonth("&$D$12&") ="&$J$171&" and LocalDay("&$D$12&")="&$K$171&" and Barix("&$D$12&",reference:=StartOfSession)="&A19&"","FG","","Close","5","0","",,,"False","T","EveryTick"),RTD("cqg.rtd",,"StudyData","Close("&$D$12&") when LocalYear("&$D$12&")="&$E$171&" and localMonth("&$D$12&") ="&$F$171&" and LocalDay("&$D$12&")="&$G$171&" and Barix("&$D$12&",reference:=StartOfSession)="&A19&"","FG","","Close","5","0","",,,"False","T","EveryTick")) -> 3480 | I19: -0.006565800742 | J19: =IF(AND($F$28<0,B19<0.999999),RTD("cqg.rtd",,"StudyData","Close("&$D$12&") when LocalYear("&$D$12&")="&$I$172&" and localMonth("&$D$12&") ="&$J$172&" and LocalDay("&$D$12&")="&$K$172&" and Barix("&$D$12&",reference:=StartOfSession)="&A19&"","FG","","Close","5","0","",,,"False","T","EveryTick"),RTD("cqg.rtd",,"StudyData","Close("&$D$12&") when LocalYear("&$D$12&")="&$E$172&" and localMonth("&$D$12&") ="&$F$172&" and LocalDay("&$D$12&")="&$G$172&" and Barix("&$D$12&",reference:=StartOfSession)="&A19&"","FG","","Close","5","0","",,,"False","T","EveryTick")) -> 3527 | K19: 0.0008513053348 | L19: =IF(AND($F$28<0,B19<0.999999),RTD("cqg.rtd",,"StudyData","Close("&$D$12&") when LocalYear("&$D$12&")="&$I$173&" and localMonth("&$D$12&") ="&$J$173&" and LocalDay("&$D$12&")="&$K$173&" and Barix("&$D$12&",reference:=StartOfSession)="&A19&"","FG","","Close","5","0","",,,"False","T","EveryTick"),RTD("cqg.rtd",,"StudyData","Close("&$D$12&") when LocalYear("&$D$12&")="&$E$173&" and localMonth("&$D$12&") ="&$F$173&" and LocalDay("&$D$12&")="&$G$173&" and Barix("&$D$12&",reference:=StartOfSession)="&A19&"","FG","","Close","5","0","",,,"False","T","EveryTick")) -> 3452 | M19: -0.006046645551 | N19: =IF(AND($F$28<0,B19<0.999999),RTD("cqg.rtd",,"StudyData","Close("&$D$12&") when LocalYear("&$D$12&")="&$I$174&" and localMonth("&$D$12&") ="&$J$174&" and LocalDay("&$D$12&")="&$K$174&" and Barix("&$D$12&",reference:=StartOfSession)="&A19&"","FG","","Close","5","0","",,,"False","T","EveryTick"),RTD("cqg.rtd",,"StudyData","Close("&$D$12&") when LocalYear("&$D$12&")="&$E$174&" and localMonth("&$D$12&") ="&$F$174&" and LocalDay("&$D$12&")="&$G$174&" and Barix("&$D$12&",reference:=StartOfSession)="&A19&"","FG","","Close","5","0","",,,"False","T","EveryTick")) -> 3457 | O19: -0.002020785219 | P19: =IF(AND($F$28<0,B19<0.999999),RTD("cqg.rtd",,"StudyData","Close("&$D$12&") when LocalYear("&$D$12&")="&$I$175&" and localMonth("&$D$12&") ="&$J$175&" and LocalDay("&$D$12&")="&$K$175&" and Barix("&$D$12&",reference:=StartOfSession)="&A19&"","FG","","Close","5","0","",,,"False","T","EveryTick"),RTD("cqg.rtd",,"StudyData","Close("&$D$12&") when LocalYear("&$D$12&")="&$E$175&" and localMonth("&$D$12&") ="&$F$175&" and LocalDay("&$D$12&")="&$G$175&" and Barix("&$D$12&",reference:=StartOfSession)="&A19&"","FG","","Close","5","0","",,,"False","T","EveryTick")) -> 3470 | Q19: -0.0005760368664 | R19: =IF(AND($F$28<0,B19<0.999999),RTD("cqg.rtd",,"StudyData","Close("&$D$12&") when LocalYear("&$D$12&")="&$I$176&" and localMonth("&$D$12&") ="&$J$176&" and LocalDay("&$D$12&")="&$K$176&" and Barix("&$D$12&",reference:=StartOfSession)="&A19&"","FG","","Close","5","0","",,,"False","T","EveryTick"),RTD("cqg.rtd",,"StudyData","Close("&$D$12&") when LocalYear("&$D$12&")="&$E$176&" and localMonth("&$D$12&") ="&$F$176&" and LocalDay("&$D$12&")="&$G$176&" and Barix("&$D$12&",reference:=StartOfSession)="&A19&"","FG","","Close","5","0","",,,"False","T","EveryTick")) -> 3453 | S19: 0.007292882147 | T19: =IF(AND($F$28<0,B19<0.999999),RTD("cqg.rtd",,"StudyData","Close("&$D$12&") when LocalYear("&$D$12&")="&$I$177&" and localMonth("&$D$12&") ="&$J$177&" and LocalDay("&$D$12&")="&$K$177&" and Barix("&$D$12&",reference:=StartOfSession)="&A19&"","FG","","Close","5","0","",,,"False","T","EveryTick"),RTD("cqg.rtd",,"StudyData","Close("&$D$12&") when LocalYear("&$D$12&")="&$E$177&" and localMonth("&$D$12&") ="&$F$177&" and LocalDay("&$D$12&")="&$G$177&" and Barix("&$D$12&",reference:=StartOfSession)="&A19&"","FG","","Close","5","0","",,,"False","T","EveryTick")) -> 3413 | U19: -0.009288824383 | V19: =IF(AND($F$28<0,B19<0.999999),RTD("cqg.rtd",,"StudyData","Close("&$D$12&") when LocalYear("&$D$12&")="&$I$178&" and localMonth("&$D$12&") ="&$J$178&" and LocalDay("&$D$12&")="&$K$178&" and Barix("&$D$12&",reference:=StartOfSession)="&A19&"","FG","","Close","5","0","",,,"False","T","EveryTick"),RTD("cqg.rtd",,"StudyData","Close("&$D$12&") when LocalYear("&$D$12&")="&$E$178&" and localMonth("&$D$12&") ="&$F$178&" and LocalDay("&$D$12&")="&$G$178&" and Barix("&$D$12&",reference:=StartOfSession)="&A19&"","FG","","Close","5","0","",,,"False","T","EveryTick")) -> 3471 | W19: 0.008425334108 | X19: =IF(AND($F$28<0,B19<0.999999),RTD("cqg.rtd",,"StudyData","Close("&$D$12&") when LocalYear("&$D$12&")="&$I$179&" and localMonth("&$D$12&") ="&$J$179&" and LocalDay("&$D$12&")="&$K$179&" and Barix("&$D$12&",reference:=StartOfSession)="&A19&"","FG","","Close","5","0","",,,"False","T","EveryTick"),RTD("cqg.rtd",,"StudyData","Close("&$D$12&") when LocalYear("&$D$12&")="&$E$179&" and localMonth("&$D$12&") ="&$F$179&" and LocalDay("&$D$12&")="&$G$179&" and Barix("&$D$12&",reference:=StartOfSession)="&A19&"","FG","","Close","5","0","",,,"False","T","EveryTick")) -> 3435 | Y19: -0.002033701336 | Z19: =IF(AND($F$28<0,B19<0.999999),RTD("cqg.rtd",,"StudyData","Close("&$D$12&") when LocalYear("&$D$12&")="&$I$180&" and localMonth("&$D$12&") ="&$J$180&" and LocalDay("&$D$12&")="&$K$180&" and Barix("&$D$12&",reference:=StartOfSession)="&A19&"","FG","","Close","5","0","",,,"False","T","EveryTick"),RTD("cqg.rtd",,"StudyData","Close("&$D$12&") when LocalYear("&$D$12&")="&$E$180&" and localMonth("&$D$12&") ="&$F$180&" and LocalDay("&$D$12&")="&$G$180&" and Barix("&$D$12&",reference:=StartOfSession)="&A19&"","FG","","Close","5","0","",,,"False","T","EveryTick")) -> 3461 | AA19: 0.002316825948
A20: 19 | B20: 09:35:00 | D20: 2 | E20: #.00 | G20: 2018-06-07 | H20: =IF(AND($F$28<0,B20<0.999999),RTD("cqg.rtd",,"StudyData","Close("&$D$12&") when LocalYear("&$D$12&")="&$I$171&" and localMonth("&$D$12&") ="&$J$171&" and LocalDay("&$D$12&")="&$K$171&" and Barix("&$D$12&",reference:=StartOfSession)="&A20&"","FG","","Close","5","0","",,,"False","T","EveryTick"),RTD("cqg.rtd",,"StudyData","Close("&$D$12&") when LocalYear("&$D$12&")="&$E$171&" and localMonth("&$D$12&") ="&$F$171&" and LocalDay("&$D$12&")="&$G$171&" and Barix("&$D$12&",reference:=StartOfSession)="&A20&"","FG","","Close","5","0","",,,"False","T","EveryTick")) -> 3484 | I20: -0.005423922352 | J20: =IF(AND($F$28<0,B20<0.999999),RTD("cqg.rtd",,"StudyData","Close("&$D$12&") when LocalYear("&$D$12&")="&$I$172&" and localMonth("&$D$12&") ="&$J$172&" and LocalDay("&$D$12&")="&$K$172&" and Barix("&$D$12&",reference:=StartOfSession)="&A20&"","FG","","Close","5","0","",,,"False","T","EveryTick"),RTD("cqg.rtd",,"StudyData","Close("&$D$12&") when LocalYear("&$D$12&")="&$E$172&" and localMonth("&$D$12&") ="&$F$172&" and LocalDay("&$D$12&")="&$G$172&" and Barix("&$D$12&",reference:=StartOfSession)="&A20&"","FG","","Close","5","0","",,,"False","T","EveryTick")) -> 3524 | K20: 0 | L20: =IF(AND($F$28<0,B20<0.999999),RTD("cqg.rtd",,"StudyData","Close("&$D$12&") when LocalYear("&$D$12&")="&$I$173&" and localMonth("&$D$12&") ="&$J$173&" and LocalDay("&$D$12&")="&$K$173&" and Barix("&$D$12&",reference:=StartOfSession)="&A20&"","FG","","Close","5","0","",,,"False","T","EveryTick"),RTD("cqg.rtd",,"StudyData","Close("&$D$12&") when LocalYear("&$D$12&")="&$E$173&" and localMonth("&$D$12&") ="&$F$173&" and LocalDay("&$D$12&")="&$G$173&" and Barix("&$D$12&",reference:=StartOfSession)="&A20&"","FG","","Close","5","0","",,,"False","T","EveryTick")) -> 3454 | M20: -0.005470774547 | N20: =IF(AND($F$28<0,B20<0.999999),RTD("cqg.rtd",,"StudyData","Close("&$D$12&") when LocalYear("&$D$12&")="&$I$174&" and localMonth("&$D$12&") ="&$J$174&" and LocalDay("&$D$12&")="&$K$174&" and Barix("&$D$12&",reference:=StartOfSession)="&A20&"","FG","","Close","5","0","",,,"False","T","EveryTick"),RTD("cqg.rtd",,"StudyData","Close("&$D$12&") when LocalYear("&$D$12&")="&$E$174&" and localMonth("&$D$12&") ="&$F$174&" and LocalDay("&$D$12&")="&$G$174&" and Barix("&$D$12&",reference:=StartOfSession)="&A20&"","FG","","Close","5","0","",,,"False","T","EveryTick")) -> 3458 | O20: -0.001732101617 | P20: =IF(AND($F$28<0,B20<0.999999),RTD("cqg.rtd",,"StudyData","Close("&$D$12&") when LocalYear("&$D$12&")="&$I$175&" and localMonth("&$D$12&") ="&$J$175&" and LocalDay("&$D$12&")="&$K$175&" and Barix("&$D$12&",reference:=StartOfSession)="&A20&"","FG","","Close","5","0","",,,"False","T","EveryTick"),RTD("cqg.rtd",,"StudyData","Close("&$D$12&") when LocalYear("&$D$12&")="&$E$175&" and localMonth("&$D$12&") ="&$F$175&" and LocalDay("&$D$12&")="&$G$175&" and Barix("&$D$12&",reference:=StartOfSession)="&A20&"","FG","","Close","5","0","",,,"False","T","EveryTick")) -> 3471 | Q20: -0.0002880184332 | R20: =IF(AND($F$28<0,B20<0.999999),RTD("cqg.rtd",,"StudyData","Close("&$D$12&") when LocalYear("&$D$12&")="&$I$176&" and localMonth("&$D$12&") ="&$J$176&" and LocalDay("&$D$12&")="&$K$176&" and Barix("&$D$12&",reference:=StartOfSession)="&A20&"","FG","","Close","5","0","",,,"False","T","EveryTick"),RTD("cqg.rtd",,"StudyData","Close("&$D$12&") when LocalYear("&$D$12&")="&$E$176&" and localMonth("&$D$12&") ="&$F$176&" and LocalDay("&$D$12&")="&$G$176&" and Barix("&$D$12&",reference:=StartOfSession)="&A20&"","FG","","Close","5","0","",,,"False","T","EveryTick")) -> 3452 | S20: 0.007001166861 | T20: =IF(AND($F$28<0,B20<0.999999),RTD("cqg.rtd",,"StudyData","Close("&$D$12&") when LocalYear("&$D$12&")="&$I$177&" and localMonth("&$D$12&") ="&$J$177&" and LocalDay("&$D$12&")="&$K$177&" and Barix("&$D$12&",reference:=StartOfSession)="&A20&"","FG","","Close","5","0","",,,"False","T","EveryTick"),RTD("cqg.rtd",,"StudyData","Close("&$D$12&") when LocalYear("&$D$12&")="&$E$177&" and localMonth("&$D$12&") ="&$F$177&" and LocalDay("&$D$12&")="&$G$177&" and Barix("&$D$12&",reference:=StartOfSession)="&A20&"","FG","","Close","5","0","",,,"False","T","EveryTick")) -> 3412 | U20: -0.009579100145 | V20: =IF(AND($F$28<0,B20<0.999999),RTD("cqg.rtd",,"StudyData","Close("&$D$12&") when LocalYear("&$D$12&")="&$I$178&" and localMonth("&$D$12&") ="&$J$178&" and LocalDay("&$D$12&")="&$K$178&" and Barix("&$D$12&",reference:=StartOfSession)="&A20&"","FG","","Close","5","0","",,,"False","T","EveryTick"),RTD("cqg.rtd",,"StudyData","Close("&$D$12&") when LocalYear("&$D$12&")="&$E$178&" and localMonth("&$D$12&") ="&$F$178&" and LocalDay("&$D$12&")="&$G$178&" and Barix("&$D$12&",reference:=StartOfSession)="&A20&"","FG","","Close","5","0","",,,"False","T","EveryTick")) -> 3468 | W20: 0.007553747821 | X20: =IF(AND($F$28<0,B20<0.999999),RTD("cqg.rtd",,"StudyData","Close("&$D$12&") when LocalYear("&$D$12&")="&$I$179&" and localMonth("&$D$12&") ="&$J$179&" and LocalDay("&$D$12&")="&$K$179&" and Barix("&$D$12&",reference:=StartOfSession)="&A20&"","FG","","Close","5","0","",,,"False","T","EveryTick"),RTD("cqg.rtd",,"StudyData","Close("&$D$12&") when LocalYear("&$D$12&")="&$E$179&" and localMonth("&$D$12&") ="&$F$179&" and LocalDay("&$D$12&")="&$G$179&" and Barix("&$D$12&",reference:=StartOfSession)="&A20&"","FG","","Close","5","0","",,,"False","T","EveryTick")) -> 3435 | Y20: -0.002033701336 | Z20: =IF(AND($F$28<0,B20<0.999999),RTD("cqg.rtd",,"StudyData","Close("&$D$12&") when LocalYear("&$D$12&")="&$I$180&" and localMonth("&$D$12&") ="&$J$180&" and LocalDay("&$D$12&")="&$K$180&" and Barix("&$D$12&",reference:=StartOfSession)="&A20&"","FG","","Close","5","0","",,,"False","T","EveryTick"),RTD("cqg.rtd",,"StudyData","Close("&$D$12&") when LocalYear("&$D$12&")="&$E$180&" and localMonth("&$D$12&") ="&$F$180&" and LocalDay("&$D$12&")="&$G$180&" and Barix("&$D$12&",reference:=StartOfSession)="&A20&"","FG","","Close","5","0","",,,"False","T","EveryTick")) -> 3462 | AA20: 0.002606429192
A21: 20 | B21: 09:40:00 | D21: 3 | E21: #.000 | G21: 2018-06-06 | H21: =IF(AND($F$28<0,B21<0.999999),RTD("cqg.rtd",,"StudyData","Close("&$D$12&") when LocalYear("&$D$12&")="&$I$171&" and localMonth("&$D$12&") ="&$J$171&" and LocalDay("&$D$12&")="&$K$171&" and Barix("&$D$12&",reference:=StartOfSession)="&A21&"","FG","","Close","5","0","",,,"False","T","EveryTick"),RTD("cqg.rtd",,"StudyData","Close("&$D$12&") when LocalYear("&$D$12&")="&$E$171&" and localMonth("&$D$12&") ="&$F$171&" and LocalDay("&$D$12&")="&$G$171&" and Barix("&$D$12&",reference:=StartOfSession)="&A21&"","FG","","Close","5","0","",,,"False","T","EveryTick")) -> 3483 | I21: -0.00570939195 | J21: =IF(AND($F$28<0,B21<0.999999),RTD("cqg.rtd",,"StudyData","Close("&$D$12&") when LocalYear("&$D$12&")="&$I$172&" and localMonth("&$D$12&") ="&$J$172&" and LocalDay("&$D$12&")="&$K$172&" and Barix("&$D$12&",reference:=StartOfSession)="&A21&"","FG","","Close","5","0","",,,"False","T","EveryTick"),RTD("cqg.rtd",,"StudyData","Close("&$D$12&") when LocalYear("&$D$12&")="&$E$172&" and localMonth("&$D$12&") ="&$F$172&" and LocalDay("&$D$12&")="&$G$172&" and Barix("&$D$12&",reference:=StartOfSession)="&A21&"","FG","","Close","5","0","",,,"False","T","EveryTick")) -> 3527 | K21: 0.0008513053348 | L21: =IF(AND($F$28<0,B21<0.999999),RTD("cqg.rtd",,"StudyData","Close("&$D$12&") when LocalYear("&$D$12&")="&$I$173&" and localMonth("&$D$12&") ="&$J$173&" and LocalDay("&$D$12&")="&$K$173&" and Barix("&$D$12&",reference:=StartOfSession)="&A21&"","FG","","Close","5","0","",,,"False","T","EveryTick"),RTD("cqg.rtd",,"StudyData","Close("&$D$12&") when LocalYear("&$D$12&")="&$E$173&" and localMonth("&$D$12&") ="&$F$173&" and LocalDay("&$D$12&")="&$G$173&" and Barix("&$D$12&",reference:=StartOfSession)="&A21&"","FG","","Close","5","0","",,,"False","T","EveryTick")) -> 3457 | M21: -0.004606968039 | N21: =IF(AND($F$28<0,B21<0.999999),RTD("cqg.rtd",,"StudyData","Close("&$D$12&") when LocalYear("&$D$12&")="&$I$174&" and localMonth("&$D$12&") ="&$J$174&" and LocalDay("&$D$12&")="&$K$174&" and Barix("&$D$12&",reference:=StartOfSession)="&A21&"","FG","","Close","5","0","",,,"False","T","EveryTick"),RTD("cqg.rtd",,"StudyData","Close("&$D$12&") when LocalYear("&$D$12&")="&$E$174&" and localMonth("&$D$12&") ="&$F$174&" and LocalDay("&$D$12&")="&$G$174&" and Barix("&$D$12&",reference:=StartOfSession)="&A21&"","FG","","Close","5","0","",,,"False","T","EveryTick")) -> 3457 | O21: -0.002020785219 | P21: =IF(AND($F$28<0,B21<0.999999),RTD("cqg.rtd",,"StudyData","Close("&$D$12&") when LocalYear("&$D$12&")="&$I$175&" and localMonth("&$D$12&") ="&$J$175&" and LocalDay("&$D$12&")="&$K$175&" and Barix("&$D$12&",reference:=StartOfSession)="&A21&"","FG","","Close","5","0","",,,"False","T","EveryTick"),RTD("cqg.rtd",,"StudyData","Close("&$D$12&") when LocalYear("&$D$12&")="&$E$175&" and localMonth("&$D$12&") ="&$F$175&" and LocalDay("&$D$12&")="&$G$175&" and Barix("&$D$12&",reference:=StartOfSession)="&A21&"","FG","","Close","5","0","",,,"False","T","EveryTick")) -> 3473 | Q21: 0.0002880184332 | R21: =IF(AND($F$28<0,B21<0.999999),RTD("cqg.rtd",,"StudyData","Close("&$D$12&") when LocalYear("&$D$12&")="&$I$176&" and localMonth("&$D$12&") ="&$J$176&" and LocalDay("&$D$12&")="&$K$176&" and Barix("&$D$12&",reference:=StartOfSession)="&A21&"","FG","","Close","5","0","",,,"False","T","EveryTick"),RTD("cqg.rtd",,"StudyData","Close("&$D$12&") when LocalYear("&$D$12&")="&$E$176&" and localMonth("&$D$12&") ="&$F$176&" and LocalDay("&$D$12&")="&$G$176&" and Barix("&$D$12&",reference:=StartOfSession)="&A21&"","FG","","Close","5","0","",,,"False","T","EveryTick")) -> 3454 | S21: 0.007584597433 | T21: =IF(AND($F$28<0,B21<0.999999),RTD("cqg.rtd",,"StudyData","Close("&$D$12&") when LocalYear("&$D$12&")="&$I$177&" and localMonth("&$D$12&") ="&$J$177&" and LocalDay("&$D$12&")="&$K$177&" and Barix("&$D$12&",reference:=StartOfSession)="&A21&"","FG","","Close","5","0","",,,"False","T","EveryTick"),RTD("cqg.rtd",,"StudyData","Close("&$D$12&") when LocalYear("&$D$12&")="&$E$177&" and localMonth("&$D$12&") ="&$F$177&" and LocalDay("&$D$12&")="&$G$177&" and Barix("&$D$12&",reference:=StartOfSession)="&A21&"","FG","","Close","5","0","",,,"False","T","EveryTick")) -> 3416 | U21: -0.008417997097 | V21: =IF(AND($F$28<0,B21<0.999999),RTD("cqg.rtd",,"StudyData","Close("&$D$12&") when LocalYear("&$D$12&")="&$I$178&" and localMonth("&$D$12&") ="&$J$178&" and LocalDay("&$D$12&")="&$K$178&" and Barix("&$D$12&",reference:=StartOfSession)="&A21&"","FG","","Close","5","0","",,,"False","T","EveryTick"),RTD("cqg.rtd",,"StudyData","Close("&$D$12&") when LocalYear("&$D$12&")="&$E$178&" and localMonth("&$D$12&") ="&$F$178&" and LocalDay("&$D$12&")="&$G$178&" and Barix("&$D$12&",reference:=StartOfSession)="&A21&"","FG","","Close","5","0","",,,"False","T","EveryTick")) -> 3470 | W21: 0.008134805346 | X21: =IF(AND($F$28<0,B21<0.999999),RTD("cqg.rtd",,"StudyData","Close("&$D$12&") when LocalYear("&$D$12&")="&$I$179&" and localMonth("&$D$12&") ="&$J$179&" and LocalDay("&$D$12&")="&$K$179&" and Barix("&$D$12&",reference:=StartOfSession)="&A21&"","FG","","Close","5","0","",,,"False","T","EveryTick"),RTD("cqg.rtd",,"StudyData","Close("&$D$12&") when LocalYear("&$D$12&")="&$E$179&" and localMonth("&$D$12&") ="&$F$179&" and LocalDay("&$D$12&")="&$G$179&" and Barix("&$D$12&",reference:=StartOfSession)="&A21&"","FG","","Close","5","0","",,,"False","T","EveryTick")) -> 3433 | Y21: -0.002614758861 | Z21: =IF(AND($F$28<0,B21<0.999999),RTD("cqg.rtd",,"StudyData","Close("&$D$12&") when LocalYear("&$D$12&")="&$I$180&" and localMonth("&$D$12&") ="&$J$180&" and LocalDay("&$D$12&")="&$K$180&" and Barix("&$D$12&",reference:=StartOfSession)="&A21&"","FG","","Close","5","0","",,,"False","T","EveryTick"),RTD("cqg.rtd",,"StudyData","Close("&$D$12&") when LocalYear("&$D$12&")="&$E$180&" and localMonth("&$D$12&") ="&$F$180&" and LocalDay("&$D$12&")="&$G$180&" and Barix("&$D$12&",reference:=StartOfSession)="&A21&"","FG","","Close","5","0","",,,"False","T","EveryTick")) -> 3465 | AA21: 0.003475238923
A22: 21 | B22: 09:45:00 | D22: 4 | E22: #.0000 | G22: 2018-06-05 | H22: =IF(AND($F$28<0,B22<0.999999),RTD("cqg.rtd",,"StudyData","Close("&$D$12&") when LocalYear("&$D$12&")="&$I$171&" and localMonth("&$D$12&") ="&$J$171&" and LocalDay("&$D$12&")="&$K$171&" and Barix("&$D$12&",reference:=StartOfSession)="&A22&"","FG","","Close","5","0","",,,"False","T","EveryTick"),RTD("cqg.rtd",,"StudyData","Close("&$D$12&") when LocalYear("&$D$12&")="&$E$171&" and localMonth("&$D$12&") ="&$F$171&" and LocalDay("&$D$12&")="&$G$171&" and Barix("&$D$12&",reference:=StartOfSession)="&A22&"","FG","","Close","5","0","",,,"False","T","EveryTick")) -> 3480 | I22: -0.006565800742 | J22: =IF(AND($F$28<0,B22<0.999999),RTD("cqg.rtd",,"StudyData","Close("&$D$12&") when LocalYear("&$D$12&")="&$I$172&" and localMonth("&$D$12&") ="&$J$172&" and LocalDay("&$D$12&")="&$K$172&" and Barix("&$D$12&",reference:=StartOfSession)="&A22&"","FG","","Close","5","0","",,,"False","T","EveryTick"),RTD("cqg.rtd",,"StudyData","Close("&$D$12&") when LocalYear("&$D$12&")="&$E$172&" and localMonth("&$D$12&") ="&$F$172&" and LocalDay("&$D$12&")="&$G$172&" and Barix("&$D$12&",reference:=StartOfSession)="&A22&"","FG","","Close","5","0","",,,"False","T","EveryTick")) -> 3525 | K22: 0.0002837684449 | L22: =IF(AND($F$28<0,B22<0.999999),RTD("cqg.rtd",,"StudyData","Close("&$D$12&") when LocalYear("&$D$12&")="&$I$173&" and localMonth("&$D$12&") ="&$J$173&" and LocalDay("&$D$12&")="&$K$173&" and Barix("&$D$12&",reference:=StartOfSession)="&A22&"","FG","","Close","5","0","",,,"False","T","EveryTick"),RTD("cqg.rtd",,"StudyData","Close("&$D$12&") when LocalYear("&$D$12&")="&$E$173&" and localMonth("&$D$12&") ="&$F$173&" and LocalDay("&$D$12&")="&$G$173&" and Barix("&$D$12&",reference:=StartOfSession)="&A22&"","FG","","Close","5","0","",,,"False","T","EveryTick")) -> 3457 | M22: -0.004606968039 | N22: =IF(AND($F$28<0,B22<0.999999),RTD("cqg.rtd",,"StudyData","Close("&$D$12&") when LocalYear("&$D$12&")="&$I$174&" and localMonth("&$D$12&") ="&$J$174&" and LocalDay("&$D$12&")="&$K$174&" and Barix("&$D$12&",reference:=StartOfSession)="&A22&"","FG","","Close","5","0","",,,"False","T","EveryTick"),RTD("cqg.rtd",,"StudyData","Close("&$D$12&") when LocalYear("&$D$12&")="&$E$174&" and localMonth("&$D$12&") ="&$F$174&" and LocalDay("&$D$12&")="&$G$174&" and Barix("&$D$12&",reference:=StartOfSession)="&A22&"","FG","","Close","5","0","",,,"False","T","EveryTick")) -> 3460 | O22: -0.001154734411 | P22: =IF(AND($F$28<0,B22<0.999999),RTD("cqg.rtd",,"StudyData","Close("&$D$12&") when LocalYear("&$D$12&")="&$I$175&" and localMonth("&$D$12&") ="&$J$175&" and LocalDay("&$D$12&")="&$K$175&" and Barix("&$D$12&",reference:=StartOfSession)="&A22&"","FG","","Close","5","0","",,,"False","T","EveryTick"),RTD("cqg.rtd",,"StudyData","Close("&$D$12&") when LocalYear("&$D$12&")="&$E$175&" and localMonth("&$D$12&") ="&$F$175&" and LocalDay("&$D$12&")="&$G$175&" and Barix("&$D$12&",reference:=StartOfSession)="&A22&"","FG","","Close","5","0","",,,"False","T","EveryTick")) -> 3471 | Q22: -0.0002880184332 | R22: =IF(AND($F$28<0,B22<0.999999),RTD("cqg.rtd",,"StudyData","Close("&$D$12&") when LocalYear("&$D$12&")="&$I$176&" and localMonth("&$D$12&") ="&$J$176&" and LocalDay("&$D$12&")="&$K$176&" and Barix("&$D$12&",reference:=StartOfSession)="&A22&"","FG","","Close","5","0","",,,"False","T","EveryTick"),RTD("cqg.rtd",,"StudyData","Close("&$D$12&") when LocalYear("&$D$12&")="&$E$176&" and localMonth("&$D$12&") ="&$F$176&" and LocalDay("&$D$12&")="&$G$176&" and Barix("&$D$12&",reference:=StartOfSession)="&A22&"","FG","","Close","5","0","",,,"False","T","EveryTick")) -> 3456 | S22: 0.008168028005 | T22: =IF(AND($F$28<0,B22<0.999999),RTD("cqg.rtd",,"StudyData","Close("&$D$12&") when LocalYear("&$D$12&")="&$I$177&" and localMonth("&$D$12&") ="&$J$177&" and LocalDay("&$D$12&")="&$K$177&" and Barix("&$D$12&",reference:=StartOfSession)="&A22&"","FG","","Close","5","0","",,,"False","T","EveryTick"),RTD("cqg.rtd",,"StudyData","Close("&$D$12&") when LocalYear("&$D$12&")="&$E$177&" and localMonth("&$D$12&") ="&$F$177&" and LocalDay("&$D$12&")="&$G$177&" and Barix("&$D$12&",reference:=StartOfSession)="&A22&"","FG","","Close","5","0","",,,"False","T","EveryTick")) -> 3423 | U22: -0.006386066763 | V22: =IF(AND($F$28<0,B22<0.999999),RTD("cqg.rtd",,"StudyData","Close("&$D$12&") when LocalYear("&$D$12&")="&$I$178&" and localMonth("&$D$12&") ="&$J$178&" and LocalDay("&$D$12&")="&$K$178&" and Barix("&$D$12&",reference:=StartOfSession)="&A22&"","FG","","Close","5","0","",,,"False","T","EveryTick"),RTD("cqg.rtd",,"StudyData","Close("&$D$12&") when LocalYear("&$D$12&")="&$E$178&" and localMonth("&$D$12&") ="&$F$178&" and LocalDay("&$D$12&")="&$G$178&" and Barix("&$D$12&",reference:=StartOfSession)="&A22&"","FG","","Close","5","0","",,,"False","T","EveryTick")) -> 3469 | W22: 0.007844276583 | X22: =IF(AND($F$28<0,B22<0.999999),RTD("cqg.rtd",,"StudyData","Close("&$D$12&") when LocalYear("&$D$12&")="&$I$179&" and localMonth("&$D$12&") ="&$J$179&" and LocalDay("&$D$12&")="&$K$179&" and Barix("&$D$12&",reference:=StartOfSession)="&A22&"","FG","","Close","5","0","",,,"False","T","EveryTick"),RTD("cqg.rtd",,"StudyData","Close("&$D$12&") when LocalYear("&$D$12&")="&$E$179&" and localMonth("&$D$12&") ="&$F$179&" and LocalDay("&$D$12&")="&$G$179&" and Barix("&$D$12&",reference:=StartOfSession)="&A22&"","FG","","Close","5","0","",,,"False","T","EveryTick")) -> 3436 | Y22: -0.001743172574 | Z22: =IF(AND($F$28<0,B22<0.999999),RTD("cqg.rtd",,"StudyData","Close("&$D$12&") when LocalYear("&$D$12&")="&$I$180&" and localMonth("&$D$12&") ="&$J$180&" and LocalDay("&$D$12&")="&$K$180&" and Barix("&$D$12&",reference:=StartOfSession)="&A22&"","FG","","Close","5","0","",,,"False","T","EveryTick"),RTD("cqg.rtd",,"StudyData","Close("&$D$12&") when LocalYear("&$D$12&")="&$E$180&" and localMonth("&$D$12&") ="&$F$180&" and LocalDay("&$D$12&")="&$G$180&" and Barix("&$D$12&",reference:=StartOfSession)="&A22&"","FG","","Close","5","0","",,,"False","T","EveryTick")) -> 3463 | AA22: 0.002896032436
A23: 22 | B23: 09:50:00 | D23: 5 | E23: #.00000 | H23: =IF(AND($F$28<0,B23<0.999999),RTD("cqg.rtd",,"StudyData","Close("&$D$12&") when LocalYear("&$D$12&")="&$I$171&" and localMonth("&$D$12&") ="&$J$171&" and LocalDay("&$D$12&")="&$K$171&" and Barix("&$D$12&",reference:=StartOfSession)="&A23&"","FG","","Close","5","0","",,,"False","T","EveryTick"),RTD("cqg.rtd",,"StudyData","Close("&$D$12&") when LocalYear("&$D$12&")="&$E$171&" and localMonth("&$D$12&") ="&$F$171&" and LocalDay("&$D$12&")="&$G$171&" and Barix("&$D$12&",reference:=StartOfSession)="&A23&"","FG","","Close","5","0","",,,"False","T","EveryTick")) -> 3482 | I23: -0.005994861547 | J23: =IF(AND($F$28<0,B23<0.999999),RTD("cqg.rtd",,"StudyData","Close("&$D$12&") when LocalYear("&$D$12&")="&$I$172&" and localMonth("&$D$12&") ="&$J$172&" and LocalDay("&$D$12&")="&$K$172&" and Barix("&$D$12&",reference:=StartOfSession)="&A23&"","FG","","Close","5","0","",,,"False","T","EveryTick"),RTD("cqg.rtd",,"StudyData","Close("&$D$12&") when LocalYear("&$D$12&")="&$E$172&" and localMonth("&$D$12&") ="&$F$172&" and LocalDay("&$D$12&")="&$G$172&" and Barix("&$D$12&",reference:=StartOfSession)="&A23&"","FG","","Close","5","0","",,,"False","T","EveryTick")) -> 3524 | K23: 0 | L23: =IF(AND($F$28<0,B23<0.999999),RTD("cqg.rtd",,"StudyData","Close("&$D$12&") when LocalYear("&$D$12&")="&$I$173&" and localMonth("&$D$12&") ="&$J$173&" and LocalDay("&$D$12&")="&$K$173&" and Barix("&$D$12&",reference:=StartOfSession)="&A23&"","FG","","Close","5","0","",,,"False","T","EveryTick"),RTD("cqg.rtd",,"StudyData","Close("&$D$12&") when LocalYear("&$D$12&")="&$E$173&" and localMonth("&$D$12&") ="&$F$173&" and LocalDay("&$D$12&")="&$G$173&" and Barix("&$D$12&",reference:=StartOfSession)="&A23&"","FG","","Close","5","0","",,,"False","T","EveryTick")) -> 3458 | M23: -0.004319032537 | N23: =IF(AND($F$28<0,B23<0.999999),RTD("cqg.rtd",,"StudyData","Close("&$D$12&") when LocalYear("&$D$12&")="&$I$174&" and localMonth("&$D$12&") ="&$J$174&" and LocalDay("&$D$12&")="&$K$174&" and Barix("&$D$12&",reference:=StartOfSession)="&A23&"","FG","","Close","5","0","",,,"False","T","EveryTick"),RTD("cqg.rtd",,"StudyData","Close("&$D$12&") when LocalYear("&$D$12&")="&$E$174&" and localMonth("&$D$12&") ="&$F$174&" and LocalDay("&$D$12&")="&$G$174&" and Barix("&$D$12&",reference:=StartOfSession)="&A23&"","FG","","Close","5","0","",,,"False","T","EveryTick")) -> 3461 | O23: -0.0008660508083 | P23: =IF(AND($F$28<0,B23<0.999999),RTD("cqg.rtd",,"StudyData","Close("&$D$12&") when LocalYear("&$D$12&")="&$I$175&" and localMonth("&$D$12&") ="&$J$175&" and LocalDay("&$D$12&")="&$K$175&" and Barix("&$D$12&",reference:=StartOfSession)="&A23&"","FG","","Close","5","0","",,,"False","T","EveryTick"),RTD("cqg.rtd",,"StudyData","Close("&$D$12&") when LocalYear("&$D$12&")="&$E$175&" and localMonth("&$D$12&") ="&$F$175&" and LocalDay("&$D$12&")="&$G$175&" and Barix("&$D$12&",reference:=StartOfSession)="&A23&"","FG","","Close","5","0","",,,"False","T","EveryTick")) -> 3470 | Q23: -0.0005760368664 | R23: =IF(AND($F$28<0,B23<0.999999),RTD("cqg.rtd",,"StudyData","Close("&$D$12&") when LocalYear("&$D$12&")="&$I$176&" and localMonth("&$D$12&") ="&$J$176&" and LocalDay("&$D$12&")="&$K$176&" and Barix("&$D$12&",reference:=StartOfSession)="&A23&"","FG","","Close","5","0","",,,"False","T","EveryTick"),RTD("cqg.rtd",,"StudyData","Close("&$D$12&") when LocalYear("&$D$12&")="&$E$176&" and localMonth("&$D$12&") ="&$F$176&" and LocalDay("&$D$12&")="&$G$176&" and Barix("&$D$12&",reference:=StartOfSession)="&A23&"","FG","","Close","5","0","",,,"False","T","EveryTick")) -> 3457 | S23: 0.008459743291 | T23: =IF(AND($F$28<0,B23<0.999999),RTD("cqg.rtd",,"StudyData","Close("&$D$12&") when LocalYear("&$D$12&")="&$I$177&" and localMonth("&$D$12&") ="&$J$177&" and LocalDay("&$D$12&")="&$K$177&" and Barix("&$D$12&",reference:=StartOfSession)="&A23&"","FG","","Close","5","0","",,,"False","T","EveryTick"),RTD("cqg.rtd",,"StudyData","Close("&$D$12&") when LocalYear("&$D$12&")="&$E$177&" and localMonth("&$D$12&") ="&$F$177&" and LocalDay("&$D$12&")="&$G$177&" and Barix("&$D$12&",reference:=StartOfSession)="&A23&"","FG","","Close","5","0","",,,"False","T","EveryTick")) -> 3417 | U23: -0.008127721335 | V23: =IF(AND($F$28<0,B23<0.999999),RTD("cqg.rtd",,"StudyData","Close("&$D$12&") when LocalYear("&$D$12&")="&$I$178&" and localMonth("&$D$12&") ="&$J$178&" and LocalDay("&$D$12&")="&$K$178&" and Barix("&$D$12&",reference:=StartOfSession)="&A23&"","FG","","Close","5","0","",,,"False","T","EveryTick"),RTD("cqg.rtd",,"StudyData","Close("&$D$12&") when LocalYear("&$D$12&")="&$E$178&" and localMonth("&$D$12&") ="&$F$178&" and LocalDay("&$D$12&")="&$G$178&" and Barix("&$D$12&",reference:=StartOfSession)="&A23&"","FG","","Close","5","0","",,,"False","T","EveryTick")) -> 3463 | W23: 0.006101104009 | X23: =IF(AND($F$28<0,B23<0.999999),RTD("cqg.rtd",,"StudyData","Close("&$D$12&") when LocalYear("&$D$12&")="&$I$179&" and localMonth("&$D$12&") ="&$J$179&" and LocalDay("&$D$12&")="&$K$179&" and Barix("&$D$12&",reference:=StartOfSession)="&A23&"","FG","","Close","5","0","",,,"False","T","EveryTick"),RTD("cqg.rtd",,"StudyData","Close("&$D$12&") when LocalYear("&$D$12&")="&$E$179&" and localMonth("&$D$12&") ="&$F$179&" and LocalDay("&$D$12&")="&$G$179&" and Barix("&$D$12&",reference:=StartOfSession)="&A23&"","FG","","Close","5","0","",,,"False","T","EveryTick")) -> 3437 | Y23: -0.001452643812 | Z23: =IF(AND($F$28<0,B23<0.999999),RTD("cqg.rtd",,"StudyData","Close("&$D$12&") when LocalYear("&$D$12&")="&$I$180&" and localMonth("&$D$12&") ="&$J$180&" and LocalDay("&$D$12&")="&$K$180&" and Barix("&$D$12&",reference:=StartOfSession)="&A23&"","FG","","Close","5","0","",,,"False","T","EveryTick"),RTD("cqg.rtd",,"StudyData","Close("&$D$12&") when LocalYear("&$D$12&")="&$E$180&" and localMonth("&$D$12&") ="&$F$180&" and LocalDay("&$D$12&")="&$G$180&" and Barix("&$D$12&",reference:=StartOfSession)="&A23&"","FG","","Close","5","0","",,,"False","T","EveryTick")) -> 3464 | AA23: 0.003185635679
A24: 23 | B24: 09:55:00 | D24: 6 | E24: #.000000 | H24: =IF(AND($F$28<0,B24<0.999999),RTD("cqg.rtd",,"StudyData","Close("&$D$12&") when LocalYear("&$D$12&")="&$I$171&" and localMonth("&$D$12&") ="&$J$171&" and LocalDay("&$D$12&")="&$K$171&" and Barix("&$D$12&",reference:=StartOfSession)="&A24&"","FG","","Close","5","0","",,,"False","T","EveryTick"),RTD("cqg.rtd",,"StudyData","Close("&$D$12&") when LocalYear("&$D$12&")="&$E$171&" and localMonth("&$D$12&") ="&$F$171&" and LocalDay("&$D$12&")="&$G$171&" and Barix("&$D$12&",reference:=StartOfSession)="&A24&"","FG","","Close","5","0","",,,"False","T","EveryTick")) -> 3478 | I24: -0.007136739937 | J24: =IF(AND($F$28<0,B24<0.999999),RTD("cqg.rtd",,"StudyData","Close("&$D$12&") when LocalYear("&$D$12&")="&$I$172&" and localMonth("&$D$12&") ="&$J$172&" and LocalDay("&$D$12&")="&$K$172&" and Barix("&$D$12&",reference:=StartOfSession)="&A24&"","FG","","Close","5","0","",,,"False","T","EveryTick"),RTD("cqg.rtd",,"StudyData","Close("&$D$12&") when LocalYear("&$D$12&")="&$E$172&" and localMonth("&$D$12&") ="&$F$172&" and LocalDay("&$D$12&")="&$G$172&" and Barix("&$D$12&",reference:=StartOfSession)="&A24&"","FG","","Close","5","0","",,,"False","T","EveryTick")) -> 3520 | K24: -0.00113507378 | L24: =IF(AND($F$28<0,B24<0.999999),RTD("cqg.rtd",,"StudyData","Close("&$D$12&") when LocalYear("&$D$12&")="&$I$173&" and localMonth("&$D$12&") ="&$J$173&" and LocalDay("&$D$12&")="&$K$173&" and Barix("&$D$12&",reference:=StartOfSession)="&A24&"","FG","","Close","5","0","",,,"False","T","EveryTick"),RTD("cqg.rtd",,"StudyData","Close("&$D$12&") when LocalYear("&$D$12&")="&$E$173&" and localMonth("&$D$12&") ="&$F$173&" and LocalDay("&$D$12&")="&$G$173&" and Barix("&$D$12&",reference:=StartOfSession)="&A24&"","FG","","Close","5","0","",,,"False","T","EveryTick")) -> 3457 | M24: -0.004606968039 | N24: =IF(AND($F$28<0,B24<0.999999),RTD("cqg.rtd",,"StudyData","Close("&$D$12&") when LocalYear("&$D$12&")="&$I$174&" and localMonth("&$D$12&") ="&$J$174&" and LocalDay("&$D$12&")="&$K$174&" and Barix("&$D$12&",reference:=StartOfSession)="&A24&"","FG","","Close","5","0","",,,"False","T","EveryTick"),RTD("cqg.rtd",,"StudyData","Close("&$D$12&") when LocalYear("&$D$12&")="&$E$174&" and localMonth("&$D$12&") ="&$F$174&" and LocalDay("&$D$12&")="&$G$174&" and Barix("&$D$12&",reference:=StartOfSession)="&A24&"","FG","","Close","5","0","",,,"False","T","EveryTick")) -> 3462 | O24: -0.0005773672055 | P24: =IF(AND($F$28<0,B24<0.999999),RTD("cqg.rtd",,"StudyData","Close("&$D$12&") when LocalYear("&$D$12&")="&$I$175&" and localMonth("&$D$12&") ="&$J$175&" and LocalDay("&$D$12&")="&$K$175&" and Barix("&$D$12&",reference:=StartOfSession)="&A24&"","FG","","Close","5","0","",,,"False","T","EveryTick"),RTD("cqg.rtd",,"StudyData","Close("&$D$12&") when LocalYear("&$D$12&")="&$E$175&" and localMonth("&$D$12&") ="&$F$175&" and LocalDay("&$D$12&")="&$G$175&" and Barix("&$D$12&",reference:=StartOfSession)="&A24&"","FG","","Close","5","0","",,,"False","T","EveryTick")) -> 3469 | Q24: -0.0008640552995 | R24: =IF(AND($F$28<0,B24<0.999999),RTD("cqg.rtd",,"StudyData","Close("&$D$12&") when LocalYear("&$D$12&")="&$I$176&" and localMonth("&$D$12&") ="&$J$176&" and LocalDay("&$D$12&")="&$K$176&" and Barix("&$D$12&",reference:=StartOfSession)="&A24&"","FG","","Close","5","0","",,,"False","T","EveryTick"),RTD("cqg.rtd",,"StudyData","Close("&$D$12&") when LocalYear("&$D$12&")="&$E$176&" and localMonth("&$D$12&") ="&$F$176&" and LocalDay("&$D$12&")="&$G$176&" and Barix("&$D$12&",reference:=StartOfSession)="&A24&"","FG","","Close","5","0","",,,"False","T","EveryTick")) -> 3458 | S24: 0.008751458576 | T24: =IF(AND($F$28<0,B24<0.999999),RTD("cqg.rtd",,"StudyData","Close("&$D$12&") when LocalYear("&$D$12&")="&$I$177&" and localMonth("&$D$12&") ="&$J$177&" and LocalDay("&$D$12&")="&$K$177&" and Barix("&$D$12&",reference:=StartOfSession)="&A24&"","FG","","Close","5","0","",,,"False","T","EveryTick"),RTD("cqg.rtd",,"StudyData","Close("&$D$12&") when LocalYear("&$D$12&")="&$E$177&" and localMonth("&$D$12&") ="&$F$177&" and LocalDay("&$D$12&")="&$G$177&" and Barix("&$D$12&",reference:=StartOfSession)="&A24&"","FG","","Close","5","0","",,,"False","T","EveryTick")) -> 3414 | U24: -0.008998548621 | V24: =IF(AND($F$28<0,B24<0.999999),RTD("cqg.rtd",,"StudyData","Close("&$D$12&") when LocalYear("&$D$12&")="&$I$178&" and localMonth("&$D$12&") ="&$J$178&" and LocalDay("&$D$12&")="&$K$178&" and Barix("&$D$12&",reference:=StartOfSession)="&A24&"","FG","","Close","5","0","",,,"False","T","EveryTick"),RTD("cqg.rtd",,"StudyData","Close("&$D$12&") when LocalYear("&$D$12&")="&$E$178&" and localMonth("&$D$12&") ="&$F$178&" and LocalDay("&$D$12&")="&$G$178&" and Barix("&$D$12&",reference:=StartOfSession)="&A24&"","FG","","Close","5","0","",,,"False","T","EveryTick")) -> 3465 | W24: 0.006682161534 | X24: =IF(AND($F$28<0,B24<0.999999),RTD("cqg.rtd",,"StudyData","Close("&$D$12&") when LocalYear("&$D$12&")="&$I$179&" and localMonth("&$D$12&") ="&$J$179&" and LocalDay("&$D$12&")="&$K$179&" and Barix("&$D$12&",reference:=StartOfSession)="&A24&"","FG","","Close","5","0","",,,"False","T","EveryTick"),RTD("cqg.rtd",,"StudyData","Close("&$D$12&") when LocalYear("&$D$12&")="&$E$179&" and localMonth("&$D$12&") ="&$F$179&" and LocalDay("&$D$12&")="&$G$179&" and Barix("&$D$12&",reference:=StartOfSession)="&A24&"","FG","","Close","5","0","",,,"False","T","EveryTick")) -> 3443 | Y24: 0.0002905287623 | Z24: =IF(AND($F$28<0,B24<0.999999),RTD("cqg.rtd",,"StudyData","Close("&$D$12&") when LocalYear("&$D$12&")="&$I$180&" and localMonth("&$D$12&") ="&$J$180&" and LocalDay("&$D$12&")="&$K$180&" and Barix("&$D$12&",reference:=StartOfSession)="&A24&"","FG","","Close","5","0","",,,"False","T","EveryTick"),RTD("cqg.rtd",,"StudyData","Close("&$D$12&") when LocalYear("&$D$12&")="&$E$180&" and localMonth("&$D$12&") ="&$F$180&" and LocalDay("&$D$12&")="&$G$180&" and Barix("&$D$12&",reference:=StartOfSession)="&A24&"","FG","","Close","5","0","",,,"False","T","EveryTick")) -> 3463 | AA24: 0.002896032436
A25: 24 | B25: 10:00:00 | D25: 7 | E25: #.0000000 | H25: =IF(AND($F$28<0,B25<0.999999),RTD("cqg.rtd",,"StudyData","Close("&$D$12&") when LocalYear("&$D$12&")="&$I$171&" and localMonth("&$D$12&") ="&$J$171&" and LocalDay("&$D$12&")="&$K$171&" and Barix("&$D$12&",reference:=StartOfSession)="&A25&"","FG","","Close","5","0","",,,"False","T","EveryTick"),RTD("cqg.rtd",,"StudyData","Close("&$D$12&") when LocalYear("&$D$12&")="&$E$171&" and localMonth("&$D$12&") ="&$F$171&" and LocalDay("&$D$12&")="&$G$171&" and Barix("&$D$12&",reference:=StartOfSession)="&A25&"","FG","","Close","5","0","",,,"False","T","EveryTick")) -> 3480 | I25: -0.006565800742 | J25: =IF(AND($F$28<0,B25<0.999999),RTD("cqg.rtd",,"StudyData","Close("&$D$12&") when LocalYear("&$D$12&")="&$I$172&" and localMonth("&$D$12&") ="&$J$172&" and LocalDay("&$D$12&")="&$K$172&" and Barix("&$D$12&",reference:=StartOfSession)="&A25&"","FG","","Close","5","0","",,,"False","T","EveryTick"),RTD("cqg.rtd",,"StudyData","Close("&$D$12&") when LocalYear("&$D$12&")="&$E$172&" and localMonth("&$D$12&") ="&$F$172&" and LocalDay("&$D$12&")="&$G$172&" and Barix("&$D$12&",reference:=StartOfSession)="&A25&"","FG","","Close","5","0","",,,"False","T","EveryTick")) -> 3521 | K25: -0.0008513053348 | L25: =IF(AND($F$28<0,B25<0.999999),RTD("cqg.rtd",,"StudyData","Close("&$D$12&") when LocalYear("&$D$12&")="&$I$173&" and localMonth("&$D$12&") ="&$J$173&" and LocalDay("&$D$12&")="&$K$173&" and Barix("&$D$12&",reference:=StartOfSession)="&A25&"","FG","","Close","5","0","",,,"False","T","EveryTick"),RTD("cqg.rtd",,"StudyData","Close("&$D$12&") when LocalYear("&$D$12&")="&$E$173&" and localMonth("&$D$12&") ="&$F$173&" and LocalDay("&$D$12&")="&$G$173&" and Barix("&$D$12&",reference:=StartOfSession)="&A25&"","FG","","Close","5","0","",,,"False","T","EveryTick")) -> 3458 | M25: -0.004319032537 | N25: =IF(AND($F$28<0,B25<0.999999),RTD("cqg.rtd",,"StudyData","Close("&$D$12&") when LocalYear("&$D$12&")="&$I$174&" and localMonth("&$D$12&") ="&$J$174&" and LocalDay("&$D$12&")="&$K$174&" and Barix("&$D$12&",reference:=StartOfSession)="&A25&"","FG","","Close","5","0","",,,"False","T","EveryTick"),RTD("cqg.rtd",,"StudyData","Close("&$D$12&") when LocalYear("&$D$12&")="&$E$174&" and localMonth("&$D$12&") ="&$F$174&" and LocalDay("&$D$12&")="&$G$174&" and Barix("&$D$12&",reference:=StartOfSession)="&A25&"","FG","","Close","5","0","",,,"False","T","EveryTick")) -> 3463 | O25: -0.0002886836028 | P25: =IF(AND($F$28<0,B25<0.999999),RTD("cqg.rtd",,"StudyData","Close("&$D$12&") when LocalYear("&$D$12&")="&$I$175&" and localMonth("&$D$12&") ="&$J$175&" and LocalDay("&$D$12&")="&$K$175&" and Barix("&$D$12&",reference:=StartOfSession)="&A25&"","FG","","Close","5","0","",,,"False","T","EveryTick"),RTD("cqg.rtd",,"StudyData","Close("&$D$12&") when LocalYear("&$D$12&")="&$E$175&" and localMonth("&$D$12&") ="&$F$175&" and LocalDay("&$D$12&")="&$G$175&" and Barix("&$D$12&",reference:=StartOfSession)="&A25&"","FG","","Close","5","0","",,,"False","T","EveryTick")) -> 3471 | Q25: -0.0002880184332 | R25: =IF(AND($F$28<0,B25<0.999999),RTD("cqg.rtd",,"StudyData","Close("&$D$12&") when LocalYear("&$D$12&")="&$I$176&" and localMonth("&$D$12&") ="&$J$176&" and LocalDay("&$D$12&")="&$K$176&" and Barix("&$D$12&",reference:=StartOfSession)="&A25&"","FG","","Close","5","0","",,,"False","T","EveryTick"),RTD("cqg.rtd",,"StudyData","Close("&$D$12&") when LocalYear("&$D$12&")="&$E$176&" and localMonth("&$D$12&") ="&$F$176&" and LocalDay("&$D$12&")="&$G$176&" and Barix("&$D$12&",reference:=StartOfSession)="&A25&"","FG","","Close","5","0","",,,"False","T","EveryTick")) -> 3458 | S25: 0.008751458576 | T25: =IF(AND($F$28<0,B25<0.999999),RTD("cqg.rtd",,"StudyData","Close("&$D$12&") when LocalYear("&$D$12&")="&$I$177&" and localMonth("&$D$12&") ="&$J$177&" and LocalDay("&$D$12&")="&$K$177&" and Barix("&$D$12&",reference:=StartOfSession)="&A25&"","FG","","Close","5","0","",,,"False","T","EveryTick"),RTD("cqg.rtd",,"StudyData","Close("&$D$12&") when LocalYear("&$D$12&")="&$E$177&" and localMonth("&$D$12&") ="&$F$177&" and LocalDay("&$D$12&")="&$G$177&" and Barix("&$D$12&",reference:=StartOfSession)="&A25&"","FG","","Close","5","0","",,,"False","T","EveryTick")) -> 3413 | U25: -0.009288824383 | V25: =IF(AND($F$28<0,B25<0.999999),RTD("cqg.rtd",,"StudyData","Close("&$D$12&") when LocalYear("&$D$12&")="&$I$178&" and localMonth("&$D$12&") ="&$J$178&" and LocalDay("&$D$12&")="&$K$178&" and Barix("&$D$12&",reference:=StartOfSession)="&A25&"","FG","","Close","5","0","",,,"False","T","EveryTick"),RTD("cqg.rtd",,"StudyData","Close("&$D$12&") when LocalYear("&$D$12&")="&$E$178&" and localMonth("&$D$12&") ="&$F$178&" and LocalDay("&$D$12&")="&$G$178&" and Barix("&$D$12&",reference:=StartOfSession)="&A25&"","FG","","Close","5","0","",,,"False","T","EveryTick")) -> 3467 | W25: 0.007263219059 | X25: =IF(AND($F$28<0,B25<0.999999),RTD("cqg.rtd",,"StudyData","Close("&$D$12&") when LocalYear("&$D$12&")="&$I$179&" and localMonth("&$D$12&") ="&$J$179&" and LocalDay("&$D$12&")="&$K$179&" and Barix("&$D$12&",reference:=StartOfSession)="&A25&"","FG","","Close","5","0","",,,"False","T","EveryTick"),RTD("cqg.rtd",,"StudyData","Close("&$D$12&") when LocalYear("&$D$12&")="&$E$179&" and localMonth("&$D$12&") ="&$F$179&" and LocalDay("&$D$12&")="&$G$179&" and Barix("&$D$12&",reference:=StartOfSession)="&A25&"","FG","","Close","5","0","",,,"False","T","EveryTick")) -> 3441 | Y25: -0.0002905287623 | Z25: =IF(AND($F$28<0,B25<0.999999),RTD("cqg.rtd",,"StudyData","Close("&$D$12&") when LocalYear("&$D$12&")="&$I$180&" and localMonth("&$D$12&") ="&$J$180&" and LocalDay("&$D$12&")="&$K$180&" and Barix("&$D$12&",reference:=StartOfSession)="&A25&"","FG","","Close","5","0","",,,"False","T","EveryTick"),RTD("cqg.rtd",,"StudyData","Close("&$D$12&") when LocalYear("&$D$12&")="&$E$180&" and localMonth("&$D$12&") ="&$F$180&" and LocalDay("&$D$12&")="&$G$180&" and Barix("&$D$12&",reference:=StartOfSession)="&A25&"","FG","","Close","5","0","",,,"False","T","EveryTick")) -> 3461 | AA25: 0.002316825948
A26: 25 | B26: 10:05:00 | H26: =IF(AND($F$28<0,B26<0.999999),RTD("cqg.rtd",,"StudyData","Close("&$D$12&") when LocalYear("&$D$12&")="&$I$171&" and localMonth("&$D$12&") ="&$J$171&" and LocalDay("&$D$12&")="&$K$171&" and Barix("&$D$12&",reference:=StartOfSession)="&A26&"","FG","","Close","5","0","",,,"False","T","EveryTick"),RTD("cqg.rtd",,"StudyData","Close("&$D$12&") when LocalYear("&$D$12&")="&$E$171&" and localMonth("&$D$12&") ="&$F$171&" and LocalDay("&$D$12&")="&$G$171&" and Barix("&$D$12&",reference:=StartOfSession)="&A26&"","FG","","Close","5","0","",,,"False","T","EveryTick")) -> 3480 | I26: -0.006565800742 | J26: =IF(AND($F$28<0,B26<0.999999),RTD("cqg.rtd",,"StudyData","Close("&$D$12&") when LocalYear("&$D$12&")="&$I$172&" and localMonth("&$D$12&") ="&$J$172&" and LocalDay("&$D$12&")="&$K$172&" and Barix("&$D$12&",reference:=StartOfSession)="&A26&"","FG","","Close","5","0","",,,"False","T","EveryTick"),RTD("cqg.rtd",,"StudyData","Close("&$D$12&") when LocalYear("&$D$12&")="&$E$172&" and localMonth("&$D$12&") ="&$F$172&" and LocalDay("&$D$12&")="&$G$172&" and Barix("&$D$12&",reference:=StartOfSession)="&A26&"","FG","","Close","5","0","",,,"False","T","EveryTick")) -> 3520 | K26: -0.00113507378 | L26: =IF(AND($F$28<0,B26<0.999999),RTD("cqg.rtd",,"StudyData","Close("&$D$12&") when LocalYear("&$D$12&")="&$I$173&" and localMonth("&$D$12&") ="&$J$173&" and LocalDay("&$D$12&")="&$K$173&" and Barix("&$D$12&",reference:=StartOfSession)="&A26&"","FG","","Close","5","0","",,,"False","T","EveryTick"),RTD("cqg.rtd",,"StudyData","Close("&$D$12&") when LocalYear("&$D$12&")="&$E$173&" and localMonth("&$D$12&") ="&$F$173&" and LocalDay("&$D$12&")="&$G$173&" and Barix("&$D$12&",reference:=StartOfSession)="&A26&"","FG","","Close","5","0","",,,"False","T","EveryTick")) -> 3457 | M26: -0.004606968039 | N26: =IF(AND($F$28<0,B26<0.999999),RTD("cqg.rtd",,"StudyData","Close("&$D$12&") when LocalYear("&$D$12&")="&$I$174&" and localMonth("&$D$12&") ="&$J$174&" and LocalDay("&$D$12&")="&$K$174&" and Barix("&$D$12&",reference:=StartOfSession)="&A26&"","FG","","Close","5","0","",,,"False","T","EveryTick"),RTD("cqg.rtd",,"StudyData","Close("&$D$12&") when LocalYear("&$D$12&")="&$E$174&" and localMonth("&$D$12&") ="&$F$174&" and LocalDay("&$D$12&")="&$G$174&" and Barix("&$D$12&",reference:=StartOfSession)="&A26&"","FG","","Close","5","0","",,,"False","T","EveryTick")) -> 3461 | O26: -0.0008660508083 | P26: =IF(AND($F$28<0,B26<0.999999),RTD("cqg.rtd",,"StudyData","Close("&$D$12&") when LocalYear("&$D$12&")="&$I$175&" and localMonth("&$D$12&") ="&$J$175&" and LocalDay("&$D$12&")="&$K$175&" and Barix("&$D$12&",reference:=StartOfSession)="&A26&"","FG","","Close","5","0","",,,"False","T","EveryTick"),RTD("cqg.rtd",,"StudyData","Close("&$D$12&") when LocalYear("&$D$12&")="&$E$175&" and localMonth("&$D$12&") ="&$F$175&" and LocalDay("&$D$12&")="&$G$175&" and Barix("&$D$12&",reference:=StartOfSession)="&A26&"","FG","","Close","5","0","",,,"False","T","EveryTick")) -> 3470 | Q26: -0.0005760368664 | R26: =IF(AND($F$28<0,B26<0.999999),RTD("cqg.rtd",,"StudyData","Close("&$D$12&") when LocalYear("&$D$12&")="&$I$176&" and localMonth("&$D$12&") ="&$J$176&" and LocalDay("&$D$12&")="&$K$176&" and Barix("&$D$12&",reference:=StartOfSession)="&A26&"","FG","","Close","5","0","",,,"False","T","EveryTick"),RTD("cqg.rtd",,"StudyData","Close("&$D$12&") when LocalYear("&$D$12&")="&$E$176&" and localMonth("&$D$12&") ="&$F$176&" and LocalDay("&$D$12&")="&$G$176&" and Barix("&$D$12&",reference:=StartOfSession)="&A26&"","FG","","Close","5","0","",,,"False","T","EveryTick")) -> 3456 | S26: 0.008168028005 | T26: =IF(AND($F$28<0,B26<0.999999),RTD("cqg.rtd",,"StudyData","Close("&$D$12&") when LocalYear("&$D$12&")="&$I$177&" and localMonth("&$D$12&") ="&$J$177&" and LocalDay("&$D$12&")="&$K$177&" and Barix("&$D$12&",reference:=StartOfSession)="&A26&"","FG","","Close","5","0","",,,"False","T","EveryTick"),RTD("cqg.rtd",,"StudyData","Close("&$D$12&") when LocalYear("&$D$12&")="&$E$177&" and localMonth("&$D$12&") ="&$F$177&" and LocalDay("&$D$12&")="&$G$177&" and Barix("&$D$12&",reference:=StartOfSession)="&A26&"","FG","","Close","5","0","",,,"False","T","EveryTick")) -> 3412 | U26: -0.009579100145 | V26: =IF(AND($F$28<0,B26<0.999999),RTD("cqg.rtd",,"StudyData","Close("&$D$12&") when LocalYear("&$D$12&")="&$I$178&" and localMonth("&$D$12&") ="&$J$178&" and LocalDay("&$D$12&")="&$K$178&" and Barix("&$D$12&",reference:=StartOfSession)="&A26&"","FG","","Close","5","0","",,,"False","T","EveryTick"),RTD("cqg.rtd",,"StudyData","Close("&$D$12&") when LocalYear("&$D$12&")="&$E$178&" and localMonth("&$D$12&") ="&$F$178&" and LocalDay("&$D$12&")="&$G$178&" and Barix("&$D$12&",reference:=StartOfSession)="&A26&"","FG","","Close","5","0","",,,"False","T","EveryTick")) -> 3467 | W26: 0.007263219059 | X26: =IF(AND($F$28<0,B26<0.999999),RTD("cqg.rtd",,"StudyData","Close("&$D$12&") when LocalYear("&$D$12&")="&$I$179&" and localMonth("&$D$12&") ="&$J$179&" and LocalDay("&$D$12&")="&$K$179&" and Barix("&$D$12&",reference:=StartOfSession)="&A26&"","FG","","Close","5","0","",,,"False","T","EveryTick"),RTD("cqg.rtd",,"StudyData","Close("&$D$12&") when LocalYear("&$D$12&")="&$E$179&" and localMonth("&$D$12&") ="&$F$179&" and LocalDay("&$D$12&")="&$G$179&" and Barix("&$D$12&",reference:=StartOfSession)="&A26&"","FG","","Close","5","0","",,,"False","T","EveryTick")) -> 3438 | Y26: -0.001162115049 | Z26: =IF(AND($F$28<0,B26<0.999999),RTD("cqg.rtd",,"StudyData","Close("&$D$12&") when LocalYear("&$D$12&")="&$I$180&" and localMonth("&$D$12&") ="&$J$180&" and LocalDay("&$D$12&")="&$K$180&" and Barix("&$D$12&",reference:=StartOfSession)="&A26&"","FG","","Close","5","0","",,,"False","T","EveryTick"),RTD("cqg.rtd",,"StudyData","Close("&$D$12&") when LocalYear("&$D$12&")="&$E$180&" and localMonth("&$D$12&") ="&$F$180&" and LocalDay("&$D$12&")="&$G$180&" and Barix("&$D$12&",reference:=StartOfSession)="&A26&"","FG","","Close","5","0","",,,"False","T","EveryTick")) -> 3460 | AA26: 0.002027222705
A27: 26 | B27: 10:10:00 | H27: =IF(AND($F$28<0,B27<0.999999),RTD("cqg.rtd",,"StudyData","Close("&$D$12&") when LocalYear("&$D$12&")="&$I$171&" and localMonth("&$D$12&") ="&$J$171&" and LocalDay("&$D$12&")="&$K$171&" and Barix("&$D$12&",reference:=StartOfSession)="&A27&"","FG","","Close","5","0","",,,"False","T","EveryTick"),RTD("cqg.rtd",,"StudyData","Close("&$D$12&") when LocalYear("&$D$12&")="&$E$171&" and localMonth("&$D$12&") ="&$F$171&" and LocalDay("&$D$12&")="&$G$171&" and Barix("&$D$12&",reference:=StartOfSession)="&A27&"","FG","","Close","5","0","",,,"False","T","EveryTick")) -> 3482 | I27: -0.005994861547 | J27: =IF(AND($F$28<0,B27<0.999999),RTD("cqg.rtd",,"StudyData","Close("&$D$12&") when LocalYear("&$D$12&")="&$I$172&" and localMonth("&$D$12&") ="&$J$172&" and LocalDay("&$D$12&")="&$K$172&" and Barix("&$D$12&",reference:=StartOfSession)="&A27&"","FG","","Close","5","0","",,,"False","T","EveryTick"),RTD("cqg.rtd",,"StudyData","Close("&$D$12&") when LocalYear("&$D$12&")="&$E$172&" and localMonth("&$D$12&") ="&$F$172&" and LocalDay("&$D$12&")="&$G$172&" and Barix("&$D$12&",reference:=StartOfSession)="&A27&"","FG","","Close","5","0","",,,"False","T","EveryTick")) -> 3523 | K27: -0.0002837684449 | L27: =IF(AND($F$28<0,B27<0.999999),RTD("cqg.rtd",,"StudyData","Close("&$D$12&") when LocalYear("&$D$12&")="&$I$173&" and localMonth("&$D$12&") ="&$J$173&" and LocalDay("&$D$12&")="&$K$173&" and Barix("&$D$12&",reference:=StartOfSession)="&A27&"","FG","","Close","5","0","",,,"False","T","EveryTick"),RTD("cqg.rtd",,"StudyData","Close("&$D$12&") when LocalYear("&$D$12&")="&$E$173&" and localMonth("&$D$12&") ="&$F$173&" and LocalDay("&$D$12&")="&$G$173&" and Barix("&$D$12&",reference:=StartOfSession)="&A27&"","FG","","Close","5","0","",,,"False","T","EveryTick")) -> 3455 | M27: -0.005182839044 | N27: =IF(AND($F$28<0,B27<0.999999),RTD("cqg.rtd",,"StudyData","Close("&$D$12&") when LocalYear("&$D$12&")="&$I$174&" and localMonth("&$D$12&") ="&$J$174&" and LocalDay("&$D$12&")="&$K$174&" and Barix("&$D$12&",reference:=StartOfSession)="&A27&"","FG","","Close","5","0","",,,"False","T","EveryTick"),RTD("cqg.rtd",,"StudyData","Close("&$D$12&") when LocalYear("&$D$12&")="&$E$174&" and localMonth("&$D$12&") ="&$F$174&" and LocalDay("&$D$12&")="&$G$174&" and Barix("&$D$12&",reference:=StartOfSession)="&A27&"","FG","","Close","5","0","",,,"False","T","EveryTick")) -> 3463 | O27: -0.0002886836028 | P27: =IF(AND($F$28<0,B27<0.999999),RTD("cqg.rtd",,"StudyData","Close("&$D$12&") when LocalYear("&$D$12&")="&$I$175&" and localMonth("&$D$12&") ="&$J$175&" and LocalDay("&$D$12&")="&$K$175&" and Barix("&$D$12&",reference:=StartOfSession)="&A27&"","FG","","Close","5","0","",,,"False","T","EveryTick"),RTD("cqg.rtd",,"StudyData","Close("&$D$12&") when LocalYear("&$D$12&")="&$E$175&" and localMonth("&$D$12&") ="&$F$175&" and LocalDay("&$D$12&")="&$G$175&" and Barix("&$D$12&",reference:=StartOfSession)="&A27&"","FG","","Close","5","0","",,,"False","T","EveryTick")) -> 3467 | Q27: -0.001440092166 | R27: =IF(AND($F$28<0,B27<0.999999),RTD("cqg.rtd",,"StudyData","Close("&$D$12&") when LocalYear("&$D$12&")="&$I$176&" and localMonth("&$D$12&") ="&$J$176&" and LocalDay("&$D$12&")="&$K$176&" and Barix("&$D$12&",reference:=StartOfSession)="&A27&"","FG","","Close","5","0","",,,"False","T","EveryTick"),RTD("cqg.rtd",,"StudyData","Close("&$D$12&") when LocalYear("&$D$12&")="&$E$176&" and localMonth("&$D$12&") ="&$F$176&" and LocalDay("&$D$12&")="&$G$176&" and Barix("&$D$12&",reference:=StartOfSession)="&A27&"","FG","","Close","5","0","",,,"False","T","EveryTick")) -> 3458 | S27: 0.008751458576 | T27: =IF(AND($F$28<0,B27<0.999999),RTD("cqg.rtd",,"StudyData","Close("&$D$12&") when LocalYear("&$D$12&")="&$I$177&" and localMonth("&$D$12&") ="&$J$177&" and LocalDay("&$D$12&")="&$K$177&" and Barix("&$D$12&",reference:=StartOfSession)="&A27&"","FG","","Close","5","0","",,,"False","T","EveryTick"),RTD("cqg.rtd",,"StudyData","Close("&$D$12&") when LocalYear("&$D$12&")="&$E$177&" and localMonth("&$D$12&") ="&$F$177&" and LocalDay("&$D$12&")="&$G$177&" and Barix("&$D$12&",reference:=StartOfSession)="&A27&"","FG","","Close","5","0","",,,"False","T","EveryTick")) -> 3412 | U27: -0.009579100145 | V27: =IF(AND($F$28<0,B27<0.999999),RTD("cqg.rtd",,"StudyData","Close("&$D$12&") when LocalYear("&$D$12&")="&$I$178&" and localMonth("&$D$12&") ="&$J$178&" and LocalDay("&$D$12&")="&$K$178&" and Barix("&$D$12&",reference:=StartOfSession)="&A27&"","FG","","Close","5","0","",,,"False","T","EveryTick"),RTD("cqg.rtd",,"StudyData","Close("&$D$12&") when LocalYear("&$D$12&")="&$E$178&" and localMonth("&$D$12&") ="&$F$178&" and LocalDay("&$D$12&")="&$G$178&" and Barix("&$D$12&",reference:=StartOfSession)="&A27&"","FG","","Close","5","0","",,,"False","T","EveryTick")) -> 3466 | W27: 0.006972690296 | X27: =IF(AND($F$28<0,B27<0.999999),RTD("cqg.rtd",,"StudyData","Close("&$D$12&") when LocalYear("&$D$12&")="&$I$179&" and localMonth("&$D$12&") ="&$J$179&" and LocalDay("&$D$12&")="&$K$179&" and Barix("&$D$12&",reference:=StartOfSession)="&A27&"","FG","","Close","5","0","",,,"False","T","EveryTick"),RTD("cqg.rtd",,"StudyData","Close("&$D$12&") when LocalYear("&$D$12&")="&$E$179&" and localMonth("&$D$12&") ="&$F$179&" and LocalDay("&$D$12&")="&$G$179&" and Barix("&$D$12&",reference:=StartOfSession)="&A27&"","FG","","Close","5","0","",,,"False","T","EveryTick")) -> 3440 | Y27: -0.0005810575247 | Z27: =IF(AND($F$28<0,B27<0.999999),RTD("cqg.rtd",,"StudyData","Close("&$D$12&") when LocalYear("&$D$12&")="&$I$180&" and localMonth("&$D$12&") ="&$J$180&" and LocalDay("&$D$12&")="&$K$180&" and Barix("&$D$12&",reference:=StartOfSession)="&A27&"","FG","","Close","5","0","",,,"False","T","EveryTick"),RTD("cqg.rtd",,"StudyData","Close("&$D$12&") when LocalYear("&$D$12&")="&$E$180&" and localMonth("&$D$12&") ="&$F$180&" and LocalDay("&$D$12&")="&$G$180&" and Barix("&$D$12&",reference:=StartOfSession)="&A27&"","FG","","Close","5","0","",,,"False","T","EveryTick")) -> 3462 | AA27: 0.002606429192
A28: 27 | B28: 10:15:00 | D28: =MOD(NOW(),1) -> 16:13:48.470 | E28: =MOD(RTD("cqg.rtd", ,"SystemInfo", "Linetime"),1) -> 09:13:45 | F28: =ROUND((D28-E28)*24,0) -> 7 | H28: =IF(AND($F$28<0,B28<0.999999),RTD("cqg.rtd",,"StudyData","Close("&$D$12&") when LocalYear("&$D$12&")="&$I$171&" and localMonth("&$D$12&") ="&$J$171&" and LocalDay("&$D$12&")="&$K$171&" and Barix("&$D$12&",reference:=StartOfSession)="&A28&"","FG","","Close","5","0","",,,"False","T","EveryTick"),RTD("cqg.rtd",,"StudyData","Close("&$D$12&") when LocalYear("&$D$12&")="&$E$171&" and localMonth("&$D$12&") ="&$F$171&" and LocalDay("&$D$12&")="&$G$171&" and Barix("&$D$12&",reference:=StartOfSession)="&A28&"","FG","","Close","5","0","",,,"False","T","EveryTick")) -> 3479 | I28: -0.00685127034 | J28: =IF(AND($F$28<0,B28<0.999999),RTD("cqg.rtd",,"StudyData","Close("&$D$12&") when LocalYear("&$D$12&")="&$I$172&" and localMonth("&$D$12&") ="&$J$172&" and LocalDay("&$D$12&")="&$K$172&" and Barix("&$D$12&",reference:=StartOfSession)="&A28&"","FG","","Close","5","0","",,,"False","T","EveryTick"),RTD("cqg.rtd",,"StudyData","Close("&$D$12&") when LocalYear("&$D$12&")="&$E$172&" and localMonth("&$D$12&") ="&$F$172&" and LocalDay("&$D$12&")="&$G$172&" and Barix("&$D$12&",reference:=StartOfSession)="&A28&"","FG","","Close","5","0","",,,"False","T","EveryTick")) -> 3522 | K28: -0.0005675368899 | L28: =IF(AND($F$28<0,B28<0.999999),RTD("cqg.rtd",,"StudyData","Close("&$D$12&") when LocalYear("&$D$12&")="&$I$173&" and localMonth("&$D$12&") ="&$J$173&" and LocalDay("&$D$12&")="&$K$173&" and Barix("&$D$12&",reference:=StartOfSession)="&A28&"","FG","","Close","5","0","",,,"False","T","EveryTick"),RTD("cqg.rtd",,"StudyData","Close("&$D$12&") when LocalYear("&$D$12&")="&$E$173&" and localMonth("&$D$12&") ="&$F$173&" and LocalDay("&$D$12&")="&$G$173&" and Barix("&$D$12&",reference:=StartOfSession)="&A28&"","FG","","Close","5","0","",,,"False","T","EveryTick")) -> 3455 | M28: -0.005182839044 | N28: =IF(AND($F$28<0,B28<0.999999),RTD("cqg.rtd",,"StudyData","Close("&$D$12&") when LocalYear("&$D$12&")="&$I$174&" and localMonth("&$D$12&") ="&$J$174&" and LocalDay("&$D$12&")="&$K$174&" and Barix("&$D$12&",reference:=StartOfSession)="&A28&"","FG","","Close","5","0","",,,"False","T","EveryTick"),RTD("cqg.rtd",,"StudyData","Close("&$D$12&") when LocalYear("&$D$12&")="&$E$174&" and localMonth("&$D$12&") ="&$F$174&" and LocalDay("&$D$12&")="&$G$174&" and Barix("&$D$12&",reference:=StartOfSession)="&A28&"","FG","","Close","5","0","",,,"False","T","EveryTick")) -> 3462 | O28: -0.0005773672055 | P28: =IF(AND($F$28<0,B28<0.999999),RTD("cqg.rtd",,"StudyData","Close("&$D$12&") when LocalYear("&$D$12&")="&$I$175&" and localMonth("&$D$12&") ="&$J$175&" and LocalDay("&$D$12&")="&$K$175&" and Barix("&$D$12&",reference:=StartOfSession)="&A28&"","FG","","Close","5","0","",,,"False","T","EveryTick"),RTD("cqg.rtd",,"StudyData","Close("&$D$12&") when LocalYear("&$D$12&")="&$E$175&" and localMonth("&$D$12&") ="&$F$175&" and LocalDay("&$D$12&")="&$G$175&" and Barix("&$D$12&",reference:=StartOfSession)="&A28&"","FG","","Close","5","0","",,,"False","T","EveryTick")) -> 3466 | Q28: -0.001728110599 | R28: =IF(AND($F$28<0,B28<0.999999),RTD("cqg.rtd",,"StudyData","Close("&$D$12&") when LocalYear("&$D$12&")="&$I$176&" and localMonth("&$D$12&") ="&$J$176&" and LocalDay("&$D$12&")="&$K$176&" and Barix("&$D$12&",reference:=StartOfSession)="&A28&"","FG","","Close","5","0","",,,"False","T","EveryTick"),RTD("cqg.rtd",,"StudyData","Close("&$D$12&") when LocalYear("&$D$12&")="&$E$176&" and localMonth("&$D$12&") ="&$F$176&" and LocalDay("&$D$12&")="&$G$176&" and Barix("&$D$12&",reference:=StartOfSession)="&A28&"","FG","","Close","5","0","",,,"False","T","EveryTick")) -> 3458 | S28: 0.008751458576 | T28: =IF(AND($F$28<0,B28<0.999999),RTD("cqg.rtd",,"StudyData","Close("&$D$12&") when LocalYear("&$D$12&")="&$I$177&" and localMonth("&$D$12&") ="&$J$177&" and LocalDay("&$D$12&")="&$K$177&" and Barix("&$D$12&",reference:=StartOfSession)="&A28&"","FG","","Close","5","0","",,,"False","T","EveryTick"),RTD("cqg.rtd",,"StudyData","Close("&$D$12&") when LocalYear("&$D$12&")="&$E$177&" and localMonth("&$D$12&") ="&$F$177&" and LocalDay("&$D$12&")="&$G$177&" and Barix("&$D$12&",reference:=StartOfSession)="&A28&"","FG","","Close","5","0","",,,"False","T","EveryTick")) -> 3406 | U28: -0.01132075472 | V28: =IF(AND($F$28<0,B28<0.999999),RTD("cqg.rtd",,"StudyData","Close("&$D$12&") when LocalYear("&$D$12&")="&$I$178&" and localMonth("&$D$12&") ="&$J$178&" and LocalDay("&$D$12&")="&$K$178&" and Barix("&$D$12&",reference:=StartOfSession)="&A28&"","FG","","Close","5","0","",,,"False","T","EveryTick"),RTD("cqg.rtd",,"StudyData","Close("&$D$12&") when LocalYear("&$D$12&")="&$E$178&" and localMonth("&$D$12&") ="&$F$178&" and LocalDay("&$D$12&")="&$G$178&" and Barix("&$D$12&",reference:=StartOfSession)="&A28&"","FG","","Close","5","0","",,,"False","T","EveryTick")) -> 3466 | W28: 0.006972690296 | X28: =IF(AND($F$28<0,B28<0.999999),RTD("cqg.rtd",,"StudyData","Close("&$D$12&") when LocalYear("&$D$12&")="&$I$179&" and localMonth("&$D$12&") ="&$J$179&" and LocalDay("&$D$12&")="&$K$179&" and Barix("&$D$12&",reference:=StartOfSession)="&A28&"","FG","","Close","5","0","",,,"False","T","EveryTick"),RTD("cqg.rtd",,"StudyData","Close("&$D$12&") when LocalYear("&$D$12&")="&$E$179&" and localMonth("&$D$12&") ="&$F$179&" and LocalDay("&$D$12&")="&$G$179&" and Barix("&$D$12&",reference:=StartOfSession)="&A28&"","FG","","Close","5","0","",,,"False","T","EveryTick")) -> 3440 | Y28: -0.0005810575247 | Z28: =IF(AND($F$28<0,B28<0.999999),RTD("cqg.rtd",,"StudyData","Close("&$D$12&") when LocalYear("&$D$12&")="&$I$180&" and localMonth("&$D$12&") ="&$J$180&" and LocalDay("&$D$12&")="&$K$180&" and Barix("&$D$12&",reference:=StartOfSession)="&A28&"","FG","","Close","5","0","",,,"False","T","EveryTick"),RTD("cqg.rtd",,"StudyData","Close("&$D$12&") when LocalYear("&$D$12&")="&$E$180&" and localMonth("&$D$12&") ="&$F$180&" and LocalDay("&$D$12&")="&$G$180&" and Barix("&$D$12&",reference:=StartOfSession)="&A28&"","FG","","Close","5","0","",,,"False","T","EveryTick")) -> 3463 | AA28: 0.002896032436
A29: 28 | B29: 10:20:00 | E29: 01:00:00 | H29: =IF(AND($F$28<0,B29<0.999999),RTD("cqg.rtd",,"StudyData","Close("&$D$12&") when LocalYear("&$D$12&")="&$I$171&" and localMonth("&$D$12&") ="&$J$171&" and LocalDay("&$D$12&")="&$K$171&" and Barix("&$D$12&",reference:=StartOfSession)="&A29&"","FG","","Close","5","0","",,,"False","T","EveryTick"),RTD("cqg.rtd",,"StudyData","Close("&$D$12&") when LocalYear("&$D$12&")="&$E$171&" and localMonth("&$D$12&") ="&$F$171&" and LocalDay("&$D$12&")="&$G$171&" and Barix("&$D$12&",reference:=StartOfSession)="&A29&"","FG","","Close","5","0","",,,"False","T","EveryTick")) -> 3477 | I29: -0.007422209535 | J29: =IF(AND($F$28<0,B29<0.999999),RTD("cqg.rtd",,"StudyData","Close("&$D$12&") when LocalYear("&$D$12&")="&$I$172&" and localMonth("&$D$12&") ="&$J$172&" and LocalDay("&$D$12&")="&$K$172&" and Barix("&$D$12&",reference:=StartOfSession)="&A29&"","FG","","Close","5","0","",,,"False","T","EveryTick"),RTD("cqg.rtd",,"StudyData","Close("&$D$12&") when LocalYear("&$D$12&")="&$E$172&" and localMonth("&$D$12&") ="&$F$172&" and LocalDay("&$D$12&")="&$G$172&" and Barix("&$D$12&",reference:=StartOfSession)="&A29&"","FG","","Close","5","0","",,,"False","T","EveryTick")) -> 3523 | K29: -0.0002837684449 | L29: =IF(AND($F$28<0,B29<0.999999),RTD("cqg.rtd",,"StudyData","Close("&$D$12&") when LocalYear("&$D$12&")="&$I$173&" and localMonth("&$D$12&") ="&$J$173&" and LocalDay("&$D$12&")="&$K$173&" and Barix("&$D$12&",reference:=StartOfSession)="&A29&"","FG","","Close","5","0","",,,"False","T","EveryTick"),RTD("cqg.rtd",,"StudyData","Close("&$D$12&") when LocalYear("&$D$12&")="&$E$173&" and localMonth("&$D$12&") ="&$F$173&" and LocalDay("&$D$12&")="&$G$173&" and Barix("&$D$12&",reference:=StartOfSession)="&A29&"","FG","","Close","5","0","",,,"False","T","EveryTick")) -> 3457 | M29: -0.004606968039 | N29: =IF(AND($F$28<0,B29<0.999999),RTD("cqg.rtd",,"StudyData","Close("&$D$12&") when LocalYear("&$D$12&")="&$I$174&" and localMonth("&$D$12&") ="&$J$174&" and LocalDay("&$D$12&")="&$K$174&" and Barix("&$D$12&",reference:=StartOfSession)="&A29&"","FG","","Close","5","0","",,,"False","T","EveryTick"),RTD("cqg.rtd",,"StudyData","Close("&$D$12&") when LocalYear("&$D$12&")="&$E$174&" and localMonth("&$D$12&") ="&$F$174&" and LocalDay("&$D$12&")="&$G$174&" and Barix("&$D$12&",reference:=StartOfSession)="&A29&"","FG","","Close","5","0","",,,"False","T","EveryTick")) -> 3461 | O29: -0.0008660508083 | P29: =IF(AND($F$28<0,B29<0.999999),RTD("cqg.rtd",,"StudyData","Close("&$D$12&") when LocalYear("&$D$12&")="&$I$175&" and localMonth("&$D$12&") ="&$J$175&" and LocalDay("&$D$12&")="&$K$175&" and Barix("&$D$12&",reference:=StartOfSession)="&A29&"","FG","","Close","5","0","",,,"False","T","EveryTick"),RTD("cqg.rtd",,"StudyData","Close("&$D$12&") when LocalYear("&$D$12&")="&$E$175&" and localMonth("&$D$12&") ="&$F$175&" and LocalDay("&$D$12&")="&$G$175&" and Barix("&$D$12&",reference:=StartOfSession)="&A29&"","FG","","Close","5","0","",,,"False","T","EveryTick")) -> 3466 | Q29: -0.001728110599 | R29: =IF(AND($F$28<0,B29<0.999999),RTD("cqg.rtd",,"StudyData","Close("&$D$12&") when LocalYear("&$D$12&")="&$I$176&" and localMonth("&$D$12&") ="&$J$176&" and LocalDay("&$D$12&")="&$K$176&" and Barix("&$D$12&",reference:=StartOfSession)="&A29&"","FG","","Close","5","0","",,,"False","T","EveryTick"),RTD("cqg.rtd",,"StudyData","Close("&$D$12&") when LocalYear("&$D$12&")="&$E$176&" and localMonth("&$D$12&") ="&$F$176&" and LocalDay("&$D$12&")="&$G$176&" and Barix("&$D$12&",reference:=StartOfSession)="&A29&"","FG","","Close","5","0","",,,"False","T","EveryTick")) -> 3454 | S29: 0.007584597433 | T29: =IF(AND($F$28<0,B29<0.999999),RTD("cqg.rtd",,"StudyData","Close("&$D$12&") when LocalYear("&$D$12&")="&$I$177&" and localMonth("&$D$12&") ="&$J$177&" and LocalDay("&$D$12&")="&$K$177&" and Barix("&$D$12&",reference:=StartOfSession)="&A29&"","FG","","Close","5","0","",,,"False","T","EveryTick"),RTD("cqg.rtd",,"StudyData","Close("&$D$12&") when LocalYear("&$D$12&")="&$E$177&" and localMonth("&$D$12&") ="&$F$177&" and LocalDay("&$D$12&")="&$G$177&" and Barix("&$D$12&",reference:=StartOfSession)="&A29&"","FG","","Close","5","0","",,,"False","T","EveryTick")) -> 3409 | U29: -0.01044992743 | V29: =IF(AND($F$28<0,B29<0.999999),RTD("cqg.rtd",,"StudyData","Close("&$D$12&") when LocalYear("&$D$12&")="&$I$178&" and localMonth("&$D$12&") ="&$J$178&" and LocalDay("&$D$12&")="&$K$178&" and Barix("&$D$12&",reference:=StartOfSession)="&A29&"","FG","","Close","5","0","",,,"False","T","EveryTick"),RTD("cqg.rtd",,"StudyData","Close("&$D$12&") when LocalYear("&$D$12&")="&$E$178&" and localMonth("&$D$12&") ="&$F$178&" and LocalDay("&$D$12&")="&$G$178&" and Barix("&$D$12&",reference:=StartOfSession)="&A29&"","FG","","Close","5","0","",,,"False","T","EveryTick")) -> 3465 | W29: 0.006682161534 | X29: =IF(AND($F$28<0,B29<0.999999),RTD("cqg.rtd",,"StudyData","Close("&$D$12&") when LocalYear("&$D$12&")="&$I$179&" and localMonth("&$D$12&") ="&$J$179&" and LocalDay("&$D$12&")="&$K$179&" and Barix("&$D$12&",reference:=StartOfSession)="&A29&"","FG","","Close","5","0","",,,"False","T","EveryTick"),RTD("cqg.rtd",,"StudyData","Close("&$D$12&") when LocalYear("&$D$12&")="&$E$179&" and localMonth("&$D$12&") ="&$F$179&" and LocalDay("&$D$12&")="&$G$179&" and Barix("&$D$12&",reference:=StartOfSession)="&A29&"","FG","","Close","5","0","",,,"False","T","EveryTick")) -> 3440 | Y29: -0.0005810575247 | Z29: =IF(AND($F$28<0,B29<0.999999),RTD("cqg.rtd",,"StudyData","Close("&$D$12&") when LocalYear("&$D$12&")="&$I$180&" and localMonth("&$D$12&") ="&$J$180&" and LocalDay("&$D$12&")="&$K$180&" and Barix("&$D$12&",reference:=StartOfSession)="&A29&"","FG","","Close","5","0","",,,"False","T","EveryTick"),RTD("cqg.rtd",,"StudyData","Close("&$D$12&") when LocalYear("&$D$12&")="&$E$180&" and localMonth("&$D$12&") ="&$F$180&" and LocalDay("&$D$12&")="&$G$180&" and Barix("&$D$12&",reference:=StartOfSession)="&A29&"","FG","","Close","5","0","",,,"False","T","EveryTick")) -> 3463 | AA29: 0.002896032436
A30: 29 | B30: 10:25:00 | E30: =IF(F28<0,E29+(F28+24)/24,E29+F28/24) -> 08:00:00 | H30: =IF(AND($F$28<0,B30<0.999999),RTD("cqg.rtd",,"StudyData","Close("&$D$12&") when LocalYear("&$D$12&")="&$I$171&" and localMonth("&$D$12&") ="&$J$171&" and LocalDay("&$D$12&")="&$K$171&" and Barix("&$D$12&",reference:=StartOfSession)="&A30&"","FG","","Close","5","0","",,,"False","T","EveryTick"),RTD("cqg.rtd",,"StudyData","Close("&$D$12&") when LocalYear("&$D$12&")="&$E$171&" and localMonth("&$D$12&") ="&$F$171&" and LocalDay("&$D$12&")="&$G$171&" and Barix("&$D$12&",reference:=StartOfSession)="&A30&"","FG","","Close","5","0","",,,"False","T","EveryTick")) -> 3476 | I30: -0.007707679132 | J30: =IF(AND($F$28<0,B30<0.999999),RTD("cqg.rtd",,"StudyData","Close("&$D$12&") when LocalYear("&$D$12&")="&$I$172&" and localMonth("&$D$12&") ="&$J$172&" and LocalDay("&$D$12&")="&$K$172&" and Barix("&$D$12&",reference:=StartOfSession)="&A30&"","FG","","Close","5","0","",,,"False","T","EveryTick"),RTD("cqg.rtd",,"StudyData","Close("&$D$12&") when LocalYear("&$D$12&")="&$E$172&" and localMonth("&$D$12&") ="&$F$172&" and LocalDay("&$D$12&")="&$G$172&" and Barix("&$D$12&",reference:=StartOfSession)="&A30&"","FG","","Close","5","0","",,,"False","T","EveryTick")) -> 3523 | K30: -0.0002837684449 | L30: =IF(AND($F$28<0,B30<0.999999),RTD("cqg.rtd",,"StudyData","Close("&$D$12&") when LocalYear("&$D$12&")="&$I$173&" and localMonth("&$D$12&") ="&$J$173&" and LocalDay("&$D$12&")="&$K$173&" and Barix("&$D$12&",reference:=StartOfSession)="&A30&"","FG","","Close","5","0","",,,"False","T","EveryTick"),RTD("cqg.rtd",,"StudyData","Close("&$D$12&") when LocalYear("&$D$12&")="&$E$173&" and localMonth("&$D$12&") ="&$F$173&" and LocalDay("&$D$12&")="&$G$173&" and Barix("&$D$12&",reference:=StartOfSession)="&A30&"","FG","","Close","5","0","",,,"False","T","EveryTick")) -> 3456 | M30: -0.004894903542 | N30: =IF(AND($F$28<0,B30<0.999999),RTD("cqg.rtd",,"StudyData","Close("&$D$12&") when LocalYear("&$D$12&")="&$I$174&" and localMonth("&$D$12&") ="&$J$174&" and LocalDay("&$D$12&")="&$K$174&" and Barix("&$D$12&",reference:=StartOfSession)="&A30&"","FG","","Close","5","0","",,,"False","T","EveryTick"),RTD("cqg.rtd",,"StudyData","Close("&$D$12&") when LocalYear("&$D$12&")="&$E$174&" and localMonth("&$D$12&") ="&$F$174&" and LocalDay("&$D$12&")="&$G$174&" and Barix("&$D$12&",reference:=StartOfSession)="&A30&"","FG","","Close","5","0","",,,"False","T","EveryTick")) -> 3462 | O30: -0.0005773672055 | P30: =IF(AND($F$28<0,B30<0.999999),RTD("cqg.rtd",,"StudyData","Close("&$D$12&") when LocalYear("&$D$12&")="&$I$175&" and localMonth("&$D$12&") ="&$J$175&" and LocalDay("&$D$12&")="&$K$175&" and Barix("&$D$12&",reference:=StartOfSession)="&A30&"","FG","","Close","5","0","",,,"False","T","EveryTick"),RTD("cqg.rtd",,"StudyData","Close("&$D$12&") when LocalYear("&$D$12&")="&$E$175&" and localMonth("&$D$12&") ="&$F$175&" and LocalDay("&$D$12&")="&$G$175&" and Barix("&$D$12&",reference:=StartOfSession)="&A30&"","FG","","Close","5","0","",,,"False","T","EveryTick")) -> 3465 | Q30: -0.002016129032 | R30: =IF(AND($F$28<0,B30<0.999999),RTD("cqg.rtd",,"StudyData","Close("&$D$12&") when LocalYear("&$D$12&")="&$I$176&" and localMonth("&$D$12&") ="&$J$176&" and LocalDay("&$D$12&")="&$K$176&" and Barix("&$D$12&",reference:=StartOfSession)="&A30&"","FG","","Close","5","0","",,,"False","T","EveryTick"),RTD("cqg.rtd",,"StudyData","Close("&$D$12&") when LocalYear("&$D$12&")="&$E$176&" and localMonth("&$D$12&") ="&$F$176&" and LocalDay("&$D$12&")="&$G$176&" and Barix("&$D$12&",reference:=StartOfSession)="&A30&"","FG","","Close","5","0","",,,"False","T","EveryTick")) -> 3453 | S30: 0.007292882147 | T30: =IF(AND($F$28<0,B30<0.999999),RTD("cqg.rtd",,"StudyData","Close("&$D$12&") when LocalYear("&$D$12&")="&$I$177&" and localMonth("&$D$12&") ="&$J$177&" and LocalDay("&$D$12&")="&$K$177&" and Barix("&$D$12&",reference:=StartOfSession)="&A30&"","FG","","Close","5","0","",,,"False","T","EveryTick"),RTD("cqg.rtd",,"StudyData","Close("&$D$12&") when LocalYear("&$D$12&")="&$E$177&" and localMonth("&$D$12&") ="&$F$177&" and LocalDay("&$D$12&")="&$G$177&" and Barix("&$D$12&",reference:=StartOfSession)="&A30&"","FG","","Close","5","0","",,,"False","T","EveryTick")) -> 3411 | U30: -0.009869375907 | V30: =IF(AND($F$28<0,B30<0.999999),RTD("cqg.rtd",,"StudyData","Close("&$D$12&") when LocalYear("&$D$12&")="&$I$178&" and localMonth("&$D$12&") ="&$J$178&" and LocalDay("&$D$12&")="&$K$178&" and Barix("&$D$12&",reference:=StartOfSession)="&A30&"","FG","","Close","5","0","",,,"False","T","EveryTick"),RTD("cqg.rtd",,"StudyData","Close("&$D$12&") when LocalYear("&$D$12&")="&$E$178&" and localMonth("&$D$12&") ="&$F$178&" and LocalDay("&$D$12&")="&$G$178&" and Barix("&$D$12&",reference:=StartOfSession)="&A30&"","FG","","Close","5","0","",,,"False","T","EveryTick")) -> 3466 | W30: 0.006972690296 | X30: =IF(AND($F$28<0,B30<0.999999),RTD("cqg.rtd",,"StudyData","Close("&$D$12&") when LocalYear("&$D$12&")="&$I$179&" and localMonth("&$D$12&") ="&$J$179&" and LocalDay("&$D$12&")="&$K$179&" and Barix("&$D$12&",reference:=StartOfSession)="&A30&"","FG","","Close","5","0","",,,"False","T","EveryTick"),RTD("cqg.rtd",,"StudyData","Close("&$D$12&") when LocalYear("&$D$12&")="&$E$179&" and localMonth("&$D$12&") ="&$F$179&" and LocalDay("&$D$12&")="&$G$179&" and Barix("&$D$12&",reference:=StartOfSession)="&A30&"","FG","","Close","5","0","",,,"False","T","EveryTick")) -> 3440 | Y30: -0.0005810575247 | Z30: =IF(AND($F$28<0,B30<0.999999),RTD("cqg.rtd",,"StudyData","Close("&$D$12&") when LocalYear("&$D$12&")="&$I$180&" and localMonth("&$D$12&") ="&$J$180&" and LocalDay("&$D$12&")="&$K$180&" and Barix("&$D$12&",reference:=StartOfSession)="&A30&"","FG","","Close","5","0","",,,"False","T","EveryTick"),RTD("cqg.rtd",,"StudyData","Close("&$D$12&") when LocalYear("&$D$12&")="&$E$180&" and localMonth("&$D$12&") ="&$F$180&" and LocalDay("&$D$12&")="&$G$180&" and Barix("&$D$12&",reference:=StartOfSession)="&A30&"","FG","","Close","5","0","",,,"False","T","EveryTick")) -> 3463 | AA30: 0.002896032436
A31: 30 | B31: 10:30:00 | H31: =IF(AND($F$28<0,B31<0.999999),RTD("cqg.rtd",,"StudyData","Close("&$D$12&") when LocalYear("&$D$12&")="&$I$171&" and localMonth("&$D$12&") ="&$J$171&" and LocalDay("&$D$12&")="&$K$171&" and Barix("&$D$12&",reference:=StartOfSession)="&A31&"","FG","","Close","5","0","",,,"False","T","EveryTick"),RTD("cqg.rtd",,"StudyData","Close("&$D$12&") when LocalYear("&$D$12&")="&$E$171&" and localMonth("&$D$12&") ="&$F$171&" and LocalDay("&$D$12&")="&$G$171&" and Barix("&$D$12&",reference:=StartOfSession)="&A31&"","FG","","Close","5","0","",,,"False","T","EveryTick")) -> 3477 | I31: -0.007422209535 | J31: =IF(AND($F$28<0,B31<0.999999),RTD("cqg.rtd",,"StudyData","Close("&$D$12&") when LocalYear("&$D$12&")="&$I$172&" and localMonth("&$D$12&") ="&$J$172&" and LocalDay("&$D$12&")="&$K$172&" and Barix("&$D$12&",reference:=StartOfSession)="&A31&"","FG","","Close","5","0","",,,"False","T","EveryTick"),RTD("cqg.rtd",,"StudyData","Close("&$D$12&") when LocalYear("&$D$12&")="&$E$172&" and localMonth("&$D$12&") ="&$F$172&" and LocalDay("&$D$12&")="&$G$172&" and Barix("&$D$12&",reference:=StartOfSession)="&A31&"","FG","","Close","5","0","",,,"False","T","EveryTick")) -> 3524 | K31: 0 | L31: =IF(AND($F$28<0,B31<0.999999),RTD("cqg.rtd",,"StudyData","Close("&$D$12&") when LocalYear("&$D$12&")="&$I$173&" and localMonth("&$D$12&") ="&$J$173&" and LocalDay("&$D$12&")="&$K$173&" and Barix("&$D$12&",reference:=StartOfSession)="&A31&"","FG","","Close","5","0","",,,"False","T","EveryTick"),RTD("cqg.rtd",,"StudyData","Close("&$D$12&") when LocalYear("&$D$12&")="&$E$173&" and localMonth("&$D$12&") ="&$F$173&" and LocalDay("&$D$12&")="&$G$173&" and Barix("&$D$12&",reference:=StartOfSession)="&A31&"","FG","","Close","5","0","",,,"False","T","EveryTick")) -> 3458 | M31: -0.004319032537 | N31: =IF(AND($F$28<0,B31<0.999999),RTD("cqg.rtd",,"StudyData","Close("&$D$12&") when LocalYear("&$D$12&")="&$I$174&" and localMonth("&$D$12&") ="&$J$174&" and LocalDay("&$D$12&")="&$K$174&" and Barix("&$D$12&",reference:=StartOfSession)="&A31&"","FG","","Close","5","0","",,,"False","T","EveryTick"),RTD("cqg.rtd",,"StudyData","Close("&$D$12&") when LocalYear("&$D$12&")="&$E$174&" and localMonth("&$D$12&") ="&$F$174&" and LocalDay("&$D$12&")="&$G$174&" and Barix("&$D$12&",reference:=StartOfSession)="&A31&"","FG","","Close","5","0","",,,"False","T","EveryTick")) -> 3463 | O31: -0.0002886836028 | P31: =IF(AND($F$28<0,B31<0.999999),RTD("cqg.rtd",,"StudyData","Close("&$D$12&") when LocalYear("&$D$12&")="&$I$175&" and localMonth("&$D$12&") ="&$J$175&" and LocalDay("&$D$12&")="&$K$175&" and Barix("&$D$12&",reference:=StartOfSession)="&A31&"","FG","","Close","5","0","",,,"False","T","EveryTick"),RTD("cqg.rtd",,"StudyData","Close("&$D$12&") when LocalYear("&$D$12&")="&$E$175&" and localMonth("&$D$12&") ="&$F$175&" and LocalDay("&$D$12&")="&$G$175&" and Barix("&$D$12&",reference:=StartOfSession)="&A31&"","FG","","Close","5","0","",,,"False","T","EveryTick")) -> 3466 | Q31: -0.001728110599 | R31: =IF(AND($F$28<0,B31<0.999999),RTD("cqg.rtd",,"StudyData","Close("&$D$12&") when LocalYear("&$D$12&")="&$I$176&" and localMonth("&$D$12&") ="&$J$176&" and LocalDay("&$D$12&")="&$K$176&" and Barix("&$D$12&",reference:=StartOfSession)="&A31&"","FG","","Close","5","0","",,,"False","T","EveryTick"),RTD("cqg.rtd",,"StudyData","Close("&$D$12&") when LocalYear("&$D$12&")="&$E$176&" and localMonth("&$D$12&") ="&$F$176&" and LocalDay("&$D$12&")="&$G$176&" and Barix("&$D$12&",reference:=StartOfSession)="&A31&"","FG","","Close","5","0","",,,"False","T","EveryTick")) -> 3449 | S31: 0.006126021004 | T31: =IF(AND($F$28<0,B31<0.999999),RTD("cqg.rtd",,"StudyData","Close("&$D$12&") when LocalYear("&$D$12&")="&$I$177&" and localMonth("&$D$12&") ="&$J$177&" and LocalDay("&$D$12&")="&$K$177&" and Barix("&$D$12&",reference:=StartOfSession)="&A31&"","FG","","Close","5","0","",,,"False","T","EveryTick"),RTD("cqg.rtd",,"StudyData","Close("&$D$12&") when LocalYear("&$D$12&")="&$E$177&" and localMonth("&$D$12&") ="&$F$177&" and LocalDay("&$D$12&")="&$G$177&" and Barix("&$D$12&",reference:=StartOfSession)="&A31&"","FG","","Close","5","0","",,,"False","T","EveryTick")) -> 3409 | U31: -0.01044992743 | V31: =IF(AND($F$28<0,B31<0.999999),RTD("cqg.rtd",,"StudyData","Close("&$D$12&") when LocalYear("&$D$12&")="&$I$178&" and localMonth("&$D$12&") ="&$J$178&" and LocalDay("&$D$12&")="&$K$178&" and Barix("&$D$12&",reference:=StartOfSession)="&A31&"","FG","","Close","5","0","",,,"False","T","EveryTick"),RTD("cqg.rtd",,"StudyData","Close("&$D$12&") when LocalYear("&$D$12&")="&$E$178&" and localMonth("&$D$12&") ="&$F$178&" and LocalDay("&$D$12&")="&$G$178&" and Barix("&$D$12&",reference:=StartOfSession)="&A31&"","FG","","Close","5","0","",,,"False","T","EveryTick")) -> 3463 | W31: 0.006101104009 | X31: =IF(AND($F$28<0,B31<0.999999),RTD("cqg.rtd",,"StudyData","Close("&$D$12&") when LocalYear("&$D$12&")="&$I$179&" and localMonth("&$D$12&") ="&$J$179&" and LocalDay("&$D$12&")="&$K$179&" and Barix("&$D$12&",reference:=StartOfSession)="&A31&"","FG","","Close","5","0","",,,"False","T","EveryTick"),RTD("cqg.rtd",,"StudyData","Close("&$D$12&") when LocalYear("&$D$12&")="&$E$179&" and localMonth("&$D$12&") ="&$F$179&" and LocalDay("&$D$12&")="&$G$179&" and Barix("&$D$12&",reference:=StartOfSession)="&A31&"","FG","","Close","5","0","",,,"False","T","EveryTick")) -> 3443 | Y31: 0.0002905287623 | Z31: =IF(AND($F$28<0,B31<0.999999),RTD("cqg.rtd",,"StudyData","Close("&$D$12&") when LocalYear("&$D$12&")="&$I$180&" and localMonth("&$D$12&") ="&$J$180&" and LocalDay("&$D$12&")="&$K$180&" and Barix("&$D$12&",reference:=StartOfSession)="&A31&"","FG","","Close","5","0","",,,"False","T","EveryTick"),RTD("cqg.rtd",,"StudyData","Close("&$D$12&") when LocalYear("&$D$12&")="&$E$180&" and localMonth("&$D$12&") ="&$F$180&" and LocalDay("&$D$12&")="&$G$180&" and Barix("&$D$12&",reference:=StartOfSession)="&A31&"","FG","","Close","5","0","",,,"False","T","EveryTick")) -> 3464 | AA31: 0.003185635679
A32: 31 | B32: 10:35:00 | H32: =IF(AND($F$28<0,B32<0.999999),RTD("cqg.rtd",,"StudyData","Close("&$D$12&") when LocalYear("&$D$12&")="&$I$171&" and localMonth("&$D$12&") ="&$J$171&" and LocalDay("&$D$12&")="&$K$171&" and Barix("&$D$12&",reference:=StartOfSession)="&A32&"","FG","","Close","5","0","",,,"False","T","EveryTick"),RTD("cqg.rtd",,"StudyData","Close("&$D$12&") when LocalYear("&$D$12&")="&$E$171&" and localMonth("&$D$12&") ="&$F$171&" and LocalDay("&$D$12&")="&$G$171&" and Barix("&$D$12&",reference:=StartOfSession)="&A32&"","FG","","Close","5","0","",,,"False","T","EveryTick")) -> 3480 | I32: -0.006565800742 | J32: =IF(AND($F$28<0,B32<0.999999),RTD("cqg.rtd",,"StudyData","Close("&$D$12&") when LocalYear("&$D$12&")="&$I$172&" and localMonth("&$D$12&") ="&$J$172&" and LocalDay("&$D$12&")="&$K$172&" and Barix("&$D$12&",reference:=StartOfSession)="&A32&"","FG","","Close","5","0","",,,"False","T","EveryTick"),RTD("cqg.rtd",,"StudyData","Close("&$D$12&") when LocalYear("&$D$12&")="&$E$172&" and localMonth("&$D$12&") ="&$F$172&" and LocalDay("&$D$12&")="&$G$172&" and Barix("&$D$12&",reference:=StartOfSession)="&A32&"","FG","","Close","5","0","",,,"False","T","EveryTick")) -> 3523 | K32: -0.0002837684449 | L32: =IF(AND($F$28<0,B32<0.999999),RTD("cqg.rtd",,"StudyData","Close("&$D$12&") when LocalYear("&$D$12&")="&$I$173&" and localMonth("&$D$12&") ="&$J$173&" and LocalDay("&$D$12&")="&$K$173&" and Barix("&$D$12&",reference:=StartOfSession)="&A32&"","FG","","Close","5","0","",,,"False","T","EveryTick"),RTD("cqg.rtd",,"StudyData","Close("&$D$12&") when LocalYear("&$D$12&")="&$E$173&" and localMonth("&$D$12&") ="&$F$173&" and LocalDay("&$D$12&")="&$G$173&" and Barix("&$D$12&",reference:=StartOfSession)="&A32&"","FG","","Close","5","0","",,,"False","T","EveryTick")) -> 3459 | M32: -0.004031097034 | N32: =IF(AND($F$28<0,B32<0.999999),RTD("cqg.rtd",,"StudyData","Close("&$D$12&") when LocalYear("&$D$12&")="&$I$174&" and localMonth("&$D$12&") ="&$J$174&" and LocalDay("&$D$12&")="&$K$174&" and Barix("&$D$12&",reference:=StartOfSession)="&A32&"","FG","","Close","5","0","",,,"False","T","EveryTick"),RTD("cqg.rtd",,"StudyData","Close("&$D$12&") when LocalYear("&$D$12&")="&$E$174&" and localMonth("&$D$12&") ="&$F$174&" and LocalDay("&$D$12&")="&$G$174&" and Barix("&$D$12&",reference:=StartOfSession)="&A32&"","FG","","Close","5","0","",,,"False","T","EveryTick")) -> 3464 | O32: 0 | P32: =IF(AND($F$28<0,B32<0.999999),RTD("cqg.rtd",,"StudyData","Close("&$D$12&") when LocalYear("&$D$12&")="&$I$175&" and localMonth("&$D$12&") ="&$J$175&" and LocalDay("&$D$12&")="&$K$175&" and Barix("&$D$12&",reference:=StartOfSession)="&A32&"","FG","","Close","5","0","",,,"False","T","EveryTick"),RTD("cqg.rtd",,"StudyData","Close("&$D$12&") when LocalYear("&$D$12&")="&$E$175&" and localMonth("&$D$12&") ="&$F$175&" and LocalDay("&$D$12&")="&$G$175&" and Barix("&$D$12&",reference:=StartOfSession)="&A32&"","FG","","Close","5","0","",,,"False","T","EveryTick")) -> 3467 | Q32: -0.001440092166 | R32: =IF(AND($F$28<0,B32<0.999999),RTD("cqg.rtd",,"StudyData","Close("&$D$12&") when LocalYear("&$D$12&")="&$I$176&" and localMonth("&$D$12&") ="&$J$176&" and LocalDay("&$D$12&")="&$K$176&" and Barix("&$D$12&",reference:=StartOfSession)="&A32&"","FG","","Close","5","0","",,,"False","T","EveryTick"),RTD("cqg.rtd",,"StudyData","Close("&$D$12&") when LocalYear("&$D$12&")="&$E$176&" and localMonth("&$D$12&") ="&$F$176&" and LocalDay("&$D$12&")="&$G$176&" and Barix("&$D$12&",reference:=StartOfSession)="&A32&"","FG","","Close","5","0","",,,"False","T","EveryTick")) -> 3449 | S32: 0.006126021004 | T32: =IF(AND($F$28<0,B32<0.999999),RTD("cqg.rtd",,"StudyData","Close("&$D$12&") when LocalYear("&$D$12&")="&$I$177&" and localMonth("&$D$12&") ="&$J$177&" and LocalDay("&$D$12&")="&$K$177&" and Barix("&$D$12&",reference:=StartOfSession)="&A32&"","FG","","Close","5","0","",,,"False","T","EveryTick"),RTD("cqg.rtd",,"StudyData","Close("&$D$12&") when LocalYear("&$D$12&")="&$E$177&" and localMonth("&$D$12&") ="&$F$177&" and LocalDay("&$D$12&")="&$G$177&" and Barix("&$D$12&",reference:=StartOfSession)="&A32&"","FG","","Close","5","0","",,,"False","T","EveryTick")) -> 3415 | U32: -0.008708272859 | V32: =IF(AND($F$28<0,B32<0.999999),RTD("cqg.rtd",,"StudyData","Close("&$D$12&") when LocalYear("&$D$12&")="&$I$178&" and localMonth("&$D$12&") ="&$J$178&" and LocalDay("&$D$12&")="&$K$178&" and Barix("&$D$12&",reference:=StartOfSession)="&A32&"","FG","","Close","5","0","",,,"False","T","EveryTick"),RTD("cqg.rtd",,"StudyData","Close("&$D$12&") when LocalYear("&$D$12&")="&$E$178&" and localMonth("&$D$12&") ="&$F$178&" and LocalDay("&$D$12&")="&$G$178&" and Barix("&$D$12&",reference:=StartOfSession)="&A32&"","FG","","Close","5","0","",,,"False","T","EveryTick")) -> 3461 | W32: 0.005520046485 | X32: =IF(AND($F$28<0,B32<0.999999),RTD("cqg.rtd",,"StudyData","Close("&$D$12&") when LocalYear("&$D$12&")="&$I$179&" and localMonth("&$D$12&") ="&$J$179&" and LocalDay("&$D$12&")="&$K$179&" and Barix("&$D$12&",reference:=StartOfSession)="&A32&"","FG","","Close","5","0","",,,"False","T","EveryTick"),RTD("cqg.rtd",,"StudyData","Close("&$D$12&") when LocalYear("&$D$12&")="&$E$179&" and localMonth("&$D$12&") ="&$F$179&" and LocalDay("&$D$12&")="&$G$179&" and Barix("&$D$12&",reference:=StartOfSession)="&A32&"","FG","","Close","5","0","",,,"False","T","EveryTick")) -> 3443 | Y32: 0.0002905287623 | Z32: =IF(AND($F$28<0,B32<0.999999),RTD("cqg.rtd",,"StudyData","Close("&$D$12&") when LocalYear("&$D$12&")="&$I$180&" and localMonth("&$D$12&") ="&$J$180&" and LocalDay("&$D$12&")="&$K$180&" and Barix("&$D$12&",reference:=StartOfSession)="&A32&"","FG","","Close","5","0","",,,"False","T","EveryTick"),RTD("cqg.rtd",,"StudyData","Close("&$D$12&") when LocalYear("&$D$12&")="&$E$180&" and localMonth("&$D$12&") ="&$F$180&" and LocalDay("&$D$12&")="&$G$180&" and Barix("&$D$12&",reference:=StartOfSession)="&A32&"","FG","","Close","5","0","",,,"False","T","EveryTick")) -> 3465 | AA32: 0.003475238923
A33: 32 | B33: 10:40:00 | H33: =IF(AND($F$28<0,B33<0.999999),RTD("cqg.rtd",,"StudyData","Close("&$D$12&") when LocalYear("&$D$12&")="&$I$171&" and localMonth("&$D$12&") ="&$J$171&" and LocalDay("&$D$12&")="&$K$171&" and Barix("&$D$12&",reference:=StartOfSession)="&A33&"","FG","","Close","5","0","",,,"False","T","EveryTick"),RTD("cqg.rtd",,"StudyData","Close("&$D$12&") when LocalYear("&$D$12&")="&$E$171&" and localMonth("&$D$12&") ="&$F$171&" and LocalDay("&$D$12&")="&$G$171&" and Barix("&$D$12&",reference:=StartOfSession)="&A33&"","FG","","Close","5","0","",,,"False","T","EveryTick")) -> 3482 | I33: -0.005994861547 | J33: =IF(AND($F$28<0,B33<0.999999),RTD("cqg.rtd",,"StudyData","Close("&$D$12&") when LocalYear("&$D$12&")="&$I$172&" and localMonth("&$D$12&") ="&$J$172&" and LocalDay("&$D$12&")="&$K$172&" and Barix("&$D$12&",reference:=StartOfSession)="&A33&"","FG","","Close","5","0","",,,"False","T","EveryTick"),RTD("cqg.rtd",,"StudyData","Close("&$D$12&") when LocalYear("&$D$12&")="&$E$172&" and localMonth("&$D$12&") ="&$F$172&" and LocalDay("&$D$12&")="&$G$172&" and Barix("&$D$12&",reference:=StartOfSession)="&A33&"","FG","","Close","5","0","",,,"False","T","EveryTick")) -> 3520 | K33: -0.00113507378 | L33: =IF(AND($F$28<0,B33<0.999999),RTD("cqg.rtd",,"StudyData","Close("&$D$12&") when LocalYear("&$D$12&")="&$I$173&" and localMonth("&$D$12&") ="&$J$173&" and LocalDay("&$D$12&")="&$K$173&" and Barix("&$D$12&",reference:=StartOfSession)="&A33&"","FG","","Close","5","0","",,,"False","T","EveryTick"),RTD("cqg.rtd",,"StudyData","Close("&$D$12&") when LocalYear("&$D$12&")="&$E$173&" and localMonth("&$D$12&") ="&$F$173&" and LocalDay("&$D$12&")="&$G$173&" and Barix("&$D$12&",reference:=StartOfSession)="&A33&"","FG","","Close","5","0","",,,"False","T","EveryTick")) -> 3461 | M33: -0.003455226029 | N33: =IF(AND($F$28<0,B33<0.999999),RTD("cqg.rtd",,"StudyData","Close("&$D$12&") when LocalYear("&$D$12&")="&$I$174&" and localMonth("&$D$12&") ="&$J$174&" and LocalDay("&$D$12&")="&$K$174&" and Barix("&$D$12&",reference:=StartOfSession)="&A33&"","FG","","Close","5","0","",,,"False","T","EveryTick"),RTD("cqg.rtd",,"StudyData","Close("&$D$12&") when LocalYear("&$D$12&")="&$E$174&" and localMonth("&$D$12&") ="&$F$174&" and LocalDay("&$D$12&")="&$G$174&" and Barix("&$D$12&",reference:=StartOfSession)="&A33&"","FG","","Close","5","0","",,,"False","T","EveryTick")) -> 3465 | O33: 0.0002886836028 | P33: =IF(AND($F$28<0,B33<0.999999),RTD("cqg.rtd",,"StudyData","Close("&$D$12&") when LocalYear("&$D$12&")="&$I$175&" and localMonth("&$D$12&") ="&$J$175&" and LocalDay("&$D$12&")="&$K$175&" and Barix("&$D$12&",reference:=StartOfSession)="&A33&"","FG","","Close","5","0","",,,"False","T","EveryTick"),RTD("cqg.rtd",,"StudyData","Close("&$D$12&") when LocalYear("&$D$12&")="&$E$175&" and localMonth("&$D$12&") ="&$F$175&" and LocalDay("&$D$12&")="&$G$175&" and Barix("&$D$12&",reference:=StartOfSession)="&A33&"","FG","","Close","5","0","",,,"False","T","EveryTick")) -> 3466 | Q33: -0.001728110599 | R33: =IF(AND($F$28<0,B33<0.999999),RTD("cqg.rtd",,"StudyData","Close("&$D$12&") when LocalYear("&$D$12&")="&$I$176&" and localMonth("&$D$12&") ="&$J$176&" and LocalDay("&$D$12&")="&$K$176&" and Barix("&$D$12&",reference:=StartOfSession)="&A33&"","FG","","Close","5","0","",,,"False","T","EveryTick"),RTD("cqg.rtd",,"StudyData","Close("&$D$12&") when LocalYear("&$D$12&")="&$E$176&" and localMonth("&$D$12&") ="&$F$176&" and LocalDay("&$D$12&")="&$G$176&" and Barix("&$D$12&",reference:=StartOfSession)="&A33&"","FG","","Close","5","0","",,,"False","T","EveryTick")) -> 3448 | S33: 0.005834305718 | T33: =IF(AND($F$28<0,B33<0.999999),RTD("cqg.rtd",,"StudyData","Close("&$D$12&") when LocalYear("&$D$12&")="&$I$177&" and localMonth("&$D$12&") ="&$J$177&" and LocalDay("&$D$12&")="&$K$177&" and Barix("&$D$12&",reference:=StartOfSession)="&A33&"","FG","","Close","5","0","",,,"False","T","EveryTick"),RTD("cqg.rtd",,"StudyData","Close("&$D$12&") when LocalYear("&$D$12&")="&$E$177&" and localMonth("&$D$12&") ="&$F$177&" and LocalDay("&$D$12&")="&$G$177&" and Barix("&$D$12&",reference:=StartOfSession)="&A33&"","FG","","Close","5","0","",,,"False","T","EveryTick")) -> 3418 | U33: -0.007837445573 | V33: =IF(AND($F$28<0,B33<0.999999),RTD("cqg.rtd",,"StudyData","Close("&$D$12&") when LocalYear("&$D$12&")="&$I$178&" and localMonth("&$D$12&") ="&$J$178&" and LocalDay("&$D$12&")="&$K$178&" and Barix("&$D$12&",reference:=StartOfSession)="&A33&"","FG","","Close","5","0","",,,"False","T","EveryTick"),RTD("cqg.rtd",,"StudyData","Close("&$D$12&") when LocalYear("&$D$12&")="&$E$178&" and localMonth("&$D$12&") ="&$F$178&" and LocalDay("&$D$12&")="&$G$178&" and Barix("&$D$12&",reference:=StartOfSession)="&A33&"","FG","","Close","5","0","",,,"False","T","EveryTick")) -> 3461 | W33: 0.005520046485 | X33: =IF(AND($F$28<0,B33<0.999999),RTD("cqg.rtd",,"StudyData","Close("&$D$12&") when LocalYear("&$D$12&")="&$I$179&" and localMonth("&$D$12&") ="&$J$179&" and LocalDay("&$D$12&")="&$K$179&" and Barix("&$D$12&",reference:=StartOfSession)="&A33&"","FG","","Close","5","0","",,,"False","T","EveryTick"),RTD("cqg.rtd",,"StudyData","Close("&$D$12&") when LocalYear("&$D$12&")="&$E$179&" and localMonth("&$D$12&") ="&$F$179&" and LocalDay("&$D$12&")="&$G$179&" and Barix("&$D$12&",reference:=StartOfSession)="&A33&"","FG","","Close","5","0","",,,"False","T","EveryTick")) -> 3441 | Y33: -0.0002905287623 | Z33: =IF(AND($F$28<0,B33<0.999999),RTD("cqg.rtd",,"StudyData","Close("&$D$12&") when LocalYear("&$D$12&")="&$I$180&" and localMonth("&$D$12&") ="&$J$180&" and LocalDay("&$D$12&")="&$K$180&" and Barix("&$D$12&",reference:=StartOfSession)="&A33&"","FG","","Close","5","0","",,,"False","T","EveryTick"),RTD("cqg.rtd",,"StudyData","Close("&$D$12&") when LocalYear("&$D$12&")="&$E$180&" and localMonth("&$D$12&") ="&$F$180&" and LocalDay("&$D$12&")="&$G$180&" and Barix("&$D$12&",reference:=StartOfSession)="&A33&"","FG","","Close","5","0","",,,"False","T","EveryTick")) -> 3463 | AA33: 0.002896032436
A34: 33 | B34: 10:45:00 | H34: =IF(AND($F$28<0,B34<0.999999),RTD("cqg.rtd",,"StudyData","Close("&$D$12&") when LocalYear("&$D$12&")="&$I$171&" and localMonth("&$D$12&") ="&$J$171&" and LocalDay("&$D$12&")="&$K$171&" and Barix("&$D$12&",reference:=StartOfSession)="&A34&"","FG","","Close","5","0","",,,"False","T","EveryTick"),RTD("cqg.rtd",,"StudyData","Close("&$D$12&") when LocalYear("&$D$12&")="&$E$171&" and localMonth("&$D$12&") ="&$F$171&" and LocalDay("&$D$12&")="&$G$171&" and Barix("&$D$12&",reference:=StartOfSession)="&A34&"","FG","","Close","5","0","",,,"False","T","EveryTick")) -> 3483 | I34: -0.00570939195 | J34: =IF(AND($F$28<0,B34<0.999999),RTD("cqg.rtd",,"StudyData","Close("&$D$12&") when LocalYear("&$D$12&")="&$I$172&" and localMonth("&$D$12&") ="&$J$172&" and LocalDay("&$D$12&")="&$K$172&" and Barix("&$D$12&",reference:=StartOfSession)="&A34&"","FG","","Close","5","0","",,,"False","T","EveryTick"),RTD("cqg.rtd",,"StudyData","Close("&$D$12&") when LocalYear("&$D$12&")="&$E$172&" and localMonth("&$D$12&") ="&$F$172&" and LocalDay("&$D$12&")="&$G$172&" and Barix("&$D$12&",reference:=StartOfSession)="&A34&"","FG","","Close","5","0","",,,"False","T","EveryTick")) -> 3519 | K34: -0.001418842225 | L34: =IF(AND($F$28<0,B34<0.999999),RTD("cqg.rtd",,"StudyData","Close("&$D$12&") when LocalYear("&$D$12&")="&$I$173&" and localMonth("&$D$12&") ="&$J$173&" and LocalDay("&$D$12&")="&$K$173&" and Barix("&$D$12&",reference:=StartOfSession)="&A34&"","FG","","Close","5","0","",,,"False","T","EveryTick"),RTD("cqg.rtd",,"StudyData","Close("&$D$12&") when LocalYear("&$D$12&")="&$E$173&" and localMonth("&$D$12&") ="&$F$173&" and LocalDay("&$D$12&")="&$G$173&" and Barix("&$D$12&",reference:=StartOfSession)="&A34&"","FG","","Close","5","0","",,,"False","T","EveryTick")) -> 3459 | M34: -0.004031097034 | N34: =IF(AND($F$28<0,B34<0.999999),RTD("cqg.rtd",,"StudyData","Close("&$D$12&") when LocalYear("&$D$12&")="&$I$174&" and localMonth("&$D$12&") ="&$J$174&" and LocalDay("&$D$12&")="&$K$174&" and Barix("&$D$12&",reference:=StartOfSession)="&A34&"","FG","","Close","5","0","",,,"False","T","EveryTick"),RTD("cqg.rtd",,"StudyData","Close("&$D$12&") when LocalYear("&$D$12&")="&$E$174&" and localMonth("&$D$12&") ="&$F$174&" and LocalDay("&$D$12&")="&$G$174&" and Barix("&$D$12&",reference:=StartOfSession)="&A34&"","FG","","Close","5","0","",,,"False","T","EveryTick")) -> 3469 | O34: 0.001443418014 | P34: =IF(AND($F$28<0,B34<0.999999),RTD("cqg.rtd",,"StudyData","Close("&$D$12&") when LocalYear("&$D$12&")="&$I$175&" and localMonth("&$D$12&") ="&$J$175&" and LocalDay("&$D$12&")="&$K$175&" and Barix("&$D$12&",reference:=StartOfSession)="&A34&"","FG","","Close","5","0","",,,"False","T","EveryTick"),RTD("cqg.rtd",,"StudyData","Close("&$D$12&") when LocalYear("&$D$12&")="&$E$175&" and localMonth("&$D$12&") ="&$F$175&" and LocalDay("&$D$12&")="&$G$175&" and Barix("&$D$12&",reference:=StartOfSession)="&A34&"","FG","","Close","5","0","",,,"False","T","EveryTick")) -> 3465 | Q34: -0.002016129032 | R34: =IF(AND($F$28<0,B34<0.999999),RTD("cqg.rtd",,"StudyData","Close("&$D$12&") when LocalYear("&$D$12&")="&$I$176&" and localMonth("&$D$12&") ="&$J$176&" and LocalDay("&$D$12&")="&$K$176&" and Barix("&$D$12&",reference:=StartOfSession)="&A34&"","FG","","Close","5","0","",,,"False","T","EveryTick"),RTD("cqg.rtd",,"StudyData","Close("&$D$12&") when LocalYear("&$D$12&")="&$E$176&" and localMonth("&$D$12&") ="&$F$176&" and LocalDay("&$D$12&")="&$G$176&" and Barix("&$D$12&",reference:=StartOfSession)="&A34&"","FG","","Close","5","0","",,,"False","T","EveryTick")) -> 3451 | S34: 0.006709451575 | T34: =IF(AND($F$28<0,B34<0.999999),RTD("cqg.rtd",,"StudyData","Close("&$D$12&") when LocalYear("&$D$12&")="&$I$177&" and localMonth("&$D$12&") ="&$J$177&" and LocalDay("&$D$12&")="&$K$177&" and Barix("&$D$12&",reference:=StartOfSession)="&A34&"","FG","","Close","5","0","",,,"False","T","EveryTick"),RTD("cqg.rtd",,"StudyData","Close("&$D$12&") when LocalYear("&$D$12&")="&$E$177&" and localMonth("&$D$12&") ="&$F$177&" and LocalDay("&$D$12&")="&$G$177&" and Barix("&$D$12&",reference:=StartOfSession)="&A34&"","FG","","Close","5","0","",,,"False","T","EveryTick")) -> 3420 | U34: -0.007256894049 | V34: =IF(AND($F$28<0,B34<0.999999),RTD("cqg.rtd",,"StudyData","Close("&$D$12&") when LocalYear("&$D$12&")="&$I$178&" and localMonth("&$D$12&") ="&$J$178&" and LocalDay("&$D$12&")="&$K$178&" and Barix("&$D$12&",reference:=StartOfSession)="&A34&"","FG","","Close","5","0","",,,"False","T","EveryTick"),RTD("cqg.rtd",,"StudyData","Close("&$D$12&") when LocalYear("&$D$12&")="&$E$178&" and localMonth("&$D$12&") ="&$F$178&" and LocalDay("&$D$12&")="&$G$178&" and Barix("&$D$12&",reference:=StartOfSession)="&A34&"","FG","","Close","5","0","",,,"False","T","EveryTick")) -> 3460 | W34: 0.005229517722 | X34: =IF(AND($F$28<0,B34<0.999999),RTD("cqg.rtd",,"StudyData","Close("&$D$12&") when LocalYear("&$D$12&")="&$I$179&" and localMonth("&$D$12&") ="&$J$179&" and LocalDay("&$D$12&")="&$K$179&" and Barix("&$D$12&",reference:=StartOfSession)="&A34&"","FG","","Close","5","0","",,,"False","T","EveryTick"),RTD("cqg.rtd",,"StudyData","Close("&$D$12&") when LocalYear("&$D$12&")="&$E$179&" and localMonth("&$D$12&") ="&$F$179&" and LocalDay("&$D$12&")="&$G$179&" and Barix("&$D$12&",reference:=StartOfSession)="&A34&"","FG","","Close","5","0","",,,"False","T","EveryTick")) -> 3437 | Y34: -0.001452643812 | Z34: =IF(AND($F$28<0,B34<0.999999),RTD("cqg.rtd",,"StudyData","Close("&$D$12&") when LocalYear("&$D$12&")="&$I$180&" and localMonth("&$D$12&") ="&$J$180&" and LocalDay("&$D$12&")="&$K$180&" and Barix("&$D$12&",reference:=StartOfSession)="&A34&"","FG","","Close","5","0","",,,"False","T","EveryTick"),RTD("cqg.rtd",,"StudyData","Close("&$D$12&") when LocalYear("&$D$12&")="&$E$180&" and localMonth("&$D$12&") ="&$F$180&" and LocalDay("&$D$12&")="&$G$180&" and Barix("&$D$12&",reference:=StartOfSession)="&A34&"","FG","","Close","5","0","",,,"False","T","EveryTick")) -> 3461 | AA34: 0.002316825948
A35: 34 | B35: 10:50:00 | H35: =IF(AND($F$28<0,B35<0.999999),RTD("cqg.rtd",,"StudyData","Close("&$D$12&") when LocalYear("&$D$12&")="&$I$171&" and localMonth("&$D$12&") ="&$J$171&" and LocalDay("&$D$12&")="&$K$171&" and Barix("&$D$12&",reference:=StartOfSession)="&A35&"","FG","","Close","5","0","",,,"False","T","EveryTick"),RTD("cqg.rtd",,"StudyData","Close("&$D$12&") when LocalYear("&$D$12&")="&$E$171&" and localMonth("&$D$12&") ="&$F$171&" and LocalDay("&$D$12&")="&$G$171&" and Barix("&$D$12&",reference:=StartOfSession)="&A35&"","FG","","Close","5","0","",,,"False","T","EveryTick")) -> 3480 | I35: -0.006565800742 | J35: =IF(AND($F$28<0,B35<0.999999),RTD("cqg.rtd",,"StudyData","Close("&$D$12&") when LocalYear("&$D$12&")="&$I$172&" and localMonth("&$D$12&") ="&$J$172&" and LocalDay("&$D$12&")="&$K$172&" and Barix("&$D$12&",reference:=StartOfSession)="&A35&"","FG","","Close","5","0","",,,"False","T","EveryTick"),RTD("cqg.rtd",,"StudyData","Close("&$D$12&") when LocalYear("&$D$12&")="&$E$172&" and localMonth("&$D$12&") ="&$F$172&" and LocalDay("&$D$12&")="&$G$172&" and Barix("&$D$12&",reference:=StartOfSession)="&A35&"","FG","","Close","5","0","",,,"False","T","EveryTick")) -> 3520 | K35: -0.00113507378 | L35: =IF(AND($F$28<0,B35<0.999999),RTD("cqg.rtd",,"StudyData","Close("&$D$12&") when LocalYear("&$D$12&")="&$I$173&" and localMonth("&$D$12&") ="&$J$173&" and LocalDay("&$D$12&")="&$K$173&" and Barix("&$D$12&",reference:=StartOfSession)="&A35&"","FG","","Close","5","0","",,,"False","T","EveryTick"),RTD("cqg.rtd",,"StudyData","Close("&$D$12&") when LocalYear("&$D$12&")="&$E$173&" and localMonth("&$D$12&") ="&$F$173&" and LocalDay("&$D$12&")="&$G$173&" and Barix("&$D$12&",reference:=StartOfSession)="&A35&"","FG","","Close","5","0","",,,"False","T","EveryTick")) -> 3459 | M35: -0.004031097034 | N35: =IF(AND($F$28<0,B35<0.999999),RTD("cqg.rtd",,"StudyData","Close("&$D$12&") when LocalYear("&$D$12&")="&$I$174&" and localMonth("&$D$12&") ="&$J$174&" and LocalDay("&$D$12&")="&$K$174&" and Barix("&$D$12&",reference:=StartOfSession)="&A35&"","FG","","Close","5","0","",,,"False","T","EveryTick"),RTD("cqg.rtd",,"StudyData","Close("&$D$12&") when LocalYear("&$D$12&")="&$E$174&" and localMonth("&$D$12&") ="&$F$174&" and LocalDay("&$D$12&")="&$G$174&" and Barix("&$D$12&",reference:=StartOfSession)="&A35&"","FG","","Close","5","0","",,,"False","T","EveryTick")) -> 3469 | O35: 0.001443418014 | P35: =IF(AND($F$28<0,B35<0.999999),RTD("cqg.rtd",,"StudyData","Close("&$D$12&") when LocalYear("&$D$12&")="&$I$175&" and localMonth("&$D$12&") ="&$J$175&" and LocalDay("&$D$12&")="&$K$175&" and Barix("&$D$12&",reference:=StartOfSession)="&A35&"","FG","","Close","5","0","",,,"False","T","EveryTick"),RTD("cqg.rtd",,"StudyData","Close("&$D$12&") when LocalYear("&$D$12&")="&$E$175&" and localMonth("&$D$12&") ="&$F$175&" and LocalDay("&$D$12&")="&$G$175&" and Barix("&$D$12&",reference:=StartOfSession)="&A35&"","FG","","Close","5","0","",,,"False","T","EveryTick")) -> 3466 | Q35: -0.001728110599 | R35: =IF(AND($F$28<0,B35<0.999999),RTD("cqg.rtd",,"StudyData","Close("&$D$12&") when LocalYear("&$D$12&")="&$I$176&" and localMonth("&$D$12&") ="&$J$176&" and LocalDay("&$D$12&")="&$K$176&" and Barix("&$D$12&",reference:=StartOfSession)="&A35&"","FG","","Close","5","0","",,,"False","T","EveryTick"),RTD("cqg.rtd",,"StudyData","Close("&$D$12&") when LocalYear("&$D$12&")="&$E$176&" and localMonth("&$D$12&") ="&$F$176&" and LocalDay("&$D$12&")="&$G$176&" and Barix("&$D$12&",reference:=StartOfSession)="&A35&"","FG","","Close","5","0","",,,"False","T","EveryTick")) -> 3450 | S35: 0.006417736289 | T35: =IF(AND($F$28<0,B35<0.999999),RTD("cqg.rtd",,"StudyData","Close("&$D$12&") when LocalYear("&$D$12&")="&$I$177&" and localMonth("&$D$12&") ="&$J$177&" and LocalDay("&$D$12&")="&$K$177&" and Barix("&$D$12&",reference:=StartOfSession)="&A35&"","FG","","Close","5","0","",,,"False","T","EveryTick"),RTD("cqg.rtd",,"StudyData","Close("&$D$12&") when LocalYear("&$D$12&")="&$E$177&" and localMonth("&$D$12&") ="&$F$177&" and LocalDay("&$D$12&")="&$G$177&" and Barix("&$D$12&",reference:=StartOfSession)="&A35&"","FG","","Close","5","0","",,,"False","T","EveryTick")) -> 3415 | U35: -0.008708272859 | V35: =IF(AND($F$28<0,B35<0.999999),RTD("cqg.rtd",,"StudyData","Close("&$D$12&") when LocalYear("&$D$12&")="&$I$178&" and localMonth("&$D$12&") ="&$J$178&" and LocalDay("&$D$12&")="&$K$178&" and Barix("&$D$12&",reference:=StartOfSession)="&A35&"","FG","","Close","5","0","",,,"False","T","EveryTick"),RTD("cqg.rtd",,"StudyData","Close("&$D$12&") when LocalYear("&$D$12&")="&$E$178&" and localMonth("&$D$12&") ="&$F$178&" and LocalDay("&$D$12&")="&$G$178&" and Barix("&$D$12&",reference:=StartOfSession)="&A35&"","FG","","Close","5","0","",,,"False","T","EveryTick")) -> 3463 | W35: 0.006101104009 | X35: =IF(AND($F$28<0,B35<0.999999),RTD("cqg.rtd",,"StudyData","Close("&$D$12&") when LocalYear("&$D$12&")="&$I$179&" and localMonth("&$D$12&") ="&$J$179&" and LocalDay("&$D$12&")="&$K$179&" and Barix("&$D$12&",reference:=StartOfSession)="&A35&"","FG","","Close","5","0","",,,"False","T","EveryTick"),RTD("cqg.rtd",,"StudyData","Close("&$D$12&") when LocalYear("&$D$12&")="&$E$179&" and localMonth("&$D$12&") ="&$F$179&" and LocalDay("&$D$12&")="&$G$179&" and Barix("&$D$12&",reference:=StartOfSession)="&A35&"","FG","","Close","5","0","",,,"False","T","EveryTick")) -> 3439 | Y35: -0.000871586287 | Z35: =IF(AND($F$28<0,B35<0.999999),RTD("cqg.rtd",,"StudyData","Close("&$D$12&") when LocalYear("&$D$12&")="&$I$180&" and localMonth("&$D$12&") ="&$J$180&" and LocalDay("&$D$12&")="&$K$180&" and Barix("&$D$12&",reference:=StartOfSession)="&A35&"","FG","","Close","5","0","",,,"False","T","EveryTick"),RTD("cqg.rtd",,"StudyData","Close("&$D$12&") when LocalYear("&$D$12&")="&$E$180&" and localMonth("&$D$12&") ="&$F$180&" and LocalDay("&$D$12&")="&$G$180&" and Barix("&$D$12&",reference:=StartOfSession)="&A35&"","FG","","Close","5","0","",,,"False","T","EveryTick")) -> 3462 | AA35: 0.002606429192
A36: 35 | B36: 10:55:00 | H36: =IF(AND($F$28<0,B36<0.999999),RTD("cqg.rtd",,"StudyData","Close("&$D$12&") when LocalYear("&$D$12&")="&$I$171&" and localMonth("&$D$12&") ="&$J$171&" and LocalDay("&$D$12&")="&$K$171&" and Barix("&$D$12&",reference:=StartOfSession)="&A36&"","FG","","Close","5","0","",,,"False","T","EveryTick"),RTD("cqg.rtd",,"StudyData","Close("&$D$12&") when LocalYear("&$D$12&")="&$E$171&" and localMonth("&$D$12&") ="&$F$171&" and LocalDay("&$D$12&")="&$G$171&" and Barix("&$D$12&",reference:=StartOfSession)="&A36&"","FG","","Close","5","0","",,,"False","T","EveryTick")) -> 3477 | I36: -0.007422209535 | J36: =IF(AND($F$28<0,B36<0.999999),RTD("cqg.rtd",,"StudyData","Close("&$D$12&") when LocalYear("&$D$12&")="&$I$172&" and localMonth("&$D$12&") ="&$J$172&" and LocalDay("&$D$12&")="&$K$172&" and Barix("&$D$12&",reference:=StartOfSession)="&A36&"","FG","","Close","5","0","",,,"False","T","EveryTick"),RTD("cqg.rtd",,"StudyData","Close("&$D$12&") when LocalYear("&$D$12&")="&$E$172&" and localMonth("&$D$12&") ="&$F$172&" and LocalDay("&$D$12&")="&$G$172&" and Barix("&$D$12&",reference:=StartOfSession)="&A36&"","FG","","Close","5","0","",,,"False","T","EveryTick")) -> 3522 | K36: -0.0005675368899 | L36: =IF(AND($F$28<0,B36<0.999999),RTD("cqg.rtd",,"StudyData","Close("&$D$12&") when LocalYear("&$D$12&")="&$I$173&" and localMonth("&$D$12&") ="&$J$173&" and LocalDay("&$D$12&")="&$K$173&" and Barix("&$D$12&",reference:=StartOfSession)="&A36&"","FG","","Close","5","0","",,,"False","T","EveryTick"),RTD("cqg.rtd",,"StudyData","Close("&$D$12&") when LocalYear("&$D$12&")="&$E$173&" and localMonth("&$D$12&") ="&$F$173&" and LocalDay("&$D$12&")="&$G$173&" and Barix("&$D$12&",reference:=StartOfSession)="&A36&"","FG","","Close","5","0","",,,"False","T","EveryTick")) -> 3459 | M36: -0.004031097034 | N36: =IF(AND($F$28<0,B36<0.999999),RTD("cqg.rtd",,"StudyData","Close("&$D$12&") when LocalYear("&$D$12&")="&$I$174&" and localMonth("&$D$12&") ="&$J$174&" and LocalDay("&$D$12&")="&$K$174&" and Barix("&$D$12&",reference:=StartOfSession)="&A36&"","FG","","Close","5","0","",,,"False","T","EveryTick"),RTD("cqg.rtd",,"StudyData","Close("&$D$12&") when LocalYear("&$D$12&")="&$E$174&" and localMonth("&$D$12&") ="&$F$174&" and LocalDay("&$D$12&")="&$G$174&" and Barix("&$D$12&",reference:=StartOfSession)="&A36&"","FG","","Close","5","0","",,,"False","T","EveryTick")) -> 3471 | O36: 0.002020785219 | P36: =IF(AND($F$28<0,B36<0.999999),RTD("cqg.rtd",,"StudyData","Close("&$D$12&") when LocalYear("&$D$12&")="&$I$175&" and localMonth("&$D$12&") ="&$J$175&" and LocalDay("&$D$12&")="&$K$175&" and Barix("&$D$12&",reference:=StartOfSession)="&A36&"","FG","","Close","5","0","",,,"False","T","EveryTick"),RTD("cqg.rtd",,"StudyData","Close("&$D$12&") when LocalYear("&$D$12&")="&$E$175&" and localMonth("&$D$12&") ="&$F$175&" and LocalDay("&$D$12&")="&$G$175&" and Barix("&$D$12&",reference:=StartOfSession)="&A36&"","FG","","Close","5","0","",,,"False","T","EveryTick")) -> 3469 | Q36: -0.0008640552995 | R36: =IF(AND($F$28<0,B36<0.999999),RTD("cqg.rtd",,"StudyData","Close("&$D$12&") when LocalYear("&$D$12&")="&$I$176&" and localMonth("&$D$12&") ="&$J$176&" and LocalDay("&$D$12&")="&$K$176&" and Barix("&$D$12&",reference:=StartOfSession)="&A36&"","FG","","Close","5","0","",,,"False","T","EveryTick"),RTD("cqg.rtd",,"StudyData","Close("&$D$12&") when LocalYear("&$D$12&")="&$E$176&" and localMonth("&$D$12&") ="&$F$176&" and LocalDay("&$D$12&")="&$G$176&" and Barix("&$D$12&",reference:=StartOfSession)="&A36&"","FG","","Close","5","0","",,,"False","T","EveryTick")) -> 3449 | S36: 0.006126021004 | T36: =IF(AND($F$28<0,B36<0.999999),RTD("cqg.rtd",,"StudyData","Close("&$D$12&") when LocalYear("&$D$12&")="&$I$177&" and localMonth("&$D$12&") ="&$J$177&" and LocalDay("&$D$12&")="&$K$177&" and Barix("&$D$12&",reference:=StartOfSession)="&A36&"","FG","","Close","5","0","",,,"False","T","EveryTick"),RTD("cqg.rtd",,"StudyData","Close("&$D$12&") when LocalYear("&$D$12&")="&$E$177&" and localMonth("&$D$12&") ="&$F$177&" and LocalDay("&$D$12&")="&$G$177&" and Barix("&$D$12&",reference:=StartOfSession)="&A36&"","FG","","Close","5","0","",,,"False","T","EveryTick")) -> 3411 | U36: -0.009869375907 | V36: =IF(AND($F$28<0,B36<0.999999),RTD("cqg.rtd",,"StudyData","Close("&$D$12&") when LocalYear("&$D$12&")="&$I$178&" and localMonth("&$D$12&") ="&$J$178&" and LocalDay("&$D$12&")="&$K$178&" and Barix("&$D$12&",reference:=StartOfSession)="&A36&"","FG","","Close","5","0","",,,"False","T","EveryTick"),RTD("cqg.rtd",,"StudyData","Close("&$D$12&") when LocalYear("&$D$12&")="&$E$178&" and localMonth("&$D$12&") ="&$F$178&" and LocalDay("&$D$12&")="&$G$178&" and Barix("&$D$12&",reference:=StartOfSession)="&A36&"","FG","","Close","5","0","",,,"False","T","EveryTick")) -> 3459 | W36: 0.00493898896 | X36: =IF(AND($F$28<0,B36<0.999999),RTD("cqg.rtd",,"StudyData","Close("&$D$12&") when LocalYear("&$D$12&")="&$I$179&" and localMonth("&$D$12&") ="&$J$179&" and LocalDay("&$D$12&")="&$K$179&" and Barix("&$D$12&",reference:=StartOfSession)="&A36&"","FG","","Close","5","0","",,,"False","T","EveryTick"),RTD("cqg.rtd",,"StudyData","Close("&$D$12&") when LocalYear("&$D$12&")="&$E$179&" and localMonth("&$D$12&") ="&$F$179&" and LocalDay("&$D$12&")="&$G$179&" and Barix("&$D$12&",reference:=StartOfSession)="&A36&"","FG","","Close","5","0","",,,"False","T","EveryTick")) -> 3441 | Y36: -0.0002905287623 | Z36: =IF(AND($F$28<0,B36<0.999999),RTD("cqg.rtd",,"StudyData","Close("&$D$12&") when LocalYear("&$D$12&")="&$I$180&" and localMonth("&$D$12&") ="&$J$180&" and LocalDay("&$D$12&")="&$K$180&" and Barix("&$D$12&",reference:=StartOfSession)="&A36&"","FG","","Close","5","0","",,,"False","T","EveryTick"),RTD("cqg.rtd",,"StudyData","Close("&$D$12&") when LocalYear("&$D$12&")="&$E$180&" and localMonth("&$D$12&") ="&$F$180&" and LocalDay("&$D$12&")="&$G$180&" and Barix("&$D$12&",reference:=StartOfSession)="&A36&"","FG","","Close","5","0","",,,"False","T","EveryTick")) -> 3464 | AA36: 0.003185635679
A37: 36 | B37: 11:00:00 | H37: =IF(AND($F$28<0,B37<0.999999),RTD("cqg.rtd",,"StudyData","Close("&$D$12&") when LocalYear("&$D$12&")="&$I$171&" and localMonth("&$D$12&") ="&$J$171&" and LocalDay("&$D$12&")="&$K$171&" and Barix("&$D$12&",reference:=StartOfSession)="&A37&"","FG","","Close","5","0","",,,"False","T","EveryTick"),RTD("cqg.rtd",,"StudyData","Close("&$D$12&") when LocalYear("&$D$12&")="&$E$171&" and localMonth("&$D$12&") ="&$F$171&" and LocalDay("&$D$12&")="&$G$171&" and Barix("&$D$12&",reference:=StartOfSession)="&A37&"","FG","","Close","5","0","",,,"False","T","EveryTick")) -> 3477 | I37: -0.007422209535 | J37: =IF(AND($F$28<0,B37<0.999999),RTD("cqg.rtd",,"StudyData","Close("&$D$12&") when LocalYear("&$D$12&")="&$I$172&" and localMonth("&$D$12&") ="&$J$172&" and LocalDay("&$D$12&")="&$K$172&" and Barix("&$D$12&",reference:=StartOfSession)="&A37&"","FG","","Close","5","0","",,,"False","T","EveryTick"),RTD("cqg.rtd",,"StudyData","Close("&$D$12&") when LocalYear("&$D$12&")="&$E$172&" and localMonth("&$D$12&") ="&$F$172&" and LocalDay("&$D$12&")="&$G$172&" and Barix("&$D$12&",reference:=StartOfSession)="&A37&"","FG","","Close","5","0","",,,"False","T","EveryTick")) -> 3521 | K37: -0.0008513053348 | L37: =IF(AND($F$28<0,B37<0.999999),RTD("cqg.rtd",,"StudyData","Close("&$D$12&") when LocalYear("&$D$12&")="&$I$173&" and localMonth("&$D$12&") ="&$J$173&" and LocalDay("&$D$12&")="&$K$173&" and Barix("&$D$12&",reference:=StartOfSession)="&A37&"","FG","","Close","5","0","",,,"False","T","EveryTick"),RTD("cqg.rtd",,"StudyData","Close("&$D$12&") when LocalYear("&$D$12&")="&$E$173&" and localMonth("&$D$12&") ="&$F$173&" and LocalDay("&$D$12&")="&$G$173&" and Barix("&$D$12&",reference:=StartOfSession)="&A37&"","FG","","Close","5","0","",,,"False","T","EveryTick")) -> 3460 | M37: -0.003743161532 | N37: =IF(AND($F$28<0,B37<0.999999),RTD("cqg.rtd",,"StudyData","Close("&$D$12&") when LocalYear("&$D$12&")="&$I$174&" and localMonth("&$D$12&") ="&$J$174&" and LocalDay("&$D$12&")="&$K$174&" and Barix("&$D$12&",reference:=StartOfSession)="&A37&"","FG","","Close","5","0","",,,"False","T","EveryTick"),RTD("cqg.rtd",,"StudyData","Close("&$D$12&") when LocalYear("&$D$12&")="&$E$174&" and localMonth("&$D$12&") ="&$F$174&" and LocalDay("&$D$12&")="&$G$174&" and Barix("&$D$12&",reference:=StartOfSession)="&A37&"","FG","","Close","5","0","",,,"False","T","EveryTick")) -> 3470 | O37: 0.001732101617 | P37: =IF(AND($F$28<0,B37<0.999999),RTD("cqg.rtd",,"StudyData","Close("&$D$12&") when LocalYear("&$D$12&")="&$I$175&" and localMonth("&$D$12&") ="&$J$175&" and LocalDay("&$D$12&")="&$K$175&" and Barix("&$D$12&",reference:=StartOfSession)="&A37&"","FG","","Close","5","0","",,,"False","T","EveryTick"),RTD("cqg.rtd",,"StudyData","Close("&$D$12&") when LocalYear("&$D$12&")="&$E$175&" and localMonth("&$D$12&") ="&$F$175&" and LocalDay("&$D$12&")="&$G$175&" and Barix("&$D$12&",reference:=StartOfSession)="&A37&"","FG","","Close","5","0","",,,"False","T","EveryTick")) -> 3469 | Q37: -0.0008640552995 | R37: =IF(AND($F$28<0,B37<0.999999),RTD("cqg.rtd",,"StudyData","Close("&$D$12&") when LocalYear("&$D$12&")="&$I$176&" and localMonth("&$D$12&") ="&$J$176&" and LocalDay("&$D$12&")="&$K$176&" and Barix("&$D$12&",reference:=StartOfSession)="&A37&"","FG","","Close","5","0","",,,"False","T","EveryTick"),RTD("cqg.rtd",,"StudyData","Close("&$D$12&") when LocalYear("&$D$12&")="&$E$176&" and localMonth("&$D$12&") ="&$F$176&" and LocalDay("&$D$12&")="&$G$176&" and Barix("&$D$12&",reference:=StartOfSession)="&A37&"","FG","","Close","5","0","",,,"False","T","EveryTick")) -> 3451 | S37: 0.006709451575 | T37: =IF(AND($F$28<0,B37<0.999999),RTD("cqg.rtd",,"StudyData","Close("&$D$12&") when LocalYear("&$D$12&")="&$I$177&" and localMonth("&$D$12&") ="&$J$177&" and LocalDay("&$D$12&")="&$K$177&" and Barix("&$D$12&",reference:=StartOfSession)="&A37&"","FG","","Close","5","0","",,,"False","T","EveryTick"),RTD("cqg.rtd",,"StudyData","Close("&$D$12&") when LocalYear("&$D$12&")="&$E$177&" and localMonth("&$D$12&") ="&$F$177&" and LocalDay("&$D$12&")="&$G$177&" and Barix("&$D$12&",reference:=StartOfSession)="&A37&"","FG","","Close","5","0","",,,"False","T","EveryTick")) -> 3413 | U37: -0.009288824383 | V37: =IF(AND($F$28<0,B37<0.999999),RTD("cqg.rtd",,"StudyData","Close("&$D$12&") when LocalYear("&$D$12&")="&$I$178&" and localMonth("&$D$12&") ="&$J$178&" and LocalDay("&$D$12&")="&$K$178&" and Barix("&$D$12&",reference:=StartOfSession)="&A37&"","FG","","Close","5","0","",,,"False","T","EveryTick"),RTD("cqg.rtd",,"StudyData","Close("&$D$12&") when LocalYear("&$D$12&")="&$E$178&" and localMonth("&$D$12&") ="&$F$178&" and LocalDay("&$D$12&")="&$G$178&" and Barix("&$D$12&",reference:=StartOfSession)="&A37&"","FG","","Close","5","0","",,,"False","T","EveryTick")) -> 3460 | W37: 0.005229517722 | X37: =IF(AND($F$28<0,B37<0.999999),RTD("cqg.rtd",,"StudyData","Close("&$D$12&") when LocalYear("&$D$12&")="&$I$179&" and localMonth("&$D$12&") ="&$J$179&" and LocalDay("&$D$12&")="&$K$179&" and Barix("&$D$12&",reference:=StartOfSession)="&A37&"","FG","","Close","5","0","",,,"False","T","EveryTick"),RTD("cqg.rtd",,"StudyData","Close("&$D$12&") when LocalYear("&$D$12&")="&$E$179&" and localMonth("&$D$12&") ="&$F$179&" and LocalDay("&$D$12&")="&$G$179&" and Barix("&$D$12&",reference:=StartOfSession)="&A37&"","FG","","Close","5","0","",,,"False","T","EveryTick")) -> 3443 | Y37: 0.0002905287623 | Z37: =IF(AND($F$28<0,B37<0.999999),RTD("cqg.rtd",,"StudyData","Close("&$D$12&") when LocalYear("&$D$12&")="&$I$180&" and localMonth("&$D$12&") ="&$J$180&" and LocalDay("&$D$12&")="&$K$180&" and Barix("&$D$12&",reference:=StartOfSession)="&A37&"","FG","","Close","5","0","",,,"False","T","EveryTick"),RTD("cqg.rtd",,"StudyData","Close("&$D$12&") when LocalYear("&$D$12&")="&$E$180&" and localMonth("&$D$12&") ="&$F$180&" and LocalDay("&$D$12&")="&$G$180&" and Barix("&$D$12&",reference:=StartOfSession)="&A37&"","FG","","Close","5","0","",,,"False","T","EveryTick")) -> 3463 | AA37: 0.002896032436
A38: 37 | B38: 11:05:00 | C38: -40 | D38: =RTD("cqg.rtd",,"StudyData", $D$12, "Tick", "FlatTicks=0", "Tick","D",C38,"PrimaryOnly") -> 3446 | F38: DSX | H38: =IF(AND($F$28<0,B38<0.999999),RTD("cqg.rtd",,"StudyData","Close("&$D$12&") when LocalYear("&$D$12&")="&$I$171&" and localMonth("&$D$12&") ="&$J$171&" and LocalDay("&$D$12&")="&$K$171&" and Barix("&$D$12&",reference:=StartOfSession)="&A38&"","FG","","Close","5","0","",,,"False","T","EveryTick"),RTD("cqg.rtd",,"StudyData","Close("&$D$12&") when LocalYear("&$D$12&")="&$E$171&" and localMonth("&$D$12&") ="&$F$171&" and LocalDay("&$D$12&")="&$G$171&" and Barix("&$D$12&",reference:=StartOfSession)="&A38&"","FG","","Close","5","0","",,,"False","T","EveryTick")) -> 3477 | I38: -0.007422209535 | J38: =IF(AND($F$28<0,B38<0.999999),RTD("cqg.rtd",,"StudyData","Close("&$D$12&") when LocalYear("&$D$12&")="&$I$172&" and localMonth("&$D$12&") ="&$J$172&" and LocalDay("&$D$12&")="&$K$172&" and Barix("&$D$12&",reference:=StartOfSession)="&A38&"","FG","","Close","5","0","",,,"False","T","EveryTick"),RTD("cqg.rtd",,"StudyData","Close("&$D$12&") when LocalYear("&$D$12&")="&$E$172&" and localMonth("&$D$12&") ="&$F$172&" and LocalDay("&$D$12&")="&$G$172&" and Barix("&$D$12&",reference:=StartOfSession)="&A38&"","FG","","Close","5","0","",,,"False","T","EveryTick")) -> 3526 | K38: 0.0005675368899 | L38: =IF(AND($F$28<0,B38<0.999999),RTD("cqg.rtd",,"StudyData","Close("&$D$12&") when LocalYear("&$D$12&")="&$I$173&" and localMonth("&$D$12&") ="&$J$173&" and LocalDay("&$D$12&")="&$K$173&" and Barix("&$D$12&",reference:=StartOfSession)="&A38&"","FG","","Close","5","0","",,,"False","T","EveryTick"),RTD("cqg.rtd",,"StudyData","Close("&$D$12&") when LocalYear("&$D$12&")="&$E$173&" and localMonth("&$D$12&") ="&$F$173&" and LocalDay("&$D$12&")="&$G$173&" and Barix("&$D$12&",reference:=StartOfSession)="&A38&"","FG","","Close","5","0","",,,"False","T","EveryTick")) -> 3462 | M38: -0.003167290527 | N38: =IF(AND($F$28<0,B38<0.999999),RTD("cqg.rtd",,"StudyData","Close("&$D$12&") when LocalYear("&$D$12&")="&$I$174&" and localMonth("&$D$12&") ="&$J$174&" and LocalDay("&$D$12&")="&$K$174&" and Barix("&$D$12&",reference:=StartOfSession)="&A38&"","FG","","Close","5","0","",,,"False","T","EveryTick"),RTD("cqg.rtd",,"StudyData","Close("&$D$12&") when LocalYear("&$D$12&")="&$E$174&" and localMonth("&$D$12&") ="&$F$174&" and LocalDay("&$D$12&")="&$G$174&" and Barix("&$D$12&",reference:=StartOfSession)="&A38&"","FG","","Close","5","0","",,,"False","T","EveryTick")) -> 3468 | O38: 0.001154734411 | P38: =IF(AND($F$28<0,B38<0.999999),RTD("cqg.rtd",,"StudyData","Close("&$D$12&") when LocalYear("&$D$12&")="&$I$175&" and localMonth("&$D$12&") ="&$J$175&" and LocalDay("&$D$12&")="&$K$175&" and Barix("&$D$12&",reference:=StartOfSession)="&A38&"","FG","","Close","5","0","",,,"False","T","EveryTick"),RTD("cqg.rtd",,"StudyData","Close("&$D$12&") when LocalYear("&$D$12&")="&$E$175&" and localMonth("&$D$12&") ="&$F$175&" and LocalDay("&$D$12&")="&$G$175&" and Barix("&$D$12&",reference:=StartOfSession)="&A38&"","FG","","Close","5","0","",,,"False","T","EveryTick")) -> 3471 | Q38: -0.0002880184332 | R38: =IF(AND($F$28<0,B38<0.999999),RTD("cqg.rtd",,"StudyData","Close("&$D$12&") when LocalYear("&$D$12&")="&$I$176&" and localMonth("&$D$12&") ="&$J$176&" and LocalDay("&$D$12&")="&$K$176&" and Barix("&$D$12&",reference:=StartOfSession)="&A38&"","FG","","Close","5","0","",,,"False","T","EveryTick"),RTD("cqg.rtd",,"StudyData","Close("&$D$12&") when LocalYear("&$D$12&")="&$E$176&" and localMonth("&$D$12&") ="&$F$176&" and LocalDay("&$D$12&")="&$G$176&" and Barix("&$D$12&",reference:=StartOfSession)="&A38&"","FG","","Close","5","0","",,,"False","T","EveryTick")) -> 3450 | S38: 0.006417736289 | T38: =IF(AND($F$28<0,B38<0.999999),RTD("cqg.rtd",,"StudyData","Close("&$D$12&") when LocalYear("&$D$12&")="&$I$177&" and localMonth("&$D$12&") ="&$J$177&" and LocalDay("&$D$12&")="&$K$177&" and Barix("&$D$12&",reference:=StartOfSession)="&A38&"","FG","","Close","5","0","",,,"False","T","EveryTick"),RTD("cqg.rtd",,"StudyData","Close("&$D$12&") when LocalYear("&$D$12&")="&$E$177&" and localMonth("&$D$12&") ="&$F$177&" and LocalDay("&$D$12&")="&$G$177&" and Barix("&$D$12&",reference:=StartOfSession)="&A38&"","FG","","Close","5","0","",,,"False","T","EveryTick")) -> 3414 | U38: -0.008998548621 | V38: =IF(AND($F$28<0,B38<0.999999),RTD("cqg.rtd",,"StudyData","Close("&$D$12&") when LocalYear("&$D$12&")="&$I$178&" and localMonth("&$D$12&") ="&$J$178&" and LocalDay("&$D$12&")="&$K$178&" and Barix("&$D$12&",reference:=StartOfSession)="&A38&"","FG","","Close","5","0","",,,"False","T","EveryTick"),RTD("cqg.rtd",,"StudyData","Close("&$D$12&") when LocalYear("&$D$12&")="&$E$178&" and localMonth("&$D$12&") ="&$F$178&" and LocalDay("&$D$12&")="&$G$178&" and Barix("&$D$12&",reference:=StartOfSession)="&A38&"","FG","","Close","5","0","",,,"False","T","EveryTick")) -> 3458 | W38: 0.004648460198 | X38: =IF(AND($F$28<0,B38<0.999999),RTD("cqg.rtd",,"StudyData","Close("&$D$12&") when LocalYear("&$D$12&")="&$I$179&" and localMonth("&$D$12&") ="&$J$179&" and LocalDay("&$D$12&")="&$K$179&" and Barix("&$D$12&",reference:=StartOfSession)="&A38&"","FG","","Close","5","0","",,,"False","T","EveryTick"),RTD("cqg.rtd",,"StudyData","Close("&$D$12&") when LocalYear("&$D$12&")="&$E$179&" and localMonth("&$D$12&") ="&$F$179&" and LocalDay("&$D$12&")="&$G$179&" and Barix("&$D$12&",reference:=StartOfSession)="&A38&"","FG","","Close","5","0","",,,"False","T","EveryTick")) -> 3446 | Y38: 0.001162115049 | Z38: =IF(AND($F$28<0,B38<0.999999),RTD("cqg.rtd",,"StudyData","Close("&$D$12&") when LocalYear("&$D$12&")="&$I$180&" and localMonth("&$D$12&") ="&$J$180&" and LocalDay("&$D$12&")="&$K$180&" and Barix("&$D$12&",reference:=StartOfSession)="&A38&"","FG","","Close","5","0","",,,"False","T","EveryTick"),RTD("cqg.rtd",,"StudyData","Close("&$D$12&") when LocalYear("&$D$12&")="&$E$180&" and localMonth("&$D$12&") ="&$F$180&" and LocalDay("&$D$12&")="&$G$180&" and Barix("&$D$12&",reference:=StartOfSession)="&A38&"","FG","","Close","5","0","",,,"False","T","EveryTick")) -> 3466 | AA38: 0.003764842166
A39: 38 | B39: 11:10:00 | C39: =C38+1 -> -39 | D39: =RTD("cqg.rtd",,"StudyData", $D$12, "Tick", "FlatTicks=0", "Tick","D",C39,"PrimaryOnly") -> 3447 | F39: DD | H39: =IF(AND($F$28<0,B39<0.999999),RTD("cqg.rtd",,"StudyData","Close("&$D$12&") when LocalYear("&$D$12&")="&$I$171&" and localMonth("&$D$12&") ="&$J$171&" and LocalDay("&$D$12&")="&$K$171&" and Barix("&$D$12&",reference:=StartOfSession)="&A39&"","FG","","Close","5","0","",,,"False","T","EveryTick"),RTD("cqg.rtd",,"StudyData","Close("&$D$12&") when LocalYear("&$D$12&")="&$E$171&" and localMonth("&$D$12&") ="&$F$171&" and LocalDay("&$D$12&")="&$G$171&" and Barix("&$D$12&",reference:=StartOfSession)="&A39&"","FG","","Close","5","0","",,,"False","T","EveryTick")) -> 3478 | I39: -0.007136739937 | J39: =IF(AND($F$28<0,B39<0.999999),RTD("cqg.rtd",,"StudyData","Close("&$D$12&") when LocalYear("&$D$12&")="&$I$172&" and localMonth("&$D$12&") ="&$J$172&" and LocalDay("&$D$12&")="&$K$172&" and Barix("&$D$12&",reference:=StartOfSession)="&A39&"","FG","","Close","5","0","",,,"False","T","EveryTick"),RTD("cqg.rtd",,"StudyData","Close("&$D$12&") when LocalYear("&$D$12&")="&$E$172&" and localMonth("&$D$12&") ="&$F$172&" and LocalDay("&$D$12&")="&$G$172&" and Barix("&$D$12&",reference:=StartOfSession)="&A39&"","FG","","Close","5","0","",,,"False","T","EveryTick")) -> 3526 | K39: 0.0005675368899 | L39: =IF(AND($F$28<0,B39<0.999999),RTD("cqg.rtd",,"StudyData","Close("&$D$12&") when LocalYear("&$D$12&")="&$I$173&" and localMonth("&$D$12&") ="&$J$173&" and LocalDay("&$D$12&")="&$K$173&" and Barix("&$D$12&",reference:=StartOfSession)="&A39&"","FG","","Close","5","0","",,,"False","T","EveryTick"),RTD("cqg.rtd",,"StudyData","Close("&$D$12&") when LocalYear("&$D$12&")="&$E$173&" and localMonth("&$D$12&") ="&$F$173&" and LocalDay("&$D$12&")="&$G$173&" and Barix("&$D$12&",reference:=StartOfSession)="&A39&"","FG","","Close","5","0","",,,"False","T","EveryTick")) -> 3465 | M39: -0.00230348402 | N39: =IF(AND($F$28<0,B39<0.999999),RTD("cqg.rtd",,"StudyData","Close("&$D$12&") when LocalYear("&$D$12&")="&$I$174&" and localMonth("&$D$12&") ="&$J$174&" and LocalDay("&$D$12&")="&$K$174&" and Barix("&$D$12&",reference:=StartOfSession)="&A39&"","FG","","Close","5","0","",,,"False","T","EveryTick"),RTD("cqg.rtd",,"StudyData","Close("&$D$12&") when LocalYear("&$D$12&")="&$E$174&" and localMonth("&$D$12&") ="&$F$174&" and LocalDay("&$D$12&")="&$G$174&" and Barix("&$D$12&",reference:=StartOfSession)="&A39&"","FG","","Close","5","0","",,,"False","T","EveryTick")) -> 3469 | O39: 0.001443418014 | P39: =IF(AND($F$28<0,B39<0.999999),RTD("cqg.rtd",,"StudyData","Close("&$D$12&") when LocalYear("&$D$12&")="&$I$175&" and localMonth("&$D$12&") ="&$J$175&" and LocalDay("&$D$12&")="&$K$175&" and Barix("&$D$12&",reference:=StartOfSession)="&A39&"","FG","","Close","5","0","",,,"False","T","EveryTick"),RTD("cqg.rtd",,"StudyData","Close("&$D$12&") when LocalYear("&$D$12&")="&$E$175&" and localMonth("&$D$12&") ="&$F$175&" and LocalDay("&$D$12&")="&$G$175&" and Barix("&$D$12&",reference:=StartOfSession)="&A39&"","FG","","Close","5","0","",,,"False","T","EveryTick")) -> 3468 | Q39: -0.001152073733 | R39: =IF(AND($F$28<0,B39<0.999999),RTD("cqg.rtd",,"StudyData","Close("&$D$12&") when LocalYear("&$D$12&")="&$I$176&" and localMonth("&$D$12&") ="&$J$176&" and LocalDay("&$D$12&")="&$K$176&" and Barix("&$D$12&",reference:=StartOfSession)="&A39&"","FG","","Close","5","0","",,,"False","T","EveryTick"),RTD("cqg.rtd",,"StudyData","Close("&$D$12&") when LocalYear("&$D$12&")="&$E$176&" and localMonth("&$D$12&") ="&$F$176&" and LocalDay("&$D$12&")="&$G$176&" and Barix("&$D$12&",reference:=StartOfSession)="&A39&"","FG","","Close","5","0","",,,"False","T","EveryTick")) -> 3450 | S39: 0.006417736289 | T39: =IF(AND($F$28<0,B39<0.999999),RTD("cqg.rtd",,"StudyData","Close("&$D$12&") when LocalYear("&$D$12&")="&$I$177&" and localMonth("&$D$12&") ="&$J$177&" and LocalDay("&$D$12&")="&$K$177&" and Barix("&$D$12&",reference:=StartOfSession)="&A39&"","FG","","Close","5","0","",,,"False","T","EveryTick"),RTD("cqg.rtd",,"StudyData","Close("&$D$12&") when LocalYear("&$D$12&")="&$E$177&" and localMonth("&$D$12&") ="&$F$177&" and LocalDay("&$D$12&")="&$G$177&" and Barix("&$D$12&",reference:=StartOfSession)="&A39&"","FG","","Close","5","0","",,,"False","T","EveryTick")) -> 3414 | U39: -0.008998548621 | V39: =IF(AND($F$28<0,B39<0.999999),RTD("cqg.rtd",,"StudyData","Close("&$D$12&") when LocalYear("&$D$12&")="&$I$178&" and localMonth("&$D$12&") ="&$J$178&" and LocalDay("&$D$12&")="&$K$178&" and Barix("&$D$12&",reference:=StartOfSession)="&A39&"","FG","","Close","5","0","",,,"False","T","EveryTick"),RTD("cqg.rtd",,"StudyData","Close("&$D$12&") when LocalYear("&$D$12&")="&$E$178&" and localMonth("&$D$12&") ="&$F$178&" and LocalDay("&$D$12&")="&$G$178&" and Barix("&$D$12&",reference:=StartOfSession)="&A39&"","FG","","Close","5","0","",,,"False","T","EveryTick")) -> 3455 | W39: 0.003776873911 | X39: =IF(AND($F$28<0,B39<0.999999),RTD("cqg.rtd",,"StudyData","Close("&$D$12&") when LocalYear("&$D$12&")="&$I$179&" and localMonth("&$D$12&") ="&$J$179&" and LocalDay("&$D$12&")="&$K$179&" and Barix("&$D$12&",reference:=StartOfSession)="&A39&"","FG","","Close","5","0","",,,"False","T","EveryTick"),RTD("cqg.rtd",,"StudyData","Close("&$D$12&") when LocalYear("&$D$12&")="&$E$179&" and localMonth("&$D$12&") ="&$F$179&" and LocalDay("&$D$12&")="&$G$179&" and Barix("&$D$12&",reference:=StartOfSession)="&A39&"","FG","","Close","5","0","",,,"False","T","EveryTick")) -> 3450 | Y39: 0.002324230099 | Z39: =IF(AND($F$28<0,B39<0.999999),RTD("cqg.rtd",,"StudyData","Close("&$D$12&") when LocalYear("&$D$12&")="&$I$180&" and localMonth("&$D$12&") ="&$J$180&" and LocalDay("&$D$12&")="&$K$180&" and Barix("&$D$12&",reference:=StartOfSession)="&A39&"","FG","","Close","5","0","",,,"False","T","EveryTick"),RTD("cqg.rtd",,"StudyData","Close("&$D$12&") when LocalYear("&$D$12&")="&$E$180&" and localMonth("&$D$12&") ="&$F$180&" and LocalDay("&$D$12&")="&$G$180&" and Barix("&$D$12&",reference:=StartOfSession)="&A39&"","FG","","Close","5","0","",,,"False","T","EveryTick")) -> 3467 | AA39: 0.00405444541
A40: 39 | B40: 11:15:00 | C40: =C39+1 -> -38 | D40: =RTD("cqg.rtd",,"StudyData", $D$12, "Tick", "FlatTicks=0", "Tick","D",C40,"PrimaryOnly") -> 3448 | F40: SW | H40: =IF(AND($F$28<0,B40<0.999999),RTD("cqg.rtd",,"StudyData","Close("&$D$12&") when LocalYear("&$D$12&")="&$I$171&" and localMonth("&$D$12&") ="&$J$171&" and LocalDay("&$D$12&")="&$K$171&" and Barix("&$D$12&",reference:=StartOfSession)="&A40&"","FG","","Close","5","0","",,,"False","T","EveryTick"),RTD("cqg.rtd",,"StudyData","Close("&$D$12&") when LocalYear("&$D$12&")="&$E$171&" and localMonth("&$D$12&") ="&$F$171&" and LocalDay("&$D$12&")="&$G$171&" and Barix("&$D$12&",reference:=StartOfSession)="&A40&"","FG","","Close","5","0","",,,"False","T","EveryTick")) -> 3475 | I40: -0.00799314873 | J40: =IF(AND($F$28<0,B40<0.999999),RTD("cqg.rtd",,"StudyData","Close("&$D$12&") when LocalYear("&$D$12&")="&$I$172&" and localMonth("&$D$12&") ="&$J$172&" and LocalDay("&$D$12&")="&$K$172&" and Barix("&$D$12&",reference:=StartOfSession)="&A40&"","FG","","Close","5","0","",,,"False","T","EveryTick"),RTD("cqg.rtd",,"StudyData","Close("&$D$12&") when LocalYear("&$D$12&")="&$E$172&" and localMonth("&$D$12&") ="&$F$172&" and LocalDay("&$D$12&")="&$G$172&" and Barix("&$D$12&",reference:=StartOfSession)="&A40&"","FG","","Close","5","0","",,,"False","T","EveryTick")) -> 3526 | K40: 0.0005675368899 | L40: =IF(AND($F$28<0,B40<0.999999),RTD("cqg.rtd",,"StudyData","Close("&$D$12&") when LocalYear("&$D$12&")="&$I$173&" and localMonth("&$D$12&") ="&$J$173&" and LocalDay("&$D$12&")="&$K$173&" and Barix("&$D$12&",reference:=StartOfSession)="&A40&"","FG","","Close","5","0","",,,"False","T","EveryTick"),RTD("cqg.rtd",,"StudyData","Close("&$D$12&") when LocalYear("&$D$12&")="&$E$173&" and localMonth("&$D$12&") ="&$F$173&" and LocalDay("&$D$12&")="&$G$173&" and Barix("&$D$12&",reference:=StartOfSession)="&A40&"","FG","","Close","5","0","",,,"False","T","EveryTick")) -> 3462 | M40: -0.003167290527 | N40: =IF(AND($F$28<0,B40<0.999999),RTD("cqg.rtd",,"StudyData","Close("&$D$12&") when LocalYear("&$D$12&")="&$I$174&" and localMonth("&$D$12&") ="&$J$174&" and LocalDay("&$D$12&")="&$K$174&" and Barix("&$D$12&",reference:=StartOfSession)="&A40&"","FG","","Close","5","0","",,,"False","T","EveryTick"),RTD("cqg.rtd",,"StudyData","Close("&$D$12&") when LocalYear("&$D$12&")="&$E$174&" and localMonth("&$D$12&") ="&$F$174&" and LocalDay("&$D$12&")="&$G$174&" and Barix("&$D$12&",reference:=StartOfSession)="&A40&"","FG","","Close","5","0","",,,"False","T","EveryTick")) -> 3469 | O40: 0.001443418014 | P40: =IF(AND($F$28<0,B40<0.999999),RTD("cqg.rtd",,"StudyData","Close("&$D$12&") when LocalYear("&$D$12&")="&$I$175&" and localMonth("&$D$12&") ="&$J$175&" and LocalDay("&$D$12&")="&$K$175&" and Barix("&$D$12&",reference:=StartOfSession)="&A40&"","FG","","Close","5","0","",,,"False","T","EveryTick"),RTD("cqg.rtd",,"StudyData","Close("&$D$12&") when LocalYear("&$D$12&")="&$E$175&" and localMonth("&$D$12&") ="&$F$175&" and LocalDay("&$D$12&")="&$G$175&" and Barix("&$D$12&",reference:=StartOfSession)="&A40&"","FG","","Close","5","0","",,,"False","T","EveryTick")) -> 3469 | Q40: -0.0008640552995 | R40: =IF(AND($F$28<0,B40<0.999999),RTD("cqg.rtd",,"StudyData","Close("&$D$12&") when LocalYear("&$D$12&")="&$I$176&" and localMonth("&$D$12&") ="&$J$176&" and LocalDay("&$D$12&")="&$K$176&" and Barix("&$D$12&",reference:=StartOfSession)="&A40&"","FG","","Close","5","0","",,,"False","T","EveryTick"),RTD("cqg.rtd",,"StudyData","Close("&$D$12&") when LocalYear("&$D$12&")="&$E$176&" and localMonth("&$D$12&") ="&$F$176&" and LocalDay("&$D$12&")="&$G$176&" and Barix("&$D$12&",reference:=StartOfSession)="&A40&"","FG","","Close","5","0","",,,"False","T","EveryTick")) -> 3451 | S40: 0.006709451575 | T40: =IF(AND($F$28<0,B40<0.999999),RTD("cqg.rtd",,"StudyData","Close("&$D$12&") when LocalYear("&$D$12&")="&$I$177&" and localMonth("&$D$12&") ="&$J$177&" and LocalDay("&$D$12&")="&$K$177&" and Barix("&$D$12&",reference:=StartOfSession)="&A40&"","FG","","Close","5","0","",,,"False","T","EveryTick"),RTD("cqg.rtd",,"StudyData","Close("&$D$12&") when LocalYear("&$D$12&")="&$E$177&" and localMonth("&$D$12&") ="&$F$177&" and LocalDay("&$D$12&")="&$G$177&" and Barix("&$D$12&",reference:=StartOfSession)="&A40&"","FG","","Close","5","0","",,,"False","T","EveryTick")) -> 3413 | U40: -0.009288824383 | V40: =IF(AND($F$28<0,B40<0.999999),RTD("cqg.rtd",,"StudyData","Close("&$D$12&") when LocalYear("&$D$12&")="&$I$178&" and localMonth("&$D$12&") ="&$J$178&" and LocalDay("&$D$12&")="&$K$178&" and Barix("&$D$12&",reference:=StartOfSession)="&A40&"","FG","","Close","5","0","",,,"False","T","EveryTick"),RTD("cqg.rtd",,"StudyData","Close("&$D$12&") when LocalYear("&$D$12&")="&$E$178&" and localMonth("&$D$12&") ="&$F$178&" and LocalDay("&$D$12&")="&$G$178&" and Barix("&$D$12&",reference:=StartOfSession)="&A40&"","FG","","Close","5","0","",,,"False","T","EveryTick")) -> 3457 | W40: 0.004357931435 | X40: =IF(AND($F$28<0,B40<0.999999),RTD("cqg.rtd",,"StudyData","Close("&$D$12&") when LocalYear("&$D$12&")="&$I$179&" and localMonth("&$D$12&") ="&$J$179&" and LocalDay("&$D$12&")="&$K$179&" and Barix("&$D$12&",reference:=StartOfSession)="&A40&"","FG","","Close","5","0","",,,"False","T","EveryTick"),RTD("cqg.rtd",,"StudyData","Close("&$D$12&") when LocalYear("&$D$12&")="&$E$179&" and localMonth("&$D$12&") ="&$F$179&" and LocalDay("&$D$12&")="&$G$179&" and Barix("&$D$12&",reference:=StartOfSession)="&A40&"","FG","","Close","5","0","",,,"False","T","EveryTick")) -> 3449 | Y40: 0.002033701336 | Z40: =IF(AND($F$28<0,B40<0.999999),RTD("cqg.rtd",,"StudyData","Close("&$D$12&") when LocalYear("&$D$12&")="&$I$180&" and localMonth("&$D$12&") ="&$J$180&" and LocalDay("&$D$12&")="&$K$180&" and Barix("&$D$12&",reference:=StartOfSession)="&A40&"","FG","","Close","5","0","",,,"False","T","EveryTick"),RTD("cqg.rtd",,"StudyData","Close("&$D$12&") when LocalYear("&$D$12&")="&$E$180&" and localMonth("&$D$12&") ="&$F$180&" and LocalDay("&$D$12&")="&$G$180&" and Barix("&$D$12&",reference:=StartOfSession)="&A40&"","FG","","Close","5","0","",,,"False","T","EveryTick")) -> 3468 | AA40: 0.004344048653
A41: 40 | B41: 11:20:00 | C41: -37 | D41: =RTD("cqg.rtd",,"StudyData", $D$12, "Tick", "FlatTicks=0", "Tick","D",C41,"PrimaryOnly") -> 3447 | H41: =IF(AND($F$28<0,B41<0.999999),RTD("cqg.rtd",,"StudyData","Close("&$D$12&") when LocalYear("&$D$12&")="&$I$171&" and localMonth("&$D$12&") ="&$J$171&" and LocalDay("&$D$12&")="&$K$171&" and Barix("&$D$12&",reference:=StartOfSession)="&A41&"","FG","","Close","5","0","",,,"False","T","EveryTick"),RTD("cqg.rtd",,"StudyData","Close("&$D$12&") when LocalYear("&$D$12&")="&$E$171&" and localMonth("&$D$12&") ="&$F$171&" and LocalDay("&$D$12&")="&$G$171&" and Barix("&$D$12&",reference:=StartOfSession)="&A41&"","FG","","Close","5","0","",,,"False","T","EveryTick")) -> 3475 | I41: -0.00799314873 | J41: =IF(AND($F$28<0,B41<0.999999),RTD("cqg.rtd",,"StudyData","Close("&$D$12&") when LocalYear("&$D$12&")="&$I$172&" and localMonth("&$D$12&") ="&$J$172&" and LocalDay("&$D$12&")="&$K$172&" and Barix("&$D$12&",reference:=StartOfSession)="&A41&"","FG","","Close","5","0","",,,"False","T","EveryTick"),RTD("cqg.rtd",,"StudyData","Close("&$D$12&") when LocalYear("&$D$12&")="&$E$172&" and localMonth("&$D$12&") ="&$F$172&" and LocalDay("&$D$12&")="&$G$172&" and Barix("&$D$12&",reference:=StartOfSession)="&A41&"","FG","","Close","5","0","",,,"False","T","EveryTick")) -> 3525 | K41: 0.0002837684449 | L41: =IF(AND($F$28<0,B41<0.999999),RTD("cqg.rtd",,"StudyData","Close("&$D$12&") when LocalYear("&$D$12&")="&$I$173&" and localMonth("&$D$12&") ="&$J$173&" and LocalDay("&$D$12&")="&$K$173&" and Barix("&$D$12&",reference:=StartOfSession)="&A41&"","FG","","Close","5","0","",,,"False","T","EveryTick"),RTD("cqg.rtd",,"StudyData","Close("&$D$12&") when LocalYear("&$D$12&")="&$E$173&" and localMonth("&$D$12&") ="&$F$173&" and LocalDay("&$D$12&")="&$G$173&" and Barix("&$D$12&",reference:=StartOfSession)="&A41&"","FG","","Close","5","0","",,,"False","T","EveryTick")) -> 3463 | M41: -0.002879355024 | N41: =IF(AND($F$28<0,B41<0.999999),RTD("cqg.rtd",,"StudyData","Close("&$D$12&") when LocalYear("&$D$12&")="&$I$174&" and localMonth("&$D$12&") ="&$J$174&" and LocalDay("&$D$12&")="&$K$174&" and Barix("&$D$12&",reference:=StartOfSession)="&A41&"","FG","","Close","5","0","",,,"False","T","EveryTick"),RTD("cqg.rtd",,"StudyData","Close("&$D$12&") when LocalYear("&$D$12&")="&$E$174&" and localMonth("&$D$12&") ="&$F$174&" and LocalDay("&$D$12&")="&$G$174&" and Barix("&$D$12&",reference:=StartOfSession)="&A41&"","FG","","Close","5","0","",,,"False","T","EveryTick")) -> 3472 | O41: 0.002309468822 | P41: =IF(AND($F$28<0,B41<0.999999),RTD("cqg.rtd",,"StudyData","Close("&$D$12&") when LocalYear("&$D$12&")="&$I$175&" and localMonth("&$D$12&") ="&$J$175&" and LocalDay("&$D$12&")="&$K$175&" and Barix("&$D$12&",reference:=StartOfSession)="&A41&"","FG","","Close","5","0","",,,"False","T","EveryTick"),RTD("cqg.rtd",,"StudyData","Close("&$D$12&") when LocalYear("&$D$12&")="&$E$175&" and localMonth("&$D$12&") ="&$F$175&" and LocalDay("&$D$12&")="&$G$175&" and Barix("&$D$12&",reference:=StartOfSession)="&A41&"","FG","","Close","5","0","",,,"False","T","EveryTick")) -> 3470 | Q41: -0.0005760368664 | R41: =IF(AND($F$28<0,B41<0.999999),RTD("cqg.rtd",,"StudyData","Close("&$D$12&") when LocalYear("&$D$12&")="&$I$176&" and localMonth("&$D$12&") ="&$J$176&" and LocalDay("&$D$12&")="&$K$176&" and Barix("&$D$12&",reference:=StartOfSession)="&A41&"","FG","","Close","5","0","",,,"False","T","EveryTick"),RTD("cqg.rtd",,"StudyData","Close("&$D$12&") when LocalYear("&$D$12&")="&$E$176&" and localMonth("&$D$12&") ="&$F$176&" and LocalDay("&$D$12&")="&$G$176&" and Barix("&$D$12&",reference:=StartOfSession)="&A41&"","FG","","Close","5","0","",,,"False","T","EveryTick")) -> 3449 | S41: 0.006126021004 | T41: =IF(AND($F$28<0,B41<0.999999),RTD("cqg.rtd",,"StudyData","Close("&$D$12&") when LocalYear("&$D$12&")="&$I$177&" and localMonth("&$D$12&") ="&$J$177&" and LocalDay("&$D$12&")="&$K$177&" and Barix("&$D$12&",reference:=StartOfSession)="&A41&"","FG","","Close","5","0","",,,"False","T","EveryTick"),RTD("cqg.rtd",,"StudyData","Close("&$D$12&") when LocalYear("&$D$12&")="&$E$177&" and localMonth("&$D$12&") ="&$F$177&" and LocalDay("&$D$12&")="&$G$177&" and Barix("&$D$12&",reference:=StartOfSession)="&A41&"","FG","","Close","5","0","",,,"False","T","EveryTick")) -> 3412 | U41: -0.009579100145 | V41: =IF(AND($F$28<0,B41<0.999999),RTD("cqg.rtd",,"StudyData","Close("&$D$12&") when LocalYear("&$D$12&")="&$I$178&" and localMonth("&$D$12&") ="&$J$178&" and LocalDay("&$D$12&")="&$K$178&" and Barix("&$D$12&",reference:=StartOfSession)="&A41&"","FG","","Close","5","0","",,,"False","T","EveryTick"),RTD("cqg.rtd",,"StudyData","Close("&$D$12&") when LocalYear("&$D$12&")="&$E$178&" and localMonth("&$D$12&") ="&$F$178&" and LocalDay("&$D$12&")="&$G$178&" and Barix("&$D$12&",reference:=StartOfSession)="&A41&"","FG","","Close","5","0","",,,"False","T","EveryTick")) -> 3459 | W41: 0.00493898896 | X41: =IF(AND($F$28<0,B41<0.999999),RTD("cqg.rtd",,"StudyData","Close("&$D$12&") when LocalYear("&$D$12&")="&$I$179&" and localMonth("&$D$12&") ="&$J$179&" and LocalDay("&$D$12&")="&$K$179&" and Barix("&$D$12&",reference:=StartOfSession)="&A41&"","FG","","Close","5","0","",,,"False","T","EveryTick"),RTD("cqg.rtd",,"StudyData","Close("&$D$12&") when LocalYear("&$D$12&")="&$E$179&" and localMonth("&$D$12&") ="&$F$179&" and LocalDay("&$D$12&")="&$G$179&" and Barix("&$D$12&",reference:=StartOfSession)="&A41&"","FG","","Close","5","0","",,,"False","T","EveryTick")) -> 3450 | Y41: 0.002324230099 | Z41: =IF(AND($F$28<0,B41<0.999999),RTD("cqg.rtd",,"StudyData","Close("&$D$12&") when LocalYear("&$D$12&")="&$I$180&" and localMonth("&$D$12&") ="&$J$180&" and LocalDay("&$D$12&")="&$K$180&" and Barix("&$D$12&",reference:=StartOfSession)="&A41&"","FG","","Close","5","0","",,,"False","T","EveryTick"),RTD("cqg.rtd",,"StudyData","Close("&$D$12&") when LocalYear("&$D$12&")="&$E$180&" and localMonth("&$D$12&") ="&$F$180&" and LocalDay("&$D$12&")="&$G$180&" and Barix("&$D$12&",reference:=StartOfSession)="&A41&"","FG","","Close","5","0","",,,"False","T","EveryTick")) -> 3468 | AA41: 0.004344048653
A42: 41 | B42: 11:25:00 | C42: -36 | D42: =RTD("cqg.rtd",,"StudyData", $D$12, "Tick", "FlatTicks=0", "Tick","D",C42,"PrimaryOnly") -> 3448 | H42: =IF(AND($F$28<0,B42<0.999999),RTD("cqg.rtd",,"StudyData","Close("&$D$12&") when LocalYear("&$D$12&")="&$I$171&" and localMonth("&$D$12&") ="&$J$171&" and LocalDay("&$D$12&")="&$K$171&" and Barix("&$D$12&",reference:=StartOfSession)="&A42&"","FG","","Close","5","0","",,,"False","T","EveryTick"),RTD("cqg.rtd",,"StudyData","Close("&$D$12&") when LocalYear("&$D$12&")="&$E$171&" and localMonth("&$D$12&") ="&$F$171&" and LocalDay("&$D$12&")="&$G$171&" and Barix("&$D$12&",reference:=StartOfSession)="&A42&"","FG","","Close","5","0","",,,"False","T","EveryTick")) -> 3471 | I42: -0.00913502712 | J42: =IF(AND($F$28<0,B42<0.999999),RTD("cqg.rtd",,"StudyData","Close("&$D$12&") when LocalYear("&$D$12&")="&$I$172&" and localMonth("&$D$12&") ="&$J$172&" and LocalDay("&$D$12&")="&$K$172&" and Barix("&$D$12&",reference:=StartOfSession)="&A42&"","FG","","Close","5","0","",,,"False","T","EveryTick"),RTD("cqg.rtd",,"StudyData","Close("&$D$12&") when LocalYear("&$D$12&")="&$E$172&" and localMonth("&$D$12&") ="&$F$172&" and LocalDay("&$D$12&")="&$G$172&" and Barix("&$D$12&",reference:=StartOfSession)="&A42&"","FG","","Close","5","0","",,,"False","T","EveryTick")) -> 3526 | K42: 0.0005675368899 | L42: =IF(AND($F$28<0,B42<0.999999),RTD("cqg.rtd",,"StudyData","Close("&$D$12&") when LocalYear("&$D$12&")="&$I$173&" and localMonth("&$D$12&") ="&$J$173&" and LocalDay("&$D$12&")="&$K$173&" and Barix("&$D$12&",reference:=StartOfSession)="&A42&"","FG","","Close","5","0","",,,"False","T","EveryTick"),RTD("cqg.rtd",,"StudyData","Close("&$D$12&") when LocalYear("&$D$12&")="&$E$173&" and localMonth("&$D$12&") ="&$F$173&" and LocalDay("&$D$12&")="&$G$173&" and Barix("&$D$12&",reference:=StartOfSession)="&A42&"","FG","","Close","5","0","",,,"False","T","EveryTick")) -> 3463 | M42: -0.002879355024 | N42: =IF(AND($F$28<0,B42<0.999999),RTD("cqg.rtd",,"StudyData","Close("&$D$12&") when LocalYear("&$D$12&")="&$I$174&" and localMonth("&$D$12&") ="&$J$174&" and LocalDay("&$D$12&")="&$K$174&" and Barix("&$D$12&",reference:=StartOfSession)="&A42&"","FG","","Close","5","0","",,,"False","T","EveryTick"),RTD("cqg.rtd",,"StudyData","Close("&$D$12&") when LocalYear("&$D$12&")="&$E$174&" and localMonth("&$D$12&") ="&$F$174&" and LocalDay("&$D$12&")="&$G$174&" and Barix("&$D$12&",reference:=StartOfSession)="&A42&"","FG","","Close","5","0","",,,"False","T","EveryTick")) -> 3468 | O42: 0.001154734411 | P42: =IF(AND($F$28<0,B42<0.999999),RTD("cqg.rtd",,"StudyData","Close("&$D$12&") when LocalYear("&$D$12&")="&$I$175&" and localMonth("&$D$12&") ="&$J$175&" and LocalDay("&$D$12&")="&$K$175&" and Barix("&$D$12&",reference:=StartOfSession)="&A42&"","FG","","Close","5","0","",,,"False","T","EveryTick"),RTD("cqg.rtd",,"StudyData","Close("&$D$12&") when LocalYear("&$D$12&")="&$E$175&" and localMonth("&$D$12&") ="&$F$175&" and LocalDay("&$D$12&")="&$G$175&" and Barix("&$D$12&",reference:=StartOfSession)="&A42&"","FG","","Close","5","0","",,,"False","T","EveryTick")) -> 3469 | Q42: -0.0008640552995 | R42: =IF(AND($F$28<0,B42<0.999999),RTD("cqg.rtd",,"StudyData","Close("&$D$12&") when LocalYear("&$D$12&")="&$I$176&" and localMonth("&$D$12&") ="&$J$176&" and LocalDay("&$D$12&")="&$K$176&" and Barix("&$D$12&",reference:=StartOfSession)="&A42&"","FG","","Close","5","0","",,,"False","T","EveryTick"),RTD("cqg.rtd",,"StudyData","Close("&$D$12&") when LocalYear("&$D$12&")="&$E$176&" and localMonth("&$D$12&") ="&$F$176&" and LocalDay("&$D$12&")="&$G$176&" and Barix("&$D$12&",reference:=StartOfSession)="&A42&"","FG","","Close","5","0","",,,"False","T","EveryTick")) -> 3453 | S42: 0.007292882147 | T42: =IF(AND($F$28<0,B42<0.999999),RTD("cqg.rtd",,"StudyData","Close("&$D$12&") when LocalYear("&$D$12&")="&$I$177&" and localMonth("&$D$12&") ="&$J$177&" and LocalDay("&$D$12&")="&$K$177&" and Barix("&$D$12&",reference:=StartOfSession)="&A42&"","FG","","Close","5","0","",,,"False","T","EveryTick"),RTD("cqg.rtd",,"StudyData","Close("&$D$12&") when LocalYear("&$D$12&")="&$E$177&" and localMonth("&$D$12&") ="&$F$177&" and LocalDay("&$D$12&")="&$G$177&" and Barix("&$D$12&",reference:=StartOfSession)="&A42&"","FG","","Close","5","0","",,,"False","T","EveryTick")) -> 3414 | U42: -0.008998548621 | V42: =IF(AND($F$28<0,B42<0.999999),RTD("cqg.rtd",,"StudyData","Close("&$D$12&") when LocalYear("&$D$12&")="&$I$178&" and localMonth("&$D$12&") ="&$J$178&" and LocalDay("&$D$12&")="&$K$178&" and Barix("&$D$12&",reference:=StartOfSession)="&A42&"","FG","","Close","5","0","",,,"False","T","EveryTick"),RTD("cqg.rtd",,"StudyData","Close("&$D$12&") when LocalYear("&$D$12&")="&$E$178&" and localMonth("&$D$12&") ="&$F$178&" and LocalDay("&$D$12&")="&$G$178&" and Barix("&$D$12&",reference:=StartOfSession)="&A42&"","FG","","Close","5","0","",,,"False","T","EveryTick")) -> 3458 | W42: 0.004648460198 | X42: =IF(AND($F$28<0,B42<0.999999),RTD("cqg.rtd",,"StudyData","Close("&$D$12&") when LocalYear("&$D$12&")="&$I$179&" and localMonth("&$D$12&") ="&$J$179&" and LocalDay("&$D$12&")="&$K$179&" and Barix("&$D$12&",reference:=StartOfSession)="&A42&"","FG","","Close","5","0","",,,"False","T","EveryTick"),RTD("cqg.rtd",,"StudyData","Close("&$D$12&") when LocalYear("&$D$12&")="&$E$179&" and localMonth("&$D$12&") ="&$F$179&" and LocalDay("&$D$12&")="&$G$179&" and Barix("&$D$12&",reference:=StartOfSession)="&A42&"","FG","","Close","5","0","",,,"False","T","EveryTick")) -> 3449 | Y42: 0.002033701336 | Z42: =IF(AND($F$28<0,B42<0.999999),RTD("cqg.rtd",,"StudyData","Close("&$D$12&") when LocalYear("&$D$12&")="&$I$180&" and localMonth("&$D$12&") ="&$J$180&" and LocalDay("&$D$12&")="&$K$180&" and Barix("&$D$12&",reference:=StartOfSession)="&A42&"","FG","","Close","5","0","",,,"False","T","EveryTick"),RTD("cqg.rtd",,"StudyData","Close("&$D$12&") when LocalYear("&$D$12&")="&$E$180&" and localMonth("&$D$12&") ="&$F$180&" and LocalDay("&$D$12&")="&$G$180&" and Barix("&$D$12&",reference:=StartOfSession)="&A42&"","FG","","Close","5","0","",,,"False","T","EveryTick")) -> 3471 | AA42: 0.005212858384
A43: 42 | B43: 11:30:00 | C43: -35 | D43: =RTD("cqg.rtd",,"StudyData", $D$12, "Tick", "FlatTicks=0", "Tick","D",C43,"PrimaryOnly") -> 3447 | H43: =IF(AND($F$28<0,B43<0.999999),RTD("cqg.rtd",,"StudyData","Close("&$D$12&") when LocalYear("&$D$12&")="&$I$171&" and localMonth("&$D$12&") ="&$J$171&" and LocalDay("&$D$12&")="&$K$171&" and Barix("&$D$12&",reference:=StartOfSession)="&A43&"","FG","","Close","5","0","",,,"False","T","EveryTick"),RTD("cqg.rtd",,"StudyData","Close("&$D$12&") when LocalYear("&$D$12&")="&$E$171&" and localMonth("&$D$12&") ="&$F$171&" and LocalDay("&$D$12&")="&$G$171&" and Barix("&$D$12&",reference:=StartOfSession)="&A43&"","FG","","Close","5","0","",,,"False","T","EveryTick")) -> 3468 | I43: -0.009991435912 | J43: =IF(AND($F$28<0,B43<0.999999),RTD("cqg.rtd",,"StudyData","Close("&$D$12&") when LocalYear("&$D$12&")="&$I$172&" and localMonth("&$D$12&") ="&$J$172&" and LocalDay("&$D$12&")="&$K$172&" and Barix("&$D$12&",reference:=StartOfSession)="&A43&"","FG","","Close","5","0","",,,"False","T","EveryTick"),RTD("cqg.rtd",,"StudyData","Close("&$D$12&") when LocalYear("&$D$12&")="&$E$172&" and localMonth("&$D$12&") ="&$F$172&" and LocalDay("&$D$12&")="&$G$172&" and Barix("&$D$12&",reference:=StartOfSession)="&A43&"","FG","","Close","5","0","",,,"False","T","EveryTick")) -> 3526 | K43: 0.0005675368899 | L43: =IF(AND($F$28<0,B43<0.999999),RTD("cqg.rtd",,"StudyData","Close("&$D$12&") when LocalYear("&$D$12&")="&$I$173&" and localMonth("&$D$12&") ="&$J$173&" and LocalDay("&$D$12&")="&$K$173&" and Barix("&$D$12&",reference:=StartOfSession)="&A43&"","FG","","Close","5","0","",,,"False","T","EveryTick"),RTD("cqg.rtd",,"StudyData","Close("&$D$12&") when LocalYear("&$D$12&")="&$E$173&" and localMonth("&$D$12&") ="&$F$173&" and LocalDay("&$D$12&")="&$G$173&" and Barix("&$D$12&",reference:=StartOfSession)="&A43&"","FG","","Close","5","0","",,,"False","T","EveryTick")) -> 3462 | M43: -0.003167290527 | N43: =IF(AND($F$28<0,B43<0.999999),RTD("cqg.rtd",,"StudyData","Close("&$D$12&") when LocalYear("&$D$12&")="&$I$174&" and localMonth("&$D$12&") ="&$J$174&" and LocalDay("&$D$12&")="&$K$174&" and Barix("&$D$12&",reference:=StartOfSession)="&A43&"","FG","","Close","5","0","",,,"False","T","EveryTick"),RTD("cqg.rtd",,"StudyData","Close("&$D$12&") when LocalYear("&$D$12&")="&$E$174&" and localMonth("&$D$12&") ="&$F$174&" and LocalDay("&$D$12&")="&$G$174&" and Barix("&$D$12&",reference:=StartOfSession)="&A43&"","FG","","Close","5","0","",,,"False","T","EveryTick")) -> 3468 | O43: 0.001154734411 | P43: =IF(AND($F$28<0,B43<0.999999),RTD("cqg.rtd",,"StudyData","Close("&$D$12&") when LocalYear("&$D$12&")="&$I$175&" and localMonth("&$D$12&") ="&$J$175&" and LocalDay("&$D$12&")="&$K$175&" and Barix("&$D$12&",reference:=StartOfSession)="&A43&"","FG","","Close","5","0","",,,"False","T","EveryTick"),RTD("cqg.rtd",,"StudyData","Close("&$D$12&") when LocalYear("&$D$12&")="&$E$175&" and localMonth("&$D$12&") ="&$F$175&" and LocalDay("&$D$12&")="&$G$175&" and Barix("&$D$12&",reference:=StartOfSession)="&A43&"","FG","","Close","5","0","",,,"False","T","EveryTick")) -> 3466 | Q43: -0.001728110599 | R43: =IF(AND($F$28<0,B43<0.999999),RTD("cqg.rtd",,"StudyData","Close("&$D$12&") when LocalYear("&$D$12&")="&$I$176&" and localMonth("&$D$12&") ="&$J$176&" and LocalDay("&$D$12&")="&$K$176&" and Barix("&$D$12&",reference:=StartOfSession)="&A43&"","FG","","Close","5","0","",,,"False","T","EveryTick"),RTD("cqg.rtd",,"StudyData","Close("&$D$12&") when LocalYear("&$D$12&")="&$E$176&" and localMonth("&$D$12&") ="&$F$176&" and LocalDay("&$D$12&")="&$G$176&" and Barix("&$D$12&",reference:=StartOfSession)="&A43&"","FG","","Close","5","0","",,,"False","T","EveryTick")) -> 3454 | S43: 0.007584597433 | T43: =IF(AND($F$28<0,B43<0.999999),RTD("cqg.rtd",,"StudyData","Close("&$D$12&") when LocalYear("&$D$12&")="&$I$177&" and localMonth("&$D$12&") ="&$J$177&" and LocalDay("&$D$12&")="&$K$177&" and Barix("&$D$12&",reference:=StartOfSession)="&A43&"","FG","","Close","5","0","",,,"False","T","EveryTick"),RTD("cqg.rtd",,"StudyData","Close("&$D$12&") when LocalYear("&$D$12&")="&$E$177&" and localMonth("&$D$12&") ="&$F$177&" and LocalDay("&$D$12&")="&$G$177&" and Barix("&$D$12&",reference:=StartOfSession)="&A43&"","FG","","Close","5","0","",,,"False","T","EveryTick")) -> 3418 | U43: -0.007837445573 | V43: =IF(AND($F$28<0,B43<0.999999),RTD("cqg.rtd",,"StudyData","Close("&$D$12&") when LocalYear("&$D$12&")="&$I$178&" and localMonth("&$D$12&") ="&$J$178&" and LocalDay("&$D$12&")="&$K$178&" and Barix("&$D$12&",reference:=StartOfSession)="&A43&"","FG","","Close","5","0","",,,"False","T","EveryTick"),RTD("cqg.rtd",,"StudyData","Close("&$D$12&") when LocalYear("&$D$12&")="&$E$178&" and localMonth("&$D$12&") ="&$F$178&" and LocalDay("&$D$12&")="&$G$178&" and Barix("&$D$12&",reference:=StartOfSession)="&A43&"","FG","","Close","5","0","",,,"False","T","EveryTick")) -> 3461 | W43: 0.005520046485 | X43: =IF(AND($F$28<0,B43<0.999999),RTD("cqg.rtd",,"StudyData","Close("&$D$12&") when LocalYear("&$D$12&")="&$I$179&" and localMonth("&$D$12&") ="&$J$179&" and LocalDay("&$D$12&")="&$K$179&" and Barix("&$D$12&",reference:=StartOfSession)="&A43&"","FG","","Close","5","0","",,,"False","T","EveryTick"),RTD("cqg.rtd",,"StudyData","Close("&$D$12&") when LocalYear("&$D$12&")="&$E$179&" and localMonth("&$D$12&") ="&$F$179&" and LocalDay("&$D$12&")="&$G$179&" and Barix("&$D$12&",reference:=StartOfSession)="&A43&"","FG","","Close","5","0","",,,"False","T","EveryTick")) -> 3448 | Y43: 0.001743172574 | Z43: =IF(AND($F$28<0,B43<0.999999),RTD("cqg.rtd",,"StudyData","Close("&$D$12&") when LocalYear("&$D$12&")="&$I$180&" and localMonth("&$D$12&") ="&$J$180&" and LocalDay("&$D$12&")="&$K$180&" and Barix("&$D$12&",reference:=StartOfSession)="&A43&"","FG","","Close","5","0","",,,"False","T","EveryTick"),RTD("cqg.rtd",,"StudyData","Close("&$D$12&") when LocalYear("&$D$12&")="&$E$180&" and localMonth("&$D$12&") ="&$F$180&" and LocalDay("&$D$12&")="&$G$180&" and Barix("&$D$12&",reference:=StartOfSession)="&A43&"","FG","","Close","5","0","",,,"False","T","EveryTick")) -> 3469 | AA43: 0.004633651897
A44: 43 | B44: 11:35:00 | C44: -34 | D44: =RTD("cqg.rtd",,"StudyData", $D$12, "Tick", "FlatTicks=0", "Tick","D",C44,"PrimaryOnly") -> 3448 | H44: =IF(AND($F$28<0,B44<0.999999),RTD("cqg.rtd",,"StudyData","Close("&$D$12&") when LocalYear("&$D$12&")="&$I$171&" and localMonth("&$D$12&") ="&$J$171&" and LocalDay("&$D$12&")="&$K$171&" and Barix("&$D$12&",reference:=StartOfSession)="&A44&"","FG","","Close","5","0","",,,"False","T","EveryTick"),RTD("cqg.rtd",,"StudyData","Close("&$D$12&") when LocalYear("&$D$12&")="&$E$171&" and localMonth("&$D$12&") ="&$F$171&" and LocalDay("&$D$12&")="&$G$171&" and Barix("&$D$12&",reference:=StartOfSession)="&A44&"","FG","","Close","5","0","",,,"False","T","EveryTick")) -> 3467 | I44: -0.01027690551 | J44: =IF(AND($F$28<0,B44<0.999999),RTD("cqg.rtd",,"StudyData","Close("&$D$12&") when LocalYear("&$D$12&")="&$I$172&" and localMonth("&$D$12&") ="&$J$172&" and LocalDay("&$D$12&")="&$K$172&" and Barix("&$D$12&",reference:=StartOfSession)="&A44&"","FG","","Close","5","0","",,,"False","T","EveryTick"),RTD("cqg.rtd",,"StudyData","Close("&$D$12&") when LocalYear("&$D$12&")="&$E$172&" and localMonth("&$D$12&") ="&$F$172&" and LocalDay("&$D$12&")="&$G$172&" and Barix("&$D$12&",reference:=StartOfSession)="&A44&"","FG","","Close","5","0","",,,"False","T","EveryTick")) -> 3524 | K44: 0 | L44: =IF(AND($F$28<0,B44<0.999999),RTD("cqg.rtd",,"StudyData","Close("&$D$12&") when LocalYear("&$D$12&")="&$I$173&" and localMonth("&$D$12&") ="&$J$173&" and LocalDay("&$D$12&")="&$K$173&" and Barix("&$D$12&",reference:=StartOfSession)="&A44&"","FG","","Close","5","0","",,,"False","T","EveryTick"),RTD("cqg.rtd",,"StudyData","Close("&$D$12&") when LocalYear("&$D$12&")="&$E$173&" and localMonth("&$D$12&") ="&$F$173&" and LocalDay("&$D$12&")="&$G$173&" and Barix("&$D$12&",reference:=StartOfSession)="&A44&"","FG","","Close","5","0","",,,"False","T","EveryTick")) -> 3461 | M44: -0.003455226029 | N44: =IF(AND($F$28<0,B44<0.999999),RTD("cqg.rtd",,"StudyData","Close("&$D$12&") when LocalYear("&$D$12&")="&$I$174&" and localMonth("&$D$12&") ="&$J$174&" and LocalDay("&$D$12&")="&$K$174&" and Barix("&$D$12&",reference:=StartOfSession)="&A44&"","FG","","Close","5","0","",,,"False","T","EveryTick"),RTD("cqg.rtd",,"StudyData","Close("&$D$12&") when LocalYear("&$D$12&")="&$E$174&" and localMonth("&$D$12&") ="&$F$174&" and LocalDay("&$D$12&")="&$G$174&" and Barix("&$D$12&",reference:=StartOfSession)="&A44&"","FG","","Close","5","0","",,,"False","T","EveryTick")) -> 3468 | O44: 0.001154734411 | P44: =IF(AND($F$28<0,B44<0.999999),RTD("cqg.rtd",,"StudyData","Close("&$D$12&") when LocalYear("&$D$12&")="&$I$175&" and localMonth("&$D$12&") ="&$J$175&" and LocalDay("&$D$12&")="&$K$175&" and Barix("&$D$12&",reference:=StartOfSession)="&A44&"","FG","","Close","5","0","",,,"False","T","EveryTick"),RTD("cqg.rtd",,"StudyData","Close("&$D$12&") when LocalYear("&$D$12&")="&$E$175&" and localMonth("&$D$12&") ="&$F$175&" and LocalDay("&$D$12&")="&$G$175&" and Barix("&$D$12&",reference:=StartOfSession)="&A44&"","FG","","Close","5","0","",,,"False","T","EveryTick")) -> 3464 | Q44: -0.002304147465 | R44: =IF(AND($F$28<0,B44<0.999999),RTD("cqg.rtd",,"StudyData","Close("&$D$12&") when LocalYear("&$D$12&")="&$I$176&" and localMonth("&$D$12&") ="&$J$176&" and LocalDay("&$D$12&")="&$K$176&" and Barix("&$D$12&",reference:=StartOfSession)="&A44&"","FG","","Close","5","0","",,,"False","T","EveryTick"),RTD("cqg.rtd",,"StudyData","Close("&$D$12&") when LocalYear("&$D$12&")="&$E$176&" and localMonth("&$D$12&") ="&$F$176&" and LocalDay("&$D$12&")="&$G$176&" and Barix("&$D$12&",reference:=StartOfSession)="&A44&"","FG","","Close","5","0","",,,"False","T","EveryTick")) -> 3452 | S44: 0.007001166861 | T44: =IF(AND($F$28<0,B44<0.999999),RTD("cqg.rtd",,"StudyData","Close("&$D$12&") when LocalYear("&$D$12&")="&$I$177&" and localMonth("&$D$12&") ="&$J$177&" and LocalDay("&$D$12&")="&$K$177&" and Barix("&$D$12&",reference:=StartOfSession)="&A44&"","FG","","Close","5","0","",,,"False","T","EveryTick"),RTD("cqg.rtd",,"StudyData","Close("&$D$12&") when LocalYear("&$D$12&")="&$E$177&" and localMonth("&$D$12&") ="&$F$177&" and LocalDay("&$D$12&")="&$G$177&" and Barix("&$D$12&",reference:=StartOfSession)="&A44&"","FG","","Close","5","0","",,,"False","T","EveryTick")) -> 3420 | U44: -0.007256894049 | V44: =IF(AND($F$28<0,B44<0.999999),RTD("cqg.rtd",,"StudyData","Close("&$D$12&") when LocalYear("&$D$12&")="&$I$178&" and localMonth("&$D$12&") ="&$J$178&" and LocalDay("&$D$12&")="&$K$178&" and Barix("&$D$12&",reference:=StartOfSession)="&A44&"","FG","","Close","5","0","",,,"False","T","EveryTick"),RTD("cqg.rtd",,"StudyData","Close("&$D$12&") when LocalYear("&$D$12&")="&$E$178&" and localMonth("&$D$12&") ="&$F$178&" and LocalDay("&$D$12&")="&$G$178&" and Barix("&$D$12&",reference:=StartOfSession)="&A44&"","FG","","Close","5","0","",,,"False","T","EveryTick")) -> 3456 | W44: 0.004067402673 | X44: =IF(AND($F$28<0,B44<0.999999),RTD("cqg.rtd",,"StudyData","Close("&$D$12&") when LocalYear("&$D$12&")="&$I$179&" and localMonth("&$D$12&") ="&$J$179&" and LocalDay("&$D$12&")="&$K$179&" and Barix("&$D$12&",reference:=StartOfSession)="&A44&"","FG","","Close","5","0","",,,"False","T","EveryTick"),RTD("cqg.rtd",,"StudyData","Close("&$D$12&") when LocalYear("&$D$12&")="&$E$179&" and localMonth("&$D$12&") ="&$F$179&" and LocalDay("&$D$12&")="&$G$179&" and Barix("&$D$12&",reference:=StartOfSession)="&A44&"","FG","","Close","5","0","",,,"False","T","EveryTick")) -> 3448 | Y44: 0.001743172574 | Z44: =IF(AND($F$28<0,B44<0.999999),RTD("cqg.rtd",,"StudyData","Close("&$D$12&") when LocalYear("&$D$12&")="&$I$180&" and localMonth("&$D$12&") ="&$J$180&" and LocalDay("&$D$12&")="&$K$180&" and Barix("&$D$12&",reference:=StartOfSession)="&A44&"","FG","","Close","5","0","",,,"False","T","EveryTick"),RTD("cqg.rtd",,"StudyData","Close("&$D$12&") when LocalYear("&$D$12&")="&$E$180&" and localMonth("&$D$12&") ="&$F$180&" and LocalDay("&$D$12&")="&$G$180&" and Barix("&$D$12&",reference:=StartOfSession)="&A44&"","FG","","Close","5","0","",,,"False","T","EveryTick")) -> 3475 | AA44: 0.006371271358
A45: 44 | B45: 11:40:00 | C45: -33 | D45: =RTD("cqg.rtd",,"StudyData", $D$12, "Tick", "FlatTicks=0", "Tick","D",C45,"PrimaryOnly") -> 3447 | H45: =IF(AND($F$28<0,B45<0.999999),RTD("cqg.rtd",,"StudyData","Close("&$D$12&") when LocalYear("&$D$12&")="&$I$171&" and localMonth("&$D$12&") ="&$J$171&" and LocalDay("&$D$12&")="&$K$171&" and Barix("&$D$12&",reference:=StartOfSession)="&A45&"","FG","","Close","5","0","",,,"False","T","EveryTick"),RTD("cqg.rtd",,"StudyData","Close("&$D$12&") when LocalYear("&$D$12&")="&$E$171&" and localMonth("&$D$12&") ="&$F$171&" and LocalDay("&$D$12&")="&$G$171&" and Barix("&$D$12&",reference:=StartOfSession)="&A45&"","FG","","Close","5","0","",,,"False","T","EveryTick")) -> 3468 | I45: -0.009991435912 | J45: =IF(AND($F$28<0,B45<0.999999),RTD("cqg.rtd",,"StudyData","Close("&$D$12&") when LocalYear("&$D$12&")="&$I$172&" and localMonth("&$D$12&") ="&$J$172&" and LocalDay("&$D$12&")="&$K$172&" and Barix("&$D$12&",reference:=StartOfSession)="&A45&"","FG","","Close","5","0","",,,"False","T","EveryTick"),RTD("cqg.rtd",,"StudyData","Close("&$D$12&") when LocalYear("&$D$12&")="&$E$172&" and localMonth("&$D$12&") ="&$F$172&" and LocalDay("&$D$12&")="&$G$172&" and Barix("&$D$12&",reference:=StartOfSession)="&A45&"","FG","","Close","5","0","",,,"False","T","EveryTick")) -> 3525 | K45: 0.0002837684449 | L45: =IF(AND($F$28<0,B45<0.999999),RTD("cqg.rtd",,"StudyData","Close("&$D$12&") when LocalYear("&$D$12&")="&$I$173&" and localMonth("&$D$12&") ="&$J$173&" and LocalDay("&$D$12&")="&$K$173&" and Barix("&$D$12&",reference:=StartOfSession)="&A45&"","FG","","Close","5","0","",,,"False","T","EveryTick"),RTD("cqg.rtd",,"StudyData","Close("&$D$12&") when LocalYear("&$D$12&")="&$E$173&" and localMonth("&$D$12&") ="&$F$173&" and LocalDay("&$D$12&")="&$G$173&" and Barix("&$D$12&",reference:=StartOfSession)="&A45&"","FG","","Close","5","0","",,,"False","T","EveryTick")) -> 3458 | M45: -0.004319032537 | N45: =IF(AND($F$28<0,B45<0.999999),RTD("cqg.rtd",,"StudyData","Close("&$D$12&") when LocalYear("&$D$12&")="&$I$174&" and localMonth("&$D$12&") ="&$J$174&" and LocalDay("&$D$12&")="&$K$174&" and Barix("&$D$12&",reference:=StartOfSession)="&A45&"","FG","","Close","5","0","",,,"False","T","EveryTick"),RTD("cqg.rtd",,"StudyData","Close("&$D$12&") when LocalYear("&$D$12&")="&$E$174&" and localMonth("&$D$12&") ="&$F$174&" and LocalDay("&$D$12&")="&$G$174&" and Barix("&$D$12&",reference:=StartOfSession)="&A45&"","FG","","Close","5","0","",,,"False","T","EveryTick")) -> 3469 | O45: 0.001443418014 | P45: =IF(AND($F$28<0,B45<0.999999),RTD("cqg.rtd",,"StudyData","Close("&$D$12&") when LocalYear("&$D$12&")="&$I$175&" and localMonth("&$D$12&") ="&$J$175&" and LocalDay("&$D$12&")="&$K$175&" and Barix("&$D$12&",reference:=StartOfSession)="&A45&"","FG","","Close","5","0","",,,"False","T","EveryTick"),RTD("cqg.rtd",,"StudyData","Close("&$D$12&") when LocalYear("&$D$12&")="&$E$175&" and localMonth("&$D$12&") ="&$F$175&" and LocalDay("&$D$12&")="&$G$175&" and Barix("&$D$12&",reference:=StartOfSession)="&A45&"","FG","","Close","5","0","",,,"False","T","EveryTick")) -> 3464 | Q45: -0.002304147465 | R45: =IF(AND($F$28<0,B45<0.999999),RTD("cqg.rtd",,"StudyData","Close("&$D$12&") when LocalYear("&$D$12&")="&$I$176&" and localMonth("&$D$12&") ="&$J$176&" and LocalDay("&$D$12&")="&$K$176&" and Barix("&$D$12&",reference:=StartOfSession)="&A45&"","FG","","Close","5","0","",,,"False","T","EveryTick"),RTD("cqg.rtd",,"StudyData","Close("&$D$12&") when LocalYear("&$D$12&")="&$E$176&" and localMonth("&$D$12&") ="&$F$176&" and LocalDay("&$D$12&")="&$G$176&" and Barix("&$D$12&",reference:=StartOfSession)="&A45&"","FG","","Close","5","0","",,,"False","T","EveryTick")) -> 3450 | S45: 0.006417736289 | T45: =IF(AND($F$28<0,B45<0.999999),RTD("cqg.rtd",,"StudyData","Close("&$D$12&") when LocalYear("&$D$12&")="&$I$177&" and localMonth("&$D$12&") ="&$J$177&" and LocalDay("&$D$12&")="&$K$177&" and Barix("&$D$12&",reference:=StartOfSession)="&A45&"","FG","","Close","5","0","",,,"False","T","EveryTick"),RTD("cqg.rtd",,"StudyData","Close("&$D$12&") when LocalYear("&$D$12&")="&$E$177&" and localMonth("&$D$12&") ="&$F$177&" and LocalDay("&$D$12&")="&$G$177&" and Barix("&$D$12&",reference:=StartOfSession)="&A45&"","FG","","Close","5","0","",,,"False","T","EveryTick")) -> 3418 | U45: -0.007837445573 | V45: =IF(AND($F$28<0,B45<0.999999),RTD("cqg.rtd",,"StudyData","Close("&$D$12&") when LocalYear("&$D$12&")="&$I$178&" and localMonth("&$D$12&") ="&$J$178&" and LocalDay("&$D$12&")="&$K$178&" and Barix("&$D$12&",reference:=StartOfSession)="&A45&"","FG","","Close","5","0","",,,"False","T","EveryTick"),RTD("cqg.rtd",,"StudyData","Close("&$D$12&") when LocalYear("&$D$12&")="&$E$178&" and localMonth("&$D$12&") ="&$F$178&" and LocalDay("&$D$12&")="&$G$178&" and Barix("&$D$12&",reference:=StartOfSession)="&A45&"","FG","","Close","5","0","",,,"False","T","EveryTick")) -> 3455 | W45: 0.003776873911 | X45: =IF(AND($F$28<0,B45<0.999999),RTD("cqg.rtd",,"StudyData","Close("&$D$12&") when LocalYear("&$D$12&")="&$I$179&" and localMonth("&$D$12&") ="&$J$179&" and LocalDay("&$D$12&")="&$K$179&" and Barix("&$D$12&",reference:=StartOfSession)="&A45&"","FG","","Close","5","0","",,,"False","T","EveryTick"),RTD("cqg.rtd",,"StudyData","Close("&$D$12&") when LocalYear("&$D$12&")="&$E$179&" and localMonth("&$D$12&") ="&$F$179&" and LocalDay("&$D$12&")="&$G$179&" and Barix("&$D$12&",reference:=StartOfSession)="&A45&"","FG","","Close","5","0","",,,"False","T","EveryTick")) -> 3451 | Y45: 0.002614758861 | Z45: =IF(AND($F$28<0,B45<0.999999),RTD("cqg.rtd",,"StudyData","Close("&$D$12&") when LocalYear("&$D$12&")="&$I$180&" and localMonth("&$D$12&") ="&$J$180&" and LocalDay("&$D$12&")="&$K$180&" and Barix("&$D$12&",reference:=StartOfSession)="&A45&"","FG","","Close","5","0","",,,"False","T","EveryTick"),RTD("cqg.rtd",,"StudyData","Close("&$D$12&") when LocalYear("&$D$12&")="&$E$180&" and localMonth("&$D$12&") ="&$F$180&" and LocalDay("&$D$12&")="&$G$180&" and Barix("&$D$12&",reference:=StartOfSession)="&A45&"","FG","","Close","5","0","",,,"False","T","EveryTick")) -> 3476 | AA45: 0.006660874602
